Workbook

Sheet First
AD10: Rebalance
H13: This tool requires macros to be enabled. Please ensure the macros are enabled by clicking on the "Enable Content" button at the top of the page.
S18: Refers to the process of transferring an investment from one portfolio to another by selecting portfolios, amounts or percentages.
S26: The process of aligning the weightings of your investment portfolios. This involves the buying or selling of assets in your investment to obtain the desired level of asset allocation.
E34: PLEASE NOTE: The objective of this tool is to assist the user with calculating the Capital Gain/Loss impact for the switch/rebalance instruction. The Capital Gain/Loss implications as well as switch/rebalance instructions set out in the Tool are indicative values only and may change due to changes in the prices of the portfolios transacted on. The proposal, captured instructions and your tax certificate may not have the same values due to changes in prices on different days. STANLIB does not provide tax advice. No information provided must be construed as tax advice to the client.

Sheet Rebalance
AB3: LR
AB4: S
AB5: C
AB6: FC
AB9: Classic Investment Plan
C10: Investor Details | AB10: Classic Linked Life Annuity
AB11: Classic Preservation Pension Plan
C12: Wrapper/Product Type | AB12: Classic Preservation Provident Plan
C13: Investment Account Number | AB13: Classic Retirement Annuity Plan
C14: Name and Surname
C15: Identity/Passport Number
C16: Type of Client
C17: Tax Number
C18: Cellphone Number
C19: Email Address | F19: qudsiyya786@gmail.com
C21: Rebalance Details
C23: Current Portfolio:
D24: Please Note: Please re-download the tool from stanlib.com for the latest set of funds | K24: Please ensure that all details are filled in under each of the fields below, if CGT is not required please fill in "1" under the Base cost per Unit field to avoid an error.
D25: Manco | G25: Portfolio Name | K25: Units | M25: Current Unit Price | O25: Base Cost per Unit ( c ) | Q25: Market Value | S25: Percentage | U25: Portfolio Range (eg Classic, LR)
C26: 1 | Q26: =IF(D26="","",M26/100*K26) ->  | S26: =IF(Q26="","",Q26/FromTotal) ->  | W26: =CONCATENATE(U26," ",G26) ->  | Z26: =IFERROR(VLOOKUP(G26,'Funds - R'!$A$2:$B$678,2,FALSE),0) -> 0 | AA26: =IF(G26="",0,1) -> 0 | AC26: =IF($F$12="Classic Investment Plan","CGT","No CGT") -> No CGT
C27: 2 | Q27: =IF(D27="","",M27/100*K27) ->  | W27: =CONCATENATE(U27," ",G27) ->  | Z27: =IFERROR(VLOOKUP(G27,'Funds - R'!$A$2:$B$678,2,FALSE),0) -> 0 | AA27: =IF(G27="",0,1) -> 0 | AC27: =IF($F$12="Classic Investment Plan","CGT","No CGT") -> No CGT
C28: 3 | Z28: =IFERROR(VLOOKUP(G28,'Funds - R'!$A$2:$B$678,2,FALSE),0) -> 0 | AA28: 0 | AC28: No CGT
C29: 4 | Z29: =IFERROR(VLOOKUP(G29,'Funds - R'!$A$2:$B$678,2,FALSE),0) -> 0 | AA29: 0 | AC29: No CGT
C30: 5 | Z30: =IFERROR(VLOOKUP(G30,'Funds - R'!$A$2:$B$678,2,FALSE),0) -> 0 | AA30: 0 | AC30: No CGT
C31: 6 | Z31: =IFERROR(VLOOKUP(G31,'Funds - R'!$A$2:$B$678,2,FALSE),0) -> 0 | AA31: 0 | AC31: No CGT
C32: 7 | Z32: =IFERROR(VLOOKUP(G32,'Funds - R'!$A$2:$B$678,2,FALSE),0) -> 0 | AA32: 0 | AC32: No CGT
C33: 8 | Z33: =IFERROR(VLOOKUP(G33,'Funds - R'!$A$2:$B$678,2,FALSE),0) -> 0 | AA33: 0 | AC33: No CGT
C34: 9 | Z34: =IFERROR(VLOOKUP(G34,'Funds - R'!$A$2:$B$678,2,FALSE),0) -> 0 | AA34: 0 | AC34: No CGT
C35: 10 | Z35: =IFERROR(VLOOKUP(G35,'Funds - R'!$A$2:$B$678,2,FALSE),0) -> 0 | AA35: 0 | AC35: No CGT
C36: 11 | Z36: =IFERROR(VLOOKUP(G36,'Funds - R'!$A$2:$B$678,2,FALSE),0) -> 0 | AA36: 0 | AC36: No CGT
C37: 12 | Z37: =IFERROR(VLOOKUP(G37,'Funds - R'!$A$2:$B$678,2,FALSE),0) -> 0 | AA37: 0 | AC37: No CGT
C38: 13 | Z38: =IFERROR(VLOOKUP(G38,'Funds - R'!$A$2:$B$678,2,FALSE),0) -> 0 | AA38: 0 | AC38: No CGT
C39: 14 | Z39: =IFERROR(VLOOKUP(G39,'Funds - R'!$A$2:$B$678,2,FALSE),0) -> 0 | AA39: 0 | AC39: No CGT
C40: 15 | Z40: =IFERROR(VLOOKUP(G40,'Funds - R'!$A$2:$B$678,2,FALSE),0) -> 0 | AA40: 0 | AC40: No CGT
M41: Total | O41: Total | Q41: =SUM(Q26:R40) -> 0 | S41: =SUM(S26:T40) -> 0 | AA41: =SUM(AA26:AA40) -> 0
C44: Rebalance To:
J45: TRUE | K45: FALSE
D48: Amount in Solution Portfolio | H48: =IF(J45=TRUE,S41,FromTotal) -> 0
D50: Please note all the funds may not be available to you
D51: Manco | G51: Portfolio Name | K51: =IF(J45=TRUE,"Percentage","Rand Amount") -> Percentage | M51: Portfolio Range (eg Classic, LR)
C52: 1 | O52: =CONCATENATE(M52," ",G52) ->  | Z52: =IFERROR(VLOOKUP(G52,'Funds - R'!$A$2:$B$678,2,FALSE),0) -> 0 | AA52: =IF(G52="",0,1) -> 0 | AE52: =VLOOKUP($F$12,Models!$C$58:$D$62,2,FALSE) ->  | AF52: =IF(AND(D52="Models",AE52="Voluntary"),Voluntary_Models_R,IF(AND(D52="Models",AE52="Compulsary"),Compulsary_Models_R,SelectedFunds16)) -> 
C53: 2 | O53: =CONCATENATE(M53," ",G53) ->  | Z53: =IFERROR(VLOOKUP(G53,'Funds - R'!$A$2:$B$678,2,FALSE),0) -> 0 | AA53: =IF(G53="",0,1) -> 0 | AE53: =VLOOKUP($F$12,Models!$C$58:$D$62,2,FALSE) ->  | AF53: =IF(AND(D53="Models",AE53="Voluntary"),Voluntary_Models_R,IF(AND(D53="Models",AE53="Compulsary"),Compulsary_Models_R,SelectedFunds17)) -> 
C54: 3 | Z54: =IFERROR(VLOOKUP(G54,'Funds - R'!$A$2:$B$678,2,FALSE),0) -> 0 | AA54: 0 | AE54: =VLOOKUP($F$12,Models!$C$58:$D$62,2,FALSE) ->  | AF54: =IF(AND(D54="Models",AE54="Voluntary"),Voluntary_Models_R,IF(AND(D54="Models",AE54="Compulsary"),Compulsary_Models_R,SelectedFunds18)) -> 
C55: 4 | Z55: =IFERROR(VLOOKUP(G55,'Funds - R'!$A$2:$B$678,2,FALSE),0) -> 0 | AA55: 0 | AE55: =VLOOKUP($F$12,Models!$C$58:$D$62,2,FALSE) ->  | AF55: =IF(AND(D55="Models",AE55="Voluntary"),Voluntary_Models_R,IF(AND(D55="Models",AE55="Compulsary"),Compulsary_Models_R,SelectedFunds19)) -> 
C56: 5 | Z56: =IFERROR(VLOOKUP(G56,'Funds - R'!$A$2:$B$678,2,FALSE),0) -> 0 | AA56: 0 | AE56: =VLOOKUP($F$12,Models!$C$58:$D$62,2,FALSE) ->  | AF56: =IF(AND(D56="Models",AE56="Voluntary"),Voluntary_Models_R,IF(AND(D56="Models",AE56="Compulsary"),Compulsary_Models_R,SelectedFunds20)) -> 
C57: 6 | Z57: =IFERROR(VLOOKUP(G57,'Funds - R'!$A$2:$B$678,2,FALSE),0) -> 0 | AA57: 0 | AE57: =VLOOKUP($F$12,Models!$C$58:$D$62,2,FALSE) ->  | AF57: =IF(AND(D57="Models",AE57="Voluntary"),Voluntary_Models_R,IF(AND(D57="Models",AE57="Compulsary"),Compulsary_Models_R,SelectedFunds21)) -> 
C58: 7 | Z58: =IFERROR(VLOOKUP(G58,'Funds - R'!$A$2:$B$678,2,FALSE),0) -> 0 | AA58: 0 | AE58: =VLOOKUP($F$12,Models!$C$58:$D$62,2,FALSE) ->  | AF58: =IF(AND(D58="Models",AE58="Voluntary"),Voluntary_Models_R,IF(AND(D58="Models",AE58="Compulsary"),Compulsary_Models_R,SelectedFunds22)) -> 
C59: 8 | Z59: =IFERROR(VLOOKUP(G59,'Funds - R'!$A$2:$B$678,2,FALSE),0) -> 0 | AA59: 0 | AE59: =VLOOKUP($F$12,Models!$C$58:$D$62,2,FALSE) ->  | AF59: =IF(AND(D59="Models",AE59="Voluntary"),Voluntary_Models_R,IF(AND(D59="Models",AE59="Compulsary"),Compulsary_Models_R,SelectedFunds23)) -> 
C60: 9 | Z60: =IFERROR(VLOOKUP(G60,'Funds - R'!$A$2:$B$678,2,FALSE),0) -> 0 | AA60: 0 | AE60: =VLOOKUP($F$12,Models!$C$58:$D$62,2,FALSE) ->  | AF60: =IF(AND(D60="Models",AE60="Voluntary"),Voluntary_Models_R,IF(AND(D60="Models",AE60="Compulsary"),Compulsary_Models_R,SelectedFunds24)) -> 
C61: 10 | Z61: =IFERROR(VLOOKUP(G61,'Funds - R'!$A$2:$B$678,2,FALSE),0) -> 0 | AA61: 0 | AE61: =VLOOKUP($F$12,Models!$C$58:$D$62,2,FALSE) ->  | AF61: =IF(AND(D61="Models",AE61="Voluntary"),Voluntary_Models_R,IF(AND(D61="Models",AE61="Compulsary"),Compulsary_Models_R,SelectedFunds25)) -> 
C62: 11 | Z62: =IFERROR(VLOOKUP(G62,'Funds - R'!$A$2:$B$678,2,FALSE),0) -> 0 | AA62: 0 | AE62: =VLOOKUP($F$12,Models!$C$58:$D$62,2,FALSE) ->  | AF62: =IF(AND(D62="Models",AE62="Voluntary"),Voluntary_Models_R,IF(AND(D62="Models",AE62="Compulsary"),Compulsary_Models_R,SelectedFunds26)) -> 
C63: 12 | Z63: =IFERROR(VLOOKUP(G63,'Funds - R'!$A$2:$B$678,2,FALSE),0) -> 0 | AA63: 0 | AE63: =VLOOKUP($F$12,Models!$C$58:$D$62,2,FALSE) ->  | AF63: =IF(AND(D63="Models",AE63="Voluntary"),Voluntary_Models_R,IF(AND(D63="Models",AE63="Compulsary"),Compulsary_Models_R,SelectedFunds27)) -> 
C64: 13 | Z64: =IFERROR(VLOOKUP(G64,'Funds - R'!$A$2:$B$678,2,FALSE),0) -> 0 | AA64: 0 | AE64: =VLOOKUP($F$12,Models!$C$58:$D$62,2,FALSE) ->  | AF64: =IF(AND(D64="Models",AE64="Voluntary"),Voluntary_Models_R,IF(AND(D64="Models",AE64="Compulsary"),Compulsary_Models_R,SelectedFunds28)) -> 
C65: 14 | Z65: =IFERROR(VLOOKUP(G65,'Funds - R'!$A$2:$B$678,2,FALSE),0) -> 0 | AA65: 0 | AE65: =VLOOKUP($F$12,Models!$C$58:$D$62,2,FALSE) ->  | AF65: =IF(AND(D65="Models",AE65="Voluntary"),Voluntary_Models_R,IF(AND(D65="Models",AE65="Compulsary"),Compulsary_Models_R,SelectedFunds29)) -> 
C66: 15 | Z66: =IFERROR(VLOOKUP(G66,'Funds - R'!$A$2:$B$678,2,FALSE),0) -> 0 | AA66: 0 | AE66: =VLOOKUP($F$12,Models!$C$58:$D$62,2,FALSE) ->  | AF66: =IF(AND(D66="Models",AE66="Voluntary"),Voluntary_Models_R,IF(AND(D66="Models",AE66="Compulsary"),Compulsary_Models_R,SelectedFunds30)) -> 
G67: Total | K67: =SUM(K52:L66) -> 0 | AA67: =SUM(AA52:AA66) -> 0

Sheet Models (hidden)
C1: Model | D1: Rebalance
C2: IFA Cash-In Fund | D2: =IFERROR(VLOOKUP(C2,Rebalance!$G$52:$L$66,5,FALSE),0) -> 0 | U2: REBALANCE
C3: IFA CPI+3% Targeted Solution | D3: =IFERROR(VLOOKUP(C3,Rebalance!$G$52:$L$66,5,FALSE),0) -> 0 | U3: Manco | V3: Portfolio Name | W3: =IF(Rebalance!J45=TRUE,"Percentage","Rand Amount") -> Percentage | X3: Portfolio Range (eg Classic, LR) | Y3: JSE Code
C4: IFA CPI+5% Targeted Solution | D4: =IFERROR(VLOOKUP(C4,Rebalance!$G$52:$L$66,5,FALSE),0) -> 0 | T4: 1 | U4: =Rebalance!D52 -> 00:00:00 | V4: =Rebalance!G52 -> 00:00:00 | W4: =Rebalance!K52 -> 0 | X4: =Rebalance!M52 -> 00:00:00 | Y4: =Rebalance!Z52 -> 0
C5: IFA CPI+7% Targeted Solution | D5: =IFERROR(VLOOKUP(C5,Rebalance!$G$52:$L$66,5,FALSE),0) -> 0 | T5: 2 | U5: =Rebalance!D53 -> 00:00:00 | V5: =Rebalance!G53 -> 00:00:00 | W5: =Rebalance!K53 -> 0 | X5: =Rebalance!M53 -> 00:00:00 | Y5: =Rebalance!Z53 -> 0
T6: 3 | U6: =Rebalance!D54 -> 00:00:00 | V6: =Rebalance!G54 -> 00:00:00 | W6: =Rebalance!K54 -> 0 | X6: =Rebalance!M54 -> 00:00:00 | Y6: =Rebalance!Z54 -> 0
T7: 4 | U7: =Rebalance!D55 -> 00:00:00 | V7: =Rebalance!G55 -> 00:00:00 | W7: =Rebalance!K55 -> 0 | X7: =Rebalance!M55 -> 00:00:00 | Y7: =Rebalance!Z55 -> 0
T8: 5 | U8: =Rebalance!D56 -> 00:00:00 | V8: =Rebalance!G56 -> 00:00:00 | W8: =Rebalance!K56 -> 0 | X8: =Rebalance!M56 -> 00:00:00 | Y8: =Rebalance!Z56 -> 0
T9: 6 | U9: =Rebalance!D57 -> 00:00:00 | V9: =Rebalance!G57 -> 00:00:00 | W9: =Rebalance!K57 -> 0 | X9: =Rebalance!M57 -> 00:00:00 | Y9: =Rebalance!Z57 -> 0
T10: 7 | U10: =Rebalance!D58 -> 00:00:00 | V10: =Rebalance!G58 -> 00:00:00 | W10: =Rebalance!K58 -> 0 | X10: =Rebalance!M58 -> 00:00:00 | Y10: =Rebalance!Z58 -> 0
T11: 8 | U11: =Rebalance!D59 -> 00:00:00 | V11: =Rebalance!G59 -> 00:00:00 | W11: =Rebalance!K59 -> 0 | X11: =Rebalance!M59 -> 00:00:00 | Y11: =Rebalance!Z59 -> 0
C12: Voluntary | T12: 9 | U12: =Rebalance!D60 -> 00:00:00 | V12: =Rebalance!G60 -> 00:00:00 | W12: =Rebalance!K60 -> 0 | X12: =Rebalance!M60 -> 00:00:00 | Y12: =Rebalance!Z60 -> 0
C13: IFA Cash-In Fund | D13: IFA CPI+3% Targeted Solution | E13: IFA CPI+5% Targeted Solution | F13: IFA CPI+7% Targeted Solution | O13: IFA Cash-In Fund | P13: IFA CPI+3% Targeted Solution | Q13: IFA CPI+5% Targeted Solution | R13: IFA CPI+7% Targeted Solution | T13: 10 | U13: =Rebalance!D61 -> 00:00:00 | V13: =Rebalance!G61 -> 00:00:00 | W13: =Rebalance!K61 -> 0 | X13: =Rebalance!M61 -> 00:00:00 | Y13: =Rebalance!Z61 -> 0
B14: 1 | C14: Coronation Strategic Income B4 | D14: ABSA Absolute Fund C1 | E14: Prudential Inflation Plus Fund B | F14: Prudential Balanced Fund B | O14: 0.5 | P14: 0.4 | Q14: 0.4 | R14: 0.4 | T14: 11 | U14: =Rebalance!D62 -> 00:00:00 | V14: =Rebalance!G62 -> 00:00:00 | W14: =Rebalance!K62 -> 0 | X14: =Rebalance!M62 -> 00:00:00 | Y14: =Rebalance!Z62 -> 0
B15: 2 | C15: STANLIB Income Fund B6 | D15: STANLIB Flexible Income Fund B1 | E15: Coronation Capital Plus Fund B5 | F15: Coronation Balanced Plus Fund B4 | O15: 0.3 | P15: 0.3 | Q15: 0.3 | R15: 0.3 | T15: 12 | U15: =Rebalance!D63 -> 0 | V15: =Rebalance!G63 -> 0 | W15: =Rebalance!K63 -> 0 | X15: =Rebalance!M63 -> 0 | Y15: =Rebalance!Z63 -> 0
B16: 3 | C16: STANLIB Money Market Fund R | D16: Coronation Capital Plus Fund B5 | E16: Investec Opportunity Fund H | F16: Foord Balanced Fund B2 | O16: 0.2 | P16: 0.3 | Q16: 0.3 | R16: 0.3 | T16: 13 | U16: =Rebalance!D64 -> 0 | V16: =Rebalance!G64 -> 0 | W16: =Rebalance!K64 -> 0 | X16: =Rebalance!M64 -> 0 | Y16: =Rebalance!Z64 -> 0
B17: 4 | T17: 14 | U17: =Rebalance!D65 -> 0 | V17: =Rebalance!G65 -> 0 | W17: =Rebalance!K65 -> 0 | X17: =Rebalance!M65 -> 0 | Y17: =Rebalance!Z65 -> 0
B18: 5 | T18: 15 | U18: =Rebalance!D66 -> 0 | V18: =Rebalance!G66 -> 0 | W18: =Rebalance!K66 -> 0 | X18: =Rebalance!M66 -> 0 | Y18: =Rebalance!Z66 -> 0
B19: 6 | T19: 16 | U19: =IFERROR(VLOOKUP(V19,'Funds - R'!$A$2:$C$1170,3,FALSE),"") -> 
B20: 7 | T20: 17 | U20: =IFERROR(VLOOKUP(V20,'Funds - R'!$A$2:$C$1170,3,FALSE),"") -> 
B21: 8 | T21: 18 | U21: =IFERROR(VLOOKUP(V21,'Funds - R'!$A$2:$C$1170,3,FALSE),"") -> 
B22: 9 | T22: 19 | U22: =IFERROR(VLOOKUP(V22,'Funds - R'!$A$2:$C$1170,3,FALSE),"") -> 
B23: 10 | T23: 20 | U23: =IFERROR(VLOOKUP(V23,'Funds - R'!$A$2:$C$1170,3,FALSE),"") -> 
B24: 11 | U24: =IFERROR(VLOOKUP(V24,'Funds - R'!$A$2:$C$1170,3,FALSE),"") -> 
B25: 12 | U25: =IFERROR(VLOOKUP(V25,'Funds - R'!$A$2:$C$1170,3,FALSE),"") -> 
B26: 13 | U26: =IFERROR(VLOOKUP(V26,'Funds - R'!$A$2:$C$1170,3,FALSE),"") -> 
B27: 14 | U27: =IFERROR(VLOOKUP(V27,'Funds - R'!$A$2:$C$1170,3,FALSE),"") -> 
B28: 15 | U28: =IFERROR(VLOOKUP(V28,'Funds - R'!$A$2:$C$1170,3,FALSE),"") -> 
B29: 16 | U29: =IFERROR(VLOOKUP(V29,'Funds - R'!$A$2:$C$1170,3,FALSE),"") -> 
B30: 17 | U30: =IFERROR(VLOOKUP(V30,'Funds - R'!$A$2:$C$1170,3,FALSE),"") -> 
B31: 18 | U31: =IFERROR(VLOOKUP(V31,'Funds - R'!$A$2:$C$1170,3,FALSE),"") -> 
B32: 19 | U32: =IFERROR(VLOOKUP(V32,'Funds - R'!$A$2:$C$1170,3,FALSE),"") -> 
B33: 20 | U33: =IFERROR(VLOOKUP(V33,'Funds - R'!$A$2:$C$1170,3,FALSE),"") -> 
U34: =IFERROR(VLOOKUP(V34,'Funds - R'!$A$2:$C$1170,3,FALSE),"") -> 
C35: Compulsory | U35: =IFERROR(VLOOKUP(V35,'Funds - R'!$A$2:$C$1170,3,FALSE),"") -> 
C36: IFA Cash-In Fund | D36: IFA CPI+3% Targeted Solution | E36: IFA CPI+5% Targeted Solution | F36: IFA CPI+7% Targeted Solution | O36: IFA Cash-In Fund | P36: IFA CPI+3% Targeted Solution | Q36: IFA CPI+5% Targeted Solution | R36: IFA CPI+7% Targeted Solution | U36: =IFERROR(VLOOKUP(V36,'Funds - R'!$A$2:$C$1170,3,FALSE),"") -> 
B37: 1 | C37: Coronation Strategic Income B4 | D37: ABSA Absolute Fund C1 | E37: Prudential Inflation Plus Fund B | F37: Prudential Balanced Fund B | O37: =50%*#REF! ->  | P37: =40%*$D$3 -> 0 | Q37: =40%*$D$4 -> 0 | R37: =40%*$D$5 -> 0 | U37: =IFERROR(VLOOKUP(V37,'Funds - R'!$A$2:$C$1170,3,FALSE),"") -> 
B38: 2 | C38: STANLIB Income Fund B6 | D38: STANLIB Flexible Income Fund B1 | E38: Coronation Capital Plus Fund B5 | F38: Coronation Balanced Plus Fund B4 | O38: =30%*#REF! ->  | P38: =30%*$D$3 -> 0 | Q38: =30%*$D$4 -> 0 | R38: =30%*$D$5 -> 0 | U38: =IFERROR(VLOOKUP(V38,'Funds - R'!$A$2:$C$1170,3,FALSE),"") -> 
B39: 3 | C39: STANLIB Institutional Money Market Fund B13 | D39: Coronation Capital Plus Fund B5 | E39: Investec Opportunity Fund H | F39: Foord Balanced Fund B2 | O39: =20%*#REF! ->  | P39: =30%*$D$3 -> 0 | Q39: =30%*$D$4 -> 0 | R39: =30%*$D$5 -> 0 | U39: =IFERROR(VLOOKUP(V39,'Funds - R'!$A$2:$C$1170,3,FALSE),"") -> 
B40: 4 | U40: =IFERROR(VLOOKUP(V40,'Funds - R'!$A$2:$C$1170,3,FALSE),"") -> 
B41: 5 | U41: =IFERROR(VLOOKUP(V41,'Funds - R'!$A$2:$C$1170,3,FALSE),"") -> 
B42: 6 | U42: =IFERROR(VLOOKUP(V42,'Funds - R'!$A$2:$C$1170,3,FALSE),"") -> 
B43: 7 | U43: =IFERROR(VLOOKUP(V43,'Funds - R'!$A$2:$C$1170,3,FALSE),"") -> 
B44: 8 | U44: =IFERROR(VLOOKUP(V44,'Funds - R'!$A$2:$C$1170,3,FALSE),"") -> 
B45: 9 | U45: =IFERROR(VLOOKUP(V45,'Funds - R'!$A$2:$C$1170,3,FALSE),"") -> 
B46: 10 | U46: =IFERROR(VLOOKUP(V46,'Funds - R'!$A$2:$C$1170,3,FALSE),"") -> 
B47: 11 | U47: =IFERROR(VLOOKUP(V47,'Funds - R'!$A$2:$C$1170,3,FALSE),"") -> 
B48: 12 | U48: =IFERROR(VLOOKUP(V48,'Funds - R'!$A$2:$C$1170,3,FALSE),"") -> 
B49: 13 | U49: =IFERROR(VLOOKUP(V49,'Funds - R'!$A$2:$C$1170,3,FALSE),"") -> 
B50: 14 | U50: =IFERROR(VLOOKUP(V50,'Funds - R'!$A$2:$C$1170,3,FALSE),"") -> 
B51: 15 | U51: =IFERROR(VLOOKUP(V51,'Funds - R'!$A$2:$C$1170,3,FALSE),"") -> 
B52: 16 | U52: =IFERROR(VLOOKUP(V52,'Funds - R'!$A$2:$C$1170,3,FALSE),"") -> 
B53: 17 | U53: =IFERROR(VLOOKUP(V53,'Funds - R'!$A$2:$C$1170,3,FALSE),"") -> 
B54: 18 | U54: =IFERROR(VLOOKUP(V54,'Funds - R'!$A$2:$C$1170,3,FALSE),"") -> 
B55: 19 | U55: =IFERROR(VLOOKUP(V55,'Funds - R'!$A$2:$C$1170,3,FALSE),"") -> 
B56: 20 | U56: =IFERROR(VLOOKUP(V56,'Funds - R'!$A$2:$C$1170,3,FALSE),"") -> 
U57: =IFERROR(VLOOKUP(V57,'Funds - R'!$A$2:$C$1170,3,FALSE),"") -> 
C58: Classic Investment Plan | D58: Voluntary | U58: =IFERROR(VLOOKUP(V58,'Funds - R'!$A$2:$C$1170,3,FALSE),"") -> 
C59: Classic Retirement Annuity Fund | D59: Compulsory | U59: =IFERROR(VLOOKUP(V59,'Funds - R'!$A$2:$C$1170,3,FALSE),"") -> 
C60: Classic Preservation Pension Plan | D60: Compulsory | U60: =IFERROR(VLOOKUP(V60,'Funds - R'!$A$2:$C$1170,3,FALSE),"") -> 
C61: Classic Preservation Provident Plan | D61: Compulsory | U61: =IFERROR(VLOOKUP(V61,'Funds - R'!$A$2:$C$1170,3,FALSE),"") -> 
C62: Classic Linked Life Annuity | D62: Voluntary | U62: =IFERROR(VLOOKUP(V62,'Funds - R'!$A$2:$C$1170,3,FALSE),"") -> 
U63: =IFERROR(VLOOKUP(V63,'Funds - R'!$A$2:$C$1170,3,FALSE),"") -> 
U64: =IFERROR(VLOOKUP(V64,'Funds - R'!$A$2:$C$1170,3,FALSE),"") -> 
U65: =IFERROR(VLOOKUP(V65,'Funds - R'!$A$2:$C$1170,3,FALSE),"") -> 
U66: =IFERROR(VLOOKUP(V66,'Funds - R'!$A$2:$C$1170,3,FALSE),"") -> 
U67: =IFERROR(VLOOKUP(V67,'Funds - R'!$A$2:$C$1170,3,FALSE),"") -> 
U68: =IFERROR(VLOOKUP(V68,'Funds - R'!$A$2:$C$1170,3,FALSE),"") -> 
U69: =IFERROR(VLOOKUP(V69,'Funds - R'!$A$2:$C$1170,3,FALSE),"") -> 
U70: =IFERROR(VLOOKUP(V70,'Funds - R'!$A$2:$C$1170,3,FALSE),"") -> 
U71: =IFERROR(VLOOKUP(V71,'Funds - R'!$A$2:$C$1170,3,FALSE),"") -> 
U72: =IFERROR(VLOOKUP(V72,'Funds - R'!$A$2:$C$1170,3,FALSE),"") -> 
U73: =IFERROR(VLOOKUP(V73,'Funds - R'!$A$2:$C$1170,3,FALSE),"") -> 
U74: =IFERROR(VLOOKUP(V74,'Funds - R'!$A$2:$C$1170,3,FALSE),"") -> 
U75: =IFERROR(VLOOKUP(V75,'Funds - R'!$A$2:$C$1170,3,FALSE),"") -> 
U76: =IFERROR(VLOOKUP(V76,'Funds - R'!$A$2:$C$1170,3,FALSE),"") -> 
U77: =IFERROR(VLOOKUP(V77,'Funds - R'!$A$2:$C$1170,3,FALSE),"") -> 
U78: =IFERROR(VLOOKUP(V78,'Funds - R'!$A$2:$C$1170,3,FALSE),"") -> 
U79: =IFERROR(VLOOKUP(V79,'Funds - R'!$A$2:$C$1170,3,FALSE),"") -> 
U80: =IFERROR(VLOOKUP(V80,'Funds - R'!$A$2:$C$1170,3,FALSE),"") -> 
U81: =IFERROR(VLOOKUP(V81,'Funds - R'!$A$2:$C$1170,3,FALSE),"") -> 
U82: =IFERROR(VLOOKUP(V82,'Funds - R'!$A$2:$C$1170,3,FALSE),"") -> 
U83: =IFERROR(VLOOKUP(V83,'Funds - R'!$A$2:$C$1170,3,FALSE),"") -> 
U84: =IFERROR(VLOOKUP(V84,'Funds - R'!$A$2:$C$1170,3,FALSE),"") -> 
U85: =IFERROR(VLOOKUP(V85,'Funds - R'!$A$2:$C$1170,3,FALSE),"") -> 
U86: =IFERROR(VLOOKUP(V86,'Funds - R'!$A$2:$C$1170,3,FALSE),"") -> 
U87: =IFERROR(VLOOKUP(V87,'Funds - R'!$A$2:$C$1170,3,FALSE),"") -> 
U88: =IFERROR(VLOOKUP(V88,'Funds - R'!$A$2:$C$1170,3,FALSE),"") -> 
U89: =IFERROR(VLOOKUP(V89,'Funds - R'!$A$2:$C$1170,3,FALSE),"") -> 
U90: =IFERROR(VLOOKUP(V90,'Funds - R'!$A$2:$C$1170,3,FALSE),"") -> 
U91: =IFERROR(VLOOKUP(V91,'Funds - R'!$A$2:$C$1170,3,FALSE),"") -> 
U92: =IFERROR(VLOOKUP(V92,'Funds - R'!$A$2:$C$1170,3,FALSE),"") -> 
U93: =IFERROR(VLOOKUP(V93,'Funds - R'!$A$2:$C$1170,3,FALSE),"") -> 
U94: =IFERROR(VLOOKUP(V94,'Funds - R'!$A$2:$C$1170,3,FALSE),"") -> 
U95: =IFERROR(VLOOKUP(V95,'Funds - R'!$A$2:$C$1170,3,FALSE),"") -> 
U96: =IFERROR(VLOOKUP(V96,'Funds - R'!$A$2:$C$1170,3,FALSE),"") -> 
U97: =IFERROR(VLOOKUP(V97,'Funds - R'!$A$2:$C$1170,3,FALSE),"") -> 
U98: =IFERROR(VLOOKUP(V98,'Funds - R'!$A$2:$C$1170,3,FALSE),"") -> 
U99: =IFERROR(VLOOKUP(V99,'Funds - R'!$A$2:$C$1170,3,FALSE),"") -> 
U100: =IFERROR(VLOOKUP(V100,'Funds - R'!$A$2:$C$1170,3,FALSE),"") -> 
U101: =IFERROR(VLOOKUP(V101,'Funds - R'!$A$2:$C$1170,3,FALSE),"") -> 

Sheet Instructions
B11: Rebalance Instructions
C15: Fund Sold | F15: Total Amount Sold | H15: % Sold | J15: Fund Purchased | N15: Amount Bought | P15: % Bought | R15: Capital Gain/Loss
C16: Allan Gray Balanced Fund C | F16: 40.7834 | H16: 0.0142 | J16: Laurium Flexible Prescient Fund A1 | N16: 40.78 | P16: 1 | R16: 0
C17: Coronation Balanced Plus Fund P | F17: 38.3134 | H17: 0.0133 | J17: Laurium Flexible Prescient Fund A1 | N17: 38.31 | P17: 1 | R17: 0
C18: Investec Global Franchise Feeder Fund H | F18: 56.4267 | H18: 0.0382 | J18: Laurium Flexible Prescient Fund A1 | N18: 56.43 | P18: 1 | R18: 0
C19: Investec Managed Fund H | F19: 54.7334 | H19: 0.0189 | J19: Laurium Flexible Prescient Fund A1 | N19: 54.73 | P19: 1 | R19: 0
C20: PSG Flexible Fund E | F20: 2782.93 | H20: 1 | J20: Laurium Flexible Prescient Fund A1 | N20: 2649.25 | P20: 0.9519642966 | R20: 0
J21: Satrix Equally Weighted TOP 40 Index Fund B1 | N21: 53.94 | P21: 0.01938244943 | R21: 0
J22: Satrix Property Index Fund B1 | N22: 79.74 | P22: 0.02865325394 | R22: 0
C23: PSG Global Flexible Feeder Fund B | F23: 6.6867 | H23: 0.0047 | J23: Satrix Property Index Fund B1 | N23: 6.69 | P23: 1 | R23: 0
C24: Reitway BCI Global Property Fund C | F24: 22.0667 | H24: 0.0153 | J24: Satrix Property Index Fund B1 | N24: 10.01 | P24: 0.4535568645 | R24: 0
J25: STANLIB Income Fund B6 | N25: 4.92 | P25: 0.2229270503 | R25: 0
J26: Sygnia 4th Industrial Revolution Global Equity Fund A | N26: 7.13 | P26: 0.3230629814 | R26: 0
C27: Satrix MSCI World Equity Index Feeder Fund B2 | F27: 47.2584 | H27: 0.0259 | J27: Satrix Equally Weighted TOP 40 Index Fund B1 | N27: 47.26 | P27: 1 | R27: 0
C28: STANLIB S&P500 Index Feeder Fund B1 | F28: 41.1984 | H28: 0.0227 | J28: STANLIB Absolute Plus Fund B1 | N28: 4.07 | P28: 0.09878640777 | R28: 0
J29: STANLIB Income Fund B6 | N29: 37.13 | P29: 0.9012135922 | R29: 0
C56: Total Capital Gains/Loss | R56: =SUM(R16:S55) -> 0
B58: Rebalanced Portfolio
C61: Manco | F61: Fund | L61: Percentage
B62: 1 | C62: =IF(Transactions!C60="","",Transactions!C60) -> Allan Gray Unit Trust Management Limited | F62: =IF(Transactions!F60="","",Transactions!F60) -> Allan Gray Balanced Fund C | L62: =IF(Transactions!L60="","",Transactions!L60) -> 0.08
B63: 2 | C63: =IF(Transactions!C61="","",Transactions!C61) -> Coronation Management Company | F63: =IF(Transactions!F61="","",Transactions!F61) -> Coronation Balanced Plus Fund P | L63: =IF(Transactions!L61="","",Transactions!L61) -> 0.08
B64: 3 | C64: =IF(Transactions!C62="","",Transactions!C62) -> Investec Fund Managers | F64: =IF(Transactions!F62="","",Transactions!F62) -> Investec Global Franchise Feeder Fund H | L64: =IF(Transactions!L62="","",Transactions!L62) -> 0.04
B65: 4 | C65: =IF(Transactions!C63="","",Transactions!C63) -> Investec Fund Managers | F65: =IF(Transactions!F63="","",Transactions!F63) -> Investec Managed Fund H | L65: =IF(Transactions!L63="","",Transactions!L63) -> 0.08
B66: 5 | C66: =IF(Transactions!C64="","",Transactions!C64) -> Prescient Management Company Ltd | F66: =IF(Transactions!F64="","",Transactions!F64) -> Laurium Flexible Prescient Fund A1 | L66: =IF(Transactions!L64="","",Transactions!L64) -> 0.08
B67: 6 | C67: =IF(Transactions!C65="","",Transactions!C65) -> PSG Collective Investments Ltd | F67: =IF(Transactions!F65="","",Transactions!F65) -> PSG Global Flexible Feeder Fund B | L67: =IF(Transactions!L65="","",Transactions!L65) -> 0.04
B68: 7 | C68: =IF(Transactions!C66="","",Transactions!C66) -> Boutique Collective Investments (Pty) Ltd | F68: =IF(Transactions!F66="","",Transactions!F66) -> Reitway BCI Global Property Fund C | L68: =IF(Transactions!L66="","",Transactions!L66) -> 0.04
B69: 8 | C69: =IF(Transactions!C67="","",Transactions!C67) -> Satrix Managers (RF) (Pty) Ltd | F69: =IF(Transactions!F67="","",Transactions!F67) -> Satrix Equally Weighted TOP 40 Index Fund B1 | L69: =IF(Transactions!L67="","",Transactions!L67) -> 0.09
B70: 9 | C70: =IF(Transactions!C68="","",Transactions!C68) -> Satrix Managers (RF) (Pty) Ltd | F70: =IF(Transactions!F68="","",Transactions!F68) -> Satrix MSCI World Equity Index Feeder Fund B2 | L70: =IF(Transactions!L68="","",Transactions!L68) -> 0.05
B71: 10 | C71: =IF(Transactions!C69="","",Transactions!C69) -> Satrix Managers (RF) (Pty) Ltd | F71: =IF(Transactions!F69="","",Transactions!F69) -> Satrix Property Index Fund B1 | L71: =IF(Transactions!L69="","",Transactions!L69) -> 0.05
B72: 11 | C72: =IF(Transactions!C70="","",Transactions!C70) -> STANLIB Collective Investments | F72: =IF(Transactions!F70="","",Transactions!F70) -> STANLIB Absolute Plus Fund B1 | L72: =IF(Transactions!L70="","",Transactions!L70) -> 0.08
B73: 12 | C73: =IF(Transactions!C71="","",Transactions!C71) -> STANLIB Collective Investments | F73: =IF(Transactions!F71="","",Transactions!F71) -> STANLIB Income Fund B6 | L73: =IF(Transactions!L71="","",Transactions!L71) -> 0.2
B74: 13 | C74: =IF(Transactions!C72="","",Transactions!C72) -> STANLIB Collective Investments | F74: =IF(Transactions!F72="","",Transactions!F72) -> STANLIB S&P500 Index Feeder Fund B1 | L74: =IF(Transactions!L72="","",Transactions!L72) -> 0.05
B75: 14 | C75: =IF(Transactions!C73="","",Transactions!C73) -> Sygnia Asset Management (Pty) Limited | F75: =IF(Transactions!F73="","",Transactions!F73) -> Sygnia 4th Industrial Revolution Global Equity Fund A | L75: =IF(Transactions!L73="","",Transactions!L73) -> 0.04
B76: 15 | C76: =IF(Transactions!C74="","",Transactions!C74) ->  | F76: =IF(Transactions!F74="","",Transactions!F74) ->  | L76: =IF(Transactions!L74="","",Transactions!L74) -> 
J77: Total | L77: =SUM(L62:M76) -> 1

Sheet Transactions
B11: Switch Instructions
C12: 3 | D12: 4 | E12: 5 | F12: 6 | G12: 7 | H12: 8 | I12: 9 | J12: 10 | K12: 11 | L12: 12 | M12: 13 | N12: 14 | O12: 15 | P12: 16 | Q12: 17 | R12: 18 | S12: 19 | T12: 20 | U12: 21 | V12: 22 | W12: 23 | X12: 24 | Y12: 25 | Z12: 26 | AA12: 27 | AB12: 28 | AC12: 29 | AD12: 30 | AE12: 31 | AF12: 32 | AG12: 33 | AH12: 34 | AI12: 35 | AJ12: 36 | AK12: 37 | AL12: 38 | AM12: 39 | AN12: 40 | AO12: 41 | AP12: 42 | AQ12: 43 | AR12: 44 | AS12: 45 | AT12: 46 | AU12: 47 | AV12: 48 | AW12: 49 | AX12: 50 | AY12: 51
C13: Fund | F13: Total Amount Sold | H13: % Sold | J13: Proceeds Split | N13: Proceeds | P13: Proceeds % | R13: Capital Gain/Loss | W13: Check Fund | X13: Check Amount | Y13: Type of Switch | AA13: Fund From | AD13: Total Amount Sold | AF13: % Sold | AH13: Fund To | AL13: Amount Bought | AN13: % Bought | AP13: CGT | AR13: From Side | AU13: To Side | AY13: CGT
C14: Allan Gray Balanced Fund C | F14: 2880.29 | H14: 1 | J14: Allan Gray Balanced Fund C | N14: 2839.506616 | P14: 0.9858 | R14: 0 | T14: Inter Platform Switch | W14: =IF(C14=J14,"Same Fund","Cont") -> Same Fund | X14: =IF(W14="Same Fund",IF(F14=N14,"Skip","Cont"),"Cont") -> Cont | Y14: =IF(X14="Skip","",IF(F14=F13,"Same Switch","New Switch")) -> New Switch | Z14: =IF(AH14="","",1) -> 1 | AA14: Allan Gray Balanced Fund C | AD14: 2880.29 | AF14: 1 | AH14: Allan Gray Balanced Fund C | AL14: 2839.5066 | AN14: 0.9858 | AP14: 0 | AR14: =IF(AA14=AH14,"Same Fund","Cont") -> Same Fund | AS14: =IF(AR14="Same Fund",AD14-AL14,"Cont") -> 40.7834 | AT14: =IF(AS14="Cont","Cont",AF14-AN14) -> 0.0142 | AU14: =IF(AT14="Cont","Cont","Skip") -> Skip | AV14: =ROUND(IF(AS14="Cont",AL14,AS14),2) -> 40.78 | AW14: =ROUND(IF(AS14="Cont",AD14,AS14),2) -> 40.78 | AX14: =AV14/AW14 -> 1 | AY14: =IF(IFERROR(VLOOKUP(AA14,'Money Market'!$B$15:$C$62,2,FALSE),AP14)="No CGT",0,AP14) -> 0
C15: Allan Gray Balanced Fund C | F15: 2880.29 | H15: 1 | J15: Laurium Flexible Prescient Fund A1 | N15: 40.78 | P15: 0.0142 | R15: 0 | T15: Inter manco switch | W15: =IF(C15=J15,"Same Fund","Cont") -> Cont | X15: =IF(W15="Same Fund",IF(F15=N15,"Skip","Cont"),"Cont") -> Cont | Y15: =IF(X15="Skip","",IF(F15=F14,"Same Switch","New Switch")) -> Same Switch | Z15: =IF(AH15="","",1) -> 1 | AH15: Laurium Flexible Prescient Fund A1 | AL15: 40.78 | AN15: 0.0142 | AP15: 0 | AR15: =IF(AA15=AH15,"Same Fund","Cont") -> Cont | AS15: =IF(AR15="Same Fund",AD15-AL15,"Cont") -> Cont | AT15: =IF(AS15="Cont","Cont",AF15-AN15) -> Cont | AU15: =IF(AT15="Cont","Cont","Skip") -> Cont | AV15: =ROUND(IF(AS15="Cont",AL15,AS15),2) -> 40.78 | AW15: =ROUND(IF(AS15="Cont",IF(AD15="",AW14,AD15),AS15),2) -> 40.78 | AX15: =AV15/AW15 -> 1 | AY15: =IF(IFERROR(VLOOKUP(AA15,'Money Market'!$B$15:$C$62,2,FALSE),AP15)="No CGT",0,AP15) -> 0
C16: Coronation Balanced Plus Fund P | F16: 2877.82 | H16: 1 | J16: Coronation Balanced Plus Fund P | N16: 2839.506616 | P16: 0.9867 | R16: 0 | T16: Inter Platform Switch | W16: Same Fund | X16: Cont | Y16: New Switch | Z16: 1 | AA16: Coronation Balanced Plus Fund P | AD16: 2877.82 | AF16: 1 | AH16: Coronation Balanced Plus Fund P | AL16: 2839.5066 | AN16: 0.9867 | AP16: 0 | AR16: Same Fund | AS16: 38.3134 | AT16: 0.0133 | AU16: Skip | AV16: 38.31 | AW16: =ROUND(IF(AS16="Cont",IF(AD16="",AW15,AD16),AS16),2) -> 38.31 | AX16: =AV16/AW16 -> 1 | AY16: =IF(IFERROR(VLOOKUP(AA16,'Money Market'!$B$15:$C$62,2,FALSE),AP16)="No CGT",0,AP16) -> 0
C17: Coronation Balanced Plus Fund P | F17: 2877.82 | H17: 1 | J17: Laurium Flexible Prescient Fund A1 | N17: 38.31 | P17: 0.0133 | R17: 0 | T17: Inter manco switch | W17: Cont | X17: Cont | Y17: Same Switch | Z17: 1 | AH17: Laurium Flexible Prescient Fund A1 | AL17: 38.31 | AN17: 0.0133 | AP17: 0 | AR17: Cont | AS17: =IF(AR17="Same Fund",AD17-AL17,"Cont") -> Cont | AT17: Cont | AU17: Cont | AV17: 38.31 | AW17: 38.31 | AX17: 1 | AY17: =IF(IFERROR(VLOOKUP(AA17,'Money Market'!$B$15:$C$62,2,FALSE),AP17)="No CGT",0,AP17) -> 0
C18: Investec Global Franchise Feeder Fund H | F18: 1476.18 | H18: 1 | J18: Investec Global Franchise Feeder Fund H | N18: 1419.753308 | P18: 0.9618 | R18: 0 | T18: Inter Platform Switch | W18: Same Fund | X18: Cont | Y18: New Switch | Z18: 1 | AA18: Investec Global Franchise Feeder Fund H | AD18: 1476.18 | AF18: 1 | AH18: Investec Global Franchise Feeder Fund H | AL18: 1419.7533 | AN18: 0.9618 | AP18: 0 | AR18: Same Fund | AS18: 56.4267 | AT18: 0.0382 | AU18: Skip | AV18: 56.43 | AW18: 56.43 | AX18: 1 | AY18: =IF(IFERROR(VLOOKUP(AA18,'Money Market'!$B$15:$C$62,2,FALSE),AP18)="No CGT",0,AP18) -> 0
C19: Investec Global Franchise Feeder Fund H | F19: 1476.18 | H19: 1 | J19: Laurium Flexible Prescient Fund A1 | N19: 56.43 | P19: 0.0382 | R19: 0 | T19: Inter manco switch | W19: Cont | X19: Cont | Y19: Same Switch | Z19: 1 | AH19: Laurium Flexible Prescient Fund A1 | AL19: 56.43 | AN19: 0.0382 | AP19: 0 | AR19: =IF(AA19=AH19,"Same Fund","Cont") -> Cont | AS19: Cont | AT19: Cont | AU19: Cont | AV19: 56.43 | AW19: 56.43 | AX19: 1 | AY19: =IF(IFERROR(VLOOKUP(AA19,'Money Market'!$B$15:$C$62,2,FALSE),AP19)="No CGT",0,AP19) -> 0
C20: Investec Managed Fund H | F20: 2894.24 | H20: 1 | J20: Investec Managed Fund H | N20: 2839.506616 | P20: 0.9811 | R20: 0 | T20: Inter Platform Switch | W20: Same Fund | X20: Cont | Y20: New Switch | Z20: 1 | AA20: Investec Managed Fund H | AD20: 2894.24 | AF20: 1 | AH20: Investec Managed Fund H | AL20: 2839.5066 | AN20: 0.9811 | AP20: 0 | AR20: Same Fund | AS20: 54.7334 | AT20: 0.0189 | AU20: Skip | AV20: 54.73 | AW20: 54.73 | AX20: 1 | AY20: =IF(IFERROR(VLOOKUP(AA20,'Money Market'!$B$15:$C$62,2,FALSE),AP20)="No CGT",0,AP20) -> 0
C21: Investec Managed Fund H | F21: 2894.24 | H21: 1 | J21: Laurium Flexible Prescient Fund A1 | N21: 54.73 | P21: 0.0189 | R21: 0 | T21: Inter manco switch | W21: Cont | X21: Cont | Y21: Same Switch | Z21: 1 | AH21: Laurium Flexible Prescient Fund A1 | AL21: 54.73 | AN21: 0.0189 | AP21: 0 | AR21: Cont | AS21: Cont | AT21: Cont | AU21: Cont | AV21: 54.73 | AW21: 54.73 | AX21: 1 | AY21: =IF(IFERROR(VLOOKUP(AA21,'Money Market'!$B$15:$C$62,2,FALSE),AP21)="No CGT",0,AP21) -> 0
C22: PSG Flexible Fund E | F22: 2782.93 | H22: 1 | J22: Laurium Flexible Prescient Fund A1 | N22: 2649.25 | P22: 0.952 | R22: 0 | T22: Inter manco switch | W22: Cont | X22: Cont | Y22: New Switch | Z22: 1 | AA22: PSG Flexible Fund E | AD22: 2782.93 | AF22: 1 | AH22: Laurium Flexible Prescient Fund A1 | AL22: 2649.25 | AN22: 0.952 | AP22: 0 | AR22: Cont | AS22: Cont | AT22: Cont | AU22: Cont | AV22: 2649.25 | AW22: =ROUND(IF(AS22="Cont",IF(AD22="",AW21,AD22),AS22),2) -> 2782.93 | AX22: 0.9519642966 | AY22: =IF(IFERROR(VLOOKUP(AA22,'Money Market'!$B$15:$C$62,2,FALSE),AP22)="No CGT",0,AP22) -> 0
C23: PSG Flexible Fund E | F23: 2782.93 | H23: 1 | J23: Satrix Equally Weighted TOP 40 Index Fund B1 | N23: 53.94 | P23: 0.0194 | R23: 0 | T23: Inter manco switch | W23: Cont | X23: Cont | Y23: Same Switch | Z23: 1 | AH23: Satrix Equally Weighted TOP 40 Index Fund B1 | AL23: 53.94 | AN23: 0.0194 | AP23: 0 | AR23: Cont | AS23: Cont | AT23: Cont | AU23: Cont | AV23: 53.94 | AW23: 2782.93 | AX23: 0.01938244943 | AY23: =IF(IFERROR(VLOOKUP(AA23,'Money Market'!$B$15:$C$62,2,FALSE),AP23)="No CGT",0,AP23) -> 0
C24: PSG Flexible Fund E | F24: 2782.93 | H24: 1 | J24: Satrix Property Index Fund B1 | N24: 79.74 | P24: 0.0286 | R24: 0 | T24: Inter manco switch | W24: Cont | X24: Cont | Y24: Same Switch | Z24: 1 | AH24: Satrix Property Index Fund B1 | AL24: 79.74 | AN24: 0.0286 | AP24: 0 | AR24: Cont | AS24: Cont | AT24: Cont | AU24: Cont | AV24: 79.74 | AW24: 2782.93 | AX24: 0.02865325394 | AY24: =IF(IFERROR(VLOOKUP(AA24,'Money Market'!$B$15:$C$62,2,FALSE),AP24)="No CGT",0,AP24) -> 0
C25: PSG Global Flexible Feeder Fund B | F25: 1426.44 | H25: 1 | J25: PSG Global Flexible Feeder Fund B | N25: 1419.753308 | P25: 0.9953 | R25: 0 | T25: Inter Platform Switch | W25: Same Fund | X25: Cont | Y25: New Switch | Z25: 1 | AA25: PSG Global Flexible Feeder Fund B | AD25: 1426.44 | AF25: 1 | AH25: PSG Global Flexible Feeder Fund B | AL25: 1419.7533 | AN25: 0.9953 | AP25: 0 | AR25: Same Fund | AS25: 6.6867 | AT25: 0.0047 | AU25: Skip | AV25: 6.69 | AW25: 6.69 | AX25: 1 | AY25: =IF(IFERROR(VLOOKUP(AA25,'Money Market'!$B$15:$C$62,2,FALSE),AP25)="No CGT",0,AP25) -> 0
C26: PSG Global Flexible Feeder Fund B | F26: 1426.44 | H26: 1 | J26: Satrix Property Index Fund B1 | N26: 6.69 | P26: 0.0047 | R26: 0 | T26: Inter manco switch | W26: Cont | X26: Cont | Y26: Same Switch | Z26: 1 | AH26: Satrix Property Index Fund B1 | AL26: 6.69 | AN26: 0.0047 | AP26: 0 | AR26: Cont | AS26: Cont | AT26: Cont | AU26: Cont | AV26: 6.69 | AW26: 6.69 | AX26: 1 | AY26: =IF(IFERROR(VLOOKUP(AA26,'Money Market'!$B$15:$C$62,2,FALSE),AP26)="No CGT",0,AP26) -> 0
C27: Reitway BCI Global Property Fund C | F27: 1441.82 | H27: 1 | J27: Reitway BCI Global Property Fund C | N27: 1419.753308 | P27: 0.9847 | R27: 0 | T27: Inter Platform Switch | W27: Same Fund | X27: Cont | Y27: New Switch | Z27: 1 | AA27: Reitway BCI Global Property Fund C | AD27: 1441.82 | AF27: 1 | AH27: Reitway BCI Global Property Fund C | AL27: 1419.7533 | AN27: 0.9847 | AP27: 0 | AR27: Same Fund | AS27: =IF(AR27="Same Fund",AD27-AL27,"Cont") -> 22.0667 | AT27: 0.0153 | AU27: Skip | AV27: =ROUND(IF(AS27="Cont",AL27,AS27),2) -> 22.07 | AW27: 22.07 | AX27: 1 | AY27: =IF(IFERROR(VLOOKUP(AA27,'Money Market'!$B$15:$C$62,2,FALSE),AP27)="No CGT",0,AP27) -> 0
C28: Reitway BCI Global Property Fund C | F28: 1441.82 | H28: 1 | J28: Satrix Property Index Fund B1 | N28: 10.01 | P28: 0.0069 | R28: 0 | T28: Inter manco switch | W28: Cont | X28: Cont | Y28: Same Switch | Z28: 1 | AH28: Satrix Property Index Fund B1 | AL28: 10.01 | AN28: 0.0069 | AP28: 0 | AR28: Cont | AS28: Cont | AT28: Cont | AU28: Cont | AV28: =ROUND(IF(AS28="Cont",AL28,AS28),2) -> 10.01 | AW28: =ROUND(IF(AS28="Cont",IF(AD28="",AW27,AD28),AS28),2) -> 22.07 | AX28: =AV28/AW28 -> 0.4535568645 | AY28: =IF(IFERROR(VLOOKUP(AA28,'Money Market'!$B$15:$C$62,2,FALSE),AP28)="No CGT",0,AP28) -> 0
C29: Reitway BCI Global Property Fund C | F29: 1441.82 | H29: 1 | J29: STANLIB Income Fund B6 | N29: 4.92 | P29: 0.0034 | R29: 0 | T29: Inter manco switch | W29: Cont | X29: Cont | Y29: Same Switch | Z29: 1 | AH29: STANLIB Income Fund B6 | AL29: 4.92 | AN29: 0.0034 | AP29: 0 | AR29: Cont | AS29: Cont | AT29: Cont | AU29: Cont | AV29: 4.92 | AW29: 22.07 | AX29: =AV29/AW29 -> 0.2229270503 | AY29: =IF(IFERROR(VLOOKUP(AA29,'Money Market'!$B$15:$C$62,2,FALSE),AP29)="No CGT",0,AP29) -> 0
C30: Reitway BCI Global Property Fund C | F30: 1441.82 | H30: 1 | J30: Sygnia 4th Industrial Revolution Global Equity Fund A | N30: 7.13 | P30: 0.005 | R30: 0 | T30: Inter manco switch | W30: Cont | X30: Cont | Y30: Same Switch | Z30: 1 | AH30: Sygnia 4th Industrial Revolution Global Equity Fund A | AL30: 7.13 | AN30: 0.005 | AP30: 0 | AR30: Cont | AS30: Cont | AT30: Cont | AU30: Cont | AV30: 7.13 | AW30: 22.07 | AX30: =AV30/AW30 -> 0.3230629814 | AY30: =IF(IFERROR(VLOOKUP(AA30,'Money Market'!$B$15:$C$62,2,FALSE),AP30)="No CGT",0,AP30) -> 0
C31: Satrix Equally Weighted TOP 40 Index Fund B1 | F31: 3093.25 | H31: 1 | J31: Satrix Equally Weighted TOP 40 Index Fund B1 | N31: 3093.25 | P31: 1 | R31: 0 | T31: Inter Platform Switch | W31: Same Fund | X31: Skip | Z31: 1 | AA31: Satrix MSCI World Equity Index Feeder Fund B2 | AD31: 1821.95 | AF31: 1 | AH31: Satrix MSCI World Equity Index Feeder Fund B2 | AL31: 1774.6916 | AN31: 0.9741 | AP31: 0 | AR31: Same Fund | AS31: 47.2584 | AT31: 0.0259 | AU31: Skip | AV31: 47.26 | AW31: 47.26 | AX31: 1 | AY31: =IF(IFERROR(VLOOKUP(AA31,'Money Market'!$B$15:$C$62,2,FALSE),AP31)="No CGT",0,AP31) -> 0
C32: Satrix MSCI World Equity Index Feeder Fund B2 | F32: 1821.95 | H32: 1 | J32: Satrix MSCI World Equity Index Feeder Fund B2 | N32: 1774.691635 | P32: 0.9741 | R32: 0 | T32: Inter Platform Switch | W32: Same Fund | X32: Cont | Y32: New Switch | Z32: 1 | AH32: Satrix Equally Weighted TOP 40 Index Fund B1 | AL32: 47.26 | AN32: 0.0259 | AP32: 0 | AR32: Cont | AS32: Cont | AT32: Cont | AU32: Cont | AV32: 47.26 | AW32: 47.26 | AX32: 1 | AY32: =IF(IFERROR(VLOOKUP(AA32,'Money Market'!$B$15:$C$62,2,FALSE),AP32)="No CGT",0,AP32) -> 0
C33: Satrix MSCI World Equity Index Feeder Fund B2 | F33: 1821.95 | H33: 1 | J33: Satrix Equally Weighted TOP 40 Index Fund B1 | N33: 47.26 | P33: 0.0259 | R33: 0 | T33: Intra manco switch | W33: Cont | X33: Cont | Y33: Same Switch | Z33: 1 | AA33: STANLIB S&P500 Index Feeder Fund B1 | AD33: 1815.89 | AF33: 1 | AH33: STANLIB S&P500 Index Feeder Fund B1 | AL33: 1774.6916 | AN33: 0.9773 | AP33: 0 | AR33: Same Fund | AS33: 41.1984 | AT33: 0.0227 | AU33: Skip | AV33: 41.2 | AW33: 41.2 | AX33: 1 | AY33: =IF(IFERROR(VLOOKUP(AA33,'Money Market'!$B$15:$C$62,2,FALSE),AP33)="No CGT",0,AP33) -> 0
C34: Satrix Property Index Fund B1 | F34: 1678.25 | H34: 1 | J34: Satrix Property Index Fund B1 | N34: 1678.25 | P34: 1 | R34: 0 | T34: Inter Platform Switch | W34: Same Fund | X34: Skip | Z34: 1 | AH34: STANLIB Absolute Plus Fund B1 | AL34: 4.07 | AN34: 0.0022 | AP34: 0 | AR34: Cont | AS34: Cont | AT34: Cont | AU34: Cont | AV34: 4.07 | AW34: 41.2 | AX34: 0.09878640777 | AY34: =IF(IFERROR(VLOOKUP(AA34,'Money Market'!$B$15:$C$62,2,FALSE),AP34)="No CGT",0,AP34) -> 0
C35: STANLIB Absolute Plus Fund B1 | F35: 2835.44 | H35: 1 | J35: STANLIB Absolute Plus Fund B1 | N35: 2835.44 | P35: 1 | R35: 0 | T35: Inter Platform Switch | W35: Same Fund | X35: Skip | Z35: 1 | AH35: STANLIB Income Fund B6 | AL35: 37.13 | AN35: 0.0205 | AP35: 0 | AR35: Cont | AS35: Cont | AT35: Cont | AU35: Cont | AV35: 37.13 | AW35: 41.2 | AX35: 0.9012135922 | AY35: =IF(IFERROR(VLOOKUP(AA35,'Money Market'!$B$15:$C$62,2,FALSE),AP35)="No CGT",0,AP35) -> 0
C36: STANLIB Income Fund B6 | F36: 7056.71 | H36: 1 | J36: STANLIB Income Fund B6 | N36: 7056.71 | P36: 1 | R36: 0 | T36: Inter Platform Switch | W36: Same Fund | X36: Skip | AR36: Same Fund | AS36: 0 | AT36: 0 | AU36: Skip | AV36: 0 | AW36: 0 | AY36: =IF(IFERROR(VLOOKUP(AA36,'Money Market'!$B$15:$C$62,2,FALSE),AP36)="No CGT",0,AP36) -> 0
C37: STANLIB S&P500 Index Feeder Fund B1 | F37: 1815.89 | H37: 1 | J37: STANLIB S&P500 Index Feeder Fund B1 | N37: 1774.691635 | P37: 0.9773 | R37: 0 | T37: Inter Platform Switch | W37: Same Fund | X37: Cont | Y37: New Switch | AR37: Same Fund | AS37: 0 | AT37: 0 | AU37: Skip | AV37: 0 | AW37: 0 | AY37: =IF(IFERROR(VLOOKUP(AA37,'Money Market'!$B$15:$C$62,2,FALSE),AP37)="No CGT",0,AP37) -> 0
C38: STANLIB S&P500 Index Feeder Fund B1 | F38: 1815.89 | H38: 1 | J38: STANLIB Absolute Plus Fund B1 | N38: 4.07 | P38: 0.0022 | R38: 0 | T38: Intra manco switch | W38: Cont | X38: Cont | Y38: Same Switch | AR38: Same Fund | AS38: 0 | AT38: 0 | AU38: Skip | AV38: 0 | AW38: 0 | AY38: =IF(IFERROR(VLOOKUP(AA38,'Money Market'!$B$15:$C$62,2,FALSE),AP38)="No CGT",0,AP38) -> 0
C39: STANLIB S&P500 Index Feeder Fund B1 | F39: 1815.89 | H39: 1 | J39: STANLIB Income Fund B6 | N39: 37.13 | P39: 0.0205 | R39: 0 | T39: Intra manco switch | W39: Cont | X39: Cont | Y39: Same Switch | AR39: Same Fund | AS39: 0 | AT39: 0 | AU39: Skip | AV39: 0 | AW39: 0 | AY39: =IF(IFERROR(VLOOKUP(AA39,'Money Market'!$B$15:$C$62,2,FALSE),AP39)="No CGT",0,AP39) -> 0
C40: Sygnia 4th Industrial Revolution Global Equity Fund A | F40: 1412.62 | H40: 1 | J40: Sygnia 4th Industrial Revolution Global Equity Fund A | N40: 1412.62 | P40: 1 | R40: 0 | T40: Inter Platform Switch | W40: Same Fund | X40: Skip | AR40: Same Fund | AS40: 0 | AT40: 0 | AU40: Skip | AV40: 0 | AW40: 0 | AY40: =IF(IFERROR(VLOOKUP(AA40,'Money Market'!$B$15:$C$62,2,FALSE),AP40)="No CGT",0,AP40) -> 0
W41: Same Fund | X41: Skip | AR41: Same Fund | AS41: 0 | AT41: 0 | AU41: Skip | AV41: 0 | AW41: 0 | AY41: =IF(IFERROR(VLOOKUP(AA41,'Money Market'!$B$15:$C$62,2,FALSE),AP41)="No CGT",0,AP41) -> 0
W42: Same Fund | X42: Skip | AR42: Same Fund | AS42: 0 | AT42: 0 | AU42: Skip | AV42: 0 | AW42: 0 | AY42: =IF(IFERROR(VLOOKUP(AA42,'Money Market'!$B$15:$C$62,2,FALSE),AP42)="No CGT",0,AP42) -> 0
W43: Same Fund | X43: Skip | AR43: Same Fund | AS43: 0 | AT43: 0 | AU43: Skip | AV43: 0 | AW43: 0 | AY43: =IF(IFERROR(VLOOKUP(AA43,'Money Market'!$B$15:$C$62,2,FALSE),AP43)="No CGT",0,AP43) -> 0
W44: Same Fund | X44: Skip | AR44: Same Fund | AS44: 0 | AT44: 0 | AU44: Skip | AV44: 0 | AW44: 0 | AY44: =IF(IFERROR(VLOOKUP(AA44,'Money Market'!$B$15:$C$62,2,FALSE),AP44)="No CGT",0,AP44) -> 0
W45: Same Fund | X45: Skip | AR45: Same Fund | AS45: 0 | AT45: 0 | AU45: Skip | AV45: 0 | AW45: 0 | AY45: =IF(IFERROR(VLOOKUP(AA45,'Money Market'!$B$15:$C$62,2,FALSE),AP45)="No CGT",0,AP45) -> 0
W46: Same Fund | X46: Skip | AR46: Same Fund | AS46: 0 | AT46: 0 | AU46: Skip | AV46: 0 | AW46: 0 | AY46: =IF(IFERROR(VLOOKUP(AA46,'Money Market'!$B$15:$C$62,2,FALSE),AP46)="No CGT",0,AP46) -> 0
W47: Same Fund | X47: Skip | AR47: Same Fund | AS47: 0 | AT47: 0 | AU47: Skip | AV47: 0 | AW47: 0 | AY47: =IF(IFERROR(VLOOKUP(AA47,'Money Market'!$B$15:$C$62,2,FALSE),AP47)="No CGT",0,AP47) -> 0
W48: Same Fund | X48: Skip | AR48: Same Fund | AS48: 0 | AT48: 0 | AU48: Skip | AV48: 0 | AW48: 0 | AY48: =IF(IFERROR(VLOOKUP(AA48,'Money Market'!$B$15:$C$62,2,FALSE),AP48)="No CGT",0,AP48) -> 0
W49: Same Fund | X49: Skip | AR49: Same Fund | AS49: 0 | AT49: 0 | AU49: Skip | AV49: 0 | AW49: 0 | AY49: =IF(IFERROR(VLOOKUP(AA49,'Money Market'!$B$15:$C$62,2,FALSE),AP49)="No CGT",0,AP49) -> 0
W50: Same Fund | X50: Skip | AR50: Same Fund | AS50: 0 | AT50: 0 | AU50: Skip | AV50: 0 | AW50: 0 | AY50: =IF(IFERROR(VLOOKUP(AA50,'Money Market'!$B$15:$C$62,2,FALSE),AP50)="No CGT",0,AP50) -> 0
W51: Same Fund | X51: Skip | AR51: Same Fund | AS51: 0 | AT51: 0 | AU51: Skip | AV51: 0 | AW51: 0 | AY51: =IF(IFERROR(VLOOKUP(AA51,'Money Market'!$B$15:$C$62,2,FALSE),AP51)="No CGT",0,AP51) -> 0
W52: Same Fund | X52: Skip | AR52: Same Fund | AS52: 0 | AT52: 0 | AU52: Skip | AV52: 0 | AW52: 0 | AY52: =IF(IFERROR(VLOOKUP(AA52,'Money Market'!$B$15:$C$62,2,FALSE),AP52)="No CGT",0,AP52) -> 0
W53: Same Fund | X53: Skip | AR53: Same Fund | AS53: 0 | AT53: 0 | AU53: Skip | AV53: 0 | AW53: 0 | AY53: =IF(IFERROR(VLOOKUP(AA53,'Money Market'!$B$15:$C$62,2,FALSE),AP53)="No CGT",0,AP53) -> 0
B56: Switched Funds
C59: Manco | F59: Fund | J59: Rand Amount | L59: Percentage
B60: 1 | C60: Allan Gray Unit Trust Management Limited | F60: Allan Gray Balanced Fund C | J60: 2839.506616 | L60: =IF(C60="","",J60/$J$75) -> 0.08
B61: 2 | C61: Coronation Management Company | F61: Coronation Balanced Plus Fund P | J61: 2839.506616 | L61: =IF(C61="","",J61/$J$75) -> 0.08
B62: 3 | C62: Investec Fund Managers | F62: Investec Global Franchise Feeder Fund H | J62: 1419.753308 | L62: =IF(C62="","",J62/$J$75) -> 0.04
B63: 4 | C63: Investec Fund Managers | F63: Investec Managed Fund H | J63: 2839.506616 | L63: 0.08
B64: 5 | C64: Prescient Management Company Ltd | F64: Laurium Flexible Prescient Fund A1 | J64: 2839.506616 | L64: 0.08
B65: 6 | C65: PSG Collective Investments Ltd | F65: PSG Global Flexible Feeder Fund B | J65: 1419.753308 | L65: 0.04
B66: 7 | C66: Boutique Collective Investments (Pty) Ltd | F66: Reitway BCI Global Property Fund C | J66: 1419.753308 | L66: 0.04
B67: 8 | C67: Satrix Managers (RF) (Pty) Ltd | F67: Satrix Equally Weighted TOP 40 Index Fund B1 | J67: 3194.444943 | L67: 0.09
B68: 9 | C68: Satrix Managers (RF) (Pty) Ltd | F68: Satrix MSCI World Equity Index Feeder Fund B2 | J68: 1774.691635 | L68: =IF(C68="","",J68/$J$75) -> 0.05
B69: 10 | C69: Satrix Managers (RF) (Pty) Ltd | F69: Satrix Property Index Fund B1 | J69: 1774.691635 | L69: 0.05
B70: 11 | C70: STANLIB Collective Investments | F70: STANLIB Absolute Plus Fund B1 | J70: 2839.506616 | L70: 0.08
B71: 12 | C71: STANLIB Collective Investments | F71: STANLIB Income Fund B6 | J71: 7098.76654 | L71: 0.2
B72: 13 | C72: STANLIB Collective Investments | F72: STANLIB S&P500 Index Feeder Fund B1 | J72: 1774.691635 | L72: 0.05
B73: 14 | C73: Sygnia Asset Management (Pty) Limited | F73: Sygnia 4th Industrial Revolution Global Equity Fund A | J73: 1419.753308 | L73: 0.04
B74: 15 | J74: 0
H75: Total | J75: =SUM(J60:K74) -> 35493.8327 | L75: =SUM(L60:M74) -> 1

Sheet Switch
AB2: LR
AB3: S
AB4: C
AB5: FC
AB7: Classic Investment Plan
AB8: Classic Linked Life Annuity
AB9: Classic Preservation Pension Plan
C10: Investor Details | AB10: Classic Preservation Provident Plan
AB11: Classic Retirement Annuity Plan
C12: Wrapper/Product Type
C13: Investment Account Number
C14: Name and Surname
C15: Identity/Passport Number
C16: Type of Client
C17: Tax Number
C18: Cellphone Number
C19: Email Address
C21: Switch Details
C23: Switch From:
D24: Please Note: Please re-download the tool from stanlib.com for the latest set of funds | K24: Please ensure that all details are filled in under each of the fields below, if CGT is not required please fill in "1" under the Base cost per Unit field to avoid an error.
D25: Manco | G25: Portfolio Name | K25: Units | M25: Current Unit Price | O25: Base Cost per Unit ( c ) | Q25: Current Market Value | S25: Percentage | U25: Switch Percentage | V25: Switch Market Value | W25: Portfolio Range (eg Classic, LR)
C26: 1 | Q26: =IF(D26="","",M26/100*K26) ->  | V26: =IF(U26="",0,Q26*U26) -> 0 | Y26: =CONCATENATE(W26," ",G26) ->  | Z26: =IFERROR(VLOOKUP(G26,'Funds - S'!$A$2:$B$629,2,FALSE),0) -> 0 | AA26: =IF(G26="",0,1) -> 0 | AC26: =IF($F$12="Classic Investment Plan","CGT","No CGT") -> No CGT
C27: 2 | Q27: =IF(D27="","",M27/100*K27) ->  | V27: =IF(U27="",0,Q27*U27) -> 0 | Y27: =CONCATENATE(W27," ",G27) ->  | Z27: =IFERROR(VLOOKUP(G27,'Funds - S'!$A$2:$B$629,2,FALSE),0) -> 0 | AA27: =IF(G27="",0,1) -> 0 | AC27: =IF($F$12="Classic Investment Plan","CGT","No CGT") -> No CGT
C28: 3 | V28: =IF(U28="",0,Q28*U28) -> 0 | Z28: =IFERROR(VLOOKUP(G28,'Funds - S'!$A$2:$B$629,2,FALSE),0) -> 0 | AA28: 0 | AC28: No CGT
C29: 4 | V29: =IF(U29="",0,Q29*U29) -> 0 | Z29: =IFERROR(VLOOKUP(G29,'Funds - S'!$A$2:$B$629,2,FALSE),0) -> 0 | AA29: 0 | AC29: No CGT
C30: 5 | V30: 0 | Z30: =IFERROR(VLOOKUP(G30,'Funds - S'!$A$2:$B$629,2,FALSE),0) -> 0 | AA30: 0 | AC30: No CGT
C31: 6 | S31: =IF(Q31="","",Q31/FromTotal) ->  | V31: 0 | Z31: =IFERROR(VLOOKUP(G31,'Funds - S'!$A$2:$B$629,2,FALSE),0) -> 0 | AA31: 0 | AC31: No CGT
C32: 7 | V32: 0 | Z32: =IFERROR(VLOOKUP(G32,'Funds - S'!$A$2:$B$629,2,FALSE),0) -> 0 | AA32: 0 | AC32: No CGT
C33: 8 | V33: 0 | Z33: =IFERROR(VLOOKUP(G33,'Funds - S'!$A$2:$B$629,2,FALSE),0) -> 0 | AA33: 0 | AC33: No CGT
C34: 9 | V34: 0 | Z34: =IFERROR(VLOOKUP(G34,'Funds - S'!$A$2:$B$629,2,FALSE),0) -> 0 | AA34: 0 | AC34: No CGT
C35: 10 | V35: 0 | Z35: =IFERROR(VLOOKUP(G35,'Funds - S'!$A$2:$B$629,2,FALSE),0) -> 0 | AA35: 0 | AC35: No CGT
C36: 11 | V36: 0 | Z36: =IFERROR(VLOOKUP(G36,'Funds - S'!$A$2:$B$629,2,FALSE),0) -> 0 | AA36: 0 | AC36: No CGT
C37: 12 | V37: 0 | Z37: =IFERROR(VLOOKUP(G37,'Funds - S'!$A$2:$B$629,2,FALSE),0) -> 0 | AA37: 0 | AC37: No CGT
C38: 13 | V38: 0 | Z38: =IFERROR(VLOOKUP(G38,'Funds - S'!$A$2:$B$629,2,FALSE),0) -> 0 | AA38: 0 | AC38: No CGT
C39: 14 | V39: 0 | Z39: =IFERROR(VLOOKUP(G39,'Funds - S'!$A$2:$B$629,2,FALSE),0) -> 0 | AA39: 0 | AC39: No CGT
C40: 15 | V40: 0 | Z40: =IFERROR(VLOOKUP(G40,'Funds - S'!$A$2:$B$629,2,FALSE),0) -> 0 | AA40: 0 | AC40: No CGT
Q41: Total | U41: =SUM(U26:U40) -> 0 | V41: =SUM(V26:V40) -> 0 | AA41: =SUM(AA26:AA40) -> 0
C44: Switch To:
J45: TRUE | K45: FALSE
D48: Amount in Solution Portfolio | H48: =IF(J45=TRUE,1,V41) -> 1
D50: Please note all the funds may not be available to you
D51: Manco | G51: Portfolio Name | K51: =IF(J45=TRUE,"Percentage","Rand Amount") -> Percentage | M51: Portfolio Range (eg Classic, LR)
C52: 1 | O52: =CONCATENATE(M52," ",G52) ->  | Z52: =IFERROR(VLOOKUP(G52,'Funds - S'!$A$2:$B$629,2,FALSE),0) -> 0 | AA52: =IF(G52="",0,1) -> 0
C53: 2 | O53: =CONCATENATE(M53," ",G53) ->  | Z53: =IFERROR(VLOOKUP(G53,'Funds - S'!$A$2:$B$629,2,FALSE),0) -> 0 | AA53: =IF(G53="",0,1) -> 0
C54: 3 | Z54: =IFERROR(VLOOKUP(G54,'Funds - S'!$A$2:$B$629,2,FALSE),0) -> 0 | AA54: 0
C55: 4 | Z55: =IFERROR(VLOOKUP(G55,'Funds - S'!$A$2:$B$629,2,FALSE),0) -> 0 | AA55: 0
C56: 5 | Z56: =IFERROR(VLOOKUP(G56,'Funds - S'!$A$2:$B$629,2,FALSE),0) -> 0 | AA56: 0
C57: 6 | Z57: =IFERROR(VLOOKUP(G57,'Funds - S'!$A$2:$B$629,2,FALSE),0) -> 0 | AA57: 0
C58: 7 | Z58: =IFERROR(VLOOKUP(G58,'Funds - S'!$A$2:$B$629,2,FALSE),0) -> 0 | AA58: 0
C59: 8 | Z59: =IFERROR(VLOOKUP(G59,'Funds - S'!$A$2:$B$629,2,FALSE),0) -> 0 | AA59: 0
C60: 9 | Z60: =IFERROR(VLOOKUP(G60,'Funds - S'!$A$2:$B$629,2,FALSE),0) -> 0 | AA60: 0
C61: 10 | Z61: =IFERROR(VLOOKUP(G61,'Funds - S'!$A$2:$B$629,2,FALSE),0) -> 0 | AA61: 0
C62: 11 | Z62: =IFERROR(VLOOKUP(G62,'Funds - S'!$A$2:$B$629,2,FALSE),0) -> 0 | AA62: 0
C63: 12 | Z63: =IFERROR(VLOOKUP(G63,'Funds - S'!$A$2:$B$629,2,FALSE),0) -> 0 | AA63: 0
C64: 13 | Z64: =IFERROR(VLOOKUP(G64,'Funds - S'!$A$2:$B$629,2,FALSE),0) -> 0 | AA64: 0
C65: 14 | Z65: =IFERROR(VLOOKUP(G65,'Funds - S'!$A$2:$B$629,2,FALSE),0) -> 0 | AA65: 0
C66: 15 | Z66: =IFERROR(VLOOKUP(G66,'Funds - S'!$A$2:$B$629,2,FALSE),0) -> 0 | AA66: 0
G67: Total | K67: =SUM(K52:L66) -> 0 | AA67: =SUM(AA52:AA66) -> 0

Sheet Waiting
K15: Please wait while your Switch/Rebalance Instructions are being created.
D23: PLEASE NOTE: The objective of this tool is to assist the user with calculating the CGT impact for the switch/rebalance instruction. The CGT implications as well as switch/rebalance instructions set out in the Tool are indicative values only and may change due to changes in the prices of the portfolios transacted on. The proposal, captured instructions and your tax certificate may not have the same values due to changes in prices on different days. STANLIB does not provide tax advice. No information provided must be construed as tax advice to the client.

Sheet Rebalance Form New
B6: E-mail lispinstructions@stanlib.com Facsimile 0867 277 516
B7: Switch Form Linked Investments
B9: CLIENT DETAILS
B11: INVESTMENT NUMBER | C11: =LEFT('Proposal - R'!$J$41,1) -> 0 | D11: =MID('Proposal - R'!$J$41,2,1) ->  | E11: =MID('Proposal - R'!$J$41,3,1) ->  | F11: =MID('Proposal - R'!$J$41,4,1) ->  | G11: =MID('Proposal - R'!$J$41,5,1) ->  | H11: =MID('Proposal - R'!$J$41,6,1) ->  | I11: =MID('Proposal - R'!$J$41,7,1) ->  | J11: =MID('Proposal - R'!$J$41,8,1) ->  | K11: =MID('Proposal - R'!$J$41,9,1) ->  | L11: =MID('Proposal - R'!$J$41,10,1) ->  | M11: =MID('Proposal - R'!$J$41,11,1) ->  | N11: =MID('Proposal - R'!$J$41,12,1) ->  | O11: =MID('Proposal - R'!$J$41,13,1) ->  | P11: =MID('Proposal - R'!$J$41,14,1) ->  | Q11: =MID('Proposal - R'!$J$41,15,1) ->  | R11: =MID('Proposal - R'!$J$41,16,1) ->  | S11: =MID('Proposal - R'!$J$41,17,1) ->  | T11: =MID('Proposal - R'!$J$41,18,1) ->  | U11: =MID('Proposal - R'!$J$41,19,1) ->  | V11: =MID('Proposal - R'!$J$41,20,1) ->  | W11: =MID('Proposal - R'!$J$41,21,1) ->  | X11: =MID('Proposal - R'!$J$41,22,1) ->  | Y11: =MID('Proposal - R'!$J$41,23,1) ->  | Z11: =MID('Proposal - R'!$J$41,24,1) ->  | AA11: =MID('Proposal - R'!$J$41,25,1) -> 
B13: NAME & SURNAME / ENTITY NAME | C13: =LEFT('Proposal - R'!$J$42,1) -> 0 | D13: =MID('Proposal - R'!$J$42,2,1) ->  | E13: =MID('Proposal - R'!$J$42,3,1) ->  | F13: =MID('Proposal - R'!$J$42,4,1) ->  | G13: =MID('Proposal - R'!$J$42,5,1) ->  | H13: =MID('Proposal - R'!$J$42,6,1) ->  | I13: =MID('Proposal - R'!$J$42,7,1) ->  | J13: =MID('Proposal - R'!$J$42,8,1) ->  | K13: =MID('Proposal - R'!$J$42,9,1) ->  | L13: =MID('Proposal - R'!$J$42,10,1) ->  | M13: =MID('Proposal - R'!$J$42,11,1) ->  | N13: =MID('Proposal - R'!$J$42,12,1) ->  | O13: =MID('Proposal - R'!$J$42,13,1) ->  | P13: =MID('Proposal - R'!$J$42,14,1) ->  | Q13: =MID('Proposal - R'!$J$42,15,1) ->  | R13: =MID('Proposal - R'!$J$42,16,1) ->  | S13: =MID('Proposal - R'!$J$42,17,1) ->  | T13: =MID('Proposal - R'!$J$42,18,1) ->  | U13: =MID('Proposal - R'!$J$42,19,1) ->  | V13: =MID('Proposal - R'!$J$42,20,1) ->  | W13: =MID('Proposal - R'!$J$42,21,1) ->  | X13: =MID('Proposal - R'!$J$42,22,1) ->  | Y13: =MID('Proposal - R'!$J$42,23,1) ->  | Z13: =MID('Proposal - R'!$J$42,24,1) ->  | AA13: =MID('Proposal - R'!$J$42,25,1) -> 
B15: IDENTITY / PASSPORT NUMBER | C15: =LEFT('Proposal - R'!$J$43,1) -> 0 | D15: =MID('Proposal - R'!$J$43,2,1) ->  | E15: =MID('Proposal - R'!$J$43,3,1) ->  | F15: =MID('Proposal - R'!$J$43,4,1) ->  | G15: =MID('Proposal - R'!$J$43,5,1) ->  | H15: =MID('Proposal - R'!$J$43,6,1) ->  | I15: =MID('Proposal - R'!$J$43,7,1) ->  | J15: =MID('Proposal - R'!$J$43,8,1) ->  | K15: =MID('Proposal - R'!$J$43,9,1) ->  | L15: =MID('Proposal - R'!$J$43,10,1) ->  | M15: =MID('Proposal - R'!$J$43,11,1) ->  | N15: =MID('Proposal - R'!$J$43,12,1) ->  | O15: =MID('Proposal - R'!$J$43,13,1) ->  | P15: =MID('Proposal - R'!$J$43,14,1) ->  | Q15: =MID('Proposal - R'!$J$43,15,1) ->  | R15: =MID('Proposal - R'!$J$43,16,1) ->  | S15: =MID('Proposal - R'!$J$43,17,1) ->  | T15: =MID('Proposal - R'!$J$43,18,1) ->  | U15: =MID('Proposal - R'!$J$43,19,1) ->  | V15: =MID('Proposal - R'!$J$43,20,1) ->  | W15: =MID('Proposal - R'!$J$43,21,1) ->  | X15: =MID('Proposal - R'!$J$43,22,1) ->  | Y15: =MID('Proposal - R'!$J$43,23,1) ->  | Z15: =MID('Proposal - R'!$J$43,24,1) ->  | AA15: =MID('Proposal - R'!$J$43,25,1) -> 
B17: CELL PHONE NUMBER | C17: =LEFT('Proposal - R'!$J$46,1) -> 0 | D17: =MID('Proposal - R'!$J$46,2,1) ->  | E17: =MID('Proposal - R'!$J$46,3,1) ->  | G17: =MID('Proposal - R'!$J$46,4,1) ->  | H17: =MID('Proposal - R'!$J$46,5,1) ->  | I17: =MID('Proposal - R'!$J$46,6,1) ->  | J17: =MID('Proposal - R'!$J$46,7,1) ->  | K17: =MID('Proposal - R'!$J$46,8,1) ->  | L17: =MID('Proposal - R'!$J$46,9,1) ->  | M17: =MID('Proposal - R'!$J$46,10,1) -> 
B20: INSTRUCTION
B22: INSTRUCTION TYPE | D22: SWITCH | J22: X | K22: REBALANCE
B25: REBALANCE INSTRUCTION:
B27: Rebalance refers to the process of re-aligning the weightings of your investment portfolios. This involves the buying or selling of assets in your investment to obtain the desired level of asset allocation. Please indicate your new portfolio selection and the weighting for each portfolio.
B30: Portfolio Name | Q30: Percentage
B31: =CONCATENATE("1. ",TEXT(Rebalance!G52,"")) -> 1. | I31: =IF(Rebalance!M52="","",Rebalance!M52) ->  | Q31: =IF(Rebalance!K52="","",Rebalance!K52) -> 
B32: =CONCATENATE("2. ",TEXT(Rebalance!G53,"")) -> 2. | I32: =IF(Rebalance!M53="","",Rebalance!M53) ->  | Q32: =IF(Rebalance!K53="","",Rebalance!K53) -> 
B33: =CONCATENATE("3. ",TEXT(Rebalance!G54,"")) -> 3. | I33: =IF(Rebalance!M54="","",Rebalance!M54) ->  | Q33: =IF(Rebalance!K54="","",Rebalance!K54) -> 
B34: =CONCATENATE("4. ",TEXT(Rebalance!G55,"")) -> 4. | I34: =IF(Rebalance!M55="","",Rebalance!M55) ->  | Q34: =IF(Rebalance!K55="","",Rebalance!K55) -> 
B35: =CONCATENATE("5. ",TEXT(Rebalance!G56,"")) -> 5. | I35: =IF(Rebalance!M56="","",Rebalance!M56) ->  | Q35: =IF(Rebalance!K56="","",Rebalance!K56) -> 
B36: =CONCATENATE("6. ",TEXT(Rebalance!G57,"")) -> 6. | I36: =IF(Rebalance!M57="","",Rebalance!M57) ->  | Q36: =IF(Rebalance!K57="","",Rebalance!K57) -> 
B37: =CONCATENATE("7. ",TEXT(Rebalance!G58,"")) -> 7. | I37: =IF(Rebalance!M58="","",Rebalance!M58) ->  | Q37: =IF(Rebalance!K58="","",Rebalance!K58) -> 
B38: =CONCATENATE("8. ",TEXT(Rebalance!G59,"")) -> 8. | I38: =IF(Rebalance!M59="","",Rebalance!M59) ->  | Q38: =IF(Rebalance!K59="","",Rebalance!K59) -> 
B39: =CONCATENATE("9. ",TEXT(Rebalance!G60,"")) -> 9. | I39: =IF(Rebalance!M60="","",Rebalance!M60) ->  | Q39: =IF(Rebalance!K60="","",Rebalance!K60) -> 
B40: =CONCATENATE("10. ",TEXT(Rebalance!G61,"")) -> 10. | I40: =IF(Rebalance!M61="","",Rebalance!M61) ->  | Q40: =IF(Rebalance!K61="","",Rebalance!K61) -> 
B41: =CONCATENATE("11. ",TEXT(Rebalance!G62,"")) -> 11. | I41: =IF(Rebalance!M62="","",Rebalance!M62) ->  | Q41: =IF(Rebalance!K62="","",Rebalance!K62) -> 
B42: =CONCATENATE("12. ",TEXT(Rebalance!G63,"")) -> 12. | I42: =IF(Rebalance!M63="","",Rebalance!M63) ->  | Q42: =IF(Rebalance!K63="","",Rebalance!K63) -> 
B43: =CONCATENATE("13. ",TEXT(Rebalance!G64,"")) -> 13. | I43: =IF(Rebalance!M64="","",Rebalance!M64) ->  | Q43: =IF(Rebalance!K64="","",Rebalance!K64) ->  | U43: =IF(Instructions!J74="","",Instructions!J74) -> 
B44: =CONCATENATE("14. ",TEXT(Rebalance!G65,"")) -> 14. | I44: =IF(Rebalance!M65="","",Rebalance!M65) ->  | Q44: =IF(Rebalance!K65="","",Rebalance!K65) ->  | U44: =IF(Instructions!J75="","",Instructions!J75) -> 
B45: =CONCATENATE("15. ",TEXT(Rebalance!G66,"")) -> 15. | I45: =IF(Rebalance!M66="","",Rebalance!M66) ->  | Q45: =IF(Rebalance!K66="","",Rebalance!K66) ->  | U45: =IF(Instructions!J76="","",Instructions!J76) -> 
B46: TOTAL | Q46: =SUM(Q31:T45) -> 0
B48: SWITCH FROM:
B50: Portfolio Name | Q50: Percentage | U50: Amount
B51: 1. | Q51: % | U51: R
B52: 2. | Q52: % | U52: R
B53: 3. | Q53: % | U53: R
B54: 4. | Q54: % | U54: R
B55: 5. | Q55: % | U55: R
B56: 6. | Q56: % | U56: R
B57: 7. | Q57: % | U57: R
B58: 8. | Q58: % | U58: R
B59: 9. | Q59: % | U59: R
B60: 10. | Q60: % | U60: R
B61: 11. | Q61: % | U61: R
B62: 12. | Q62: % | U62: R
B63: TOTAL | U63: R
B65: SWITCH TO:
B67: Where the Client has chosen a portfolio but the Portfolio Range was left blank, the Linked Range will be applied. If the Portfolio Range selected is not offered on the Linked Range, then the Select Portfolio Range will apply. Visit www.stanlib.com for a complete list of our portfolio ranges.
B68: Portfolio Name | Q68: Percentage | U68: Amount
B69: 1. | Q69: % | U69: R
B70: 2. | Q70: % | U70: R
B71: 3. | Q71: % | U71: R
B72: 4. | Q72: % | U72: R
B73: 5. | Q73: % | U73: R
B74: 6. | Q74: % | U74: R
B75: 7. | Q75: % | U75: R
B76: 8. | Q76: % | U76: R
B77: 9. | Q77: % | U77: R
B78: 10. | Q78: % | U78: R
B79: 11. | Q79: % | U79: R
B80: 12. | Q80: % | U80: R
B81: TOTAL | U81: R
B83: DEBIT ORDER INSTRUCTION
B85: Change the portfolio selection for the existing Unit trust funds as indicated below. If the table is left blank, the existing portfolio on record will remain unchanged.
B88: CHANGE DEBIT ORDERS AS PER SWITCH / REBALANCE INSTRUCTION | J88: YES | R88: NO
B91: Portfolio Name | Q91: Percentage | U91: Amount
B92: 1. | Q92: % | U92: R
B93: 2. | Q93: % | U93: R
B94: 3. | Q94: % | U94: R
B95: 4. | Q95: % | U95: R
B96: 5. | Q96: % | U96: R
B97: 6. | Q97: % | U97: R
B98: 7. | Q98: % | U98: R
B99: 8. | Q99: % | U99: R
B100: 9. | Q100: % | U100: R
B101: 10. | Q101: % | U101: R
B102: 11. | Q102: % | U102: R
B103: 12. | Q103: % | U103: R
B105: PHASE-IN INSTRUCTION
B107: Change the portfolio selection for the existing Unit trust funds as indicated below. If the table is left blank, the existing portfolio on record will remain unchanged. Phase-in's are only available for Unit Trust funds and at inception stage.
B110: CHANGE PHASE-IN AS PER SWITCH / REBALANCE INSTRUCTION | J110: YES | R110: NO
B113: Portfolio Name | Q113: Percentage | U113: Amount
B114: 1. | Q114: % | U114: R
B115: 2. | Q115: % | U115: R
B116: 3. | Q116: % | U116: R
B117: 4. | Q117: % | U117: R
B118: 5. | Q118: % | U118: R
B119: 6. | Q119: % | U119: R
B120: 7. | Q120: % | U120: R
B121: 8. | Q121: % | U121: R
B122: 9. | Q122: % | U122: R
B123: 10. | Q123: % | U123: R
B124: 11. | Q124: % | U124: R
B125: 12. | Q125: % | U125: R
B127: PORTFOLIO NOMINATION FOR FEE DEDUCTION
B129: STANLIB allows you to select a specific portfolio/s for the deduction of fees. If you have not selected a specific portfolio/s, STANLIB will deduct fees from Call accounts and Money Market portfolios first. Thereafter, fees will be deducted proportionately from Unit Trust portfolios, then Model Portfolios and lastly Personal Share Portfolios. If a portfolio/s is selected below, all fees will be deducted from this portfolio until the portfolio is depleted. If multiple portfolios are selected, the fees will be deducted proportionately across these portfolios until the portfolios are depleted. Thereafter the default fee deduction rules will apply.
B130: Portfolio Name
B137: PORTFOLIO NOMINATION FOR INCOME DEDUCTION
B139: STANLIB allows you to select a specific portfolio/s from which to pay your regular income. If you have not selected a specific portfolio/s, STANLIB will pay your income from Call accounts and Money Market portfolios first. Thereafter, income will be paid proportionately from other portfolios in your investment. If a portfolio/s is selected below, all income will be paid from this portfolio/s until the portfolio/s is depleted. Thereafter the default fee deduction rules will apply
B140: Portfolio Name
B147: APPOINTMENT OF MODEL PORTFOLIO FINANCIAL SERVICES PROVIDER
B149: Complete one of the sections below to indicate the appointment of a discretionary Financial Service Provider to manage your Model portfolio selection
B151: A. APPOINTMENT OF STANLIB AS THE MODEL MANAGER
B152: 1. The Client hereby appoints STANLIB as his/her discretionary financial service provider with effect from the date of client’s signature of this form on the terms and conditions set out herein and subject to applicable legislation. STANLIB hereby agrees to act as a discretionary financial services provider to the Client. In terms of this clause, the Client hereby confers on STANLIB complete discretion to take such action as STANLIB considers necessary to attain the investment objectives of the Client, namely to maximize the income on the investments of the Client over an extended period. STANLIB may vote on behalf of the Client in respect of the Client’s investment. STANLIB as the Client’s representative is authorised to enter into any agreements of the Client with an other person, financial exchange, member or regulatory body in the execution of its obligations in terms of the agreement. STANLIB may sub-contract its responsibilities in terms if this clause to another party. 2. Model portfolio manager charge: STANLIB will levy a Model portfolio manager charge of ___________% This will be calculated on the last business day prior to the 10th day of each month on the market value of the model portfolio/portfolios selected by the Client. 3. Discretionary Financial Services Provider: STANLIB is an authorised Financial Services Provider in terms of section 8(5)(a)(i) of the FAIS Act and is licensed to carry on the business: 3.1. in respect of financial advisory services, financial intermediary services in the following products: Long-term Insurance: Category B1, c, B2, Retail Pension Fund Benefits, Securities and Instruments: Shares in a company other than a “share block company” as defined in the Share Blocks Control Act, 1980, Money Market instruments, Debentures and securities debt, Warrants, certificates and other instruments acknowledging, conferring or creating rights to subscribe to, acquire, dispose of, or convert securities, Bonds, Derivative instruments, Deposits as defined in the Banks Act, Participatory interests in one or more collective investment scheme, Foreign currency denominated investments instrument, including foreign currency deposit; 3.2. in respect of discretionary services in the following products: Long-term Insurance: Category B1, C, B2, Pension Fund Benefits: (Retail), Securities and Instruments: Shares in a company other than a “share block company” as defined in the Share Blocks Control Act, 1980, Money-market Instruments, Debentures and securitised debt, Warrants, certificates and other instruments acknowledging, conferring or creating rights to subscribe to, acquire, dispose of, or convert securities, Bonds, Derivative instruments, Participatory interests in one or more collective investment scheme, Foreign currency denominated investment instruments, including a foreign currency deposit, Long-term Deposits, Short-term Deposits. 3.3. in respect of administrative services in the following products: Long-term Insurance: Category B1, C, B2, Pension Fund Benefits: (Retail), Securities and Instruments: Shares in a company other than a “share block company” as defined in the Share Blocks Control Act, 1980, Money-market instruments, Debentures and securitised debt, Warrants, certificates and other instruments acknowledging, conferring or creating rights to subscribe to, acquire, dispose of, or convert securities, Bonds, Derivative instruments, Participatory interests in one or more collective investment schemes, Foreign currency denominated investment instruments, including foreign currency deposit.
B153: ACCEPTANCE OF APPOINTMENT | J153: YES | R153: NO
B155: B. OR APPOINTMENT OF EXTERNAL MODEL MANAGER
B157: NAME OF FSP / ENTITY
B159: FSP / ENTITY LICENCE NO
B161: STANLIB ID
B163: NAME OF SOLE PROPRIETOR OR REPRESENTATIVE
B165: MODEL PORTFOLIO MANAGER CHARGE | F165: %
B167: 1.The Client hereby appoints the FSP as the discretionary financial service provider with effect from the date of client’s signature of this form on the terms and conditions set out herein and subject to applicable legislation
B168: ACCEPTANCE OF APPOINTMENT | J168: YES | R168: NO
B171: TERMS AND CONDITIONS
B173: General 1. The terms and conditions signed and agreed to in the Investment Application form will remain in force and apply to this transaction. Refer to your Investment application form for the detail for the detailed terms and conditions. Alternatively you can request a copy of the terms and conditions from your Financial adviser or the Contact Centre on 0860 123 003 2. Where the terms and conditions contained in this form contradict the terms and conditions in the application form signed by the client, the terms and conditions contained in this switch form will apply. 3. Some of the terms and conditions are set out in the Investment Application Form and the remainder is set out in this Switch form. The Client agrees to be bound by the terms and conditions as set out in the Investment Application Form as well as those set out in this form. In the event of a conflict between the terms and conditions in the Investment Application Form and the terms and conditions contained in this Switch Form, the terms and conditions in this form will apply. 4. Where a fully completed and accurate instruction is received by STANLIB head office before close of business on business day 1. The following switching turnaround times and prices will apply: 4.1. Intra-Manco Switch: Funds will be switched out and priced on day 2; the switch into the new fund will also be priced on day 2
B175: Business Cut-off to Receive an Instruction | C175: Process the instruction | I175: The Administrator Sell or Buys Units | O175: Transaction Complete | U175: Reflect on Client Statement
B176: Before 15:30 | C176: Day 1 | I176: Day 2 | O176: Day 3 | U176: Day 4
B177: After 15:30 | C177: Day 2 | I177: Day 3 | O177: Day 4 | U177: Day 5
B179: 4.2. Inter-Manco Switch: For switches from the money market fund or call account to an external Manco, the fund will be switched out and priced on day 2, the switch into the external manager's fund will be priced on day 3. For switches from all other funds, the fund will be switched out and priced on day 2 and the switch into the external manager's fund will be priced on day 4.
B181: Business Cut-off to Receive an Instruction | C181: Process the instruction | G181: The Administrator Sell Units | K181: The Administrator Buys Units | O181: The Administrator received money and pay new manger | S181: Transaction Complete | W181: Reflect on Client Statement
B182: Before 15:30 | C182: Day 1 | G182: Day 2 | K182: Day 3 | O182: Day 4 | S182: Day 5 | W182: Day 6
B183: After 15:30 | C183: Day 2 | G183: Day 3 | K183: Day 4 | O183: Day 5 | S183: Day 6 | W183: Day 7
B185: 5. Please note: The monthly expense run takes place on the 10th of the month. In the event of the 10th being a weekend or public holiday, the expense run will take place on the next business day. The monthly annuity run takes place on the 20th of the month. In the event of the 20th being a weekend or public holiday, the annuity run will take place on the preceding business day. Switch requests received during the monthly expense run or monthly annuity run will only be processed once the run has been priced up. This will generally add up to 2 business days to the above service levels. STANLIB will not be responsible for any losses caused or damages suffered due to STANLIB being unable to meet these service levels due to unforeseeable circumstances beyond STANLIB's control. 6. Any values previously advised are only guides to the actual values of the assets being switched. 7. This instruction must be signed and dated by the legal owner, including the cessionary if ceded collaterally or a person holding a Power of Attorney or the Client's FSB licensed Financial Services Provider ("Financial adviser"). STANLIB will only accept an instruction from the Financial adviser, if the Client explicitly authorised STANLIB in writing to accept instructions from the Financial adviser. The Client understands that by authorising his/her Financial adviser to sign this instruction on his/her behalf, STANLIB will implement the instruction, whether in written or electronic format, as if it were the Client's own instruction. 8. A maximum of 12 portfolios is allowed after completion of the switch. 9. The Client confirms that neither STANLIB nor any of its representatives provided him/her with any advice and that he/she has taken particular care to consider on his/her own or with the assistance of his/her authorised I whether the switch is appropriate considering his/her unique objectives, financial situation and particular needs. 10. The Client understands that all material facts must be accurately and properly disclosed and the accuracy and completeness of all information provided by or on behalf of the Client, is the Client's own responsibility. The Client understands that no Financial adviser may request the Client to sign any written or printed form or document unless all details required to be inserted thereon by the Client or on behalf of the Client have already been inserted. 11. Multiple transactions cannot be processed simultaneously. 12. The Client understands that STANLIB is prohibited from processing any transactions on the Client's behalf (including but not limited to switches) until all documentation has been received in terms of the Financial Intelligence Centre Act, No. 38 of 2001. 13. Any capital gain realised on the disposal of a participatory interest in a collective investment scheme is subject to Capital Gains Tax (CGT). 14. The Client understands that where he/she changes FSP the consequences of such change may result in different or new fund and fees structures. This may result in an increase to the platform service charges. It is the Client's and where applicable the Client's Financial adviser's responsibility to determine the relevant fund and or charge implications. STANLIB will deduct the charges from the Client's portfolios. For further details please refer to the Fee Comparison Tool on STANLIB online.
B186: Model Portfolios 1. The Intermediary will determine the Investment Strategy applicable to the Client and the Client will be invested in a pre-determined selection of Collective Investment Portfolios selected by the Intermediary. The Client will not be entitled to alter the selection of portfolios in any way however the Client may repurchase the entire investment or a portion thereof. Any partial repurchase will result in a proportionate repurchase out of each Collective Investment Portfolio comprising the Investment Strategy 2. The Client hereby appoints Model Portfolio FSP as his/her discretionary financial service provider with effect from the date of client's signature of this form on the terms and conditions set out herein and subject to applicable legislation. Model Portfolio FSP hereby agrees to act as a discretionary financial services provider to the Client. In terms of this clause, the Client hereby confers on Model Portfolio FSP complete discretion to take such action as Model Portfolio FSP considers necessary to attain the investment objectives of the Client, namely to maximize the income on the investments of the Client over an extended period. Model Portfolio FSP may vote on behalf of the Client in respect of the Client's investment. Model Portfolio FSP as the Client's representative is authorised to enter into any agreements of the Client with any other person, financial exchange, member or regulatory body in the execution of its obligations in terms of the agreement. Model Portfolio FSP may sub-contract its responsibilities in terms if this clause to another party. 3. Where the Client terminated his mandate with the Financial Service Provider, STANLIB has the right to terminate the Client's Model Portfolio investment. 4. The Client may switch between model portfolios. The Client may switch in full or partially from the selected model investment into other funds offered on the STANLIB platform and vice versa. 5. All redemptions will be applied proportionately across the underlying funds in the selected model investment. 6. Additional investments into Model portfolios will be applied proportionately across the underlying funds in the selected model investment.
B187: Personal Share Portfolio (Available to the Classic Retirement Annuity Fund, Preservation Pension Plan, Preservation Provident Plan and Linked Life Annuity) 1. STANLIB has entered into an Investment Management agreement with SBG Securities (Pty) Ltd (a member of the JSE Ltd) to manage the Personal Share Portfolio. SBG Securities (Pty) Ltd and is hereby referred to as the Investment Manager. 2. New Business instruction: Where a fully completed and accurate instruction is received by STANLIB head office before close of business (15h30) on business day 1 (and where the relevant funds have been credited to the appropriate Nominee bank account), the instruction request to create the BDA account number will be forwarded to the Investment Manager. The purchase instruction will be forwarded to the Investment Manager within 2 business days of receiving the BDA account number. The Investment Manager has the authority to decline the opening of the account. The Client will be informed in writing of any rejections by STANLIB. The Client hereby indemnifies STANLIB and the Investment Manager against any loss of any nature which may arise should any funds, credited to a Nominee bank account, as contemplated above, be reversed for any reason. 3. Withdrawal instruction: Any withdrawals applicable to the Classic Linked Life Annuity policy will be in the form of a Death Claim and the Standard Death Claim process for Living Annuities will be followed. A payment, as determined by a court order, will be processed according to the standard payment process. Commutation thresholds are set by SARS and these thresholds will be applied when an instruction is received by STANLIB from the Client. Due to the nature of the investment, the turnaround time for claims from Personal Share Portfolios will be determined by the Investment Manager. The maximum period for settling a claim is 60 days from the point when all requirements have been met. 4. Switch instruction: Where a fully completed and accurate instruction is received by STANLIB head office before close of business on business day 1, the switch into the new portfolio will be completed and the process as followed in the New Business Process will apply. 5. Income payment: The Client must draw an income within the specified limits and the income will be paid from the nominated fund. Payments will be received from STANLIB by the 1st business day of the month according to the selected payment frequency. The payment frequency option is monthly, quarterly, bi-annually and annually. The Client has one opportunity at anniversary date to review the income level and frequency of payments. The business cut off is 5 business days before the Client's anniversary date. 6. This contract will become effective once STANLIB and the Investment Manager have accepted the application and the Investment Manager has the Client approved, and have received the investment funds. STANLIB will transfer the net investment amount to the Investment Manager as indicated on the Application Form. The Investment Manager will then invest the funds in accordance with the portfolio selected by the Client. The Investment Manager will contact the Client to verify the Personal Share Portfolio choice and disclose the Investment Manager fees. In the case of script transfers, the Client acknowledges that they are aware of the share transfer process and further acknowledge that only once the Investment Manager has received the shares in dematerialised form and provided the Administrator with a value, can the Administrator calculate the value of the investment. 7. The fees and charges levied by the Investment Manager will be: 7.1. The investment Management fee at a maximum fee of 1% per annum but may vary at the discretion of the Investment Manager. 7.2. The Investment Manager fee shall be calculated and charged as a percentage of the market value of the portfolio on a monthly basis. The fee will be firstly be deducted from the cash portion of the Personal Share Portfolio otherwise securities will be sold at the discretion of the Investment Manager. 7.3. The Investment Manager shall charge a Brokerage fee at a maximum rate of 1% per trade with the discretion of the Investment Manager to vary the charger per trade. 7.4. The Brokerage fee will be charged upon execution of the trade. 7.5. The Investment Manager undertakes to deduct from the Portfolios all Taxes, STRATE, JSE and other applicable charges. 8. The Client understands that where he/she switches to other portfolios, different or new cost structures may apply and that it is the Client's responsibility, or where applicable, that of the Client's Financial Service Provider, to determine the relevant cost structures prior to conducting a switch. 9. Reporting to the Client: The Client can obtain detailed information regarding the underlying investment of the Personal Share Portfolio directly from the Investment Manager. 10. Notional unit prices are calculated for the Personal Share Portfolio based on the values of the portfolio as received by the Investment Manager on a daily basis. 11. Unless otherwise specified through Portfolio nomination for fee deduction, STANLIB will deduct all charges from call accounts and money market portfolios first. Thereafter charges will be deducted proportionately from other portfolios. If a charger is deducted from a Personal Share Portfolio the charge will be firstly be deducted from the cash portion of the Personal Share Portfolio otherwise securities will be sold at the discretion of the Investment Manager. 12. The Client acknowledge that an investment in the Personal Share Portfolio is subject to the Investment Manager's standard business rules, procedures and service level agreement. STANLIB or the Investment Manager can provide the Investment Management agreement to the client on request. The Investment Manager will provide the Client with statements for the investment in the Personal Share Portfolio on a monthly basis. Please note that depending on expense runs and timing of the instructions there may be differences in the value provided by STANLIB or the Investment Manager.The Client acknowledges and understands that if the total investment value in the Personal Share Portfolio is less than the Investment Manager's minimum investment amount at any time during the duration of the contract, the Client may be obliged to switch 100% of the Personal Share Portfolio value if required by Investment Manager into Collective Investment Scheme Portfolios. 13. The Client agrees to pay Investment Manager the charges specified in this document. Such charges shall be calculated and charged as indicated. Investment Manager shall be entitled to increase the charges charged to the Client by giving the Client three months prior notice of such an increase.
B189: STANLIB Linked Investments Tax-Free Savings Plan 1. The STANLIB Linked Investments Tax-Free Savings Plan is governed by the Regulations in terms of section 12T of the Income Tax Act of 1962. 2. Only natural persons residing in South Africa may invest in the STANLIB Linked Investments Tax-Free Savings Plan. 3. All interest, dividends and capital gains earned in this may be automatically re-invested tax-free to accrue further interest and dividends. The plan allows a client to invest a maximum of R30 000 per year, with a maximum lifetime contribution of R500 000. The thresholds apply to the total capital contributions only per client. 4. Capital contributions in excess of the thresholds will be subject to 40% tax payable by the Client to SARS. 5. The legislated annual and lifetime contribution thresholds apply to a Client’s tax-free savings plan across all financial services providers. It is the Client’s responsibility to monitor their total contribution limits for tax-free savings plan with STANLIB Linked investments and other financial services providers. 6. Any funds withdrawn from the plan will still be regarded in the annual and lifetime contributions thresholds, as the investment limit is on gross contributions for both annual and lifetime limits. Any withdrawals made from a minor’s STANLIB Linked Investments Tax-Free Savings Plan can only be transferred into the minor’s bank account.
B191: DECLARATION
B193: I/We hereby agree to provide all documentation and information required in terms of STANLIB’s business rules and the Financial Intelligence Centre Act, No. 38 of 2001, and understand that STANLIB is prohibited from processing any transaction on my behalf until all such documentation has been provided. I/We confirm that all information provided herein is true and correct and that I have read and understood the contents of this form.
B196: SIGNATURE OF CLIENT/AUTHORISED SIGNATORY | L196: DATE | T196: - | W196: -
R197: D | S197: D | U197: M | V197: M | X197: Y | Y197: Y | Z197: Y | AA197: Y
L199: SIGNED AT
B201: SIGNATURE OF FINANCIAL ADVISER | L201: DATE | T201: - | W201: -
R202: D | S202: D | U202: M | V202: M | X202: Y | Y202: Y | Z202: Y | AA202: Y
L204: SIGNED AT

Sheet Rebalance Form (hidden)
B6: E-mail instructions@stanlib.com Facsimile 0867 277 501 or 011 448 6666
B7: Switch Form Classic Range
B9: CLIENT DETAILS
B11: ENTITY / INVESTMENT ACCOUNT NUMBER | C11: =LEFT('Proposal - R'!$J$41,1) -> 0 | D11: =MID('Proposal - R'!$J$41,2,1) ->  | E11: =MID('Proposal - R'!$J$41,3,1) ->  | F11: =MID('Proposal - R'!$J$41,4,1) ->  | G11: =MID('Proposal - R'!$J$41,5,1) ->  | H11: =MID('Proposal - R'!$J$41,6,1) ->  | I11: =MID('Proposal - R'!$J$41,7,1) ->  | J11: =MID('Proposal - R'!$J$41,8,1) ->  | K11: =MID('Proposal - R'!$J$41,9,1) ->  | L11: =MID('Proposal - R'!$J$41,10,1) ->  | M11: =MID('Proposal - R'!$J$41,11,1) ->  | N11: =MID('Proposal - R'!$J$41,12,1) ->  | O11: =MID('Proposal - R'!$J$41,13,1) ->  | P11: =MID('Proposal - R'!$J$41,14,1) ->  | Q11: =MID('Proposal - R'!$J$41,15,1) ->  | R11: =MID('Proposal - R'!$J$41,16,1) ->  | S11: =MID('Proposal - R'!$J$41,17,1) ->  | T11: =MID('Proposal - R'!$J$41,18,1) ->  | U11: =MID('Proposal - R'!$J$41,19,1) ->  | V11: =MID('Proposal - R'!$J$41,20,1) ->  | W11: =MID('Proposal - R'!$J$41,21,1) ->  | X11: =MID('Proposal - R'!$J$41,22,1) ->  | Y11: =MID('Proposal - R'!$J$41,23,1) ->  | Z11: =MID('Proposal - R'!$J$41,24,1) ->  | AA11: =MID('Proposal - R'!$J$41,25,1) -> 
B13: NAME & SURNAME / ENTITY NAME | C13: =LEFT('Proposal - R'!$J$42,1) -> 0 | D13: =MID('Proposal - R'!$J$42,2,1) ->  | E13: =MID('Proposal - R'!$J$42,3,1) ->  | F13: =MID('Proposal - R'!$J$42,4,1) ->  | G13: =MID('Proposal - R'!$J$42,5,1) ->  | H13: =MID('Proposal - R'!$J$42,6,1) ->  | I13: =MID('Proposal - R'!$J$42,7,1) ->  | J13: =MID('Proposal - R'!$J$42,8,1) ->  | K13: =MID('Proposal - R'!$J$42,9,1) ->  | L13: =MID('Proposal - R'!$J$42,10,1) ->  | M13: =MID('Proposal - R'!$J$42,11,1) ->  | N13: =MID('Proposal - R'!$J$42,12,1) ->  | O13: =MID('Proposal - R'!$J$42,13,1) ->  | P13: =MID('Proposal - R'!$J$42,14,1) ->  | Q13: =MID('Proposal - R'!$J$42,15,1) ->  | R13: =MID('Proposal - R'!$J$42,16,1) ->  | S13: =MID('Proposal - R'!$J$42,17,1) ->  | T13: =MID('Proposal - R'!$J$42,18,1) ->  | U13: =MID('Proposal - R'!$J$42,19,1) ->  | V13: =MID('Proposal - R'!$J$42,20,1) ->  | W13: =MID('Proposal - R'!$J$42,21,1) ->  | X13: =MID('Proposal - R'!$J$42,22,1) ->  | Y13: =MID('Proposal - R'!$J$42,23,1) ->  | Z13: =MID('Proposal - R'!$J$42,24,1) ->  | AA13: =MID('Proposal - R'!$J$42,25,1) -> 
B15: IDENTITY / PASSPORT NUMBER | C15: =LEFT('Proposal - R'!$J$43,1) -> 0 | D15: =MID('Proposal - R'!$J$43,2,1) ->  | E15: =MID('Proposal - R'!$J$43,3,1) ->  | F15: =MID('Proposal - R'!$J$43,4,1) ->  | G15: =MID('Proposal - R'!$J$43,5,1) ->  | H15: =MID('Proposal - R'!$J$43,6,1) ->  | I15: =MID('Proposal - R'!$J$43,7,1) ->  | J15: =MID('Proposal - R'!$J$43,8,1) ->  | K15: =MID('Proposal - R'!$J$43,9,1) ->  | L15: =MID('Proposal - R'!$J$43,10,1) ->  | M15: =MID('Proposal - R'!$J$43,11,1) ->  | N15: =MID('Proposal - R'!$J$43,12,1) ->  | O15: =MID('Proposal - R'!$J$43,13,1) ->  | P15: =MID('Proposal - R'!$J$43,14,1) ->  | Q15: =MID('Proposal - R'!$J$43,15,1) ->  | R15: =MID('Proposal - R'!$J$43,16,1) ->  | S15: =MID('Proposal - R'!$J$43,17,1) ->  | T15: =MID('Proposal - R'!$J$43,18,1) ->  | U15: =MID('Proposal - R'!$J$43,19,1) ->  | V15: =MID('Proposal - R'!$J$43,20,1) ->  | W15: =MID('Proposal - R'!$J$43,21,1) ->  | X15: =MID('Proposal - R'!$J$43,22,1) ->  | Y15: =MID('Proposal - R'!$J$43,23,1) ->  | Z15: =MID('Proposal - R'!$J$43,24,1) ->  | AA15: =MID('Proposal - R'!$J$43,25,1) -> 
B17: CELL PHONE NUMBER | C17: =LEFT('Proposal - R'!$J$46,1) -> 0 | D17: =MID('Proposal - R'!$J$46,2,1) ->  | E17: =MID('Proposal - R'!$J$46,3,1) ->  | G17: =MID('Proposal - R'!$J$46,4,1) ->  | H17: =MID('Proposal - R'!$J$46,5,1) ->  | I17: =MID('Proposal - R'!$J$46,6,1) ->  | J17: =MID('Proposal - R'!$J$46,7,1) ->  | K17: =MID('Proposal - R'!$J$46,8,1) ->  | L17: =MID('Proposal - R'!$J$46,9,1) ->  | M17: =MID('Proposal - R'!$J$46,10,1) -> 
B20: CLIENT DETAILS
B22: INSTRUCTION TYPE | D22: SWITCH | J22: X | K22: REBALANCE
B25: REBALANCE INSTRUCTION:
B27: Rebalance refers to the process of re-aligning the weightings of your investment portfolios. This involves the buying or selling of assets in your investment to obtain the desired level of asset allocation. Please indicate your new portfolio selection and the weighting for each portfolio.
B30: Portfolio Name | I30: Portfolio Range (e.g. Linked Range, Select) | Q30: Percentage
B31: =CONCATENATE("1. ",TEXT(Rebalance!G52,"")) -> 1. | I31: =IF(Rebalance!M52="","",Rebalance!M52) ->  | Q31: =IF(Rebalance!K52="","",Rebalance!K52) -> 
B32: =CONCATENATE("2. ",TEXT(Rebalance!G53,"")) -> 2. | I32: =IF(Rebalance!M53="","",Rebalance!M53) ->  | Q32: =IF(Rebalance!K53="","",Rebalance!K53) -> 
B33: =CONCATENATE("3. ",TEXT(Rebalance!G54,"")) -> 3. | I33: =IF(Rebalance!M54="","",Rebalance!M54) ->  | Q33: =IF(Rebalance!K54="","",Rebalance!K54) -> 
B34: =CONCATENATE("4. ",TEXT(Rebalance!G55,"")) -> 4. | I34: =IF(Rebalance!M55="","",Rebalance!M55) ->  | Q34: =IF(Rebalance!K55="","",Rebalance!K55) -> 
B35: =CONCATENATE("5. ",TEXT(Rebalance!G56,"")) -> 5. | I35: =IF(Rebalance!M56="","",Rebalance!M56) ->  | Q35: =IF(Rebalance!K56="","",Rebalance!K56) -> 
B36: =CONCATENATE("6. ",TEXT(Rebalance!G57,"")) -> 6. | I36: =IF(Rebalance!M57="","",Rebalance!M57) ->  | Q36: =IF(Rebalance!K57="","",Rebalance!K57) -> 
B37: =CONCATENATE("7. ",TEXT(Rebalance!G58,"")) -> 7. | I37: =IF(Rebalance!M58="","",Rebalance!M58) ->  | Q37: =IF(Rebalance!K58="","",Rebalance!K58) -> 
B38: =CONCATENATE("8. ",TEXT(Rebalance!G59,"")) -> 8. | I38: =IF(Rebalance!M59="","",Rebalance!M59) ->  | Q38: =IF(Rebalance!K59="","",Rebalance!K59) -> 
B39: =CONCATENATE("9. ",TEXT(Rebalance!G60,"")) -> 9. | I39: =IF(Rebalance!M60="","",Rebalance!M60) ->  | Q39: =IF(Rebalance!K60="","",Rebalance!K60) -> 
B40: =CONCATENATE("10. ",TEXT(Rebalance!G61,"")) -> 10. | I40: =IF(Rebalance!M61="","",Rebalance!M61) ->  | Q40: =IF(Rebalance!K61="","",Rebalance!K61) -> 
B41: =CONCATENATE("11. ",TEXT(Rebalance!G62,"")) -> 11. | I41: =IF(Rebalance!M62="","",Rebalance!M62) ->  | Q41: =IF(Rebalance!K62="","",Rebalance!K62) -> 
B42: =CONCATENATE("12. ",TEXT(Rebalance!G63,"")) -> 12. | I42: =IF(Rebalance!M63="","",Rebalance!M63) ->  | Q42: =IF(Rebalance!K63="","",Rebalance!K63) -> 
B43: =CONCATENATE("13. ",TEXT(Rebalance!G64,"")) -> 13. | I43: =IF(Rebalance!M64="","",Rebalance!M64) ->  | Q43: =IF(Rebalance!K64="","",Rebalance!K64) ->  | U43: =IF(Instructions!J74="","",Instructions!J74) -> 
B44: =CONCATENATE("14. ",TEXT(Rebalance!G65,"")) -> 14. | I44: =IF(Rebalance!M65="","",Rebalance!M65) ->  | Q44: =IF(Rebalance!K65="","",Rebalance!K65) ->  | U44: =IF(Instructions!J75="","",Instructions!J75) -> 
B45: =CONCATENATE("15. ",TEXT(Rebalance!G66,"")) -> 15. | I45: =IF(Rebalance!M66="","",Rebalance!M66) ->  | Q45: =IF(Rebalance!K66="","",Rebalance!K66) ->  | U45: =IF(Instructions!J76="","",Instructions!J76) -> 
B46: TOTAL | Q46: =SUM(Q31:T45) -> 0
B48: SWITCH FROM:
B50: Portfolio Name | I50: Portfolio Range (e.g. Linked Range, Select) | Q50: Percentage | U50: Amount
B51: 1. | Q51: % | U51: R
B52: 2. | Q52: % | U52: R
B53: 3. | Q53: % | U53: R
B54: 4. | Q54: % | U54: R
B55: 5. | Q55: % | U55: R
B56: 6. | Q56: % | U56: R
B57: 7. | Q57: % | U57: R
B58: 8. | Q58: % | U58: R
B59: 9. | Q59: % | U59: R
B60: 10. | Q60: % | U60: R
B61: 11. | Q61: % | U61: R
B62: 12. | Q62: % | U62: R
B63: TOTAL | Q63: % | U63: R
B65: SWITCH TO:
B67: Portfolio Name | I67: Portfolio Range (e.g. Linked Range, Select) | Q67: Percentage | U67: Amount
B68: 1. | Q68: % | U68: R
B69: 2. | Q69: % | U69: R
B70: 3. | Q70: % | U70: R
B71: 4. | Q71: % | U71: R
B72: 5. | Q72: % | U72: R
B73: 6. | Q73: % | U73: R
B74: 7. | Q74: % | U74: R
B75: 8. | Q75: % | U75: R
B76: 9. | Q76: % | U76: R
B77: 10. | Q77: % | U77: R
B78: 11. | Q78: % | U78: R
B79: 12. | Q79: % | U79: R
B80: TOTAL | Q80: % | U80: R
B82: PHASE-IN INSTRUCTION
B84: Change the portfolio selection for the existing Unit trust funds as indicated below. If the table is left blank, the existing portfolio on record will remain unchanged. Phase-in's are only available for Unit Trust funds and at inception stage.
B87: CHANGE PHASE-IN | D87: YES | K87: NO
B90: Portfolio Name | I90: Portfolio Range (e.g. Linked Range, Select) | Q90: Percentage | U90: Amount
B91: 1. | Q91: % | U91: R
B92: 2. | Q92: % | U92: R
B93: 3. | Q93: % | U93: R
B94: 4. | Q94: % | U94: R
B95: 5. | Q95: % | U95: R
B96: 6. | Q96: % | U96: R
B97: 7. | Q97: % | U97: R
B98: 8. | Q98: % | U98: R
B99: 9. | Q99: % | U99: R
B100: 10. | Q100: % | U100: R
B101: 11. | Q101: % | U101: R
B102: 12. | Q102: % | U102: R
B104: DEBIT ORDER INSTRUCTION
B106: Change the portfolio selection for the existing Unit trust funds as indicated below. If the table is left blank, the existing portfolio on record will remain unchanged. The product minimum recurring debit order amounts must be met: R1 000 for the Classic Investment Plan with a minimum of R500 per portfolio; R500 per portfolio on the Classic Retirement Annuity Plan.
B109: CHANGE DEBIT ORDERS | D109: YES | K109: NO
B112: Portfolio Name | I112: Portfolio Range (e.g. Linked Range, Select) | Q112: Percentage | U112: Amount
B113: 1. | Q113: % | U113: R
B114: 2. | Q114: % | U114: R
B115: 3. | Q115: % | U115: R
B116: 4. | Q116: % | U116: R
B117: 5. | Q117: % | U117: R
B118: 6. | Q118: % | U118: R
B119: 7. | Q119: % | U119: R
B120: 8. | Q120: % | U120: R
B121: 9. | Q121: % | U121: R
B122: 10. | Q122: % | U122: R
B123: 11. | Q123: % | U123: R
B124: 12. | Q124: % | U124: R
B126: TERMS AND CONDITIONS
B128: 1. The terms and conditions signed and agreed to in the Investment Application form will remain in force and apply to this transaction. Refer to your Investment application form for the detail for the detailed terms and conditions. Alternatively you can request a copy of the terms and conditions from your Financial adviser or the Contact Centre on 0860 123 0032. "2. Where the terms and conditions contained in this form contradict the terms and conditions in the application form signed by the client, the terms and conditions contained in this switch form will apply. 3. Some of the terms and conditions are set out in the Investment Application Form and the remainder is set out in this Switch form. The Client agrees to be bound by the terms and conditions as set out in the Investment Application Form as well as those set out in this form. In the event of a conflict between the terms and conditions in the Investment Application Form and the terms and conditions contained in this Switch Form, the terms and conditions in this form will apply. 4. Where a fully completed and accurate instruction is received by STANLIB head office before close of business on business day 1. The following switching turnaround times and prices will apply: 4.1. Intra-Manco Switch: Funds will be switched out and priced on day 2; the switch into the new fund will also be priced on day 2. 4.2. Inter-Manco Switch: For switches from the money market fund or call account to an external Manco, the fund will be switched out and priced on day 2, the switch into the external manager’s fund will be priced on day 3. For switches from all other funds, the fund will be switched out and priced on day 2 and the switch into the external manager’s fund will be priced on day 4. 5. Please note: The monthly expense run takes place on the 10th of the month. In the event of the 10th being a weekend or public holiday, the expense run will take place on the next business day. The monthly annuity run takes place on the 22nd of the month. In the event of the 22nd being a weekend or public holiday, the annuity run will take place on the preceding business day. Switch requests received during the monthly expense run or monthly annuity run will only be processed once the run has been priced up. This will generally add up to 2 business days to the above service levels. STANLIB will not be responsible for any losses caused or damages suffered due to STANLIB being unable to meet these service levels due to unforeseeable circumstances beyond STANLIB's control. 6. Any values previously advised are only guides to the actual values of the assets being switched. 7. This instruction must be signed and dated by the legal owner, including the cessionary if ceded collaterally or a person holding a Power of Attorney or the Client's FSB licensed Financial Services Provider (“Financial adviser”). STANLIB will only accept an instruction from the Financial adviser, if the Client explicitly authorised STANLIB in writing to accept instructions from the Financial adviser." | M128: "The Client understands that by authorising his/her Financial adviser to sign this instruction on his/her behalf, STANLIB will implement the instruction, whether in written or electronic format, as if it were the Client's own instruction. 8. The Client understands that where he/she switches to other portfolios and / or platform,different or new charge structures could apply and that it is the Client's responsibility, or where applicable that of the Client's Financial adviser, to determine the relevant charge structures prior to conducting the switch. A Collective Investment Manager Charge (usually 0,25%) may be charged when switching between Collective Investment Scheme Managers and/or different asset classes. Should the Client switch into an offshore STANLIB Funds Limited portfolio, a service charge of 1% and an annual foreign currency charge of 0,48% will be levied (no VAT is payable). Please refer to www.stanlib.com for a complete list of the underlying portfolio and / or platform charges. 9. A maximum of 12 portfolios is allowed after completion of the switch. 10. The Client confirms that neither STANLIB nor any of its representatives provided him/her with any advice and that he/she has taken particular care to consider on his/her own or with the assistance of his/her authorised I whether the switch is appropriate considering his/her unique objectives, financial situation and particular needs. 11. The Client understands that all material facts must be accurately and properly disclosed and the accuracy and completeness of all information provided by or on behalf of the Client, is the Client's own responsibility. The Client understands that no Financial adviser may request the Client to sign any written or printed form or document unless all details required to be inserted thereon by the Client or on behalf of the Client have already been inserted. 12. Multiple transactions cannot be processed simultaneously. 13. The Client understands that STANLIB is prohibited from processing any transactions on the Client’s behalf (including but not limited to switches) until all documentation has been received in terms of the Financial Intelligence Centre Act, No. 38 of 2001. 14. Any capital gain realised on the disposal of a participatory interest in a collective investment scheme is subject to Capital Gains Tax (CGT). 15. The Client understands that where he/she changes FSP the consequences of such change may result in different or new fund and fees structures. This may result in an increase to the platform service charges. It is the Client’s and where applicable the Client’s Financial adviser’s responsibility to determine the relevant fund and or charge implications. STANLIB will deduct the charges from the Client’s portfolios. For further details please refer to the Fee Comparison Tool on STANLIB online."
B130: DECLARATION
B132: I/We hereby agree to provide all documentation and information required in terms of STANLIB’s business rules and the Financial Intelligence Centre Act, No. 38 of 2001, and understand that STANLIB is prohibited from processing any transaction on my behalf until all such documentation has been provided. I/We confirm that all information provided herein is true and correct and that I have read and understood the contents of this form.
B135: SIGNATURE OF CLIENT/AUTHORISED SIGNATORY | L135: DATE | T135: - | W135: -
R136: D | S136: D | U136: M | V136: M | X136: Y | Y136: Y | Z136: Y | AA136: Y
L138: SIGNED AT
B140: SIGNATURE OF FINANCIAL ADVISER | L140: DATE | T140: - | W140: -
R141: D | S141: D | U141: M | V141: M | X141: Y | Y141: Y | Z141: Y | AA141: Y
L143: SIGNED AT

Sheet Switch Form New
B6: E-mail lispinstructions@stanlib.com Facsimile 0867 277 516
B7: Switch Form Linked Investments
B9: CLIENT DETAILS
B11: INVESTMENT NUMBER | C11: =LEFT('Proposal - S'!$J$41,1) -> 0 | D11: =MID('Proposal - S'!$J$41,2,1) ->  | E11: =MID('Proposal - S'!$J$41,3,1) ->  | F11: =MID('Proposal - S'!$J$41,4,1) ->  | G11: =MID('Proposal - S'!$J$41,5,1) ->  | H11: =MID('Proposal - S'!$J$41,6,1) ->  | I11: =MID('Proposal - S'!$J$41,7,1) ->  | J11: =MID('Proposal - S'!$J$41,8,1) ->  | K11: =MID('Proposal - S'!$J$41,9,1) ->  | L11: =MID('Proposal - S'!$J$41,10,1) ->  | M11: =MID('Proposal - S'!$J$41,11,1) ->  | N11: =MID('Proposal - S'!$J$41,12,1) ->  | O11: =MID('Proposal - S'!$J$41,13,1) ->  | P11: =MID('Proposal - S'!$J$41,14,1) ->  | Q11: =MID('Proposal - S'!$J$41,15,1) ->  | R11: =MID('Proposal - S'!$J$41,16,1) ->  | S11: =MID('Proposal - S'!$J$41,17,1) ->  | T11: =MID('Proposal - S'!$J$41,18,1) ->  | U11: =MID('Proposal - S'!$J$41,19,1) ->  | V11: =MID('Proposal - S'!$J$41,20,1) ->  | W11: =MID('Proposal - S'!$J$41,21,1) ->  | X11: =MID('Proposal - S'!$J$41,22,1) ->  | Y11: =MID('Proposal - S'!$J$41,23,1) ->  | Z11: =MID('Proposal - S'!$J$41,24,1) ->  | AA11: =MID('Proposal - S'!$J$41,25,1) -> 
B13: NAME & SURNAME / ENTITY NAME | C13: =LEFT('Proposal - S'!$J$42,1) -> 0 | D13: =MID('Proposal - S'!$J$42,2,1) ->  | E13: =MID('Proposal - S'!$J$42,3,1) ->  | F13: =MID('Proposal - S'!$J$42,4,1) ->  | G13: =MID('Proposal - S'!$J$42,5,1) ->  | H13: =MID('Proposal - S'!$J$42,6,1) ->  | I13: =MID('Proposal - S'!$J$42,7,1) ->  | J13: =MID('Proposal - S'!$J$42,8,1) ->  | K13: =MID('Proposal - S'!$J$42,9,1) ->  | L13: =MID('Proposal - S'!$J$42,10,1) ->  | M13: =MID('Proposal - S'!$J$42,11,1) ->  | N13: =MID('Proposal - S'!$J$42,12,1) ->  | O13: =MID('Proposal - S'!$J$42,13,1) ->  | P13: =MID('Proposal - S'!$J$42,14,1) ->  | Q13: =MID('Proposal - S'!$J$42,15,1) ->  | R13: =MID('Proposal - S'!$J$42,16,1) ->  | S13: =MID('Proposal - S'!$J$42,17,1) ->  | T13: =MID('Proposal - S'!$J$42,18,1) ->  | U13: =MID('Proposal - S'!$J$42,19,1) ->  | V13: =MID('Proposal - S'!$J$42,20,1) ->  | W13: =MID('Proposal - S'!$J$42,21,1) ->  | X13: =MID('Proposal - S'!$J$42,22,1) ->  | Y13: =MID('Proposal - S'!$J$42,23,1) ->  | Z13: =MID('Proposal - S'!$J$42,24,1) ->  | AA13: =MID('Proposal - S'!$J$42,25,1) -> 
B15: IDENTITY / PASSPORT NUMBER | C15: =LEFT('Proposal - S'!$J$43,1) -> 0 | D15: =MID('Proposal - S'!$J$43,2,1) ->  | E15: =MID('Proposal - S'!$J$43,3,1) ->  | F15: =MID('Proposal - S'!$J$43,4,1) ->  | G15: =MID('Proposal - S'!$J$43,5,1) ->  | H15: =MID('Proposal - S'!$J$43,6,1) ->  | I15: =MID('Proposal - S'!$J$43,7,1) ->  | J15: =MID('Proposal - S'!$J$43,8,1) ->  | K15: =MID('Proposal - S'!$J$43,9,1) ->  | L15: =MID('Proposal - S'!$J$43,10,1) ->  | M15: =MID('Proposal - S'!$J$43,11,1) ->  | N15: =MID('Proposal - S'!$J$43,12,1) ->  | O15: =MID('Proposal - S'!$J$43,13,1) ->  | P15: =MID('Proposal - S'!$J$43,14,1) ->  | Q15: =MID('Proposal - S'!$J$43,15,1) ->  | R15: =MID('Proposal - S'!$J$43,16,1) ->  | S15: =MID('Proposal - S'!$J$43,17,1) ->  | T15: =MID('Proposal - S'!$J$43,18,1) ->  | U15: =MID('Proposal - S'!$J$43,19,1) ->  | V15: =MID('Proposal - S'!$J$43,20,1) ->  | W15: =MID('Proposal - S'!$J$43,21,1) ->  | X15: =MID('Proposal - S'!$J$43,22,1) ->  | Y15: =MID('Proposal - S'!$J$43,23,1) ->  | Z15: =MID('Proposal - S'!$J$43,24,1) ->  | AA15: =MID('Proposal - S'!$J$43,25,1) -> 
B17: CELL PHONE NUMBER | C17: =LEFT('Proposal - S'!$J$46,1) -> 0 | D17: =MID('Proposal - S'!$J$46,2,1) ->  | E17: =MID('Proposal - S'!$J$46,3,1) ->  | G17: =MID('Proposal - S'!$J$46,4,1) ->  | H17: =MID('Proposal - S'!$J$46,5,1) ->  | I17: =MID('Proposal - S'!$J$46,6,1) ->  | J17: =MID('Proposal - S'!$J$46,7,1) ->  | K17: =MID('Proposal - S'!$J$46,8,1) ->  | L17: =MID('Proposal - S'!$J$46,9,1) ->  | M17: =MID('Proposal - S'!$J$46,10,1) -> 
B20: INSTRUCTION
B22: INSTRUCTION TYPE | C22: X | D22: SWITCH | K22: REBALANCE
B25: REBALANCE INSTRUCTION:
B27: Rebalance refers to the process of re-aligning the weightings of your investment portfolios. This involves the buying or selling of assets in your investment to obtain the desired level of asset allocation. Please indicate your new portfolio selection and the weighting for each portfolio.
B30: Portfolio Name | Q30: Percentage
B31: 1. | Q31: %
B32: 2. | Q32: %
B33: 3. | Q33: %
B34: 4. | Q34: %
B35: 5. | Q35: %
B36: 6. | Q36: %
B37: 7. | Q37: %
B38: 8. | Q38: %
B39: 9. | Q39: %
B40: 10. | Q40: %
B41: 11. | Q41: %
B42: 12. | Q42: %
B43: TOTAL | Q43: %
B45: SWITCH FROM:
B47: Portfolio Name | Q47: Percentage | U47: Amount
B48: =CONCATENATE("1. ",TEXT(Switch!G26,"")) -> 1. | I48: =IF(Switch!W26="","",Switch!W26) ->  | Q48: =IF(Switch!U26="","",Switch!U26) ->  | U48: =IF(Switch!V26="","",Switch!V26) -> 0
B49: =CONCATENATE("2. ",TEXT(Switch!G27,"")) -> 2. | I49: =IF(Switch!W27="","",Switch!W27) ->  | Q49: =IF(Switch!U27="","",Switch!U27) ->  | U49: =IF(Switch!V27="","",Switch!V27) -> 0
B50: =CONCATENATE("3. ",TEXT(Switch!G28,"")) -> 3. | I50: =IF(Switch!W28="","",Switch!W28) ->  | Q50: =IF(Switch!U28="","",Switch!U28) ->  | U50: =IF(Switch!V28="","",Switch!V28) -> 0
B51: =CONCATENATE("4. ",TEXT(Switch!G29,"")) -> 4. | I51: =IF(Switch!W29="","",Switch!W29) ->  | Q51: =IF(Switch!U29="","",Switch!U29) ->  | U51: =IF(Switch!V29="","",Switch!V29) -> 0
B52: =CONCATENATE("5. ",TEXT(Switch!G30,"")) -> 5. | I52: =IF(Switch!W30="","",Switch!W30) ->  | Q52: =IF(Switch!U30="","",Switch!U30) ->  | U52: =IF(Switch!V30="","",Switch!V30) -> 0
B53: =CONCATENATE("6. ",TEXT(Switch!G31,"")) -> 6. | I53: =IF(Switch!W31="","",Switch!W31) ->  | Q53: =IF(Switch!U31="","",Switch!U31) ->  | U53: =IF(Switch!V31="","",Switch!V31) -> 0
B54: =CONCATENATE("7. ",TEXT(Switch!G32,"")) -> 7. | I54: =IF(Switch!W32="","",Switch!W32) ->  | Q54: =IF(Switch!U32="","",Switch!U32) ->  | U54: =IF(Switch!V32="","",Switch!V32) -> 0
B55: =CONCATENATE("8. ",TEXT(Switch!G33,"")) -> 8. | I55: =IF(Switch!W33="","",Switch!W33) ->  | Q55: =IF(Switch!U33="","",Switch!U33) ->  | U55: =IF(Switch!V33="","",Switch!V33) -> 0
B56: =CONCATENATE("9. ",TEXT(Switch!G34,"")) -> 9. | I56: =IF(Switch!W34="","",Switch!W34) ->  | Q56: =IF(Switch!U34="","",Switch!U34) ->  | U56: =IF(Switch!V34="","",Switch!V34) -> 0
B57: =CONCATENATE("10. ",TEXT(Switch!G35,"")) -> 10. | I57: =IF(Switch!W35="","",Switch!W35) ->  | Q57: =IF(Switch!U35="","",Switch!U35) ->  | U57: =IF(Switch!V35="","",Switch!V35) -> 0
B58: =CONCATENATE("11. ",TEXT(Switch!G36,"")) -> 11. | I58: =IF(Switch!W36="","",Switch!W36) ->  | Q58: =IF(Switch!U36="","",Switch!U36) ->  | U58: =IF(Switch!V36="","",Switch!V36) -> 0
B59: =CONCATENATE("12. ",TEXT(Switch!G37,"")) -> 12. | I59: =IF(Switch!W37="","",Switch!W37) ->  | Q59: =IF(Switch!U37="","",Switch!U37) ->  | U59: =IF(Switch!V37="","",Switch!V37) -> 0
B60: =CONCATENATE("13. ",TEXT(Switch!G38,"")) -> 13. | I60: =IF(Switch!W38="","",Switch!W38) ->  | Q60: =IF(Switch!U38="","",Switch!U38) ->  | U60: =IF(Switch!V38="","",Switch!V38) -> 0
B61: =CONCATENATE("14. ",TEXT(Switch!G39,"")) -> 14. | I61: =IF(Switch!W39="","",Switch!W39) ->  | Q61: =IF(Switch!U39="","",Switch!U39) ->  | U61: =IF(Switch!V39="","",Switch!V39) -> 0
B62: =CONCATENATE("15. ",TEXT(Switch!G40,"")) -> 15. | I62: =IF(Switch!W40="","",Switch!W40) ->  | Q62: =IF(Switch!U40="","",Switch!U40) ->  | U62: =IF(Switch!V40="","",Switch!V40) -> 0
B63: TOTAL | U63: =SUM(U48:AA62) -> 0
B65: SWITCH TO:
B67: Where the Client has chosen a portfolio but the Portfolio Range was left blank, the Linked Range will be applied. If the Portfolio Range selected is not offered on the Linked Range, then the Select Portfolio Range will apply. Visit www.stanlib.com for a complete list of our portfolio ranges.
B68: Portfolio Name | Q68: Percentage | U68: Amount
B69: =CONCATENATE("1. ",TEXT(Switch!G52,"")) -> 1. | I69: =IF(Switch!M52="","",Switch!M52) ->  | Q69: =IF(Switch!K52="","",Switch!K52) ->  | U69: =IF(Instructions!J62="","",Instructions!J62) -> 
B70: =CONCATENATE("2. ",TEXT(Switch!G53,"")) -> 2. | I70: =IF(Switch!M53="","",Switch!M53) ->  | Q70: =IF(Switch!K53="","",Switch!K53) ->  | U70: =IF(Instructions!J63="","",Instructions!J63) -> 
B71: =CONCATENATE("3. ",TEXT(Switch!G54,"")) -> 3. | I71: =IF(Switch!M54="","",Switch!M54) ->  | Q71: =IF(Switch!K54="","",Switch!K54) ->  | U71: =IF(Instructions!J64="","",Instructions!J64) -> 
B72: =CONCATENATE("4. ",TEXT(Switch!G55,"")) -> 4. | I72: =IF(Switch!M55="","",Switch!M55) ->  | Q72: =IF(Switch!K55="","",Switch!K55) ->  | U72: =IF(Instructions!J65="","",Instructions!J65) -> 
B73: =CONCATENATE("5. ",TEXT(Switch!G56,"")) -> 5. | I73: =IF(Switch!M56="","",Switch!M56) ->  | Q73: =IF(Switch!K56="","",Switch!K56) ->  | U73: =IF(Instructions!J66="","",Instructions!J66) -> 
B74: =CONCATENATE("6. ",TEXT(Switch!G57,"")) -> 6. | I74: =IF(Switch!M57="","",Switch!M57) ->  | Q74: =IF(Switch!K57="","",Switch!K57) ->  | U74: =IF(Instructions!J67="","",Instructions!J67) -> 
B75: =CONCATENATE("7. ",TEXT(Switch!G58,"")) -> 7. | I75: =IF(Switch!M58="","",Switch!M58) ->  | Q75: =IF(Switch!K58="","",Switch!K58) ->  | U75: =IF(Instructions!J68="","",Instructions!J68) -> 
B76: =CONCATENATE("8. ",TEXT(Switch!G59,"")) -> 8. | I76: =IF(Switch!M59="","",Switch!M59) ->  | Q76: =IF(Switch!K59="","",Switch!K59) ->  | U76: =IF(Instructions!J69="","",Instructions!J69) -> 
B77: =CONCATENATE("9. ",TEXT(Switch!G60,"")) -> 9. | I77: =IF(Switch!M60="","",Switch!M60) ->  | Q77: =IF(Switch!K60="","",Switch!K60) ->  | U77: =IF(Instructions!J70="","",Instructions!J70) -> 
B78: =CONCATENATE("10. ",TEXT(Switch!G61,"")) -> 10. | I78: =IF(Switch!M61="","",Switch!M61) ->  | Q78: =IF(Switch!K61="","",Switch!K61) ->  | U78: =IF(Instructions!J71="","",Instructions!J71) -> 
B79: =CONCATENATE("11. ",TEXT(Switch!G62,"")) -> 11. | I79: =IF(Switch!M62="","",Switch!M62) ->  | Q79: =IF(Switch!K62="","",Switch!K62) ->  | U79: =IF(Instructions!J72="","",Instructions!J72) -> 
B80: =CONCATENATE("12. ",TEXT(Switch!G63,"")) -> 12. | I80: =IF(Switch!M63="","",Switch!M63) ->  | Q80: =IF(Switch!K63="","",Switch!K63) ->  | U80: =IF(Instructions!J73="","",Instructions!J73) -> 
B81: =CONCATENATE("13. ",TEXT(Switch!G64,"")) -> 13. | I81: =IF(Switch!M64="","",Switch!M64) ->  | Q81: =IF(Switch!K64="","",Switch!K64) ->  | U81: =IF(Instructions!J74="","",Instructions!J74) -> 
B82: =CONCATENATE("14. ",TEXT(Switch!G65,"")) -> 14. | I82: =IF(Switch!M65="","",Switch!M65) ->  | Q82: =IF(Switch!K65="","",Switch!K65) ->  | U82: =IF(Instructions!J75="","",Instructions!J75) -> 
B83: =CONCATENATE("15. ",TEXT(Switch!G66,"")) -> 15. | I83: =IF(Switch!M66="","",Switch!M66) ->  | Q83: =IF(Switch!K66="","",Switch!K66) ->  | U83: =IF(Instructions!J76="","",Instructions!J76) -> 
B84: TOTAL | Q84: =SUM(Q69:T83) -> 0 | U84: =SUM(U69:AA83) -> 0
B86: DEBIT ORDER INSTRUCTION
B88: Change the portfolio selection for the existing Unit trust funds as indicated below. If the table is left blank, the existing portfolio on record will remain unchanged.
B91: CHANGE DEBIT ORDERS AS PER SWITCH / REBALANCE INSTRUCTION | J91: YES | R91: NO
B94: Portfolio Name | Q94: Percentage | U94: Amount
B95: 1. | Q95: % | U95: R
B96: 2. | Q96: % | U96: R
B97: 3. | Q97: % | U97: R
B98: 4. | Q98: % | U98: R
B99: 5. | Q99: % | U99: R
B100: 6. | Q100: % | U100: R
B101: 7. | Q101: % | U101: R
B102: 8. | Q102: % | U102: R
B103: 9. | Q103: % | U103: R
B104: 10. | Q104: % | U104: R
B105: 11. | Q105: % | U105: R
B106: 12. | Q106: % | U106: R
B108: PHASE-IN INSTRUCTION
B110: Change the portfolio selection for the existing Unit trust funds as indicated below. If the table is left blank, the existing portfolio on record will remain unchanged. Phase-in's are only available for Unit Trust funds and at inception stage.
B113: CHANGE PHASE-IN AS PER SWITCH / REBALANCE INSTRUCTION | J113: YES | R113: NO
B116: Portfolio Name | Q116: Percentage | U116: Amount
B117: 1. | Q117: % | U117: R
B118: 2. | Q118: % | U118: R
B119: 3. | Q119: % | U119: R
B120: 4. | Q120: % | U120: R
B121: 5. | Q121: % | U121: R
B122: 6. | Q122: % | U122: R
B123: 7. | Q123: % | U123: R
B124: 8. | Q124: % | U124: R
B125: 9. | Q125: % | U125: R
B126: 10. | Q126: % | U126: R
B127: 11. | Q127: % | U127: R
B128: 12. | Q128: % | U128: R
B130: PORTFOLIO NOMINATION FOR FEE DEDUCTION
B132: STANLIB allows you to select a specific portfolio/s for the deduction of fees. If you have not selected a specific portfolio/s, STANLIB will deduct fees from Call accounts and Money Market portfolios first. Thereafter, fees will be deducted proportionately from Unit Trust portfolios, then Model Portfolios and lastly Personal Share Portfolios. If a portfolio/s is selected below, all fees will be deducted from this portfolio until the portfolio is depleted. If multiple portfolios are selected, the fees will be deducted proportionately across these portfolios until the portfolios are depleted. Thereafter the default fee deduction rules will apply.
B133: Portfolio Name
B140: PORTFOLIO NOMINATION FOR INCOME DEDUCTION
B142: STANLIB allows you to select a specific portfolio/s from which to pay your regular income. If you have not selected a specific portfolio/s, STANLIB will pay your income from Call accounts and Money Market portfolios first. Thereafter, income will be paid proportionately from other portfolios in your investment. If a portfolio/s is selected below, all income will be paid from this portfolio/s until the portfolio/s is depleted. Thereafter the default fee deduction rules will apply
B143: Portfolio Name
B150: APPOINTMENT OF MODEL PORTFOLIO FINANCIAL SERVICES PROVIDER
B152: Complete one of the sections below to indicate the appointment of a discretionary Financial Service Provider to manage your Model portfolio selection
B154: A. APPOINTMENT OF STANLIB AS THE MODEL MANAGER
B155: 1. The Client hereby appoints STANLIB as his/her discretionary financial service provider with effect from the date of client’s signature of this form on the terms and conditions set out herein and subject to applicable legislation. STANLIB hereby agrees to act as a discretionary financial services provider to the Client. In terms of this clause, the Client hereby confers on STANLIB complete discretion to take such action as STANLIB considers necessary to attain the investment objectives of the Client, namely to maximize the income on the investments of the Client over an extended period. STANLIB may vote on behalf of the Client in respect of the Client’s investment. STANLIB as the Client’s representative is authorised to enter into any agreements of the Client with an other person, financial exchange, member or regulatory body in the execution of its obligations in terms of the agreement. STANLIB may sub-contract its responsibilities in terms if this clause to another party. 2. Model portfolio manager charge: STANLIB will levy a Model portfolio manager charge of ___________% This will be calculated on the last business day prior to the 10th day of each month on the market value of the model portfolio/portfolios selected by the Client. 3. Discretionary Financial Services Provider: STANLIB is an authorised Financial Services Provider in terms of section 8(5)(a)(i) of the FAIS Act and is licensed to carry on the business: 3.1. in respect of financial advisory services, financial intermediary services in the following products: Long-term Insurance: Category B1, c, B2, Retail Pension Fund Benefits, Securities and Instruments: Shares in a company other than a “share block company” as defined in the Share Blocks Control Act, 1980, Money Market instruments, Debentures and securities debt, Warrants, certificates and other instruments acknowledging, conferring or creating rights to subscribe to, acquire, dispose of, or convert securities, Bonds, Derivative instruments, Deposits as defined in the Banks Act, Participatory interests in one or more collective investment scheme, Foreign currency denominated investments instrument, including foreign currency deposit; 3.2. in respect of discretionary services in the following products: Long-term Insurance: Category B1, C, B2, Pension Fund Benefits: (Retail), Securities and Instruments: Shares in a company other than a “share block company” as defined in the Share Blocks Control Act, 1980, Money-market Instruments, Debentures and securitised debt, Warrants, certificates and other instruments acknowledging, conferring or creating rights to subscribe to, acquire, dispose of, or convert securities, Bonds, Derivative instruments, Participatory interests in one or more collective investment scheme, Foreign currency denominated investment instruments, including a foreign currency deposit, Long-term Deposits, Short-term Deposits. 3.3. in respect of administrative services in the following products: Long-term Insurance: Category B1, C, B2, Pension Fund Benefits: (Retail), Securities and Instruments: Shares in a company other than a “share block company” as defined in the Share Blocks Control Act, 1980, Money-market instruments, Debentures and securitised debt, Warrants, certificates and other instruments acknowledging, conferring or creating rights to subscribe to, acquire, dispose of, or convert securities, Bonds, Derivative instruments, Participatory interests in one or more collective investment schemes, Foreign currency denominated investment instruments, including foreign currency deposit.
B156: ACCEPTANCE OF APPOINTMENT | J156: YES | R156: NO
B158: B. OR APPOINTMENT OF EXTERNAL MODEL MANAGER
B160: NAME OF FSP / ENTITY
B162: FSP / ENTITY LICENCE NO
B164: STANLIB ID
B166: NAME OF SOLE PROPRIETOR OR REPRESENTATIVE
B168: MODEL PORTFOLIO MANAGER CHARGE | F168: %
B170: 1.The Client hereby appoints the FSP as the discretionary financial service provider with effect from the date of client’s signature of this form on the terms and conditions set out herein and subject to applicable legislation
B171: ACCEPTANCE OF APPOINTMENT | J171: YES | R171: NO
B172: TERMS AND CONDITIONS
B174: General 1. The terms and conditions signed and agreed to in the Investment Application form will remain in force and apply to this transaction. Refer to your Investment application form for the detail for the detailed terms and conditions. Alternatively you can request a copy of the terms and conditions from your Financial adviser or the Contact Centre on 0860 123 003 2. Where the terms and conditions contained in this form contradict the terms and conditions in the application form signed by the client, the terms and conditions contained in this switch form will apply. 3. Some of the terms and conditions are set out in the Investment Application Form and the remainder is set out in this Switch form. The Client agrees to be bound by the terms and conditions as set out in the Investment Application Form as well as those set out in this form. In the event of a conflict between the terms and conditions in the Investment Application Form and the terms and conditions contained in this Switch Form, the terms and conditions in this form will apply. 4. Where a fully completed and accurate instruction is received by STANLIB head office before close of business on business day 1. The following switching turnaround times and prices will apply: 4.1. Intra-Manco Switch: Funds will be switched out and priced on day 2; the switch into the new fund will also be priced on day 2
B176: Business Cut-off to Receive an Instruction | C176: Process the instruction | I176: The Administrator Sell or Buys Units | O176: Transaction Complete | U176: Reflect on Client Statement
B177: Before 15:30 | C177: Day 1 | I177: Day 2 | O177: Day 3 | U177: Day 4
B178: After 15:30 | C178: Day 2 | I178: Day 3 | O178: Day 4 | U178: Day 5
B180: 4.2. Inter-Manco Switch: For switches from the money market fund or call account to an external Manco, the fund will be switched out and priced on day 2, the switch into the external manager's fund will be priced on day 3. For switches from all other funds, the fund will be switched out and priced on day 2 and the switch into the external manager's fund will be priced on day 4.
B182: Business Cut-off to Receive an Instruction | C182: Process the instruction | G182: The Administrator Sell Units | K182: The Administrator Buys Units | O182: The Administrator received money and pay new manger | S182: Transaction Complete | W182: Reflect on Client Statement
B183: Before 15:30 | C183: Day 1 | G183: Day 2 | K183: Day 3 | O183: Day 4 | S183: Day 5 | W183: Day 6
B184: After 15:30 | C184: Day 2 | G184: Day 3 | K184: Day 4 | O184: Day 5 | S184: Day 6 | W184: Day 7
B186: 5. Please note: The monthly expense run takes place on the 10th of the month. In the event of the 10th being a weekend or public holiday, the expense run will take place on the next business day. The monthly annuity run takes place on the 20th of the month. In the event of the 20th being a weekend or public holiday, the annuity run will take place on the preceding business day. Switch requests received during the monthly expense run or monthly annuity run will only be processed once the run has been priced up. This will generally add up to 2 business days to the above service levels. STANLIB will not be responsible for any losses caused or damages suffered due to STANLIB being unable to meet these service levels due to unforeseeable circumstances beyond STANLIB's control. 6. Any values previously advised are only guides to the actual values of the assets being switched. 7. This instruction must be signed and dated by the legal owner, including the cessionary if ceded collaterally or a person holding a Power of Attorney or the Client's FSB licensed Financial Services Provider ("Financial adviser"). STANLIB will only accept an instruction from the Financial adviser, if the Client explicitly authorised STANLIB in writing to accept instructions from the Financial adviser. The Client understands that by authorising his/her Financial adviser to sign this instruction on his/her behalf, STANLIB will implement the instruction, whether in written or electronic format, as if it were the Client's own instruction. 8. A maximum of 12 portfolios is allowed after completion of the switch. 9. The Client confirms that neither STANLIB nor any of its representatives provided him/her with any advice and that he/she has taken particular care to consider on his/her own or with the assistance of his/her authorised I whether the switch is appropriate considering his/her unique objectives, financial situation and particular needs. 10. The Client understands that all material facts must be accurately and properly disclosed and the accuracy and completeness of all information provided by or on behalf of the Client, is the Client's own responsibility. The Client understands that no Financial adviser may request the Client to sign any written or printed form or document unless all details required to be inserted thereon by the Client or on behalf of the Client have already been inserted. 11. Multiple transactions cannot be processed simultaneously. 12. The Client understands that STANLIB is prohibited from processing any transactions on the Client's behalf (including but not limited to switches) until all documentation has been received in terms of the Financial Intelligence Centre Act, No. 38 of 2001. 13. Any capital gain realised on the disposal of a participatory interest in a collective investment scheme is subject to Capital Gains Tax (CGT). 14. The Client understands that where he/she changes FSP the consequences of such change may result in different or new fund and fees structures. This may result in an increase to the platform service charges. It is the Client's and where applicable the Client's Financial adviser's responsibility to determine the relevant fund and or charge implications. STANLIB will deduct the charges from the Client's portfolios. For further details please refer to the Fee Comparison Tool on STANLIB online.
B187: Model Portfolios 1. The Intermediary will determine the Investment Strategy applicable to the Client and the Client will be invested in a pre-determined selection of Collective Investment Portfolios selected by the Intermediary. The Client will not be entitled to alter the selection of portfolios in any way however the Client may repurchase the entire investment or a portion thereof. Any partial repurchase will result in a proportionate repurchase out of each Collective Investment Portfolio comprising the Investment Strategy 2. The Client hereby appoints Model Portfolio FSP as his/her discretionary financial service provider with effect from the date of client's signature of this form on the terms and conditions set out herein and subject to applicable legislation. Model Portfolio FSP hereby agrees to act as a discretionary financial services provider to the Client. In terms of this clause, the Client hereby confers on Model Portfolio FSP complete discretion to take such action as Model Portfolio FSP considers necessary to attain the investment objectives of the Client, namely to maximize the income on the investments of the Client over an extended period. Model Portfolio FSP may vote on behalf of the Client in respect of the Client's investment. Model Portfolio FSP as the Client's representative is authorised to enter into any agreements of the Client with any other person, financial exchange, member or regulatory body in the execution of its obligations in terms of the agreement. Model Portfolio FSP may sub-contract its responsibilities in terms if this clause to another party. 3. Where the Client terminated his mandate with the Financial Service Provider, STANLIB has the right to terminate the Client's Model Portfolio investment. 4. The Client may switch between model portfolios. The Client may switch in full or partially from the selected model investment into other funds offered on the STANLIB platform and vice versa. 5. All redemptions will be applied proportionately across the underlying funds in the selected model investment. 6. Additional investments into Model portfolios will be applied proportionately across the underlying funds in the selected model investment.
B188: Personal Share Portfolio (Available to the Classic Retirement Annuity Fund, Preservation Pension Plan, Preservation Provident Plan and Linked Life Annuity) 1. STANLIB has entered into an Investment Management agreement with SBG Securities (Pty) Ltd (a member of the JSE Ltd) to manage the Personal Share Portfolio. SBG Securities (Pty) Ltd and is hereby referred to as the Investment Manager. 2. New Business instruction: Where a fully completed and accurate instruction is received by STANLIB head office before close of business (15h30) on business day 1 (and where the relevant funds have been credited to the appropriate Nominee bank account), the instruction request to create the BDA account number will be forwarded to the Investment Manager. The purchase instruction will be forwarded to the Investment Manager within 2 business days of receiving the BDA account number. The Investment Manager has the authority to decline the opening of the account. The Client will be informed in writing of any rejections by STANLIB. The Client hereby indemnifies STANLIB and the Investment Manager against any loss of any nature which may arise should any funds, credited to a Nominee bank account, as contemplated above, be reversed for any reason. 3. Withdrawal instruction: Any withdrawals applicable to the Classic Linked Life Annuity policy will be in the form of a Death Claim and the Standard Death Claim process for Living Annuities will be followed. A payment, as determined by a court order, will be processed according to the standard payment process. Commutation thresholds are set by SARS and these thresholds will be applied when an instruction is received by STANLIB from the Client. Due to the nature of the investment, the turnaround time for claims from Personal Share Portfolios will be determined by the Investment Manager. The maximum period for settling a claim is 60 days from the point when all requirements have been met. 4. Switch instruction: Where a fully completed and accurate instruction is received by STANLIB head office before close of business on business day 1, the switch into the new portfolio will be completed and the process as followed in the New Business Process will apply. 5. Income payment: The Client must draw an income within the specified limits and the income will be paid from the nominated fund. Payments will be received from STANLIB by the 1st business day of the month according to the selected payment frequency. The payment frequency option is monthly, quarterly, bi-annually and annually. The Client has one opportunity at anniversary date to review the income level and frequency of payments. The business cut off is 5 business days before the Client's anniversary date. 6. This contract will become effective once STANLIB and the Investment Manager have accepted the application and the Investment Manager has the Client approved, and have received the investment funds. STANLIB will transfer the net investment amount to the Investment Manager as indicated on the Application Form. The Investment Manager will then invest the funds in accordance with the portfolio selected by the Client. The Investment Manager will contact the Client to verify the Personal Share Portfolio choice and disclose the Investment Manager fees. In the case of script transfers, the Client acknowledges that they are aware of the share transfer process and further acknowledge that only once the Investment Manager has received the shares in dematerialised form and provided the Administrator with a value, can the Administrator calculate the value of the investment. 7. The fees and charges levied by the Investment Manager will be: 7.1. The investment Management fee at a maximum fee of 1% per annum but may vary at the discretion of the Investment Manager. 7.2. The Investment Manager fee shall be calculated and charged as a percentage of the market value of the portfolio on a monthly basis. The fee will be firstly be deducted from the cash portion of the Personal Share Portfolio otherwise securities will be sold at the discretion of the Investment Manager. 7.3. The Investment Manager shall charge a Brokerage fee at a maximum rate of 1% per trade with the discretion of the Investment Manager to vary the charger per trade. 7.4. The Brokerage fee will be charged upon execution of the trade. 7.5. The Investment Manager undertakes to deduct from the Portfolios all Taxes, STRATE, JSE and other applicable charges. 8. The Client understands that where he/she switches to other portfolios, different or new cost structures may apply and that it is the Client's responsibility, or where applicable, that of the Client's Financial Service Provider, to determine the relevant cost structures prior to conducting a switch. 9. Reporting to the Client: The Client can obtain detailed information regarding the underlying investment of the Personal Share Portfolio directly from the Investment Manager. 10. Notional unit prices are calculated for the Personal Share Portfolio based on the values of the portfolio as received by the Investment Manager on a daily basis. 11. Unless otherwise specified through Portfolio nomination for fee deduction, STANLIB will deduct all charges from call accounts and money market portfolios first. Thereafter charges will be deducted proportionately from other portfolios. If a charger is deducted from a Personal Share Portfolio the charge will be firstly be deducted from the cash portion of the Personal Share Portfolio otherwise securities will be sold at the discretion of the Investment Manager. 12. The Client acknowledge that an investment in the Personal Share Portfolio is subject to the Investment Manager's standard business rules, procedures and service level agreement. STANLIB or the Investment Manager can provide the Investment Management agreement to the client on request. The Investment Manager will provide the Client with statements for the investment in the Personal Share Portfolio on a monthly basis. Please note that depending on expense runs and timing of the instructions there may be differences in the value provided by STANLIB or the Investment Manager.The Client acknowledges and understands that if the total investment value in the Personal Share Portfolio is less than the Investment Manager's minimum investment amount at any time during the duration of the contract, the Client may be obliged to switch 100% of the Personal Share Portfolio value if required by Investment Manager into Collective Investment Scheme Portfolios. 13. The Client agrees to pay Investment Manager the charges specified in this document. Such charges shall be calculated and charged as indicated. Investment Manager shall be entitled to increase the charges charged to the Client by giving the Client three months prior notice of such an increase.
B190: STANLIB Linked Investments Tax-Free Savings Plan 1. The STANLIB Linked Investments Tax-Free Savings Plan is governed by the Regulations in terms of section 12T of the Income Tax Act of 1962. 2. Only natural persons residing in South Africa may invest in the STANLIB Linked Investments Tax-Free Savings Plan. 3. All interest, dividends and capital gains earned in this may be automatically re-invested tax-free to accrue further interest and dividends. The plan allows a client to invest a maximum of R30 000 per year, with a maximum lifetime contribution of R500 000. The thresholds apply to the total capital contributions only per client. 4. Capital contributions in excess of the thresholds will be subject to 40% tax payable by the Client to SARS. 5. The legislated annual and lifetime contribution thresholds apply to a Client’s tax-free savings plan across all financial services providers. It is the Client’s responsibility to monitor their total contribution limits for tax-free savings plan with STANLIB Linked investments and other financial services providers. 6. Any funds withdrawn from the plan will still be regarded in the annual and lifetime contributions thresholds, as the investment limit is on gross contributions for both annual and lifetime limits. Any withdrawals made from a minor’s STANLIB Linked Investments Tax-Free Savings Plan can only be transferred into the minor’s bank account.
B191: DECLARATION
B193: I/We hereby agree to provide all documentation and information required in terms of STANLIB’s business rules and the Financial Intelligence Centre Act, No. 38 of 2001, and understand that STANLIB is prohibited from processing any transaction on my behalf until all such documentation has been provided. I/We confirm that all information provided herein is true and correct and that I have read and understood the contents of this form.
B196: SIGNATURE OF CLIENT/AUTHORISED SIGNATORY | L196: DATE | T196: - | W196: -
R197: D | S197: D | U197: M | V197: M | X197: Y | Y197: Y | Z197: Y | AA197: Y
L199: SIGNED AT
B201: SIGNATURE OF FINANCIAL ADVISER | L201: DATE | T201: - | W201: -
R202: D | S202: D | U202: M | V202: M | X202: Y | Y202: Y | Z202: Y | AA202: Y
L204: SIGNED AT

Sheet Switch Form Old (hidden)
B6: E-mail instructions@stanlib.com Facsimile 0867 277 501 or 011 448 6666
B7: Switch Form Classic Range
B9: CLIENT DETAILS
B11: ENTITY / INVESTMENT ACCOUNT NUMBER | C11: =LEFT('Proposal - S'!$J$41,1) -> 0 | D11: =MID('Proposal - S'!$J$41,2,1) ->  | E11: =MID('Proposal - S'!$J$41,3,1) ->  | F11: =MID('Proposal - S'!$J$41,4,1) ->  | G11: =MID('Proposal - S'!$J$41,5,1) ->  | H11: =MID('Proposal - S'!$J$41,6,1) ->  | I11: =MID('Proposal - S'!$J$41,7,1) ->  | J11: =MID('Proposal - S'!$J$41,8,1) ->  | K11: =MID('Proposal - S'!$J$41,9,1) ->  | L11: =MID('Proposal - S'!$J$41,10,1) ->  | M11: =MID('Proposal - S'!$J$41,11,1) ->  | N11: =MID('Proposal - S'!$J$41,12,1) ->  | O11: =MID('Proposal - S'!$J$41,13,1) ->  | P11: =MID('Proposal - S'!$J$41,14,1) ->  | Q11: =MID('Proposal - S'!$J$41,15,1) ->  | R11: =MID('Proposal - S'!$J$41,16,1) ->  | S11: =MID('Proposal - S'!$J$41,17,1) ->  | T11: =MID('Proposal - S'!$J$41,18,1) ->  | U11: =MID('Proposal - S'!$J$41,19,1) ->  | V11: =MID('Proposal - S'!$J$41,20,1) ->  | W11: =MID('Proposal - S'!$J$41,21,1) ->  | X11: =MID('Proposal - S'!$J$41,22,1) ->  | Y11: =MID('Proposal - S'!$J$41,23,1) ->  | Z11: =MID('Proposal - S'!$J$41,24,1) ->  | AA11: =MID('Proposal - S'!$J$41,25,1) -> 
B13: NAME & SURNAME / ENTITY NAME | C13: =LEFT('Proposal - S'!$J$42,1) -> 0 | D13: =MID('Proposal - S'!$J$42,2,1) ->  | E13: =MID('Proposal - S'!$J$42,3,1) ->  | F13: =MID('Proposal - S'!$J$42,4,1) ->  | G13: =MID('Proposal - S'!$J$42,5,1) ->  | H13: =MID('Proposal - S'!$J$42,6,1) ->  | I13: =MID('Proposal - S'!$J$42,7,1) ->  | J13: =MID('Proposal - S'!$J$42,8,1) ->  | K13: =MID('Proposal - S'!$J$42,9,1) ->  | L13: =MID('Proposal - S'!$J$42,10,1) ->  | M13: =MID('Proposal - S'!$J$42,11,1) ->  | N13: =MID('Proposal - S'!$J$42,12,1) ->  | O13: =MID('Proposal - S'!$J$42,13,1) ->  | P13: =MID('Proposal - S'!$J$42,14,1) ->  | Q13: =MID('Proposal - S'!$J$42,15,1) ->  | R13: =MID('Proposal - S'!$J$42,16,1) ->  | S13: =MID('Proposal - S'!$J$42,17,1) ->  | T13: =MID('Proposal - S'!$J$42,18,1) ->  | U13: =MID('Proposal - S'!$J$42,19,1) ->  | V13: =MID('Proposal - S'!$J$42,20,1) ->  | W13: =MID('Proposal - S'!$J$42,21,1) ->  | X13: =MID('Proposal - S'!$J$42,22,1) ->  | Y13: =MID('Proposal - S'!$J$42,23,1) ->  | Z13: =MID('Proposal - S'!$J$42,24,1) ->  | AA13: =MID('Proposal - S'!$J$42,25,1) -> 
B15: IDENTITY / PASSPORT NUMBER | C15: =LEFT('Proposal - S'!$J$43,1) -> 0 | D15: =MID('Proposal - S'!$J$43,2,1) ->  | E15: =MID('Proposal - S'!$J$43,3,1) ->  | F15: =MID('Proposal - S'!$J$43,4,1) ->  | G15: =MID('Proposal - S'!$J$43,5,1) ->  | H15: =MID('Proposal - S'!$J$43,6,1) ->  | I15: =MID('Proposal - S'!$J$43,7,1) ->  | J15: =MID('Proposal - S'!$J$43,8,1) ->  | K15: =MID('Proposal - S'!$J$43,9,1) ->  | L15: =MID('Proposal - S'!$J$43,10,1) ->  | M15: =MID('Proposal - S'!$J$43,11,1) ->  | N15: =MID('Proposal - S'!$J$43,12,1) ->  | O15: =MID('Proposal - S'!$J$43,13,1) ->  | P15: =MID('Proposal - S'!$J$43,14,1) ->  | Q15: =MID('Proposal - S'!$J$43,15,1) ->  | R15: =MID('Proposal - S'!$J$43,16,1) ->  | S15: =MID('Proposal - S'!$J$43,17,1) ->  | T15: =MID('Proposal - S'!$J$43,18,1) ->  | U15: =MID('Proposal - S'!$J$43,19,1) ->  | V15: =MID('Proposal - S'!$J$43,20,1) ->  | W15: =MID('Proposal - S'!$J$43,21,1) ->  | X15: =MID('Proposal - S'!$J$43,22,1) ->  | Y15: =MID('Proposal - S'!$J$43,23,1) ->  | Z15: =MID('Proposal - S'!$J$43,24,1) ->  | AA15: =MID('Proposal - S'!$J$43,25,1) -> 
B17: CELL PHONE NUMBER | C17: =LEFT('Proposal - S'!$J$46,1) -> 0 | D17: =MID('Proposal - S'!$J$46,2,1) ->  | E17: =MID('Proposal - S'!$J$46,3,1) ->  | G17: =MID('Proposal - S'!$J$46,4,1) ->  | H17: =MID('Proposal - S'!$J$46,5,1) ->  | I17: =MID('Proposal - S'!$J$46,6,1) ->  | J17: =MID('Proposal - S'!$J$46,7,1) ->  | K17: =MID('Proposal - S'!$J$46,8,1) ->  | L17: =MID('Proposal - S'!$J$46,9,1) ->  | M17: =MID('Proposal - S'!$J$46,10,1) -> 
B20: CLIENT DETAILS
B22: INSTRUCTION TYPE | C22: X | D22: SWITCH | K22: REBALANCE
B25: REBALANCE INSTRUCTION:
B27: Rebalance refers to the process of re-aligning the weightings of your investment portfolios. This involves the buying or selling of assets in your investment to obtain the desired level of asset allocation. Please indicate your new portfolio selection and the weighting for each portfolio.
B30: Portfolio Name | I30: Portfolio Range (e.g. Linked Range, Select) | Q30: Percentage
B31: 1. | Q31: %
B32: 2. | Q32: %
B33: 3. | Q33: %
B34: 4. | Q34: %
B35: 5. | Q35: %
B36: 6. | Q36: %
B37: 7. | Q37: %
B38: 8. | Q38: %
B39: 9. | Q39: %
B40: 10. | Q40: %
B41: 11. | Q41: %
B42: 12. | Q42: %
B43: TOTAL | Q43: %
B45: SWITCH FROM:
B47: Portfolio Name | I47: Portfolio Range (e.g. Linked Range, Select) | Q47: Percentage | U47: Amount
B48: =CONCATENATE("1. ",TEXT(Switch!G26,"")) -> 1. | I48: =IF(Switch!W26="","",Switch!W26) ->  | Q48: =IF(Switch!U26="","",Switch!U26) ->  | U48: =IF(Switch!V26="","",Switch!V26) -> 0
B49: =CONCATENATE("2. ",TEXT(Switch!G27,"")) -> 2. | I49: =IF(Switch!W27="","",Switch!W27) ->  | Q49: =IF(Switch!U27="","",Switch!U27) ->  | U49: =IF(Switch!V27="","",Switch!V27) -> 0
B50: =CONCATENATE("3. ",TEXT(Switch!G28,"")) -> 3. | I50: =IF(Switch!W28="","",Switch!W28) ->  | Q50: =IF(Switch!U28="","",Switch!U28) ->  | U50: =IF(Switch!V28="","",Switch!V28) -> 0
B51: =CONCATENATE("4. ",TEXT(Switch!G29,"")) -> 4. | I51: =IF(Switch!W29="","",Switch!W29) ->  | Q51: =IF(Switch!U29="","",Switch!U29) ->  | U51: =IF(Switch!V29="","",Switch!V29) -> 0
B52: =CONCATENATE("5. ",TEXT(Switch!G30,"")) -> 5. | I52: =IF(Switch!W30="","",Switch!W30) ->  | Q52: =IF(Switch!U30="","",Switch!U30) ->  | U52: =IF(Switch!V30="","",Switch!V30) -> 0
B53: =CONCATENATE("6. ",TEXT(Switch!G31,"")) -> 6. | I53: =IF(Switch!W31="","",Switch!W31) ->  | Q53: =IF(Switch!U31="","",Switch!U31) ->  | U53: =IF(Switch!V31="","",Switch!V31) -> 0
B54: =CONCATENATE("7. ",TEXT(Switch!G32,"")) -> 7. | I54: =IF(Switch!W32="","",Switch!W32) ->  | Q54: =IF(Switch!U32="","",Switch!U32) ->  | U54: =IF(Switch!V32="","",Switch!V32) -> 0
B55: =CONCATENATE("8. ",TEXT(Switch!G33,"")) -> 8. | I55: =IF(Switch!W33="","",Switch!W33) ->  | Q55: =IF(Switch!U33="","",Switch!U33) ->  | U55: =IF(Switch!V33="","",Switch!V33) -> 0
B56: =CONCATENATE("9. ",TEXT(Switch!G34,"")) -> 9. | I56: =IF(Switch!W34="","",Switch!W34) ->  | Q56: =IF(Switch!U34="","",Switch!U34) ->  | U56: =IF(Switch!V34="","",Switch!V34) -> 0
B57: =CONCATENATE("10. ",TEXT(Switch!G35,"")) -> 10. | I57: =IF(Switch!W35="","",Switch!W35) ->  | Q57: =IF(Switch!U35="","",Switch!U35) ->  | U57: =IF(Switch!V35="","",Switch!V35) -> 0
B58: =CONCATENATE("11. ",TEXT(Switch!G36,"")) -> 11. | I58: =IF(Switch!W36="","",Switch!W36) ->  | Q58: =IF(Switch!U36="","",Switch!U36) ->  | U58: =IF(Switch!V36="","",Switch!V36) -> 0
B59: =CONCATENATE("12. ",TEXT(Switch!G37,"")) -> 12. | I59: =IF(Switch!W37="","",Switch!W37) ->  | Q59: =IF(Switch!U37="","",Switch!U37) ->  | U59: =IF(Switch!V37="","",Switch!V37) -> 0
B60: =CONCATENATE("13. ",TEXT(Switch!G38,"")) -> 13. | I60: =IF(Switch!W38="","",Switch!W38) ->  | Q60: =IF(Switch!U38="","",Switch!U38) ->  | U60: =IF(Switch!V38="","",Switch!V38) -> 0
B61: =CONCATENATE("14. ",TEXT(Switch!G39,"")) -> 14. | I61: =IF(Switch!W39="","",Switch!W39) ->  | Q61: =IF(Switch!U39="","",Switch!U39) ->  | U61: =IF(Switch!V39="","",Switch!V39) -> 0
B62: =CONCATENATE("15. ",TEXT(Switch!G40,"")) -> 15. | I62: =IF(Switch!W40="","",Switch!W40) ->  | Q62: =IF(Switch!U40="","",Switch!U40) ->  | U62: =IF(Switch!V40="","",Switch!V40) -> 0
B63: TOTAL | Q63: =SUM(Q48:T62) -> 0 | U63: =SUM(U48:AA62) -> 0
B65: SWITCH TO:
B67: Portfolio Name | I67: Portfolio Range (e.g. Linked Range, Select) | Q67: Percentage | U67: Amount
B68: =CONCATENATE("1. ",TEXT(Switch!G52,"")) -> 1. | I68: =IF(Switch!M52="","",Switch!M52) ->  | Q68: =IF(Switch!K52="","",Switch!K52) ->  | U68: =IF(Instructions!J62="","",Instructions!J62) -> 
B69: =CONCATENATE("2. ",TEXT(Switch!G53,"")) -> 2. | I69: =IF(Switch!M53="","",Switch!M53) ->  | Q69: =IF(Switch!K53="","",Switch!K53) ->  | U69: =IF(Instructions!J63="","",Instructions!J63) -> 
B70: =CONCATENATE("3. ",TEXT(Switch!G54,"")) -> 3. | I70: =IF(Switch!M54="","",Switch!M54) ->  | Q70: =IF(Switch!K54="","",Switch!K54) ->  | U70: =IF(Instructions!J64="","",Instructions!J64) -> 
B71: =CONCATENATE("4. ",TEXT(Switch!G55,"")) -> 4. | I71: =IF(Switch!M55="","",Switch!M55) ->  | Q71: =IF(Switch!K55="","",Switch!K55) ->  | U71: =IF(Instructions!J65="","",Instructions!J65) -> 
B72: =CONCATENATE("5. ",TEXT(Switch!G56,"")) -> 5. | I72: =IF(Switch!M56="","",Switch!M56) ->  | Q72: =IF(Switch!K56="","",Switch!K56) ->  | U72: =IF(Instructions!J66="","",Instructions!J66) -> 
B73: =CONCATENATE("6. ",TEXT(Switch!G57,"")) -> 6. | I73: =IF(Switch!M57="","",Switch!M57) ->  | Q73: =IF(Switch!K57="","",Switch!K57) ->  | U73: =IF(Instructions!J67="","",Instructions!J67) -> 
B74: =CONCATENATE("7. ",TEXT(Switch!G58,"")) -> 7. | I74: =IF(Switch!M58="","",Switch!M58) ->  | Q74: =IF(Switch!K58="","",Switch!K58) ->  | U74: =IF(Instructions!J68="","",Instructions!J68) -> 
B75: =CONCATENATE("8. ",TEXT(Switch!G59,"")) -> 8. | I75: =IF(Switch!M59="","",Switch!M59) ->  | Q75: =IF(Switch!K59="","",Switch!K59) ->  | U75: =IF(Instructions!J69="","",Instructions!J69) -> 
B76: =CONCATENATE("9. ",TEXT(Switch!G60,"")) -> 9. | I76: =IF(Switch!M60="","",Switch!M60) ->  | Q76: =IF(Switch!K60="","",Switch!K60) ->  | U76: =IF(Instructions!J70="","",Instructions!J70) -> 
B77: =CONCATENATE("10. ",TEXT(Switch!G61,"")) -> 10. | I77: =IF(Switch!M61="","",Switch!M61) ->  | Q77: =IF(Switch!K61="","",Switch!K61) ->  | U77: =IF(Instructions!J71="","",Instructions!J71) -> 
B78: =CONCATENATE("11. ",TEXT(Switch!G62,"")) -> 11. | I78: =IF(Switch!M62="","",Switch!M62) ->  | Q78: =IF(Switch!K62="","",Switch!K62) ->  | U78: =IF(Instructions!J72="","",Instructions!J72) -> 
B79: =CONCATENATE("12. ",TEXT(Switch!G63,"")) -> 12. | I79: =IF(Switch!M63="","",Switch!M63) ->  | Q79: =IF(Switch!K63="","",Switch!K63) ->  | U79: =IF(Instructions!J73="","",Instructions!J73) -> 
B80: =CONCATENATE("13. ",TEXT(Switch!G64,"")) -> 13. | I80: =IF(Switch!M64="","",Switch!M64) ->  | Q80: =IF(Switch!K64="","",Switch!K64) ->  | U80: =IF(Instructions!J74="","",Instructions!J74) -> 
B81: =CONCATENATE("14. ",TEXT(Switch!G65,"")) -> 14. | I81: =IF(Switch!M65="","",Switch!M65) ->  | Q81: =IF(Switch!K65="","",Switch!K65) ->  | U81: =IF(Instructions!J75="","",Instructions!J75) -> 
B82: =CONCATENATE("15. ",TEXT(Switch!G66,"")) -> 15. | I82: =IF(Switch!M66="","",Switch!M66) ->  | Q82: =IF(Switch!K66="","",Switch!K66) ->  | U82: =IF(Instructions!J76="","",Instructions!J76) -> 
B83: TOTAL | Q83: =SUM(Q68:T82) -> 0 | U83: =SUM(U68:AA82) -> 0
B85: PHASE-IN INSTRUCTION
B87: Change the portfolio selection for the existing Unit trust funds as indicated below. If the table is left blank, the existing portfolio on record will remain unchanged. Phase-in's are only available for Unit Trust funds and at inception stage.
B90: CHANGE PHASE-IN | D90: YES | K90: NO
B93: Portfolio Name | I93: Portfolio Range (e.g. Linked Range, Select) | Q93: Percentage | U93: Amount
B94: 1. | Q94: % | U94: R
B95: 2. | Q95: % | U95: R
B96: 3. | Q96: % | U96: R
B97: 4. | Q97: % | U97: R
B98: 5. | Q98: % | U98: R
B99: 6. | Q99: % | U99: R
B100: 7. | Q100: % | U100: R
B101: 8. | Q101: % | U101: R
B102: 9. | Q102: % | U102: R
B103: 10. | Q103: % | U103: R
B104: 11. | Q104: % | U104: R
B105: 12. | Q105: % | U105: R
B107: DEBIT ORDER INSTRUCTION
B109: Change the portfolio selection for the existing Unit trust funds as indicated below. If the table is left blank, the existing portfolio on record will remain unchanged. The product minimum recurring debit order amounts must be met: R1 000 for the Classic Investment Plan with a minimum of R500 per portfolio; R500 per portfolio on the Classic Retirement Annuity Plan.
B112: CHANGE DEBIT ORDERS | D112: YES | K112: NO
B115: Portfolio Name | I115: Portfolio Range (e.g. Linked Range, Select) | Q115: Percentage | U115: Amount
B116: 1. | Q116: % | U116: R
B117: 2. | Q117: % | U117: R
B118: 3. | Q118: % | U118: R
B119: 4. | Q119: % | U119: R
B120: 5. | Q120: % | U120: R
B121: 6. | Q121: % | U121: R
B122: 7. | Q122: % | U122: R
B123: 8. | Q123: % | U123: R
B124: 9. | Q124: % | U124: R
B125: 10. | Q125: % | U125: R
B126: 11. | Q126: % | U126: R
B127: 12. | Q127: % | U127: R
B129: TERMS AND CONDITIONS
B131: 1. The terms and conditions signed and agreed to in the Investment Application form will remain in force and apply to this transaction. Refer to your Investment application form for the detail for the detailed terms and conditions. Alternatively you can request a copy of the terms and conditions from your Financial adviser or the Contact Centre on 0860 123 0032. "2. Where the terms and conditions contained in this form contradict the terms and conditions in the application form signed by the client, the terms and conditions contained in this switch form will apply. 3. Some of the terms and conditions are set out in the Investment Application Form and the remainder is set out in this Switch form. The Client agrees to be bound by the terms and conditions as set out in the Investment Application Form as well as those set out in this form. In the event of a conflict between the terms and conditions in the Investment Application Form and the terms and conditions contained in this Switch Form, the terms and conditions in this form will apply. 4. Where a fully completed and accurate instruction is received by STANLIB head office before close of business on business day 1. The following switching turnaround times and prices will apply: 4.1. Intra-Manco Switch: Funds will be switched out and priced on day 2; the switch into the new fund will also be priced on day 2. 4.2. Inter-Manco Switch: For switches from the money market fund or call account to an external Manco, the fund will be switched out and priced on day 2, the switch into the external manager’s fund will be priced on day 3. For switches from all other funds, the fund will be switched out and priced on day 2 and the switch into the external manager’s fund will be priced on day 4. 5. Please note: The monthly expense run takes place on the 10th of the month. In the event of the 10th being a weekend or public holiday, the expense run will take place on the next business day. The monthly annuity run takes place on the 22nd of the month. In the event of the 22nd being a weekend or public holiday, the annuity run will take place on the preceding business day. Switch requests received during the monthly expense run or monthly annuity run will only be processed once the run has been priced up. This will generally add up to 2 business days to the above service levels. STANLIB will not be responsible for any losses caused or damages suffered due to STANLIB being unable to meet these service levels due to unforeseeable circumstances beyond STANLIB's control. 6. Any values previously advised are only guides to the actual values of the assets being switched. 7. This instruction must be signed and dated by the legal owner, including the cessionary if ceded collaterally or a person holding a Power of Attorney or the Client's FSB licensed Financial Services Provider (“Financial adviser”). STANLIB will only accept an instruction from the Financial adviser, if the Client explicitly authorised STANLIB in writing to accept instructions from the Financial adviser." | M131: "The Client understands that by authorising his/her Financial adviser to sign this instruction on his/her behalf, STANLIB will implement the instruction, whether in written or electronic format, as if it were the Client's own instruction. 8. The Client understands that where he/she switches to other portfolios and / or platform,different or new charge structures could apply and that it is the Client's responsibility, or where applicable that of the Client's Financial adviser, to determine the relevant charge structures prior to conducting the switch. A Collective Investment Manager Charge (usually 0,25%) may be charged when switching between Collective Investment Scheme Managers and/or different asset classes. Should the Client switch into an offshore STANLIB Funds Limited portfolio, a service charge of 1% and an annual foreign currency charge of 0,48% will be levied (no VAT is payable). Please refer to www.stanlib.com for a complete list of the underlying portfolio and / or platform charges. 9. A maximum of 12 portfolios is allowed after completion of the switch. 10. The Client confirms that neither STANLIB nor any of its representatives provided him/her with any advice and that he/she has taken particular care to consider on his/her own or with the assistance of his/her authorised I whether the switch is appropriate considering his/her unique objectives, financial situation and particular needs. 11. The Client understands that all material facts must be accurately and properly disclosed and the accuracy and completeness of all information provided by or on behalf of the Client, is the Client's own responsibility. The Client understands that no Financial adviser may request the Client to sign any written or printed form or document unless all details required to be inserted thereon by the Client or on behalf of the Client have already been inserted. 12. Multiple transactions cannot be processed simultaneously. 13. The Client understands that STANLIB is prohibited from processing any transactions on the Client’s behalf (including but not limited to switches) until all documentation has been received in terms of the Financial Intelligence Centre Act, No. 38 of 2001. 14. Any capital gain realised on the disposal of a participatory interest in a collective investment scheme is subject to Capital Gains Tax (CGT). 15. The Client understands that where he/she changes FSP the consequences of such change may result in different or new fund and fees structures. This may result in an increase to the platform service charges. It is the Client’s and where applicable the Client’s Financial adviser’s responsibility to determine the relevant fund and or charge implications. STANLIB will deduct the charges from the Client’s portfolios. For further details please refer to the Fee Comparison Tool on STANLIB online."
B133: DECLARATION
B135: I/We hereby agree to provide all documentation and information required in terms of STANLIB’s business rules and the Financial Intelligence Centre Act, No. 38 of 2001, and understand that STANLIB is prohibited from processing any transaction on my behalf until all such documentation has been provided. I/We confirm that all information provided herein is true and correct and that I have read and understood the contents of this form.
B138: SIGNATURE OF CLIENT/AUTHORISED SIGNATORY | L138: DATE | T138: - | W138: -
R139: D | S139: D | U139: M | V139: M | X139: Y | Y139: Y | Z139: Y | AA139: Y
L141: SIGNED AT
B143: SIGNATURE OF FINANCIAL ADVISER | L143: DATE | T143: - | W143: -
R144: D | S144: D | U144: M | V144: M | X144: Y | Y144: Y | Z144: Y | AA144: Y
L146: SIGNED AT

Sheet Proposal - R
N29: Name | S29: =CONCATENATE(Rebalance!F13," ",Rebalance!F14) -> 
N30: Date | S30: =TODAY() -> 2019-12-24
N31: Product Type | S31: =Rebalance!F12 -> 0
P32: Financial Adviser Name | T32: 0
P33: Financial Adviser Code | T33: 0
E36: Investor Details
F40: Entity/Investment Number: | J40: =Rebalance!F12 -> 0
F41: Names: | J41: =Rebalance!F13 -> 0
F42: Surname: | J42: =Rebalance!F14 -> 0
F43: Identity/Passport Number: | J43: =Rebalance!F15 -> 0
F44: Type of Client: | J44: =Rebalance!F16 -> 0
F45: Tax Number: | J45: =Rebalance!F17 -> 0
F46: Cellphone Number: | J46: =Rebalance!F18 -> 0
F47: Email Address: | J47: =Rebalance!F19 -> qudsiyya786@gmail.com
E81: Rebalance Details
F84: Current Portfolio
F86: Manco | J86: Portfolio Name | N86: Percentage | Q86: Market Value
F87: =IF(Rebalance!D26="","",Rebalance!D26) ->  | J87: =IF(Rebalance!G26="","",Rebalance!G26) ->  | N87: =IF(Rebalance!S26="","",Rebalance!S26) ->  | Q87: =IF(Rebalance!Q26="","",Rebalance!Q26) -> 
F88: =IF(Rebalance!D27="","",Rebalance!D27) ->  | J88: =IF(Rebalance!G27="","",Rebalance!G27) ->  | N88: =IF(Rebalance!S27="","",Rebalance!S27) ->  | Q88: =IF(Rebalance!Q27="","",Rebalance!Q27) -> 
F89: =IF(Rebalance!D28="","",Rebalance!D28) ->  | J89: =IF(Rebalance!G28="","",Rebalance!G28) ->  | N89: =IF(Rebalance!S28="","",Rebalance!S28) ->  | Q89: =IF(Rebalance!Q28="","",Rebalance!Q28) -> 
F90: =IF(Rebalance!D29="","",Rebalance!D29) ->  | J90: =IF(Rebalance!G29="","",Rebalance!G29) ->  | N90: =IF(Rebalance!S29="","",Rebalance!S29) ->  | Q90: =IF(Rebalance!Q29="","",Rebalance!Q29) -> 
F91: =IF(Rebalance!D30="","",Rebalance!D30) ->  | J91: =IF(Rebalance!G30="","",Rebalance!G30) ->  | N91: =IF(Rebalance!S30="","",Rebalance!S30) ->  | Q91: =IF(Rebalance!Q30="","",Rebalance!Q30) -> 
F92: =IF(Rebalance!D31="","",Rebalance!D31) ->  | J92: =IF(Rebalance!G31="","",Rebalance!G31) ->  | N92: =IF(Rebalance!S31="","",Rebalance!S31) ->  | Q92: =IF(Rebalance!Q31="","",Rebalance!Q31) -> 
F93: =IF(Rebalance!D32="","",Rebalance!D32) ->  | J93: =IF(Rebalance!G32="","",Rebalance!G32) ->  | N93: =IF(Rebalance!S32="","",Rebalance!S32) ->  | Q93: =IF(Rebalance!Q32="","",Rebalance!Q32) -> 
F94: =IF(Rebalance!D33="","",Rebalance!D33) ->  | J94: =IF(Rebalance!G33="","",Rebalance!G33) ->  | N94: =IF(Rebalance!S33="","",Rebalance!S33) ->  | Q94: =IF(Rebalance!Q33="","",Rebalance!Q33) -> 
F95: =IF(Rebalance!D34="","",Rebalance!D34) ->  | J95: =IF(Rebalance!G34="","",Rebalance!G34) ->  | N95: =IF(Rebalance!S34="","",Rebalance!S34) ->  | Q95: =IF(Rebalance!Q34="","",Rebalance!Q34) -> 
F96: =IF(Rebalance!D35="","",Rebalance!D35) ->  | J96: =IF(Rebalance!G35="","",Rebalance!G35) ->  | N96: =IF(Rebalance!S35="","",Rebalance!S35) ->  | Q96: =IF(Rebalance!Q35="","",Rebalance!Q35) -> 
F97: =IF(Rebalance!D36="","",Rebalance!D36) ->  | J97: =IF(Rebalance!G36="","",Rebalance!G36) ->  | N97: =IF(Rebalance!S36="","",Rebalance!S36) ->  | Q97: =IF(Rebalance!Q36="","",Rebalance!Q36) -> 
F98: =IF(Rebalance!D37="","",Rebalance!D37) ->  | J98: =IF(Rebalance!G37="","",Rebalance!G37) ->  | N98: =IF(Rebalance!S37="","",Rebalance!S37) ->  | Q98: =IF(Rebalance!Q37="","",Rebalance!Q37) -> 
F99: =IF(Rebalance!D38="","",Rebalance!D38) ->  | J99: =IF(Rebalance!G38="","",Rebalance!G38) ->  | N99: =IF(Rebalance!S38="","",Rebalance!S38) ->  | Q99: =IF(Rebalance!Q38="","",Rebalance!Q38) -> 
F100: =IF(Rebalance!D39="","",Rebalance!D39) ->  | J100: =IF(Rebalance!G39="","",Rebalance!G39) ->  | N100: =IF(Rebalance!S39="","",Rebalance!S39) ->  | Q100: =IF(Rebalance!Q39="","",Rebalance!Q39) -> 
F101: =IF(Rebalance!D40="","",Rebalance!D40) ->  | J101: =IF(Rebalance!G40="","",Rebalance!G40) ->  | N101: =IF(Rebalance!S40="","",Rebalance!S40) ->  | Q101: =IF(Rebalance!Q40="","",Rebalance!Q40) -> 
J102: Total | N102: =SUM(N87:O101) -> 0 | Q102: =SUM(Q87:U101) -> 0 | T102: =SUM(T87:U101) -> 0
F106: Rebalanced Portfolio
F109: Manco | J109: Portfolio Name | N109: Percentage | Q109: Rand Amount
F110: =IF(Instructions!C62="","",Instructions!C62) -> Allan Gray Unit Trust Management Limited | J110: =IF(Instructions!F62="","",Instructions!F62) -> Allan Gray Balanced Fund C | N110: =IF(Instructions!L62="","",Instructions!L62) -> 0.08 | Q110: =IF(Instructions!J62=0,"",Instructions!J62) -> 
F111: =IF(Instructions!C63="","",Instructions!C63) -> Coronation Management Company | J111: =IF(Instructions!F63="","",Instructions!F63) -> Coronation Balanced Plus Fund P | N111: =IF(Instructions!L63="","",Instructions!L63) -> 0.08 | Q111: =IF(Instructions!J63=0,"",Instructions!J63) -> 
F112: =IF(Instructions!C64="","",Instructions!C64) -> Investec Fund Managers | J112: =IF(Instructions!F64="","",Instructions!F64) -> Investec Global Franchise Feeder Fund H | N112: =IF(Instructions!L64="","",Instructions!L64) -> 0.04 | Q112: =IF(Instructions!J64=0,"",Instructions!J64) -> 
F113: =IF(Instructions!C65="","",Instructions!C65) -> Investec Fund Managers | J113: =IF(Instructions!F65="","",Instructions!F65) -> Investec Managed Fund H | N113: =IF(Instructions!L65="","",Instructions!L65) -> 0.08 | Q113: =IF(Instructions!J65=0,"",Instructions!J65) -> 
F114: =IF(Instructions!C66="","",Instructions!C66) -> Prescient Management Company Ltd | J114: =IF(Instructions!F66="","",Instructions!F66) -> Laurium Flexible Prescient Fund A1 | N114: =IF(Instructions!L66="","",Instructions!L66) -> 0.08 | Q114: =IF(Instructions!J66=0,"",Instructions!J66) -> 
F115: =IF(Instructions!C67="","",Instructions!C67) -> PSG Collective Investments Ltd | J115: =IF(Instructions!F67="","",Instructions!F67) -> PSG Global Flexible Feeder Fund B | N115: =IF(Instructions!L67="","",Instructions!L67) -> 0.04 | Q115: =IF(Instructions!J67=0,"",Instructions!J67) -> 
F116: =IF(Instructions!C68="","",Instructions!C68) -> Boutique Collective Investments (Pty) Ltd | J116: =IF(Instructions!F68="","",Instructions!F68) -> Reitway BCI Global Property Fund C | N116: =IF(Instructions!L68="","",Instructions!L68) -> 0.04 | Q116: =IF(Instructions!J68=0,"",Instructions!J68) -> 
F117: =IF(Instructions!C69="","",Instructions!C69) -> Satrix Managers (RF) (Pty) Ltd | J117: =IF(Instructions!F69="","",Instructions!F69) -> Satrix Equally Weighted TOP 40 Index Fund B1 | N117: =IF(Instructions!L69="","",Instructions!L69) -> 0.09 | Q117: =IF(Instructions!J69=0,"",Instructions!J69) -> 
F118: =IF(Instructions!C70="","",Instructions!C70) -> Satrix Managers (RF) (Pty) Ltd | J118: =IF(Instructions!F70="","",Instructions!F70) -> Satrix MSCI World Equity Index Feeder Fund B2 | N118: =IF(Instructions!L70="","",Instructions!L70) -> 0.05 | Q118: =IF(Instructions!J70=0,"",Instructions!J70) -> 
F119: =IF(Instructions!C71="","",Instructions!C71) -> Satrix Managers (RF) (Pty) Ltd | J119: =IF(Instructions!F71="","",Instructions!F71) -> Satrix Property Index Fund B1 | N119: =IF(Instructions!L71="","",Instructions!L71) -> 0.05 | Q119: =IF(Instructions!J71=0,"",Instructions!J71) -> 
F120: =IF(Instructions!C72="","",Instructions!C72) -> STANLIB Collective Investments | J120: =IF(Instructions!F72="","",Instructions!F72) -> STANLIB Absolute Plus Fund B1 | N120: =IF(Instructions!L72="","",Instructions!L72) -> 0.08 | Q120: =IF(Instructions!J72=0,"",Instructions!J72) -> 
F121: =IF(Instructions!C73="","",Instructions!C73) -> STANLIB Collective Investments | J121: =IF(Instructions!F73="","",Instructions!F73) -> STANLIB Income Fund B6 | N121: =IF(Instructions!L73="","",Instructions!L73) -> 0.2 | Q121: =IF(Instructions!J73=0,"",Instructions!J73) -> 
F122: =IF(Instructions!C74="","",Instructions!C74) -> STANLIB Collective Investments | J122: =IF(Instructions!F74="","",Instructions!F74) -> STANLIB S&P500 Index Feeder Fund B1 | N122: =IF(Instructions!L74="","",Instructions!L74) -> 0.05 | Q122: =IF(Instructions!J74=0,"",Instructions!J74) -> 
F123: =IF(Instructions!C75="","",Instructions!C75) -> Sygnia Asset Management (Pty) Limited | J123: =IF(Instructions!F75="","",Instructions!F75) -> Sygnia 4th Industrial Revolution Global Equity Fund A | N123: =IF(Instructions!L75="","",Instructions!L75) -> 0.04 | Q123: =IF(Instructions!J75=0,"",Instructions!J75) -> 
F124: =IF(Instructions!C76="","",Instructions!C76) ->  | J124: =IF(Instructions!F76="","",Instructions!F76) ->  | N124: =IF(Instructions!L76="","",Instructions!L76) ->  | Q124: =IF(Instructions!J76=0,"",Instructions!J76) -> 
J125: Total | N125: =SUM(N110:O124) -> 1 | Q125: =SUM(Q110:U124) -> 0 | T125: =SUM(T110:U124) -> 0
F129: CGT:
F131: Total CGT incurred: | I131: =SUM(Instructions!R16:S55) -> 0
F134: Instructions:
F136: Fund Sold | I136: Total Amount Sold | K136: % Sold | M136: Funds Purchased | S136: Amount Bought | U136: % Bought
F137: =IF(Instructions!C16="","",Instructions!C16) -> Allan Gray Balanced Fund C | I137: =IF(Instructions!F16="","",Instructions!F16) -> 40.7834 | K137: =IF(Instructions!H16="","",Instructions!H16) -> 0.0142 | M137: =IF(Instructions!J16="","",Instructions!J16) -> Laurium Flexible Prescient Fund A1 | S137: =IF(Instructions!N16="","",Instructions!N16) -> 40.78 | U137: =IF(Instructions!P16="","",Instructions!P16) -> 1 | AB137: =IF(U137=0,0,1) -> 1
F138: =IF(Instructions!C17="","",Instructions!C17) -> Coronation Balanced Plus Fund P | I138: =IF(Instructions!F17="","",Instructions!F17) -> 38.3134 | K138: =IF(Instructions!H17="","",Instructions!H17) -> 0.0133 | M138: =IF(Instructions!J17="","",Instructions!J17) -> Laurium Flexible Prescient Fund A1 | S138: =IF(Instructions!N17="","",Instructions!N17) -> 38.31 | U138: =IF(Instructions!P17="","",Instructions!P17) -> 1 | AB138: =IF(U138=0,0,1) -> 1
F139: =IF(Instructions!C18="","",Instructions!C18) -> Investec Global Franchise Feeder Fund H | I139: =IF(Instructions!F18="","",Instructions!F18) -> 56.4267 | K139: =IF(Instructions!H18="","",Instructions!H18) -> 0.0382 | M139: =IF(Instructions!J18="","",Instructions!J18) -> Laurium Flexible Prescient Fund A1 | S139: =IF(Instructions!N18="","",Instructions!N18) -> 56.43 | U139: =IF(Instructions!P18="","",Instructions!P18) -> 1 | AB139: 1
F140: =IF(Instructions!C19="","",Instructions!C19) -> Investec Managed Fund H | I140: =IF(Instructions!F19="","",Instructions!F19) -> 54.7334 | K140: =IF(Instructions!H19="","",Instructions!H19) -> 0.0189 | M140: =IF(Instructions!J19="","",Instructions!J19) -> Laurium Flexible Prescient Fund A1 | S140: =IF(Instructions!N19="","",Instructions!N19) -> 54.73 | U140: =IF(Instructions!P19="","",Instructions!P19) -> 1 | AB140: 1
F141: =IF(Instructions!C20="","",Instructions!C20) -> PSG Flexible Fund E | I141: =IF(Instructions!F20="","",Instructions!F20) -> 2782.93 | K141: =IF(Instructions!H20="","",Instructions!H20) -> 1 | M141: =IF(Instructions!J20="","",Instructions!J20) -> Laurium Flexible Prescient Fund A1 | S141: =IF(Instructions!N20="","",Instructions!N20) -> 2649.25 | U141: =IF(Instructions!P20="","",Instructions!P20) -> 0.9519642966 | AB141: 1
F142: =IF(Instructions!C21="","",Instructions!C21) ->  | I142: =IF(Instructions!F21="","",Instructions!F21) ->  | K142: =IF(Instructions!H21="","",Instructions!H21) ->  | M142: =IF(Instructions!J21="","",Instructions!J21) -> Satrix Equally Weighted TOP 40 Index Fund B1 | S142: =IF(Instructions!N21="","",Instructions!N21) -> 53.94 | U142: =IF(Instructions!P21="","",Instructions!P21) -> 0.01938244943 | AB142: 1
F143: =IF(Instructions!C22="","",Instructions!C22) ->  | I143: =IF(Instructions!F22="","",Instructions!F22) ->  | K143: =IF(Instructions!H22="","",Instructions!H22) ->  | M143: =IF(Instructions!J22="","",Instructions!J22) -> Satrix Property Index Fund B1 | S143: =IF(Instructions!N22="","",Instructions!N22) -> 79.74 | U143: =IF(Instructions!P22="","",Instructions!P22) -> 0.02865325394 | AB143: 1
F144: =IF(Instructions!C23="","",Instructions!C23) -> PSG Global Flexible Feeder Fund B | I144: =IF(Instructions!F23="","",Instructions!F23) -> 6.6867 | K144: =IF(Instructions!H23="","",Instructions!H23) -> 0.0047 | M144: =IF(Instructions!J23="","",Instructions!J23) -> Satrix Property Index Fund B1 | S144: =IF(Instructions!N23="","",Instructions!N23) -> 6.69 | U144: =IF(Instructions!P23="","",Instructions!P23) -> 1 | AB144: 1
F145: =IF(Instructions!C24="","",Instructions!C24) -> Reitway BCI Global Property Fund C | I145: =IF(Instructions!F24="","",Instructions!F24) -> 22.0667 | K145: =IF(Instructions!H24="","",Instructions!H24) -> 0.0153 | M145: =IF(Instructions!J24="","",Instructions!J24) -> Satrix Property Index Fund B1 | S145: =IF(Instructions!N24="","",Instructions!N24) -> 10.01 | U145: =IF(Instructions!P24="","",Instructions!P24) -> 0.4535568645 | AB145: 1
F146: =IF(Instructions!C25="","",Instructions!C25) ->  | I146: =IF(Instructions!F25="","",Instructions!F25) ->  | K146: =IF(Instructions!H25="","",Instructions!H25) ->  | M146: =IF(Instructions!J25="","",Instructions!J25) -> STANLIB Income Fund B6 | S146: =IF(Instructions!N25="","",Instructions!N25) -> 4.92 | U146: =IF(Instructions!P25="","",Instructions!P25) -> 0.2229270503 | AB146: 1
F147: =IF(Instructions!C26="","",Instructions!C26) ->  | I147: =IF(Instructions!F26="","",Instructions!F26) ->  | K147: =IF(Instructions!H26="","",Instructions!H26) ->  | M147: =IF(Instructions!J26="","",Instructions!J26) -> Sygnia 4th Industrial Revolution Global Equity Fund A | S147: =IF(Instructions!N26="","",Instructions!N26) -> 7.13 | U147: =IF(Instructions!P26="","",Instructions!P26) -> 0.3230629814 | AB147: 1
F148: =IF(Instructions!C27="","",Instructions!C27) -> Satrix MSCI World Equity Index Feeder Fund B2 | I148: =IF(Instructions!F27="","",Instructions!F27) -> 47.2584 | K148: =IF(Instructions!H27="","",Instructions!H27) -> 0.0259 | M148: =IF(Instructions!J27="","",Instructions!J27) -> Satrix Equally Weighted TOP 40 Index Fund B1 | S148: =IF(Instructions!N27="","",Instructions!N27) -> 47.26 | U148: =IF(Instructions!P27="","",Instructions!P27) -> 1 | AB148: 1
F149: =IF(Instructions!C28="","",Instructions!C28) -> STANLIB S&P500 Index Feeder Fund B1 | I149: =IF(Instructions!F28="","",Instructions!F28) -> 41.1984 | K149: =IF(Instructions!H28="","",Instructions!H28) -> 0.0227 | M149: =IF(Instructions!J28="","",Instructions!J28) -> STANLIB Absolute Plus Fund B1 | S149: =IF(Instructions!N28="","",Instructions!N28) -> 4.07 | U149: =IF(Instructions!P28="","",Instructions!P28) -> 0.09878640777 | AB149: 1
F150: =IF(Instructions!C29="","",Instructions!C29) ->  | I150: =IF(Instructions!F29="","",Instructions!F29) ->  | K150: =IF(Instructions!H29="","",Instructions!H29) ->  | M150: =IF(Instructions!J29="","",Instructions!J29) -> STANLIB Income Fund B6 | S150: =IF(Instructions!N29="","",Instructions!N29) -> 37.13 | U150: =IF(Instructions!P29="","",Instructions!P29) -> 0.9012135922 | AB150: 1
F151: =IF(Instructions!C30="","",Instructions!C30) ->  | I151: =IF(Instructions!F30="","",Instructions!F30) ->  | K151: =IF(Instructions!H30="","",Instructions!H30) ->  | M151: =IF(Instructions!J30="","",Instructions!J30) ->  | S151: =IF(Instructions!N30="","",Instructions!N30) ->  | U151: =IF(Instructions!P30="","",Instructions!P30) ->  | AB151: 1
F152: =IF(Instructions!C31="","",Instructions!C31) ->  | I152: =IF(Instructions!F31="","",Instructions!F31) ->  | K152: =IF(Instructions!H31="","",Instructions!H31) ->  | M152: =IF(Instructions!J31="","",Instructions!J31) ->  | S152: =IF(Instructions!N31="","",Instructions!N31) ->  | U152: =IF(Instructions!P31="","",Instructions!P31) ->  | AB152: 1
F153: =IF(Instructions!C32="","",Instructions!C32) ->  | I153: =IF(Instructions!F32="","",Instructions!F32) ->  | K153: =IF(Instructions!H32="","",Instructions!H32) ->  | M153: =IF(Instructions!J32="","",Instructions!J32) ->  | S153: =IF(Instructions!N32="","",Instructions!N32) ->  | U153: =IF(Instructions!P32="","",Instructions!P32) ->  | AB153: 1
F154: =IF(Instructions!C33="","",Instructions!C33) ->  | I154: =IF(Instructions!F33="","",Instructions!F33) ->  | K154: =IF(Instructions!H33="","",Instructions!H33) ->  | M154: =IF(Instructions!J33="","",Instructions!J33) ->  | S154: =IF(Instructions!N33="","",Instructions!N33) ->  | U154: =IF(Instructions!P33="","",Instructions!P33) ->  | AB154: 1
F155: =IF(Instructions!C34="","",Instructions!C34) ->  | I155: =IF(Instructions!F34="","",Instructions!F34) ->  | K155: =IF(Instructions!H34="","",Instructions!H34) ->  | M155: =IF(Instructions!J34="","",Instructions!J34) ->  | S155: =IF(Instructions!N34="","",Instructions!N34) ->  | U155: =IF(Instructions!P34="","",Instructions!P34) ->  | AB155: 1
F156: =IF(Instructions!C35="","",Instructions!C35) ->  | I156: =IF(Instructions!F35="","",Instructions!F35) ->  | K156: =IF(Instructions!H35="","",Instructions!H35) ->  | M156: =IF(Instructions!J35="","",Instructions!J35) ->  | S156: =IF(Instructions!N35="","",Instructions!N35) ->  | U156: =IF(Instructions!P35="","",Instructions!P35) ->  | AB156: 1
F157: =IF(Instructions!C36="","",Instructions!C36) ->  | I157: =IF(Instructions!F36="","",Instructions!F36) ->  | K157: =IF(Instructions!H36="","",Instructions!H36) ->  | M157: =IF(Instructions!J36="","",Instructions!J36) ->  | S157: =IF(Instructions!N36="","",Instructions!N36) ->  | U157: =IF(Instructions!P36="","",Instructions!P36) ->  | AB157: 1
F158: =IF(Instructions!C37="","",Instructions!C37) ->  | I158: =IF(Instructions!F37="","",Instructions!F37) ->  | K158: =IF(Instructions!H37="","",Instructions!H37) ->  | M158: =IF(Instructions!J37="","",Instructions!J37) ->  | S158: =IF(Instructions!N37="","",Instructions!N37) ->  | U158: =IF(Instructions!P37="","",Instructions!P37) ->  | AB158: 1
F159: =IF(Instructions!C38="","",Instructions!C38) ->  | I159: =IF(Instructions!F38="","",Instructions!F38) ->  | K159: =IF(Instructions!H38="","",Instructions!H38) ->  | M159: =IF(Instructions!J38="","",Instructions!J38) ->  | S159: =IF(Instructions!N38="","",Instructions!N38) ->  | U159: =IF(Instructions!P38="","",Instructions!P38) ->  | AB159: 1
F160: =IF(Instructions!C39="","",Instructions!C39) ->  | I160: =IF(Instructions!F39="","",Instructions!F39) ->  | K160: =IF(Instructions!H39="","",Instructions!H39) ->  | M160: =IF(Instructions!J39="","",Instructions!J39) ->  | S160: =IF(Instructions!N39="","",Instructions!N39) ->  | U160: =IF(Instructions!P39="","",Instructions!P39) ->  | AB160: 1
F161: =IF(Instructions!C40="","",Instructions!C40) ->  | I161: =IF(Instructions!F40="","",Instructions!F40) ->  | K161: =IF(Instructions!H40="","",Instructions!H40) ->  | M161: =IF(Instructions!J40="","",Instructions!J40) ->  | S161: =IF(Instructions!N40="","",Instructions!N40) ->  | U161: =IF(Instructions!P40="","",Instructions!P40) ->  | AB161: 1
F162: =IF(Instructions!C41="","",Instructions!C41) ->  | I162: =IF(Instructions!F41="","",Instructions!F41) ->  | K162: =IF(Instructions!H41="","",Instructions!H41) ->  | M162: =IF(Instructions!J41="","",Instructions!J41) ->  | S162: =IF(Instructions!N41="","",Instructions!N41) ->  | U162: =IF(Instructions!P41="","",Instructions!P41) ->  | AB162: 1
F163: =IF(Instructions!C42="","",Instructions!C42) ->  | I163: =IF(Instructions!F42="","",Instructions!F42) ->  | K163: =IF(Instructions!H42="","",Instructions!H42) ->  | M163: =IF(Instructions!J42="","",Instructions!J42) ->  | S163: =IF(Instructions!N42="","",Instructions!N42) ->  | U163: =IF(Instructions!P42="","",Instructions!P42) ->  | AB163: 1
F164: =IF(Instructions!C43="","",Instructions!C43) ->  | I164: =IF(Instructions!F43="","",Instructions!F43) ->  | K164: =IF(Instructions!H43="","",Instructions!H43) ->  | M164: =IF(Instructions!J43="","",Instructions!J43) ->  | S164: =IF(Instructions!N43="","",Instructions!N43) ->  | U164: =IF(Instructions!P43="","",Instructions!P43) ->  | AB164: 1
F165: =IF(Instructions!C44="","",Instructions!C44) ->  | I165: =IF(Instructions!F44="","",Instructions!F44) ->  | K165: =IF(Instructions!H44="","",Instructions!H44) ->  | M165: =IF(Instructions!J44="","",Instructions!J44) ->  | S165: =IF(Instructions!N44="","",Instructions!N44) ->  | U165: =IF(Instructions!P44="","",Instructions!P44) ->  | AB165: 1
F166: =IF(Instructions!C45="","",Instructions!C45) ->  | I166: =IF(Instructions!F45="","",Instructions!F45) ->  | K166: =IF(Instructions!H45="","",Instructions!H45) ->  | M166: =IF(Instructions!J45="","",Instructions!J45) ->  | S166: =IF(Instructions!N45="","",Instructions!N45) ->  | U166: =IF(Instructions!P45="","",Instructions!P45) ->  | AB166: 1
F167: =IF(Instructions!C46="","",Instructions!C46) ->  | I167: =IF(Instructions!F46="","",Instructions!F46) ->  | K167: =IF(Instructions!H46="","",Instructions!H46) ->  | M167: =IF(Instructions!J46="","",Instructions!J46) ->  | S167: =IF(Instructions!N46="","",Instructions!N46) ->  | U167: =IF(Instructions!P46="","",Instructions!P46) ->  | AB167: 1
F168: =IF(Instructions!C47="","",Instructions!C47) ->  | I168: =IF(Instructions!F47="","",Instructions!F47) ->  | K168: =IF(Instructions!H47="","",Instructions!H47) ->  | M168: =IF(Instructions!J47="","",Instructions!J47) ->  | S168: =IF(Instructions!N47="","",Instructions!N47) ->  | U168: =IF(Instructions!P47="","",Instructions!P47) ->  | AB168: 1
F169: =IF(Instructions!C48="","",Instructions!C48) ->  | I169: =IF(Instructions!F48="","",Instructions!F48) ->  | K169: =IF(Instructions!H48="","",Instructions!H48) ->  | M169: =IF(Instructions!J48="","",Instructions!J48) ->  | S169: =IF(Instructions!N48="","",Instructions!N48) ->  | U169: =IF(Instructions!P48="","",Instructions!P48) ->  | AB169: 1
F170: =IF(Instructions!C49="","",Instructions!C49) ->  | I170: =IF(Instructions!F49="","",Instructions!F49) ->  | K170: =IF(Instructions!H49="","",Instructions!H49) ->  | M170: =IF(Instructions!J49="","",Instructions!J49) ->  | S170: =IF(Instructions!N49="","",Instructions!N49) ->  | U170: =IF(Instructions!P49="","",Instructions!P49) ->  | AB170: 1
F171: =IF(Instructions!C50="","",Instructions!C50) ->  | I171: =IF(Instructions!F50="","",Instructions!F50) ->  | K171: =IF(Instructions!H50="","",Instructions!H50) ->  | M171: =IF(Instructions!J50="","",Instructions!J50) ->  | S171: =IF(Instructions!N50="","",Instructions!N50) ->  | U171: =IF(Instructions!P50="","",Instructions!P50) ->  | AB171: 1
F172: =IF(Instructions!C51="","",Instructions!C51) ->  | I172: =IF(Instructions!F51="","",Instructions!F51) ->  | K172: =IF(Instructions!H51="","",Instructions!H51) ->  | M172: =IF(Instructions!J51="","",Instructions!J51) ->  | S172: =IF(Instructions!N51="","",Instructions!N51) ->  | U172: =IF(Instructions!P51="","",Instructions!P51) ->  | AB172: 1
F173: =IF(Instructions!C52="","",Instructions!C52) ->  | I173: =IF(Instructions!F52="","",Instructions!F52) ->  | K173: =IF(Instructions!H52="","",Instructions!H52) ->  | M173: =IF(Instructions!J52="","",Instructions!J52) ->  | S173: =IF(Instructions!N52="","",Instructions!N52) ->  | U173: =IF(Instructions!P52="","",Instructions!P52) ->  | AB173: 1
F174: =IF(Instructions!C53="","",Instructions!C53) ->  | I174: =IF(Instructions!F53="","",Instructions!F53) ->  | K174: =IF(Instructions!H53="","",Instructions!H53) ->  | M174: =IF(Instructions!J53="","",Instructions!J53) ->  | S174: =IF(Instructions!N53="","",Instructions!N53) ->  | U174: =IF(Instructions!P53="","",Instructions!P53) ->  | AB174: 1
F175: =IF(Instructions!C54="","",Instructions!C54) ->  | I175: =IF(Instructions!F54="","",Instructions!F54) ->  | K175: =IF(Instructions!H54="","",Instructions!H54) ->  | M175: =IF(Instructions!J54="","",Instructions!J54) ->  | S175: =IF(Instructions!N54="","",Instructions!N54) ->  | U175: =IF(Instructions!P54="","",Instructions!P54) ->  | AB175: 1
F176: =IF(Instructions!C55="","",Instructions!C55) ->  | I176: =IF(Instructions!F55="","",Instructions!F55) ->  | K176: =IF(Instructions!H55="","",Instructions!H55) ->  | M176: =IF(Instructions!J55="","",Instructions!J55) ->  | S176: =IF(Instructions!N55="","",Instructions!N55) ->  | U176: =IF(Instructions!P55="","",Instructions!P55) ->  | AB176: 1
E181: Signed at | P181: On
E183: Full Name
E186: Signature
E190: Introduction to STANLIB
E192: STANLIB is wholly owned by the Liberty Group of which the Standard Bank Group is a major shareholder, together with a diversified spread of BEE organisations dedicated to the advancement of the previously disadvantaged. STANLIB has over 400 000 clients and over R300 billion of assets under management, making us the third largest manager of investments in South Africa and the largest unit trust company in the country. We have a presence in eight African countries.
E193: STANLIB provides access to one of the most comprehensive ranges of unit trusts in the country. We also offer our clients the opportunity to invest in a wide range of linked products, retirement vehicles and funds from other companies in order to meet clients' diverse needs.
E197: STANLIB stands behind one of the most innovative financial services industry projects, FundiSA, which aims to encourage savings for tertiary education by offering a bonus to investors. STANLIB also has an investment academy for previously disadvantaged students and provides financial aid to learners through bursaries.
E202: The information provided herein is the possession of STANLIB and are protected by copyright and intellectual property laws. The information may not be reproduced or distributed without the explicit consent of STANLIB.
E205: STANLIB has taken care to ensure that all information provided herein is true and accurate. STANLIB will therefore not be held responsible for any inaccuracies in the information herein. STANLIB shall not be responsible and disclaims all loss, liability or expense of any nature whatsoever which may be attributable (directly, indirectly or consequentially) to the use of the information provided.
E209: STANLIB Wealth Management Limited is an authorised Financial Services Provider in terms of the Financial Advisory and Intermediary Services Act No. 37 of 2002 (Licence No. 26/10/590).
D211: PLEASE NOTE: The objective of this is to assist the user with calculating the switch/rebalance instruction. The user is still required to provide STANLIB with the relevant form duly completed, sign and submit a switch instruction via our website, www.stanlib.com or STANLIB Online.

Sheet Proposal - S
N29: Name | S29: =CONCATENATE(Switch!F13," ",Switch!F14) -> 
N30: Date | S30: =TODAY() -> 2019-12-24
N31: Product Type | S31: =Switch!F12 -> 0
P32: Financial Adviser Name | T32: 0
P33: Financial Adviser Code | T33: 0
E36: Investor Details
F40: Entity/Investment Number: | J40: =Switch!F12 -> 0
F41: Names: | J41: =Switch!F13 -> 0
F42: Surname: | J42: =Switch!F14 -> 0
F43: Identity/Passport Number: | J43: =Switch!F15 -> 0
F44: Type of Client: | J44: =Switch!F16 -> 0
F45: Tax Number: | J45: =Switch!F17 -> 0
F46: Cellphone Number: | J46: =Switch!F18 -> 0
F47: Email Address: | J47: =Switch!F19 -> 0
E81: Switch Details
F84: Switch From:
F86: Manco | J86: Portfolio Name | N86: Percentage | Q86: Market Value
F87: =IF(Switch!D26="","",Switch!D26) ->  | J87: =IF(Switch!G26="","",Switch!G26) ->  | N87: =IF(Switch!U26="","",Switch!U26) ->  | Q87: =IF(Switch!V26="","",Switch!V26) -> 0
F88: =IF(Switch!D27="","",Switch!D27) ->  | J88: =IF(Switch!G27="","",Switch!G27) ->  | N88: =IF(Switch!U27="","",Switch!U27) ->  | Q88: =IF(Switch!V27="","",Switch!V27) -> 0
F89: =IF(Switch!D28="","",Switch!D28) ->  | J89: =IF(Switch!G28="","",Switch!G28) ->  | N89: =IF(Switch!U28="","",Switch!U28) ->  | Q89: =IF(Switch!V28="","",Switch!V28) -> 0
F90: =IF(Switch!D29="","",Switch!D29) ->  | J90: =IF(Switch!G29="","",Switch!G29) ->  | N90: =IF(Switch!U29="","",Switch!U29) ->  | Q90: =IF(Switch!V29="","",Switch!V29) -> 0
F91: =IF(Switch!D30="","",Switch!D30) ->  | J91: =IF(Switch!G30="","",Switch!G30) ->  | N91: =IF(Switch!U30="","",Switch!U30) ->  | Q91: =IF(Switch!V30="","",Switch!V30) -> 0
F92: =IF(Switch!D31="","",Switch!D31) ->  | J92: =IF(Switch!G31="","",Switch!G31) ->  | N92: =IF(Switch!U31="","",Switch!U31) ->  | Q92: =IF(Switch!V31="","",Switch!V31) -> 0
F93: =IF(Switch!D32="","",Switch!D32) ->  | J93: =IF(Switch!G32="","",Switch!G32) ->  | N93: =IF(Switch!U32="","",Switch!U32) ->  | Q93: =IF(Switch!V32="","",Switch!V32) -> 0
F94: =IF(Switch!D33="","",Switch!D33) ->  | J94: =IF(Switch!G33="","",Switch!G33) ->  | N94: =IF(Switch!U33="","",Switch!U33) ->  | Q94: =IF(Switch!V33="","",Switch!V33) -> 0
F95: =IF(Switch!D34="","",Switch!D34) ->  | J95: =IF(Switch!G34="","",Switch!G34) ->  | N95: =IF(Switch!U34="","",Switch!U34) ->  | Q95: =IF(Switch!V34="","",Switch!V34) -> 0
F96: =IF(Switch!D35="","",Switch!D35) ->  | J96: =IF(Switch!G35="","",Switch!G35) ->  | N96: =IF(Switch!U35="","",Switch!U35) ->  | Q96: =IF(Switch!V35="","",Switch!V35) -> 0
F97: =IF(Switch!D36="","",Switch!D36) ->  | J97: =IF(Switch!G36="","",Switch!G36) ->  | N97: =IF(Switch!U36="","",Switch!U36) ->  | Q97: =IF(Switch!V36="","",Switch!V36) -> 0
F98: =IF(Switch!D37="","",Switch!D37) ->  | J98: =IF(Switch!G37="","",Switch!G37) ->  | N98: =IF(Switch!U37="","",Switch!U37) ->  | Q98: =IF(Switch!V37="","",Switch!V37) -> 0
F99: =IF(Switch!D38="","",Switch!D38) ->  | J99: =IF(Switch!G38="","",Switch!G38) ->  | N99: =IF(Switch!U38="","",Switch!U38) ->  | Q99: =IF(Switch!V38="","",Switch!V38) -> 0
F100: =IF(Switch!D39="","",Switch!D39) ->  | J100: =IF(Switch!G39="","",Switch!G39) ->  | N100: =IF(Switch!U39="","",Switch!U39) ->  | Q100: =IF(Switch!V39="","",Switch!V39) -> 0
F101: =IF(Switch!D40="","",Switch!D40) ->  | J101: =IF(Switch!G40="","",Switch!G40) ->  | N101: =IF(Switch!U40="","",Switch!U40) ->  | Q101: =IF(Switch!V40="","",Switch!V40) -> 0
J102: Total | N102: =SUM(N87:O101) -> 0 | Q102: =SUM(Q87:U101) -> 0 | T102: =SUM(T87:U101) -> 0
F106: Switch To:
F109: Manco | J109: Portfolio Name | N109: Percentage | Q109: Rand Amount
F110: =IF(Instructions!C62="","",Instructions!C62) -> Allan Gray Unit Trust Management Limited | J110: =IF(Instructions!F62="","",Instructions!F62) -> Allan Gray Balanced Fund C | N110: =IF(Instructions!L62="","",Instructions!L62) -> 0.08 | Q110: =IF(Instructions!J62=0,"",Instructions!J62) -> 
F111: =IF(Instructions!C63="","",Instructions!C63) -> Coronation Management Company | J111: =IF(Instructions!F63="","",Instructions!F63) -> Coronation Balanced Plus Fund P | N111: =IF(Instructions!L63="","",Instructions!L63) -> 0.08 | Q111: =IF(Instructions!J63=0,"",Instructions!J63) -> 
F112: =IF(Instructions!C64="","",Instructions!C64) -> Investec Fund Managers | J112: =IF(Instructions!F64="","",Instructions!F64) -> Investec Global Franchise Feeder Fund H | N112: =IF(Instructions!L64="","",Instructions!L64) -> 0.04 | Q112: =IF(Instructions!J64=0,"",Instructions!J64) -> 
F113: =IF(Instructions!C65="","",Instructions!C65) -> Investec Fund Managers | J113: =IF(Instructions!F65="","",Instructions!F65) -> Investec Managed Fund H | N113: =IF(Instructions!L65="","",Instructions!L65) -> 0.08 | Q113: =IF(Instructions!J65=0,"",Instructions!J65) -> 
F114: =IF(Instructions!C66="","",Instructions!C66) -> Prescient Management Company Ltd | J114: =IF(Instructions!F66="","",Instructions!F66) -> Laurium Flexible Prescient Fund A1 | N114: =IF(Instructions!L66="","",Instructions!L66) -> 0.08 | Q114: =IF(Instructions!J66=0,"",Instructions!J66) -> 
F115: =IF(Instructions!C67="","",Instructions!C67) -> PSG Collective Investments Ltd | J115: =IF(Instructions!F67="","",Instructions!F67) -> PSG Global Flexible Feeder Fund B | N115: =IF(Instructions!L67="","",Instructions!L67) -> 0.04 | Q115: =IF(Instructions!J67=0,"",Instructions!J67) -> 
F116: =IF(Instructions!C68="","",Instructions!C68) -> Boutique Collective Investments (Pty) Ltd | J116: =IF(Instructions!F68="","",Instructions!F68) -> Reitway BCI Global Property Fund C | N116: =IF(Instructions!L68="","",Instructions!L68) -> 0.04 | Q116: =IF(Instructions!J68=0,"",Instructions!J68) -> 
F117: =IF(Instructions!C69="","",Instructions!C69) -> Satrix Managers (RF) (Pty) Ltd | J117: =IF(Instructions!F69="","",Instructions!F69) -> Satrix Equally Weighted TOP 40 Index Fund B1 | N117: =IF(Instructions!L69="","",Instructions!L69) -> 0.09 | Q117: =IF(Instructions!J69=0,"",Instructions!J69) -> 
F118: =IF(Instructions!C70="","",Instructions!C70) -> Satrix Managers (RF) (Pty) Ltd | J118: =IF(Instructions!F70="","",Instructions!F70) -> Satrix MSCI World Equity Index Feeder Fund B2 | N118: =IF(Instructions!L70="","",Instructions!L70) -> 0.05 | Q118: =IF(Instructions!J70=0,"",Instructions!J70) -> 
F119: =IF(Instructions!C71="","",Instructions!C71) -> Satrix Managers (RF) (Pty) Ltd | J119: =IF(Instructions!F71="","",Instructions!F71) -> Satrix Property Index Fund B1 | N119: =IF(Instructions!L71="","",Instructions!L71) -> 0.05 | Q119: =IF(Instructions!J71=0,"",Instructions!J71) -> 
F120: =IF(Instructions!C72="","",Instructions!C72) -> STANLIB Collective Investments | J120: =IF(Instructions!F72="","",Instructions!F72) -> STANLIB Absolute Plus Fund B1 | N120: =IF(Instructions!L72="","",Instructions!L72) -> 0.08 | Q120: =IF(Instructions!J72=0,"",Instructions!J72) -> 
F121: =IF(Instructions!C73="","",Instructions!C73) -> STANLIB Collective Investments | J121: =IF(Instructions!F73="","",Instructions!F73) -> STANLIB Income Fund B6 | N121: =IF(Instructions!L73="","",Instructions!L73) -> 0.2 | Q121: =IF(Instructions!J73=0,"",Instructions!J73) -> 
F122: =IF(Instructions!C74="","",Instructions!C74) -> STANLIB Collective Investments | J122: =IF(Instructions!F74="","",Instructions!F74) -> STANLIB S&P500 Index Feeder Fund B1 | N122: =IF(Instructions!L74="","",Instructions!L74) -> 0.05 | Q122: =IF(Instructions!J74=0,"",Instructions!J74) -> 
F123: =IF(Instructions!C75="","",Instructions!C75) -> Sygnia Asset Management (Pty) Limited | J123: =IF(Instructions!F75="","",Instructions!F75) -> Sygnia 4th Industrial Revolution Global Equity Fund A | N123: =IF(Instructions!L75="","",Instructions!L75) -> 0.04 | Q123: =IF(Instructions!J75=0,"",Instructions!J75) -> 
F124: =IF(Instructions!C76="","",Instructions!C76) ->  | J124: =IF(Instructions!F76="","",Instructions!F76) ->  | N124: =IF(Instructions!L76="","",Instructions!L76) ->  | Q124: =IF(Instructions!J76=0,"",Instructions!J76) -> 
J125: Total | N125: =SUM(N110:O124) -> 1 | Q125: =SUM(Q110:U124) -> 0 | T125: =SUM(T110:U124) -> 0
F129: CGT:
F131: Total CGT incurred: | I131: =SUM(Instructions!R16:S55) -> 0
F134: Instructions:
F136: Fund | I136: Total Amount Sold | K136: % Sold | M136: Funds Purchased | S136: Amount Bought | U136: % Bought
F137: =IF(Instructions!C16="","",Instructions!C16) -> Allan Gray Balanced Fund C | I137: =IF(Instructions!F16="","",Instructions!F16) -> 40.7834 | K137: =IF(Instructions!H16="","",Instructions!H16) -> 0.0142 | M137: =IF(Instructions!J16="","",Instructions!J16) -> Laurium Flexible Prescient Fund A1 | S137: =IF(Instructions!N16="","",Instructions!N16) -> 40.78 | U137: =IF(Instructions!P16="","",Instructions!P16) -> 1
F138: =IF(Instructions!C17="","",Instructions!C17) -> Coronation Balanced Plus Fund P | I138: =IF(Instructions!F17="","",Instructions!F17) -> 38.3134 | K138: =IF(Instructions!H17="","",Instructions!H17) -> 0.0133 | M138: =IF(Instructions!J17="","",Instructions!J17) -> Laurium Flexible Prescient Fund A1 | S138: =IF(Instructions!N17="","",Instructions!N17) -> 38.31 | U138: =IF(Instructions!P17="","",Instructions!P17) -> 1
F139: =IF(Instructions!C18="","",Instructions!C18) -> Investec Global Franchise Feeder Fund H | I139: =IF(Instructions!F18="","",Instructions!F18) -> 56.4267 | K139: =IF(Instructions!H18="","",Instructions!H18) -> 0.0382 | M139: =IF(Instructions!J18="","",Instructions!J18) -> Laurium Flexible Prescient Fund A1 | S139: =IF(Instructions!N18="","",Instructions!N18) -> 56.43 | U139: =IF(Instructions!P18="","",Instructions!P18) -> 1
F140: =IF(Instructions!C19="","",Instructions!C19) -> Investec Managed Fund H | I140: =IF(Instructions!F19="","",Instructions!F19) -> 54.7334 | K140: =IF(Instructions!H19="","",Instructions!H19) -> 0.0189 | M140: =IF(Instructions!J19="","",Instructions!J19) -> Laurium Flexible Prescient Fund A1 | S140: =IF(Instructions!N19="","",Instructions!N19) -> 54.73 | U140: =IF(Instructions!P19="","",Instructions!P19) -> 1
F141: =IF(Instructions!C20="","",Instructions!C20) -> PSG Flexible Fund E | I141: =IF(Instructions!F20="","",Instructions!F20) -> 2782.93 | K141: =IF(Instructions!H20="","",Instructions!H20) -> 1 | M141: =IF(Instructions!J20="","",Instructions!J20) -> Laurium Flexible Prescient Fund A1 | S141: =IF(Instructions!N20="","",Instructions!N20) -> 2649.25 | U141: =IF(Instructions!P20="","",Instructions!P20) -> 0.9519642966
F142: =IF(Instructions!C21="","",Instructions!C21) ->  | I142: =IF(Instructions!F21="","",Instructions!F21) ->  | K142: =IF(Instructions!H21="","",Instructions!H21) ->  | M142: =IF(Instructions!J21="","",Instructions!J21) -> Satrix Equally Weighted TOP 40 Index Fund B1 | S142: =IF(Instructions!N21="","",Instructions!N21) -> 53.94 | U142: =IF(Instructions!P21="","",Instructions!P21) -> 0.01938244943
F143: =IF(Instructions!C22="","",Instructions!C22) ->  | I143: =IF(Instructions!F22="","",Instructions!F22) ->  | K143: =IF(Instructions!H22="","",Instructions!H22) ->  | M143: =IF(Instructions!J22="","",Instructions!J22) -> Satrix Property Index Fund B1 | S143: =IF(Instructions!N22="","",Instructions!N22) -> 79.74 | U143: =IF(Instructions!P22="","",Instructions!P22) -> 0.02865325394
F144: =IF(Instructions!C23="","",Instructions!C23) -> PSG Global Flexible Feeder Fund B | I144: =IF(Instructions!F23="","",Instructions!F23) -> 6.6867 | K144: =IF(Instructions!H23="","",Instructions!H23) -> 0.0047 | M144: =IF(Instructions!J23="","",Instructions!J23) -> Satrix Property Index Fund B1 | S144: =IF(Instructions!N23="","",Instructions!N23) -> 6.69 | U144: =IF(Instructions!P23="","",Instructions!P23) -> 1
F145: =IF(Instructions!C24="","",Instructions!C24) -> Reitway BCI Global Property Fund C | I145: =IF(Instructions!F24="","",Instructions!F24) -> 22.0667 | K145: =IF(Instructions!H24="","",Instructions!H24) -> 0.0153 | M145: =IF(Instructions!J24="","",Instructions!J24) -> Satrix Property Index Fund B1 | S145: =IF(Instructions!N24="","",Instructions!N24) -> 10.01 | U145: =IF(Instructions!P24="","",Instructions!P24) -> 0.4535568645
F146: =IF(Instructions!C25="","",Instructions!C25) ->  | I146: =IF(Instructions!F25="","",Instructions!F25) ->  | K146: =IF(Instructions!H25="","",Instructions!H25) ->  | M146: =IF(Instructions!J25="","",Instructions!J25) -> STANLIB Income Fund B6 | S146: =IF(Instructions!N25="","",Instructions!N25) -> 4.92 | U146: =IF(Instructions!P25="","",Instructions!P25) -> 0.2229270503
F147: =IF(Instructions!C26="","",Instructions!C26) ->  | I147: =IF(Instructions!F26="","",Instructions!F26) ->  | K147: =IF(Instructions!H26="","",Instructions!H26) ->  | M147: =IF(Instructions!J26="","",Instructions!J26) -> Sygnia 4th Industrial Revolution Global Equity Fund A | S147: =IF(Instructions!N26="","",Instructions!N26) -> 7.13 | U147: =IF(Instructions!P26="","",Instructions!P26) -> 0.3230629814
F148: =IF(Instructions!C27="","",Instructions!C27) -> Satrix MSCI World Equity Index Feeder Fund B2 | I148: =IF(Instructions!F27="","",Instructions!F27) -> 47.2584 | K148: =IF(Instructions!H27="","",Instructions!H27) -> 0.0259 | M148: =IF(Instructions!J27="","",Instructions!J27) -> Satrix Equally Weighted TOP 40 Index Fund B1 | S148: =IF(Instructions!N27="","",Instructions!N27) -> 47.26 | U148: =IF(Instructions!P27="","",Instructions!P27) -> 1
F149: =IF(Instructions!C28="","",Instructions!C28) -> STANLIB S&P500 Index Feeder Fund B1 | I149: =IF(Instructions!F28="","",Instructions!F28) -> 41.1984 | K149: =IF(Instructions!H28="","",Instructions!H28) -> 0.0227 | M149: =IF(Instructions!J28="","",Instructions!J28) -> STANLIB Absolute Plus Fund B1 | S149: =IF(Instructions!N28="","",Instructions!N28) -> 4.07 | U149: =IF(Instructions!P28="","",Instructions!P28) -> 0.09878640777
F150: =IF(Instructions!C29="","",Instructions!C29) ->  | I150: =IF(Instructions!F29="","",Instructions!F29) ->  | K150: =IF(Instructions!H29="","",Instructions!H29) ->  | M150: =IF(Instructions!J29="","",Instructions!J29) -> STANLIB Income Fund B6 | S150: =IF(Instructions!N29="","",Instructions!N29) -> 37.13 | U150: =IF(Instructions!P29="","",Instructions!P29) -> 0.9012135922
F151: =IF(Instructions!C30="","",Instructions!C30) ->  | I151: =IF(Instructions!F30="","",Instructions!F30) ->  | K151: =IF(Instructions!H30="","",Instructions!H30) ->  | M151: =IF(Instructions!J30="","",Instructions!J30) ->  | S151: =IF(Instructions!N30="","",Instructions!N30) ->  | U151: =IF(Instructions!P30="","",Instructions!P30) -> 
F152: =IF(Instructions!C31="","",Instructions!C31) ->  | I152: =IF(Instructions!F31="","",Instructions!F31) ->  | K152: =IF(Instructions!H31="","",Instructions!H31) ->  | M152: =IF(Instructions!J31="","",Instructions!J31) ->  | S152: =IF(Instructions!N31="","",Instructions!N31) ->  | U152: =IF(Instructions!P31="","",Instructions!P31) -> 
F153: =IF(Instructions!C32="","",Instructions!C32) ->  | I153: =IF(Instructions!F32="","",Instructions!F32) ->  | K153: =IF(Instructions!H32="","",Instructions!H32) ->  | M153: =IF(Instructions!J32="","",Instructions!J32) ->  | S153: =IF(Instructions!N32="","",Instructions!N32) ->  | U153: =IF(Instructions!P32="","",Instructions!P32) -> 
F154: =IF(Instructions!C33="","",Instructions!C33) ->  | I154: =IF(Instructions!F33="","",Instructions!F33) ->  | K154: =IF(Instructions!H33="","",Instructions!H33) ->  | M154: =IF(Instructions!J33="","",Instructions!J33) ->  | S154: =IF(Instructions!N33="","",Instructions!N33) ->  | U154: =IF(Instructions!P33="","",Instructions!P33) -> 
F155: =IF(Instructions!C34="","",Instructions!C34) ->  | I155: =IF(Instructions!F34="","",Instructions!F34) ->  | K155: =IF(Instructions!H34="","",Instructions!H34) ->  | M155: =IF(Instructions!J34="","",Instructions!J34) ->  | S155: =IF(Instructions!N34="","",Instructions!N34) ->  | U155: =IF(Instructions!P34="","",Instructions!P34) -> 
F156: =IF(Instructions!C35="","",Instructions!C35) ->  | I156: =IF(Instructions!F35="","",Instructions!F35) ->  | K156: =IF(Instructions!H35="","",Instructions!H35) ->  | M156: =IF(Instructions!J35="","",Instructions!J35) ->  | S156: =IF(Instructions!N35="","",Instructions!N35) ->  | U156: =IF(Instructions!P35="","",Instructions!P35) -> 
F157: =IF(Instructions!C36="","",Instructions!C36) ->  | I157: =IF(Instructions!F36="","",Instructions!F36) ->  | K157: =IF(Instructions!H36="","",Instructions!H36) ->  | M157: =IF(Instructions!J36="","",Instructions!J36) ->  | S157: =IF(Instructions!N36="","",Instructions!N36) ->  | U157: =IF(Instructions!P36="","",Instructions!P36) -> 
F158: =IF(Instructions!C37="","",Instructions!C37) ->  | I158: =IF(Instructions!F37="","",Instructions!F37) ->  | K158: =IF(Instructions!H37="","",Instructions!H37) ->  | M158: =IF(Instructions!J37="","",Instructions!J37) ->  | S158: =IF(Instructions!N37="","",Instructions!N37) ->  | U158: =IF(Instructions!P37="","",Instructions!P37) -> 
F159: =IF(Instructions!C38="","",Instructions!C38) ->  | I159: =IF(Instructions!F38="","",Instructions!F38) ->  | K159: =IF(Instructions!H38="","",Instructions!H38) ->  | M159: =IF(Instructions!J38="","",Instructions!J38) ->  | S159: =IF(Instructions!N38="","",Instructions!N38) ->  | U159: =IF(Instructions!P38="","",Instructions!P38) -> 
F160: =IF(Instructions!C39="","",Instructions!C39) ->  | I160: =IF(Instructions!F39="","",Instructions!F39) ->  | K160: =IF(Instructions!H39="","",Instructions!H39) ->  | M160: =IF(Instructions!J39="","",Instructions!J39) ->  | S160: =IF(Instructions!N39="","",Instructions!N39) ->  | U160: =IF(Instructions!P39="","",Instructions!P39) -> 
F161: =IF(Instructions!C40="","",Instructions!C40) ->  | I161: =IF(Instructions!F40="","",Instructions!F40) ->  | K161: =IF(Instructions!H40="","",Instructions!H40) ->  | M161: =IF(Instructions!J40="","",Instructions!J40) ->  | S161: =IF(Instructions!N40="","",Instructions!N40) ->  | U161: =IF(Instructions!P40="","",Instructions!P40) -> 
F162: =IF(Instructions!C41="","",Instructions!C41) ->  | I162: =IF(Instructions!F41="","",Instructions!F41) ->  | K162: =IF(Instructions!H41="","",Instructions!H41) ->  | M162: =IF(Instructions!J41="","",Instructions!J41) ->  | S162: =IF(Instructions!N41="","",Instructions!N41) ->  | U162: =IF(Instructions!P41="","",Instructions!P41) -> 
F163: =IF(Instructions!C42="","",Instructions!C42) ->  | I163: =IF(Instructions!F42="","",Instructions!F42) ->  | K163: =IF(Instructions!H42="","",Instructions!H42) ->  | M163: =IF(Instructions!J42="","",Instructions!J42) ->  | S163: =IF(Instructions!N42="","",Instructions!N42) ->  | U163: =IF(Instructions!P42="","",Instructions!P42) -> 
F164: =IF(Instructions!C43="","",Instructions!C43) ->  | I164: =IF(Instructions!F43="","",Instructions!F43) ->  | K164: =IF(Instructions!H43="","",Instructions!H43) ->  | M164: =IF(Instructions!J43="","",Instructions!J43) ->  | S164: =IF(Instructions!N43="","",Instructions!N43) ->  | U164: =IF(Instructions!P43="","",Instructions!P43) -> 
F165: =IF(Instructions!C44="","",Instructions!C44) ->  | I165: =IF(Instructions!F44="","",Instructions!F44) ->  | K165: =IF(Instructions!H44="","",Instructions!H44) ->  | M165: =IF(Instructions!J44="","",Instructions!J44) ->  | S165: =IF(Instructions!N44="","",Instructions!N44) ->  | U165: =IF(Instructions!P44="","",Instructions!P44) -> 
F166: =IF(Instructions!C45="","",Instructions!C45) ->  | I166: =IF(Instructions!F45="","",Instructions!F45) ->  | K166: =IF(Instructions!H45="","",Instructions!H45) ->  | M166: =IF(Instructions!J45="","",Instructions!J45) ->  | S166: =IF(Instructions!N45="","",Instructions!N45) ->  | U166: =IF(Instructions!P45="","",Instructions!P45) -> 
F167: =IF(Instructions!C46="","",Instructions!C46) ->  | I167: =IF(Instructions!F46="","",Instructions!F46) ->  | K167: =IF(Instructions!H46="","",Instructions!H46) ->  | M167: =IF(Instructions!J46="","",Instructions!J46) ->  | S167: =IF(Instructions!N46="","",Instructions!N46) ->  | U167: =IF(Instructions!P46="","",Instructions!P46) -> 
F168: =IF(Instructions!C47="","",Instructions!C47) ->  | I168: =IF(Instructions!F47="","",Instructions!F47) ->  | K168: =IF(Instructions!H47="","",Instructions!H47) ->  | M168: =IF(Instructions!J47="","",Instructions!J47) ->  | S168: =IF(Instructions!N47="","",Instructions!N47) ->  | U168: =IF(Instructions!P47="","",Instructions!P47) -> 
F169: =IF(Instructions!C48="","",Instructions!C48) ->  | I169: =IF(Instructions!F48="","",Instructions!F48) ->  | K169: =IF(Instructions!H48="","",Instructions!H48) ->  | M169: =IF(Instructions!J48="","",Instructions!J48) ->  | S169: =IF(Instructions!N48="","",Instructions!N48) ->  | U169: =IF(Instructions!P48="","",Instructions!P48) -> 
F170: =IF(Instructions!C49="","",Instructions!C49) ->  | I170: =IF(Instructions!F49="","",Instructions!F49) ->  | K170: =IF(Instructions!H49="","",Instructions!H49) ->  | M170: =IF(Instructions!J49="","",Instructions!J49) ->  | S170: =IF(Instructions!N49="","",Instructions!N49) ->  | U170: =IF(Instructions!P49="","",Instructions!P49) -> 
F171: =IF(Instructions!C50="","",Instructions!C50) ->  | I171: =IF(Instructions!F50="","",Instructions!F50) ->  | K171: =IF(Instructions!H50="","",Instructions!H50) ->  | M171: =IF(Instructions!J50="","",Instructions!J50) ->  | S171: =IF(Instructions!N50="","",Instructions!N50) ->  | U171: =IF(Instructions!P50="","",Instructions!P50) -> 
F172: =IF(Instructions!C51="","",Instructions!C51) ->  | I172: =IF(Instructions!F51="","",Instructions!F51) ->  | K172: =IF(Instructions!H51="","",Instructions!H51) ->  | M172: =IF(Instructions!J51="","",Instructions!J51) ->  | S172: =IF(Instructions!N51="","",Instructions!N51) ->  | U172: =IF(Instructions!P51="","",Instructions!P51) -> 
F173: =IF(Instructions!C52="","",Instructions!C52) ->  | I173: =IF(Instructions!F52="","",Instructions!F52) ->  | K173: =IF(Instructions!H52="","",Instructions!H52) ->  | M173: =IF(Instructions!J52="","",Instructions!J52) ->  | S173: =IF(Instructions!N52="","",Instructions!N52) ->  | U173: =IF(Instructions!P52="","",Instructions!P52) -> 
F174: =IF(Instructions!C53="","",Instructions!C53) ->  | I174: =IF(Instructions!F53="","",Instructions!F53) ->  | K174: =IF(Instructions!H53="","",Instructions!H53) ->  | M174: =IF(Instructions!J53="","",Instructions!J53) ->  | S174: =IF(Instructions!N53="","",Instructions!N53) ->  | U174: =IF(Instructions!P53="","",Instructions!P53) -> 
F175: =IF(Instructions!C54="","",Instructions!C54) ->  | I175: =IF(Instructions!F54="","",Instructions!F54) ->  | K175: =IF(Instructions!H54="","",Instructions!H54) ->  | M175: =IF(Instructions!J54="","",Instructions!J54) ->  | S175: =IF(Instructions!N54="","",Instructions!N54) ->  | U175: =IF(Instructions!P54="","",Instructions!P54) -> 
F176: =IF(Instructions!C55="","",Instructions!C55) ->  | I176: =IF(Instructions!F55="","",Instructions!F55) ->  | K176: =IF(Instructions!H55="","",Instructions!H55) ->  | M176: =IF(Instructions!J55="","",Instructions!J55) ->  | S176: =IF(Instructions!N55="","",Instructions!N55) ->  | U176: =IF(Instructions!P55="","",Instructions!P55) -> 
E181: Signed at | P181: On
E183: Full Name
E186: Signature
E191: Introduction to STANLIB
E193: STANLIB is wholly owned by the Liberty Group of which the Standard Bank Group is a major shareholder, together with a diversified spread of BEE organisations dedicated to the advancement of the previously disadvantaged. STANLIB has over 400 000 clients and over R300 billion of assets under management, making us the third largest manager of investments in South Africa and the largest unit trust company in the country. We have a presence in eight African countries.
E194: STANLIB provides access to one of the most comprehensive ranges of unit trusts in the country. We also offer our clients the opportunity to invest in a wide range of linked products, retirement vehicles and funds from other companies in order to meet clients' diverse needs.
E198: STANLIB stands behind one of the most innovative financial services industry projects, FundiSA, which aims to encourage savings for tertiary education by offering a bonus to investors. STANLIB also has an investment academy for previously disadvantaged students and provides financial aid to learners through bursaries.
E203: The information provided herein is the possession of STANLIB and are protected by copyright and intellectual property laws. The information may not be reproduced or distributed without the explicit consent of STANLIB.
E206: STANLIB has taken care to ensure that all information provided herein is true and accurate. STANLIB will therefore not be held responsible for any inaccuracies in the information herein. STANLIB shall not be responsible and disclaims all loss, liability or expense of any nature whatsoever which may be attributable (directly, indirectly or consequentially) to the use of the information provided.
E210: STANLIB Wealth Management Limited is an authorised Financial Services Provider in terms of the Financial Advisory and Intermediary Services Act No. 37 of 2002 (Licence No. 26/10/590).
E212: PLEASE NOTE: The objective of this is to assist the user with calculating the switch/rebalance instruction. The user is still required to provide STANLIB with the relevant form duly completed, sign and submit a switch instruction via our website, www.stanlib.com or STANLIB Online.

Sheet Funds - R
A1: Fund List Complete | B1: Retail JSE Code | C1: INVESTMENT_MANAGER | E1: Portfolio Range | F1: INVESTMENT_MANAGER | G1: Start Row | H1: Selected Funds1 | I1: Selected Funds2 | J1: Selected Funds3 | K1: Selected Funds4 | L1: Selected Funds5 | M1: Selected Funds6 | N1: Selected Funds7 | O1: Selected Funds8 | P1: Selected Funds9 | Q1: Selected Funds10 | R1: Selected Funds11 | S1: Selected Funds12 | T1: Selected Funds13 | U1: Selected Funds14 | V1: Selected Funds15 | W1: Selected Funds16 | X1: Selected Funds17 | Y1: Selected Funds18 | Z1: Selected Funds19 | AA1: Selected Funds20 | AB1: Selected Funds21 | AC1: Selected Funds22 | AD1: Selected Funds23 | AE1: Selected Funds24 | AF1: Selected Funds25 | AG1: Selected Funds26 | AH1: Selected Funds27 | AI1: Selected Funds28 | AJ1: Selected Funds29 | AK1: Selected Funds30
A2: Noble PP STANLIB All Weather FoF A | B2: NSWA1 | C2: STANLIB Collective Investments | D2: =ROW() -> 2 | F2: STANLIB Collective Investments | G2: =VLOOKUP(F2,$C$2:$D$599,2,FALSE) -> 2 | H2: =IF(INDIRECT("c" & (VLOOKUP(Rebalance!$D$26,$F$2:$G$48,2,FALSE)+ROW()-2))=Rebalance!$D$26,INDIRECT("a" & (VLOOKUP(Rebalance!$D$26,$F$2:$G$48,2,FALSE)+ROW()-2)),"") ->  | I2: =IF(INDIRECT("c" & (VLOOKUP(Rebalance!$D$27,$F$2:$G$48,2,FALSE)+ROW()-2))=Rebalance!$D$27,INDIRECT("a" & (VLOOKUP(Rebalance!$D$27,$F$2:$G$48,2,FALSE)+ROW()-2)),"") ->  | J2: =IF(INDIRECT("c" & (VLOOKUP(Rebalance!$D$28,$F$2:$G$48,2,FALSE)+ROW()-2))=Rebalance!$D$28,INDIRECT("a" & (VLOOKUP(Rebalance!$D$28,$F$2:$G$48,2,FALSE)+ROW()-2)),"") ->  | K2: =IF(INDIRECT("c" & (VLOOKUP(Rebalance!$D$29,$F$2:$G$48,2,FALSE)+ROW()-2))=Rebalance!$D$29,INDIRECT("a" & (VLOOKUP(Rebalance!$D$29,$F$2:$G$48,2,FALSE)+ROW()-2)),"") ->  | L2: =IF(INDIRECT("c" & (VLOOKUP(Rebalance!$D$30,$F$2:$G$48,2,FALSE)+ROW()-2))=Rebalance!$D$30,INDIRECT("a" & (VLOOKUP(Rebalance!$D$30,$F$2:$G$48,2,FALSE)+ROW()-2)),"") ->  | M2: =IF(INDIRECT("c" & (VLOOKUP(Rebalance!$D$31,$F$2:$G$48,2,FALSE)+ROW()-2))=Rebalance!$D$31,INDIRECT("a" & (VLOOKUP(Rebalance!$D$31,$F$2:$G$48,2,FALSE)+ROW()-2)),"") ->  | N2: =IF(INDIRECT("c" & (VLOOKUP(Rebalance!$D$32,$F$2:$G$48,2,FALSE)+ROW()-2))=Rebalance!$D$32,INDIRECT("a" & (VLOOKUP(Rebalance!$D$32,$F$2:$G$48,2,FALSE)+ROW()-2)),"") ->  | O2: =IF(INDIRECT("c" & (VLOOKUP(Rebalance!$D$33,$F$2:$G$48,2,FALSE)+ROW()-2))=Rebalance!$D$33,INDIRECT("a" & (VLOOKUP(Rebalance!$D$33,$F$2:$G$48,2,FALSE)+ROW()-2)),"") ->  | P2: =IF(INDIRECT("c" & (VLOOKUP(Rebalance!$D$34,$F$2:$G$48,2,FALSE)+ROW()-2))=Rebalance!$D$34,INDIRECT("a" & (VLOOKUP(Rebalance!$D$34,$F$2:$G$48,2,FALSE)+ROW()-2)),"") ->  | Q2: =IF(INDIRECT("c" & (VLOOKUP(Rebalance!$D$35,$F$2:$G$48,2,FALSE)+ROW()-2))=Rebalance!$D$35,INDIRECT("a" & (VLOOKUP(Rebalance!$D$35,$F$2:$G$48,2,FALSE)+ROW()-2)),"") ->  | R2: =IF(INDIRECT("c" & (VLOOKUP(Rebalance!$D$36,$F$2:$G$48,2,FALSE)+ROW()-2))=Rebalance!$D$36,INDIRECT("a" & (VLOOKUP(Rebalance!$D$36,$F$2:$G$48,2,FALSE)+ROW()-2)),"") ->  | S2: =IF(INDIRECT("c" & (VLOOKUP(Rebalance!$D$37,$F$2:$G$48,2,FALSE)+ROW()-2))=Rebalance!$D$37,INDIRECT("a" & (VLOOKUP(Rebalance!$D$37,$F$2:$G$48,2,FALSE)+ROW()-2)),"") ->  | T2: =IF(INDIRECT("c" & (VLOOKUP(Rebalance!$D$38,$F$2:$G$48,2,FALSE)+ROW()-2))=Rebalance!$D$38,INDIRECT("a" & (VLOOKUP(Rebalance!$D$38,$F$2:$G$48,2,FALSE)+ROW()-2)),"") ->  | U2: =IF(INDIRECT("c" & (VLOOKUP(Rebalance!$D$39,$F$2:$G$48,2,FALSE)+ROW()-2))=Rebalance!$D$39,INDIRECT("a" & (VLOOKUP(Rebalance!$D$39,$F$2:$G$48,2,FALSE)+ROW()-2)),"") ->  | V2: =IF(INDIRECT("c" & (VLOOKUP(Rebalance!$D$40,$F$2:$G$48,2,FALSE)+ROW()-2))=Rebalance!$D$40,INDIRECT("a" & (VLOOKUP(Rebalance!$D$40,$F$2:$G$48,2,FALSE)+ROW()-2)),"") ->  | W2: =IF(INDIRECT("c" & (VLOOKUP(Rebalance!$D$52,$F$2:$G$48,2,FALSE)+ROW()-2))=Rebalance!$D$52,INDIRECT("a" & (VLOOKUP(Rebalance!$D$52,$F$2:$G$48,2,FALSE)+ROW()-2)),"") ->  | X2: =IF(INDIRECT("c" & (VLOOKUP(Rebalance!$D$53,$F$2:$G$48,2,FALSE)+ROW()-2))=Rebalance!$D$53,INDIRECT("a" & (VLOOKUP(Rebalance!$D$53,$F$2:$G$48,2,FALSE)+ROW()-2)),"") ->  | Y2: =IF(INDIRECT("c" & (VLOOKUP(Rebalance!$D$54,$F$2:$G$48,2,FALSE)+ROW()-2))=Rebalance!$D$54,INDIRECT("a" & (VLOOKUP(Rebalance!$D$54,$F$2:$G$48,2,FALSE)+ROW()-2)),"") ->  | Z2: =IF(INDIRECT("c" & (VLOOKUP(Rebalance!$D$55,$F$2:$G$48,2,FALSE)+ROW()-2))=Rebalance!$D$55,INDIRECT("a" & (VLOOKUP(Rebalance!$D$55,$F$2:$G$48,2,FALSE)+ROW()-2)),"") ->  | AA2: =IF(INDIRECT("c" & (VLOOKUP(Rebalance!$D$56,$F$2:$G$48,2,FALSE)+ROW()-2))=Rebalance!$D$56,INDIRECT("a" & (VLOOKUP(Rebalance!$D$56,$F$2:$G$48,2,FALSE)+ROW()-2)),"") ->  | AB2: =IF(INDIRECT("c" & (VLOOKUP(Rebalance!$D$57,$F$2:$G$48,2,FALSE)+ROW()-2))=Rebalance!$D$57,INDIRECT("a" & (VLOOKUP(Rebalance!$D$57,$F$2:$G$48,2,FALSE)+ROW()-2)),"") ->  | AC2: =IF(INDIRECT("c" & (VLOOKUP(Rebalance!$D$58,$F$2:$G$48,2,FALSE)+ROW()-2))=Rebalance!$D$58,INDIRECT("a" & (VLOOKUP(Rebalance!$D$58,$F$2:$G$48,2,FALSE)+ROW()-2)),"") ->  | AD2: =IF(INDIRECT("c" & (VLOOKUP(Rebalance!$D$59,$F$2:$G$48,2,FALSE)+ROW()-2))=Rebalance!$D$59,INDIRECT("a" & (VLOOKUP(Rebalance!$D$59,$F$2:$G$48,2,FALSE)+ROW()-2)),"") ->  | AE2: =IF(INDIRECT("c" & (VLOOKUP(Rebalance!$D$60,$F$2:$G$48,2,FALSE)+ROW()-2))=Rebalance!$D$60,INDIRECT("a" & (VLOOKUP(Rebalance!$D$60,$F$2:$G$48,2,FALSE)+ROW()-2)),"") ->  | AF2: =IF(INDIRECT("c" & (VLOOKUP(Rebalance!$D$61,$F$2:$G$48,2,FALSE)+ROW()-2))=Rebalance!$D$61,INDIRECT("a" & (VLOOKUP(Rebalance!$D$61,$F$2:$G$48,2,FALSE)+ROW()-2)),"") ->  | AG2: =IF(INDIRECT("c" & (VLOOKUP(Rebalance!$D$62,$F$2:$G$48,2,FALSE)+ROW()-2))=Rebalance!$D$62,INDIRECT("a" & (VLOOKUP(Rebalance!$D$62,$F$2:$G$48,2,FALSE)+ROW()-2)),"") ->  | AH2: =IF(INDIRECT("c" & (VLOOKUP(Rebalance!$D$63,$F$2:$G$48,2,FALSE)+ROW()-2))=Rebalance!$D$63,INDIRECT("a" & (VLOOKUP(Rebalance!$D$63,$F$2:$G$48,2,FALSE)+ROW()-2)),"") ->  | AI2: =IF(INDIRECT("c" & (VLOOKUP(Rebalance!$D$64,$F$2:$G$48,2,FALSE)+ROW()-2))=Rebalance!$D$64,INDIRECT("a" & (VLOOKUP(Rebalance!$D$64,$F$2:$G$48,2,FALSE)+ROW()-2)),"") ->  | AJ2: =IF(INDIRECT("c" & (VLOOKUP(Rebalance!$D$65,$F$2:$G$48,2,FALSE)+ROW()-2))=Rebalance!$D$65,INDIRECT("a" & (VLOOKUP(Rebalance!$D$65,$F$2:$G$48,2,FALSE)+ROW()-2)),"") ->  | AK2: =IF(INDIRECT("c" & (VLOOKUP(Rebalance!$D$66,$F$2:$G$48,2,FALSE)+ROW()-2))=Rebalance!$D$66,INDIRECT("a" & (VLOOKUP(Rebalance!$D$66,$F$2:$G$48,2,FALSE)+ROW()-2)),"") -> 
A3: Noble PP STANLIB All Weather FoF A1 | B3: NSWA1 | C3: STANLIB Collective Investments | D3: =ROW() -> 3 | F3: ABSA Fund Managers | G3: =VLOOKUP(F3,$C$2:$D$599,2,FALSE) -> 81 | H3: =IF(INDIRECT("c" & (VLOOKUP(Rebalance!$D$26,$F$2:$G$48,2,FALSE)+ROW()-2))=Rebalance!$D$26,INDIRECT("a" & (VLOOKUP(Rebalance!$D$26,$F$2:$G$48,2,FALSE)+ROW()-2)),"") ->  | I3: =IF(INDIRECT("c" & (VLOOKUP(Rebalance!$D$27,$F$2:$G$48,2,FALSE)+ROW()-2))=Rebalance!$D$27,INDIRECT("a" & (VLOOKUP(Rebalance!$D$27,$F$2:$G$48,2,FALSE)+ROW()-2)),"") ->  | J3: =IF(INDIRECT("c" & (VLOOKUP(Rebalance!$D$28,$F$2:$G$48,2,FALSE)+ROW()-2))=Rebalance!$D$28,INDIRECT("a" & (VLOOKUP(Rebalance!$D$28,$F$2:$G$48,2,FALSE)+ROW()-2)),"") ->  | K3: =IF(INDIRECT("c" & (VLOOKUP(Rebalance!$D$29,$F$2:$G$48,2,FALSE)+ROW()-2))=Rebalance!$D$29,INDIRECT("a" & (VLOOKUP(Rebalance!$D$29,$F$2:$G$48,2,FALSE)+ROW()-2)),"") ->  | L3: =IF(INDIRECT("c" & (VLOOKUP(Rebalance!$D$30,$F$2:$G$48,2,FALSE)+ROW()-2))=Rebalance!$D$30,INDIRECT("a" & (VLOOKUP(Rebalance!$D$30,$F$2:$G$48,2,FALSE)+ROW()-2)),"") ->  | M3: =IF(INDIRECT("c" & (VLOOKUP(Rebalance!$D$31,$F$2:$G$48,2,FALSE)+ROW()-2))=Rebalance!$D$31,INDIRECT("a" & (VLOOKUP(Rebalance!$D$31,$F$2:$G$48,2,FALSE)+ROW()-2)),"") ->  | N3: =IF(INDIRECT("c" & (VLOOKUP(Rebalance!$D$32,$F$2:$G$48,2,FALSE)+ROW()-2))=Rebalance!$D$32,INDIRECT("a" & (VLOOKUP(Rebalance!$D$32,$F$2:$G$48,2,FALSE)+ROW()-2)),"") ->  | O3: =IF(INDIRECT("c" & (VLOOKUP(Rebalance!$D$33,$F$2:$G$48,2,FALSE)+ROW()-2))=Rebalance!$D$33,INDIRECT("a" & (VLOOKUP(Rebalance!$D$33,$F$2:$G$48,2,FALSE)+ROW()-2)),"") ->  | P3: =IF(INDIRECT("c" & (VLOOKUP(Rebalance!$D$34,$F$2:$G$48,2,FALSE)+ROW()-2))=Rebalance!$D$34,INDIRECT("a" & (VLOOKUP(Rebalance!$D$34,$F$2:$G$48,2,FALSE)+ROW()-2)),"") ->  | Q3: =IF(INDIRECT("c" & (VLOOKUP(Rebalance!$D$35,$F$2:$G$48,2,FALSE)+ROW()-2))=Rebalance!$D$35,INDIRECT("a" & (VLOOKUP(Rebalance!$D$35,$F$2:$G$48,2,FALSE)+ROW()-2)),"") ->  | R3: =IF(INDIRECT("c" & (VLOOKUP(Rebalance!$D$36,$F$2:$G$48,2,FALSE)+ROW()-2))=Rebalance!$D$36,INDIRECT("a" & (VLOOKUP(Rebalance!$D$36,$F$2:$G$48,2,FALSE)+ROW()-2)),"") ->  | S3: =IF(INDIRECT("c" & (VLOOKUP(Rebalance!$D$37,$F$2:$G$48,2,FALSE)+ROW()-2))=Rebalance!$D$37,INDIRECT("a" & (VLOOKUP(Rebalance!$D$37,$F$2:$G$48,2,FALSE)+ROW()-2)),"") ->  | T3: =IF(INDIRECT("c" & (VLOOKUP(Rebalance!$D$38,$F$2:$G$48,2,FALSE)+ROW()-2))=Rebalance!$D$38,INDIRECT("a" & (VLOOKUP(Rebalance!$D$38,$F$2:$G$48,2,FALSE)+ROW()-2)),"") ->  | U3: =IF(INDIRECT("c" & (VLOOKUP(Rebalance!$D$39,$F$2:$G$48,2,FALSE)+ROW()-2))=Rebalance!$D$39,INDIRECT("a" & (VLOOKUP(Rebalance!$D$39,$F$2:$G$48,2,FALSE)+ROW()-2)),"") ->  | V3: =IF(INDIRECT("c" & (VLOOKUP(Rebalance!$D$40,$F$2:$G$48,2,FALSE)+ROW()-2))=Rebalance!$D$40,INDIRECT("a" & (VLOOKUP(Rebalance!$D$40,$F$2:$G$48,2,FALSE)+ROW()-2)),"") ->  | W3: =IF(INDIRECT("c" & (VLOOKUP(Rebalance!$D$52,$F$2:$G$48,2,FALSE)+ROW()-2))=Rebalance!$D$52,INDIRECT("a" & (VLOOKUP(Rebalance!$D$52,$F$2:$G$48,2,FALSE)+ROW()-2)),"") ->  | X3: =IF(INDIRECT("c" & (VLOOKUP(Rebalance!$D$53,$F$2:$G$48,2,FALSE)+ROW()-2))=Rebalance!$D$53,INDIRECT("a" & (VLOOKUP(Rebalance!$D$53,$F$2:$G$48,2,FALSE)+ROW()-2)),"") ->  | Y3: =IF(INDIRECT("c" & (VLOOKUP(Rebalance!$D$54,$F$2:$G$48,2,FALSE)+ROW()-2))=Rebalance!$D$54,INDIRECT("a" & (VLOOKUP(Rebalance!$D$54,$F$2:$G$48,2,FALSE)+ROW()-2)),"") ->  | Z3: =IF(INDIRECT("c" & (VLOOKUP(Rebalance!$D$55,$F$2:$G$48,2,FALSE)+ROW()-2))=Rebalance!$D$55,INDIRECT("a" & (VLOOKUP(Rebalance!$D$55,$F$2:$G$48,2,FALSE)+ROW()-2)),"") ->  | AA3: =IF(INDIRECT("c" & (VLOOKUP(Rebalance!$D$56,$F$2:$G$48,2,FALSE)+ROW()-2))=Rebalance!$D$56,INDIRECT("a" & (VLOOKUP(Rebalance!$D$56,$F$2:$G$48,2,FALSE)+ROW()-2)),"") ->  | AB3: =IF(INDIRECT("c" & (VLOOKUP(Rebalance!$D$57,$F$2:$G$48,2,FALSE)+ROW()-2))=Rebalance!$D$57,INDIRECT("a" & (VLOOKUP(Rebalance!$D$57,$F$2:$G$48,2,FALSE)+ROW()-2)),"") ->  | AC3: =IF(INDIRECT("c" & (VLOOKUP(Rebalance!$D$58,$F$2:$G$48,2,FALSE)+ROW()-2))=Rebalance!$D$58,INDIRECT("a" & (VLOOKUP(Rebalance!$D$58,$F$2:$G$48,2,FALSE)+ROW()-2)),"") ->  | AD3: =IF(INDIRECT("c" & (VLOOKUP(Rebalance!$D$59,$F$2:$G$48,2,FALSE)+ROW()-2))=Rebalance!$D$59,INDIRECT("a" & (VLOOKUP(Rebalance!$D$59,$F$2:$G$48,2,FALSE)+ROW()-2)),"") ->  | AE3: =IF(INDIRECT("c" & (VLOOKUP(Rebalance!$D$60,$F$2:$G$48,2,FALSE)+ROW()-2))=Rebalance!$D$60,INDIRECT("a" & (VLOOKUP(Rebalance!$D$60,$F$2:$G$48,2,FALSE)+ROW()-2)),"") ->  | AF3: =IF(INDIRECT("c" & (VLOOKUP(Rebalance!$D$61,$F$2:$G$48,2,FALSE)+ROW()-2))=Rebalance!$D$61,INDIRECT("a" & (VLOOKUP(Rebalance!$D$61,$F$2:$G$48,2,FALSE)+ROW()-2)),"") ->  | AG3: =IF(INDIRECT("c" & (VLOOKUP(Rebalance!$D$62,$F$2:$G$48,2,FALSE)+ROW()-2))=Rebalance!$D$62,INDIRECT("a" & (VLOOKUP(Rebalance!$D$62,$F$2:$G$48,2,FALSE)+ROW()-2)),"") ->  | AH3: =IF(INDIRECT("c" & (VLOOKUP(Rebalance!$D$63,$F$2:$G$48,2,FALSE)+ROW()-2))=Rebalance!$D$63,INDIRECT("a" & (VLOOKUP(Rebalance!$D$63,$F$2:$G$48,2,FALSE)+ROW()-2)),"") ->  | AI3: =IF(INDIRECT("c" & (VLOOKUP(Rebalance!$D$64,$F$2:$G$48,2,FALSE)+ROW()-2))=Rebalance!$D$64,INDIRECT("a" & (VLOOKUP(Rebalance!$D$64,$F$2:$G$48,2,FALSE)+ROW()-2)),"") ->  | AJ3: =IF(INDIRECT("c" & (VLOOKUP(Rebalance!$D$65,$F$2:$G$48,2,FALSE)+ROW()-2))=Rebalance!$D$65,INDIRECT("a" & (VLOOKUP(Rebalance!$D$65,$F$2:$G$48,2,FALSE)+ROW()-2)),"") ->  | AK3: =IF(INDIRECT("c" & (VLOOKUP(Rebalance!$D$66,$F$2:$G$48,2,FALSE)+ROW()-2))=Rebalance!$D$66,INDIRECT("a" & (VLOOKUP(Rebalance!$D$66,$F$2:$G$48,2,FALSE)+ROW()-2)),"") -> 
A4: Noble PP STANLIB Balanced FoF A1 | B4: NPBA1 | C4: STANLIB Collective Investments | D4: =ROW() -> 4 | F4: Allan Gray Unit Trust Management Limited | G4: =VLOOKUP(F4,$C$2:$D$599,2,FALSE) -> 87 | H4: =IF(INDIRECT("c" & (VLOOKUP(Rebalance!$D$26,$F$2:$G$48,2,FALSE)+ROW()-2))=Rebalance!$D$26,INDIRECT("a" & (VLOOKUP(Rebalance!$D$26,$F$2:$G$48,2,FALSE)+ROW()-2)),"") ->  | I4: =IF(INDIRECT("c" & (VLOOKUP(Rebalance!$D$27,$F$2:$G$48,2,FALSE)+ROW()-2))=Rebalance!$D$27,INDIRECT("a" & (VLOOKUP(Rebalance!$D$27,$F$2:$G$48,2,FALSE)+ROW()-2)),"") ->  | J4: =IF(INDIRECT("c" & (VLOOKUP(Rebalance!$D$28,$F$2:$G$48,2,FALSE)+ROW()-2))=Rebalance!$D$28,INDIRECT("a" & (VLOOKUP(Rebalance!$D$28,$F$2:$G$48,2,FALSE)+ROW()-2)),"") ->  | K4: =IF(INDIRECT("c" & (VLOOKUP(Rebalance!$D$29,$F$2:$G$48,2,FALSE)+ROW()-2))=Rebalance!$D$29,INDIRECT("a" & (VLOOKUP(Rebalance!$D$29,$F$2:$G$48,2,FALSE)+ROW()-2)),"") ->  | L4: =IF(INDIRECT("c" & (VLOOKUP(Rebalance!$D$30,$F$2:$G$48,2,FALSE)+ROW()-2))=Rebalance!$D$30,INDIRECT("a" & (VLOOKUP(Rebalance!$D$30,$F$2:$G$48,2,FALSE)+ROW()-2)),"") ->  | M4: =IF(INDIRECT("c" & (VLOOKUP(Rebalance!$D$31,$F$2:$G$48,2,FALSE)+ROW()-2))=Rebalance!$D$31,INDIRECT("a" & (VLOOKUP(Rebalance!$D$31,$F$2:$G$48,2,FALSE)+ROW()-2)),"") ->  | N4: =IF(INDIRECT("c" & (VLOOKUP(Rebalance!$D$32,$F$2:$G$48,2,FALSE)+ROW()-2))=Rebalance!$D$32,INDIRECT("a" & (VLOOKUP(Rebalance!$D$32,$F$2:$G$48,2,FALSE)+ROW()-2)),"") ->  | O4: =IF(INDIRECT("c" & (VLOOKUP(Rebalance!$D$33,$F$2:$G$48,2,FALSE)+ROW()-2))=Rebalance!$D$33,INDIRECT("a" & (VLOOKUP(Rebalance!$D$33,$F$2:$G$48,2,FALSE)+ROW()-2)),"") ->  | P4: =IF(INDIRECT("c" & (VLOOKUP(Rebalance!$D$34,$F$2:$G$48,2,FALSE)+ROW()-2))=Rebalance!$D$34,INDIRECT("a" & (VLOOKUP(Rebalance!$D$34,$F$2:$G$48,2,FALSE)+ROW()-2)),"") ->  | Q4: =IF(INDIRECT("c" & (VLOOKUP(Rebalance!$D$35,$F$2:$G$48,2,FALSE)+ROW()-2))=Rebalance!$D$35,INDIRECT("a" & (VLOOKUP(Rebalance!$D$35,$F$2:$G$48,2,FALSE)+ROW()-2)),"") ->  | R4: =IF(INDIRECT("c" & (VLOOKUP(Rebalance!$D$36,$F$2:$G$48,2,FALSE)+ROW()-2))=Rebalance!$D$36,INDIRECT("a" & (VLOOKUP(Rebalance!$D$36,$F$2:$G$48,2,FALSE)+ROW()-2)),"") ->  | S4: =IF(INDIRECT("c" & (VLOOKUP(Rebalance!$D$37,$F$2:$G$48,2,FALSE)+ROW()-2))=Rebalance!$D$37,INDIRECT("a" & (VLOOKUP(Rebalance!$D$37,$F$2:$G$48,2,FALSE)+ROW()-2)),"") ->  | T4: =IF(INDIRECT("c" & (VLOOKUP(Rebalance!$D$38,$F$2:$G$48,2,FALSE)+ROW()-2))=Rebalance!$D$38,INDIRECT("a" & (VLOOKUP(Rebalance!$D$38,$F$2:$G$48,2,FALSE)+ROW()-2)),"") ->  | U4: =IF(INDIRECT("c" & (VLOOKUP(Rebalance!$D$39,$F$2:$G$48,2,FALSE)+ROW()-2))=Rebalance!$D$39,INDIRECT("a" & (VLOOKUP(Rebalance!$D$39,$F$2:$G$48,2,FALSE)+ROW()-2)),"") ->  | V4: =IF(INDIRECT("c" & (VLOOKUP(Rebalance!$D$40,$F$2:$G$48,2,FALSE)+ROW()-2))=Rebalance!$D$40,INDIRECT("a" & (VLOOKUP(Rebalance!$D$40,$F$2:$G$48,2,FALSE)+ROW()-2)),"") ->  | W4: =IF(INDIRECT("c" & (VLOOKUP(Rebalance!$D$52,$F$2:$G$48,2,FALSE)+ROW()-2))=Rebalance!$D$52,INDIRECT("a" & (VLOOKUP(Rebalance!$D$52,$F$2:$G$48,2,FALSE)+ROW()-2)),"") ->  | X4: =IF(INDIRECT("c" & (VLOOKUP(Rebalance!$D$53,$F$2:$G$48,2,FALSE)+ROW()-2))=Rebalance!$D$53,INDIRECT("a" & (VLOOKUP(Rebalance!$D$53,$F$2:$G$48,2,FALSE)+ROW()-2)),"") ->  | Y4: =IF(INDIRECT("c" & (VLOOKUP(Rebalance!$D$54,$F$2:$G$48,2,FALSE)+ROW()-2))=Rebalance!$D$54,INDIRECT("a" & (VLOOKUP(Rebalance!$D$54,$F$2:$G$48,2,FALSE)+ROW()-2)),"") ->  | Z4: =IF(INDIRECT("c" & (VLOOKUP(Rebalance!$D$55,$F$2:$G$48,2,FALSE)+ROW()-2))=Rebalance!$D$55,INDIRECT("a" & (VLOOKUP(Rebalance!$D$55,$F$2:$G$48,2,FALSE)+ROW()-2)),"") ->  | AA4: =IF(INDIRECT("c" & (VLOOKUP(Rebalance!$D$56,$F$2:$G$48,2,FALSE)+ROW()-2))=Rebalance!$D$56,INDIRECT("a" & (VLOOKUP(Rebalance!$D$56,$F$2:$G$48,2,FALSE)+ROW()-2)),"") ->  | AB4: =IF(INDIRECT("c" & (VLOOKUP(Rebalance!$D$57,$F$2:$G$48,2,FALSE)+ROW()-2))=Rebalance!$D$57,INDIRECT("a" & (VLOOKUP(Rebalance!$D$57,$F$2:$G$48,2,FALSE)+ROW()-2)),"") ->  | AC4: =IF(INDIRECT("c" & (VLOOKUP(Rebalance!$D$58,$F$2:$G$48,2,FALSE)+ROW()-2))=Rebalance!$D$58,INDIRECT("a" & (VLOOKUP(Rebalance!$D$58,$F$2:$G$48,2,FALSE)+ROW()-2)),"") ->  | AD4: =IF(INDIRECT("c" & (VLOOKUP(Rebalance!$D$59,$F$2:$G$48,2,FALSE)+ROW()-2))=Rebalance!$D$59,INDIRECT("a" & (VLOOKUP(Rebalance!$D$59,$F$2:$G$48,2,FALSE)+ROW()-2)),"") ->  | AE4: =IF(INDIRECT("c" & (VLOOKUP(Rebalance!$D$60,$F$2:$G$48,2,FALSE)+ROW()-2))=Rebalance!$D$60,INDIRECT("a" & (VLOOKUP(Rebalance!$D$60,$F$2:$G$48,2,FALSE)+ROW()-2)),"") ->  | AF4: =IF(INDIRECT("c" & (VLOOKUP(Rebalance!$D$61,$F$2:$G$48,2,FALSE)+ROW()-2))=Rebalance!$D$61,INDIRECT("a" & (VLOOKUP(Rebalance!$D$61,$F$2:$G$48,2,FALSE)+ROW()-2)),"") ->  | AG4: =IF(INDIRECT("c" & (VLOOKUP(Rebalance!$D$62,$F$2:$G$48,2,FALSE)+ROW()-2))=Rebalance!$D$62,INDIRECT("a" & (VLOOKUP(Rebalance!$D$62,$F$2:$G$48,2,FALSE)+ROW()-2)),"") ->  | AH4: =IF(INDIRECT("c" & (VLOOKUP(Rebalance!$D$63,$F$2:$G$48,2,FALSE)+ROW()-2))=Rebalance!$D$63,INDIRECT("a" & (VLOOKUP(Rebalance!$D$63,$F$2:$G$48,2,FALSE)+ROW()-2)),"") ->  | AI4: =IF(INDIRECT("c" & (VLOOKUP(Rebalance!$D$64,$F$2:$G$48,2,FALSE)+ROW()-2))=Rebalance!$D$64,INDIRECT("a" & (VLOOKUP(Rebalance!$D$64,$F$2:$G$48,2,FALSE)+ROW()-2)),"") ->  | AJ4: =IF(INDIRECT("c" & (VLOOKUP(Rebalance!$D$65,$F$2:$G$48,2,FALSE)+ROW()-2))=Rebalance!$D$65,INDIRECT("a" & (VLOOKUP(Rebalance!$D$65,$F$2:$G$48,2,FALSE)+ROW()-2)),"") ->  | AK4: =IF(INDIRECT("c" & (VLOOKUP(Rebalance!$D$66,$F$2:$G$48,2,FALSE)+ROW()-2))=Rebalance!$D$66,INDIRECT("a" & (VLOOKUP(Rebalance!$D$66,$F$2:$G$48,2,FALSE)+ROW()-2)),"") -> 
A5: Noble PP STANLIB Flexible Fund A1 | B5: NSFA1 | C5: STANLIB Collective Investments | D5: =ROW() -> 5 | F5: Ashburton Management Company (RF) PTY LTD | G5: =VLOOKUP(F5,$C$2:$D$599,2,FALSE) -> 94 | H5: =IF(INDIRECT("c" & (VLOOKUP(Rebalance!$D$26,$F$2:$G$48,2,FALSE)+ROW()-2))=Rebalance!$D$26,INDIRECT("a" & (VLOOKUP(Rebalance!$D$26,$F$2:$G$48,2,FALSE)+ROW()-2)),"") ->  | I5: =IF(INDIRECT("c" & (VLOOKUP(Rebalance!$D$27,$F$2:$G$48,2,FALSE)+ROW()-2))=Rebalance!$D$27,INDIRECT("a" & (VLOOKUP(Rebalance!$D$27,$F$2:$G$48,2,FALSE)+ROW()-2)),"") ->  | J5: =IF(INDIRECT("c" & (VLOOKUP(Rebalance!$D$28,$F$2:$G$48,2,FALSE)+ROW()-2))=Rebalance!$D$28,INDIRECT("a" & (VLOOKUP(Rebalance!$D$28,$F$2:$G$48,2,FALSE)+ROW()-2)),"") ->  | K5: =IF(INDIRECT("c" & (VLOOKUP(Rebalance!$D$29,$F$2:$G$48,2,FALSE)+ROW()-2))=Rebalance!$D$29,INDIRECT("a" & (VLOOKUP(Rebalance!$D$29,$F$2:$G$48,2,FALSE)+ROW()-2)),"") ->  | L5: =IF(INDIRECT("c" & (VLOOKUP(Rebalance!$D$30,$F$2:$G$48,2,FALSE)+ROW()-2))=Rebalance!$D$30,INDIRECT("a" & (VLOOKUP(Rebalance!$D$30,$F$2:$G$48,2,FALSE)+ROW()-2)),"") ->  | M5: =IF(INDIRECT("c" & (VLOOKUP(Rebalance!$D$31,$F$2:$G$48,2,FALSE)+ROW()-2))=Rebalance!$D$31,INDIRECT("a" & (VLOOKUP(Rebalance!$D$31,$F$2:$G$48,2,FALSE)+ROW()-2)),"") ->  | N5: =IF(INDIRECT("c" & (VLOOKUP(Rebalance!$D$32,$F$2:$G$48,2,FALSE)+ROW()-2))=Rebalance!$D$32,INDIRECT("a" & (VLOOKUP(Rebalance!$D$32,$F$2:$G$48,2,FALSE)+ROW()-2)),"") ->  | O5: =IF(INDIRECT("c" & (VLOOKUP(Rebalance!$D$33,$F$2:$G$48,2,FALSE)+ROW()-2))=Rebalance!$D$33,INDIRECT("a" & (VLOOKUP(Rebalance!$D$33,$F$2:$G$48,2,FALSE)+ROW()-2)),"") ->  | P5: =IF(INDIRECT("c" & (VLOOKUP(Rebalance!$D$34,$F$2:$G$48,2,FALSE)+ROW()-2))=Rebalance!$D$34,INDIRECT("a" & (VLOOKUP(Rebalance!$D$34,$F$2:$G$48,2,FALSE)+ROW()-2)),"") ->  | Q5: =IF(INDIRECT("c" & (VLOOKUP(Rebalance!$D$35,$F$2:$G$48,2,FALSE)+ROW()-2))=Rebalance!$D$35,INDIRECT("a" & (VLOOKUP(Rebalance!$D$35,$F$2:$G$48,2,FALSE)+ROW()-2)),"") ->  | R5: =IF(INDIRECT("c" & (VLOOKUP(Rebalance!$D$36,$F$2:$G$48,2,FALSE)+ROW()-2))=Rebalance!$D$36,INDIRECT("a" & (VLOOKUP(Rebalance!$D$36,$F$2:$G$48,2,FALSE)+ROW()-2)),"") ->  | S5: =IF(INDIRECT("c" & (VLOOKUP(Rebalance!$D$37,$F$2:$G$48,2,FALSE)+ROW()-2))=Rebalance!$D$37,INDIRECT("a" & (VLOOKUP(Rebalance!$D$37,$F$2:$G$48,2,FALSE)+ROW()-2)),"") ->  | T5: =IF(INDIRECT("c" & (VLOOKUP(Rebalance!$D$38,$F$2:$G$48,2,FALSE)+ROW()-2))=Rebalance!$D$38,INDIRECT("a" & (VLOOKUP(Rebalance!$D$38,$F$2:$G$48,2,FALSE)+ROW()-2)),"") ->  | U5: =IF(INDIRECT("c" & (VLOOKUP(Rebalance!$D$39,$F$2:$G$48,2,FALSE)+ROW()-2))=Rebalance!$D$39,INDIRECT("a" & (VLOOKUP(Rebalance!$D$39,$F$2:$G$48,2,FALSE)+ROW()-2)),"") ->  | V5: =IF(INDIRECT("c" & (VLOOKUP(Rebalance!$D$40,$F$2:$G$48,2,FALSE)+ROW()-2))=Rebalance!$D$40,INDIRECT("a" & (VLOOKUP(Rebalance!$D$40,$F$2:$G$48,2,FALSE)+ROW()-2)),"") ->  | W5: =IF(INDIRECT("c" & (VLOOKUP(Rebalance!$D$52,$F$2:$G$48,2,FALSE)+ROW()-2))=Rebalance!$D$52,INDIRECT("a" & (VLOOKUP(Rebalance!$D$52,$F$2:$G$48,2,FALSE)+ROW()-2)),"") ->  | X5: =IF(INDIRECT("c" & (VLOOKUP(Rebalance!$D$53,$F$2:$G$48,2,FALSE)+ROW()-2))=Rebalance!$D$53,INDIRECT("a" & (VLOOKUP(Rebalance!$D$53,$F$2:$G$48,2,FALSE)+ROW()-2)),"") ->  | Y5: =IF(INDIRECT("c" & (VLOOKUP(Rebalance!$D$54,$F$2:$G$48,2,FALSE)+ROW()-2))=Rebalance!$D$54,INDIRECT("a" & (VLOOKUP(Rebalance!$D$54,$F$2:$G$48,2,FALSE)+ROW()-2)),"") ->  | Z5: =IF(INDIRECT("c" & (VLOOKUP(Rebalance!$D$55,$F$2:$G$48,2,FALSE)+ROW()-2))=Rebalance!$D$55,INDIRECT("a" & (VLOOKUP(Rebalance!$D$55,$F$2:$G$48,2,FALSE)+ROW()-2)),"") ->  | AA5: =IF(INDIRECT("c" & (VLOOKUP(Rebalance!$D$56,$F$2:$G$48,2,FALSE)+ROW()-2))=Rebalance!$D$56,INDIRECT("a" & (VLOOKUP(Rebalance!$D$56,$F$2:$G$48,2,FALSE)+ROW()-2)),"") ->  | AB5: =IF(INDIRECT("c" & (VLOOKUP(Rebalance!$D$57,$F$2:$G$48,2,FALSE)+ROW()-2))=Rebalance!$D$57,INDIRECT("a" & (VLOOKUP(Rebalance!$D$57,$F$2:$G$48,2,FALSE)+ROW()-2)),"") ->  | AC5: =IF(INDIRECT("c" & (VLOOKUP(Rebalance!$D$58,$F$2:$G$48,2,FALSE)+ROW()-2))=Rebalance!$D$58,INDIRECT("a" & (VLOOKUP(Rebalance!$D$58,$F$2:$G$48,2,FALSE)+ROW()-2)),"") ->  | AD5: =IF(INDIRECT("c" & (VLOOKUP(Rebalance!$D$59,$F$2:$G$48,2,FALSE)+ROW()-2))=Rebalance!$D$59,INDIRECT("a" & (VLOOKUP(Rebalance!$D$59,$F$2:$G$48,2,FALSE)+ROW()-2)),"") ->  | AE5: =IF(INDIRECT("c" & (VLOOKUP(Rebalance!$D$60,$F$2:$G$48,2,FALSE)+ROW()-2))=Rebalance!$D$60,INDIRECT("a" & (VLOOKUP(Rebalance!$D$60,$F$2:$G$48,2,FALSE)+ROW()-2)),"") ->  | AF5: =IF(INDIRECT("c" & (VLOOKUP(Rebalance!$D$61,$F$2:$G$48,2,FALSE)+ROW()-2))=Rebalance!$D$61,INDIRECT("a" & (VLOOKUP(Rebalance!$D$61,$F$2:$G$48,2,FALSE)+ROW()-2)),"") ->  | AG5: =IF(INDIRECT("c" & (VLOOKUP(Rebalance!$D$62,$F$2:$G$48,2,FALSE)+ROW()-2))=Rebalance!$D$62,INDIRECT("a" & (VLOOKUP(Rebalance!$D$62,$F$2:$G$48,2,FALSE)+ROW()-2)),"") ->  | AH5: =IF(INDIRECT("c" & (VLOOKUP(Rebalance!$D$63,$F$2:$G$48,2,FALSE)+ROW()-2))=Rebalance!$D$63,INDIRECT("a" & (VLOOKUP(Rebalance!$D$63,$F$2:$G$48,2,FALSE)+ROW()-2)),"") ->  | AI5: =IF(INDIRECT("c" & (VLOOKUP(Rebalance!$D$64,$F$2:$G$48,2,FALSE)+ROW()-2))=Rebalance!$D$64,INDIRECT("a" & (VLOOKUP(Rebalance!$D$64,$F$2:$G$48,2,FALSE)+ROW()-2)),"") ->  | AJ5: =IF(INDIRECT("c" & (VLOOKUP(Rebalance!$D$65,$F$2:$G$48,2,FALSE)+ROW()-2))=Rebalance!$D$65,INDIRECT("a" & (VLOOKUP(Rebalance!$D$65,$F$2:$G$48,2,FALSE)+ROW()-2)),"") ->  | AK5: =IF(INDIRECT("c" & (VLOOKUP(Rebalance!$D$66,$F$2:$G$48,2,FALSE)+ROW()-2))=Rebalance!$D$66,INDIRECT("a" & (VLOOKUP(Rebalance!$D$66,$F$2:$G$48,2,FALSE)+ROW()-2)),"") -> 
A6: Noble PP STANLIB Strategic Income FoF A | B6: NPSA1 | C6: STANLIB Collective Investments | D6: =ROW() -> 6 | F6: Boutique Collective Investments (Pty) Ltd | G6: =VLOOKUP(F6,$C$2:$D$599,2,FALSE) -> 96 | H6: =IF(INDIRECT("c" & (VLOOKUP(Rebalance!$D$26,$F$2:$G$48,2,FALSE)+ROW()-2))=Rebalance!$D$26,INDIRECT("a" & (VLOOKUP(Rebalance!$D$26,$F$2:$G$48,2,FALSE)+ROW()-2)),"") ->  | I6: =IF(INDIRECT("c" & (VLOOKUP(Rebalance!$D$27,$F$2:$G$48,2,FALSE)+ROW()-2))=Rebalance!$D$27,INDIRECT("a" & (VLOOKUP(Rebalance!$D$27,$F$2:$G$48,2,FALSE)+ROW()-2)),"") ->  | J6: =IF(INDIRECT("c" & (VLOOKUP(Rebalance!$D$28,$F$2:$G$48,2,FALSE)+ROW()-2))=Rebalance!$D$28,INDIRECT("a" & (VLOOKUP(Rebalance!$D$28,$F$2:$G$48,2,FALSE)+ROW()-2)),"") ->  | K6: =IF(INDIRECT("c" & (VLOOKUP(Rebalance!$D$29,$F$2:$G$48,2,FALSE)+ROW()-2))=Rebalance!$D$29,INDIRECT("a" & (VLOOKUP(Rebalance!$D$29,$F$2:$G$48,2,FALSE)+ROW()-2)),"") ->  | L6: =IF(INDIRECT("c" & (VLOOKUP(Rebalance!$D$30,$F$2:$G$48,2,FALSE)+ROW()-2))=Rebalance!$D$30,INDIRECT("a" & (VLOOKUP(Rebalance!$D$30,$F$2:$G$48,2,FALSE)+ROW()-2)),"") ->  | M6: =IF(INDIRECT("c" & (VLOOKUP(Rebalance!$D$31,$F$2:$G$48,2,FALSE)+ROW()-2))=Rebalance!$D$31,INDIRECT("a" & (VLOOKUP(Rebalance!$D$31,$F$2:$G$48,2,FALSE)+ROW()-2)),"") ->  | N6: =IF(INDIRECT("c" & (VLOOKUP(Rebalance!$D$32,$F$2:$G$48,2,FALSE)+ROW()-2))=Rebalance!$D$32,INDIRECT("a" & (VLOOKUP(Rebalance!$D$32,$F$2:$G$48,2,FALSE)+ROW()-2)),"") ->  | O6: =IF(INDIRECT("c" & (VLOOKUP(Rebalance!$D$33,$F$2:$G$48,2,FALSE)+ROW()-2))=Rebalance!$D$33,INDIRECT("a" & (VLOOKUP(Rebalance!$D$33,$F$2:$G$48,2,FALSE)+ROW()-2)),"") ->  | P6: =IF(INDIRECT("c" & (VLOOKUP(Rebalance!$D$34,$F$2:$G$48,2,FALSE)+ROW()-2))=Rebalance!$D$34,INDIRECT("a" & (VLOOKUP(Rebalance!$D$34,$F$2:$G$48,2,FALSE)+ROW()-2)),"") ->  | Q6: =IF(INDIRECT("c" & (VLOOKUP(Rebalance!$D$35,$F$2:$G$48,2,FALSE)+ROW()-2))=Rebalance!$D$35,INDIRECT("a" & (VLOOKUP(Rebalance!$D$35,$F$2:$G$48,2,FALSE)+ROW()-2)),"") ->  | R6: =IF(INDIRECT("c" & (VLOOKUP(Rebalance!$D$36,$F$2:$G$48,2,FALSE)+ROW()-2))=Rebalance!$D$36,INDIRECT("a" & (VLOOKUP(Rebalance!$D$36,$F$2:$G$48,2,FALSE)+ROW()-2)),"") ->  | S6: =IF(INDIRECT("c" & (VLOOKUP(Rebalance!$D$37,$F$2:$G$48,2,FALSE)+ROW()-2))=Rebalance!$D$37,INDIRECT("a" & (VLOOKUP(Rebalance!$D$37,$F$2:$G$48,2,FALSE)+ROW()-2)),"") ->  | T6: =IF(INDIRECT("c" & (VLOOKUP(Rebalance!$D$38,$F$2:$G$48,2,FALSE)+ROW()-2))=Rebalance!$D$38,INDIRECT("a" & (VLOOKUP(Rebalance!$D$38,$F$2:$G$48,2,FALSE)+ROW()-2)),"") ->  | U6: =IF(INDIRECT("c" & (VLOOKUP(Rebalance!$D$39,$F$2:$G$48,2,FALSE)+ROW()-2))=Rebalance!$D$39,INDIRECT("a" & (VLOOKUP(Rebalance!$D$39,$F$2:$G$48,2,FALSE)+ROW()-2)),"") ->  | V6: =IF(INDIRECT("c" & (VLOOKUP(Rebalance!$D$40,$F$2:$G$48,2,FALSE)+ROW()-2))=Rebalance!$D$40,INDIRECT("a" & (VLOOKUP(Rebalance!$D$40,$F$2:$G$48,2,FALSE)+ROW()-2)),"") ->  | W6: =IF(INDIRECT("c" & (VLOOKUP(Rebalance!$D$52,$F$2:$G$48,2,FALSE)+ROW()-2))=Rebalance!$D$52,INDIRECT("a" & (VLOOKUP(Rebalance!$D$52,$F$2:$G$48,2,FALSE)+ROW()-2)),"") ->  | X6: =IF(INDIRECT("c" & (VLOOKUP(Rebalance!$D$53,$F$2:$G$48,2,FALSE)+ROW()-2))=Rebalance!$D$53,INDIRECT("a" & (VLOOKUP(Rebalance!$D$53,$F$2:$G$48,2,FALSE)+ROW()-2)),"") ->  | Y6: =IF(INDIRECT("c" & (VLOOKUP(Rebalance!$D$54,$F$2:$G$48,2,FALSE)+ROW()-2))=Rebalance!$D$54,INDIRECT("a" & (VLOOKUP(Rebalance!$D$54,$F$2:$G$48,2,FALSE)+ROW()-2)),"") ->  | Z6: =IF(INDIRECT("c" & (VLOOKUP(Rebalance!$D$55,$F$2:$G$48,2,FALSE)+ROW()-2))=Rebalance!$D$55,INDIRECT("a" & (VLOOKUP(Rebalance!$D$55,$F$2:$G$48,2,FALSE)+ROW()-2)),"") ->  | AA6: =IF(INDIRECT("c" & (VLOOKUP(Rebalance!$D$56,$F$2:$G$48,2,FALSE)+ROW()-2))=Rebalance!$D$56,INDIRECT("a" & (VLOOKUP(Rebalance!$D$56,$F$2:$G$48,2,FALSE)+ROW()-2)),"") ->  | AB6: =IF(INDIRECT("c" & (VLOOKUP(Rebalance!$D$57,$F$2:$G$48,2,FALSE)+ROW()-2))=Rebalance!$D$57,INDIRECT("a" & (VLOOKUP(Rebalance!$D$57,$F$2:$G$48,2,FALSE)+ROW()-2)),"") ->  | AC6: =IF(INDIRECT("c" & (VLOOKUP(Rebalance!$D$58,$F$2:$G$48,2,FALSE)+ROW()-2))=Rebalance!$D$58,INDIRECT("a" & (VLOOKUP(Rebalance!$D$58,$F$2:$G$48,2,FALSE)+ROW()-2)),"") ->  | AD6: =IF(INDIRECT("c" & (VLOOKUP(Rebalance!$D$59,$F$2:$G$48,2,FALSE)+ROW()-2))=Rebalance!$D$59,INDIRECT("a" & (VLOOKUP(Rebalance!$D$59,$F$2:$G$48,2,FALSE)+ROW()-2)),"") ->  | AE6: =IF(INDIRECT("c" & (VLOOKUP(Rebalance!$D$60,$F$2:$G$48,2,FALSE)+ROW()-2))=Rebalance!$D$60,INDIRECT("a" & (VLOOKUP(Rebalance!$D$60,$F$2:$G$48,2,FALSE)+ROW()-2)),"") ->  | AF6: =IF(INDIRECT("c" & (VLOOKUP(Rebalance!$D$61,$F$2:$G$48,2,FALSE)+ROW()-2))=Rebalance!$D$61,INDIRECT("a" & (VLOOKUP(Rebalance!$D$61,$F$2:$G$48,2,FALSE)+ROW()-2)),"") ->  | AG6: =IF(INDIRECT("c" & (VLOOKUP(Rebalance!$D$62,$F$2:$G$48,2,FALSE)+ROW()-2))=Rebalance!$D$62,INDIRECT("a" & (VLOOKUP(Rebalance!$D$62,$F$2:$G$48,2,FALSE)+ROW()-2)),"") ->  | AH6: =IF(INDIRECT("c" & (VLOOKUP(Rebalance!$D$63,$F$2:$G$48,2,FALSE)+ROW()-2))=Rebalance!$D$63,INDIRECT("a" & (VLOOKUP(Rebalance!$D$63,$F$2:$G$48,2,FALSE)+ROW()-2)),"") ->  | AI6: =IF(INDIRECT("c" & (VLOOKUP(Rebalance!$D$64,$F$2:$G$48,2,FALSE)+ROW()-2))=Rebalance!$D$64,INDIRECT("a" & (VLOOKUP(Rebalance!$D$64,$F$2:$G$48,2,FALSE)+ROW()-2)),"") ->  | AJ6: =IF(INDIRECT("c" & (VLOOKUP(Rebalance!$D$65,$F$2:$G$48,2,FALSE)+ROW()-2))=Rebalance!$D$65,INDIRECT("a" & (VLOOKUP(Rebalance!$D$65,$F$2:$G$48,2,FALSE)+ROW()-2)),"") ->  | AK6: =IF(INDIRECT("c" & (VLOOKUP(Rebalance!$D$66,$F$2:$G$48,2,FALSE)+ROW()-2))=Rebalance!$D$66,INDIRECT("a" & (VLOOKUP(Rebalance!$D$66,$F$2:$G$48,2,FALSE)+ROW()-2)),"") -> 
A7: Noble PP STANLIB Strategic Income FoF A1 | B7: NPSA1 | C7: STANLIB Collective Investments | D7: =ROW() -> 7 | F7: Bridge Collective Investments (Pty) Ltd | G7: =VLOOKUP(F7,$C$2:$D$599,2,FALSE) -> 201 | H7: =IF(INDIRECT("c" & (VLOOKUP(Rebalance!$D$26,$F$2:$G$48,2,FALSE)+ROW()-2))=Rebalance!$D$26,INDIRECT("a" & (VLOOKUP(Rebalance!$D$26,$F$2:$G$48,2,FALSE)+ROW()-2)),"") ->  | I7: =IF(INDIRECT("c" & (VLOOKUP(Rebalance!$D$27,$F$2:$G$48,2,FALSE)+ROW()-2))=Rebalance!$D$27,INDIRECT("a" & (VLOOKUP(Rebalance!$D$27,$F$2:$G$48,2,FALSE)+ROW()-2)),"") ->  | J7: =IF(INDIRECT("c" & (VLOOKUP(Rebalance!$D$28,$F$2:$G$48,2,FALSE)+ROW()-2))=Rebalance!$D$28,INDIRECT("a" & (VLOOKUP(Rebalance!$D$28,$F$2:$G$48,2,FALSE)+ROW()-2)),"") ->  | K7: =IF(INDIRECT("c" & (VLOOKUP(Rebalance!$D$29,$F$2:$G$48,2,FALSE)+ROW()-2))=Rebalance!$D$29,INDIRECT("a" & (VLOOKUP(Rebalance!$D$29,$F$2:$G$48,2,FALSE)+ROW()-2)),"") ->  | L7: =IF(INDIRECT("c" & (VLOOKUP(Rebalance!$D$30,$F$2:$G$48,2,FALSE)+ROW()-2))=Rebalance!$D$30,INDIRECT("a" & (VLOOKUP(Rebalance!$D$30,$F$2:$G$48,2,FALSE)+ROW()-2)),"") ->  | M7: =IF(INDIRECT("c" & (VLOOKUP(Rebalance!$D$31,$F$2:$G$48,2,FALSE)+ROW()-2))=Rebalance!$D$31,INDIRECT("a" & (VLOOKUP(Rebalance!$D$31,$F$2:$G$48,2,FALSE)+ROW()-2)),"") ->  | N7: =IF(INDIRECT("c" & (VLOOKUP(Rebalance!$D$32,$F$2:$G$48,2,FALSE)+ROW()-2))=Rebalance!$D$32,INDIRECT("a" & (VLOOKUP(Rebalance!$D$32,$F$2:$G$48,2,FALSE)+ROW()-2)),"") ->  | O7: =IF(INDIRECT("c" & (VLOOKUP(Rebalance!$D$33,$F$2:$G$48,2,FALSE)+ROW()-2))=Rebalance!$D$33,INDIRECT("a" & (VLOOKUP(Rebalance!$D$33,$F$2:$G$48,2,FALSE)+ROW()-2)),"") ->  | P7: =IF(INDIRECT("c" & (VLOOKUP(Rebalance!$D$34,$F$2:$G$48,2,FALSE)+ROW()-2))=Rebalance!$D$34,INDIRECT("a" & (VLOOKUP(Rebalance!$D$34,$F$2:$G$48,2,FALSE)+ROW()-2)),"") ->  | Q7: =IF(INDIRECT("c" & (VLOOKUP(Rebalance!$D$35,$F$2:$G$48,2,FALSE)+ROW()-2))=Rebalance!$D$35,INDIRECT("a" & (VLOOKUP(Rebalance!$D$35,$F$2:$G$48,2,FALSE)+ROW()-2)),"") ->  | R7: =IF(INDIRECT("c" & (VLOOKUP(Rebalance!$D$36,$F$2:$G$48,2,FALSE)+ROW()-2))=Rebalance!$D$36,INDIRECT("a" & (VLOOKUP(Rebalance!$D$36,$F$2:$G$48,2,FALSE)+ROW()-2)),"") ->  | S7: =IF(INDIRECT("c" & (VLOOKUP(Rebalance!$D$37,$F$2:$G$48,2,FALSE)+ROW()-2))=Rebalance!$D$37,INDIRECT("a" & (VLOOKUP(Rebalance!$D$37,$F$2:$G$48,2,FALSE)+ROW()-2)),"") ->  | T7: =IF(INDIRECT("c" & (VLOOKUP(Rebalance!$D$38,$F$2:$G$48,2,FALSE)+ROW()-2))=Rebalance!$D$38,INDIRECT("a" & (VLOOKUP(Rebalance!$D$38,$F$2:$G$48,2,FALSE)+ROW()-2)),"") ->  | U7: =IF(INDIRECT("c" & (VLOOKUP(Rebalance!$D$39,$F$2:$G$48,2,FALSE)+ROW()-2))=Rebalance!$D$39,INDIRECT("a" & (VLOOKUP(Rebalance!$D$39,$F$2:$G$48,2,FALSE)+ROW()-2)),"") ->  | V7: =IF(INDIRECT("c" & (VLOOKUP(Rebalance!$D$40,$F$2:$G$48,2,FALSE)+ROW()-2))=Rebalance!$D$40,INDIRECT("a" & (VLOOKUP(Rebalance!$D$40,$F$2:$G$48,2,FALSE)+ROW()-2)),"") ->  | W7: =IF(INDIRECT("c" & (VLOOKUP(Rebalance!$D$52,$F$2:$G$48,2,FALSE)+ROW()-2))=Rebalance!$D$52,INDIRECT("a" & (VLOOKUP(Rebalance!$D$52,$F$2:$G$48,2,FALSE)+ROW()-2)),"") ->  | X7: =IF(INDIRECT("c" & (VLOOKUP(Rebalance!$D$53,$F$2:$G$48,2,FALSE)+ROW()-2))=Rebalance!$D$53,INDIRECT("a" & (VLOOKUP(Rebalance!$D$53,$F$2:$G$48,2,FALSE)+ROW()-2)),"") ->  | Y7: =IF(INDIRECT("c" & (VLOOKUP(Rebalance!$D$54,$F$2:$G$48,2,FALSE)+ROW()-2))=Rebalance!$D$54,INDIRECT("a" & (VLOOKUP(Rebalance!$D$54,$F$2:$G$48,2,FALSE)+ROW()-2)),"") ->  | Z7: =IF(INDIRECT("c" & (VLOOKUP(Rebalance!$D$55,$F$2:$G$48,2,FALSE)+ROW()-2))=Rebalance!$D$55,INDIRECT("a" & (VLOOKUP(Rebalance!$D$55,$F$2:$G$48,2,FALSE)+ROW()-2)),"") ->  | AA7: =IF(INDIRECT("c" & (VLOOKUP(Rebalance!$D$56,$F$2:$G$48,2,FALSE)+ROW()-2))=Rebalance!$D$56,INDIRECT("a" & (VLOOKUP(Rebalance!$D$56,$F$2:$G$48,2,FALSE)+ROW()-2)),"") ->  | AB7: =IF(INDIRECT("c" & (VLOOKUP(Rebalance!$D$57,$F$2:$G$48,2,FALSE)+ROW()-2))=Rebalance!$D$57,INDIRECT("a" & (VLOOKUP(Rebalance!$D$57,$F$2:$G$48,2,FALSE)+ROW()-2)),"") ->  | AC7: =IF(INDIRECT("c" & (VLOOKUP(Rebalance!$D$58,$F$2:$G$48,2,FALSE)+ROW()-2))=Rebalance!$D$58,INDIRECT("a" & (VLOOKUP(Rebalance!$D$58,$F$2:$G$48,2,FALSE)+ROW()-2)),"") ->  | AD7: =IF(INDIRECT("c" & (VLOOKUP(Rebalance!$D$59,$F$2:$G$48,2,FALSE)+ROW()-2))=Rebalance!$D$59,INDIRECT("a" & (VLOOKUP(Rebalance!$D$59,$F$2:$G$48,2,FALSE)+ROW()-2)),"") ->  | AE7: =IF(INDIRECT("c" & (VLOOKUP(Rebalance!$D$60,$F$2:$G$48,2,FALSE)+ROW()-2))=Rebalance!$D$60,INDIRECT("a" & (VLOOKUP(Rebalance!$D$60,$F$2:$G$48,2,FALSE)+ROW()-2)),"") ->  | AF7: =IF(INDIRECT("c" & (VLOOKUP(Rebalance!$D$61,$F$2:$G$48,2,FALSE)+ROW()-2))=Rebalance!$D$61,INDIRECT("a" & (VLOOKUP(Rebalance!$D$61,$F$2:$G$48,2,FALSE)+ROW()-2)),"") ->  | AG7: =IF(INDIRECT("c" & (VLOOKUP(Rebalance!$D$62,$F$2:$G$48,2,FALSE)+ROW()-2))=Rebalance!$D$62,INDIRECT("a" & (VLOOKUP(Rebalance!$D$62,$F$2:$G$48,2,FALSE)+ROW()-2)),"") ->  | AH7: =IF(INDIRECT("c" & (VLOOKUP(Rebalance!$D$63,$F$2:$G$48,2,FALSE)+ROW()-2))=Rebalance!$D$63,INDIRECT("a" & (VLOOKUP(Rebalance!$D$63,$F$2:$G$48,2,FALSE)+ROW()-2)),"") ->  | AI7: =IF(INDIRECT("c" & (VLOOKUP(Rebalance!$D$64,$F$2:$G$48,2,FALSE)+ROW()-2))=Rebalance!$D$64,INDIRECT("a" & (VLOOKUP(Rebalance!$D$64,$F$2:$G$48,2,FALSE)+ROW()-2)),"") ->  | AJ7: =IF(INDIRECT("c" & (VLOOKUP(Rebalance!$D$65,$F$2:$G$48,2,FALSE)+ROW()-2))=Rebalance!$D$65,INDIRECT("a" & (VLOOKUP(Rebalance!$D$65,$F$2:$G$48,2,FALSE)+ROW()-2)),"") ->  | AK7: =IF(INDIRECT("c" & (VLOOKUP(Rebalance!$D$66,$F$2:$G$48,2,FALSE)+ROW()-2))=Rebalance!$D$66,INDIRECT("a" & (VLOOKUP(Rebalance!$D$66,$F$2:$G$48,2,FALSE)+ROW()-2)),"") -> 
A8: Noble PP STANLIB Wealth Creator FoF A1 | B8: NPPA1 | C8: STANLIB Collective Investments | D8: =ROW() -> 8 | F8: Cadiz Collective Investments | G8: =VLOOKUP(F8,$C$2:$D$599,2,FALSE) -> 209 | H8: =IF(INDIRECT("c" & (VLOOKUP(Rebalance!$D$26,$F$2:$G$48,2,FALSE)+ROW()-2))=Rebalance!$D$26,INDIRECT("a" & (VLOOKUP(Rebalance!$D$26,$F$2:$G$48,2,FALSE)+ROW()-2)),"") ->  | I8: =IF(INDIRECT("c" & (VLOOKUP(Rebalance!$D$27,$F$2:$G$48,2,FALSE)+ROW()-2))=Rebalance!$D$27,INDIRECT("a" & (VLOOKUP(Rebalance!$D$27,$F$2:$G$48,2,FALSE)+ROW()-2)),"") ->  | J8: =IF(INDIRECT("c" & (VLOOKUP(Rebalance!$D$28,$F$2:$G$48,2,FALSE)+ROW()-2))=Rebalance!$D$28,INDIRECT("a" & (VLOOKUP(Rebalance!$D$28,$F$2:$G$48,2,FALSE)+ROW()-2)),"") ->  | K8: =IF(INDIRECT("c" & (VLOOKUP(Rebalance!$D$29,$F$2:$G$48,2,FALSE)+ROW()-2))=Rebalance!$D$29,INDIRECT("a" & (VLOOKUP(Rebalance!$D$29,$F$2:$G$48,2,FALSE)+ROW()-2)),"") ->  | L8: =IF(INDIRECT("c" & (VLOOKUP(Rebalance!$D$30,$F$2:$G$48,2,FALSE)+ROW()-2))=Rebalance!$D$30,INDIRECT("a" & (VLOOKUP(Rebalance!$D$30,$F$2:$G$48,2,FALSE)+ROW()-2)),"") ->  | M8: =IF(INDIRECT("c" & (VLOOKUP(Rebalance!$D$31,$F$2:$G$48,2,FALSE)+ROW()-2))=Rebalance!$D$31,INDIRECT("a" & (VLOOKUP(Rebalance!$D$31,$F$2:$G$48,2,FALSE)+ROW()-2)),"") ->  | N8: =IF(INDIRECT("c" & (VLOOKUP(Rebalance!$D$32,$F$2:$G$48,2,FALSE)+ROW()-2))=Rebalance!$D$32,INDIRECT("a" & (VLOOKUP(Rebalance!$D$32,$F$2:$G$48,2,FALSE)+ROW()-2)),"") ->  | O8: =IF(INDIRECT("c" & (VLOOKUP(Rebalance!$D$33,$F$2:$G$48,2,FALSE)+ROW()-2))=Rebalance!$D$33,INDIRECT("a" & (VLOOKUP(Rebalance!$D$33,$F$2:$G$48,2,FALSE)+ROW()-2)),"") ->  | P8: =IF(INDIRECT("c" & (VLOOKUP(Rebalance!$D$34,$F$2:$G$48,2,FALSE)+ROW()-2))=Rebalance!$D$34,INDIRECT("a" & (VLOOKUP(Rebalance!$D$34,$F$2:$G$48,2,FALSE)+ROW()-2)),"") ->  | Q8: =IF(INDIRECT("c" & (VLOOKUP(Rebalance!$D$35,$F$2:$G$48,2,FALSE)+ROW()-2))=Rebalance!$D$35,INDIRECT("a" & (VLOOKUP(Rebalance!$D$35,$F$2:$G$48,2,FALSE)+ROW()-2)),"") ->  | R8: =IF(INDIRECT("c" & (VLOOKUP(Rebalance!$D$36,$F$2:$G$48,2,FALSE)+ROW()-2))=Rebalance!$D$36,INDIRECT("a" & (VLOOKUP(Rebalance!$D$36,$F$2:$G$48,2,FALSE)+ROW()-2)),"") ->  | S8: =IF(INDIRECT("c" & (VLOOKUP(Rebalance!$D$37,$F$2:$G$48,2,FALSE)+ROW()-2))=Rebalance!$D$37,INDIRECT("a" & (VLOOKUP(Rebalance!$D$37,$F$2:$G$48,2,FALSE)+ROW()-2)),"") ->  | T8: =IF(INDIRECT("c" & (VLOOKUP(Rebalance!$D$38,$F$2:$G$48,2,FALSE)+ROW()-2))=Rebalance!$D$38,INDIRECT("a" & (VLOOKUP(Rebalance!$D$38,$F$2:$G$48,2,FALSE)+ROW()-2)),"") ->  | U8: =IF(INDIRECT("c" & (VLOOKUP(Rebalance!$D$39,$F$2:$G$48,2,FALSE)+ROW()-2))=Rebalance!$D$39,INDIRECT("a" & (VLOOKUP(Rebalance!$D$39,$F$2:$G$48,2,FALSE)+ROW()-2)),"") ->  | V8: =IF(INDIRECT("c" & (VLOOKUP(Rebalance!$D$40,$F$2:$G$48,2,FALSE)+ROW()-2))=Rebalance!$D$40,INDIRECT("a" & (VLOOKUP(Rebalance!$D$40,$F$2:$G$48,2,FALSE)+ROW()-2)),"") ->  | W8: =IF(INDIRECT("c" & (VLOOKUP(Rebalance!$D$52,$F$2:$G$48,2,FALSE)+ROW()-2))=Rebalance!$D$52,INDIRECT("a" & (VLOOKUP(Rebalance!$D$52,$F$2:$G$48,2,FALSE)+ROW()-2)),"") ->  | X8: =IF(INDIRECT("c" & (VLOOKUP(Rebalance!$D$53,$F$2:$G$48,2,FALSE)+ROW()-2))=Rebalance!$D$53,INDIRECT("a" & (VLOOKUP(Rebalance!$D$53,$F$2:$G$48,2,FALSE)+ROW()-2)),"") ->  | Y8: =IF(INDIRECT("c" & (VLOOKUP(Rebalance!$D$54,$F$2:$G$48,2,FALSE)+ROW()-2))=Rebalance!$D$54,INDIRECT("a" & (VLOOKUP(Rebalance!$D$54,$F$2:$G$48,2,FALSE)+ROW()-2)),"") ->  | Z8: =IF(INDIRECT("c" & (VLOOKUP(Rebalance!$D$55,$F$2:$G$48,2,FALSE)+ROW()-2))=Rebalance!$D$55,INDIRECT("a" & (VLOOKUP(Rebalance!$D$55,$F$2:$G$48,2,FALSE)+ROW()-2)),"") ->  | AA8: =IF(INDIRECT("c" & (VLOOKUP(Rebalance!$D$56,$F$2:$G$48,2,FALSE)+ROW()-2))=Rebalance!$D$56,INDIRECT("a" & (VLOOKUP(Rebalance!$D$56,$F$2:$G$48,2,FALSE)+ROW()-2)),"") ->  | AB8: =IF(INDIRECT("c" & (VLOOKUP(Rebalance!$D$57,$F$2:$G$48,2,FALSE)+ROW()-2))=Rebalance!$D$57,INDIRECT("a" & (VLOOKUP(Rebalance!$D$57,$F$2:$G$48,2,FALSE)+ROW()-2)),"") ->  | AC8: =IF(INDIRECT("c" & (VLOOKUP(Rebalance!$D$58,$F$2:$G$48,2,FALSE)+ROW()-2))=Rebalance!$D$58,INDIRECT("a" & (VLOOKUP(Rebalance!$D$58,$F$2:$G$48,2,FALSE)+ROW()-2)),"") ->  | AD8: =IF(INDIRECT("c" & (VLOOKUP(Rebalance!$D$59,$F$2:$G$48,2,FALSE)+ROW()-2))=Rebalance!$D$59,INDIRECT("a" & (VLOOKUP(Rebalance!$D$59,$F$2:$G$48,2,FALSE)+ROW()-2)),"") ->  | AE8: =IF(INDIRECT("c" & (VLOOKUP(Rebalance!$D$60,$F$2:$G$48,2,FALSE)+ROW()-2))=Rebalance!$D$60,INDIRECT("a" & (VLOOKUP(Rebalance!$D$60,$F$2:$G$48,2,FALSE)+ROW()-2)),"") ->  | AF8: =IF(INDIRECT("c" & (VLOOKUP(Rebalance!$D$61,$F$2:$G$48,2,FALSE)+ROW()-2))=Rebalance!$D$61,INDIRECT("a" & (VLOOKUP(Rebalance!$D$61,$F$2:$G$48,2,FALSE)+ROW()-2)),"") ->  | AG8: =IF(INDIRECT("c" & (VLOOKUP(Rebalance!$D$62,$F$2:$G$48,2,FALSE)+ROW()-2))=Rebalance!$D$62,INDIRECT("a" & (VLOOKUP(Rebalance!$D$62,$F$2:$G$48,2,FALSE)+ROW()-2)),"") ->  | AH8: =IF(INDIRECT("c" & (VLOOKUP(Rebalance!$D$63,$F$2:$G$48,2,FALSE)+ROW()-2))=Rebalance!$D$63,INDIRECT("a" & (VLOOKUP(Rebalance!$D$63,$F$2:$G$48,2,FALSE)+ROW()-2)),"") ->  | AI8: =IF(INDIRECT("c" & (VLOOKUP(Rebalance!$D$64,$F$2:$G$48,2,FALSE)+ROW()-2))=Rebalance!$D$64,INDIRECT("a" & (VLOOKUP(Rebalance!$D$64,$F$2:$G$48,2,FALSE)+ROW()-2)),"") ->  | AJ8: =IF(INDIRECT("c" & (VLOOKUP(Rebalance!$D$65,$F$2:$G$48,2,FALSE)+ROW()-2))=Rebalance!$D$65,INDIRECT("a" & (VLOOKUP(Rebalance!$D$65,$F$2:$G$48,2,FALSE)+ROW()-2)),"") ->  | AK8: =IF(INDIRECT("c" & (VLOOKUP(Rebalance!$D$66,$F$2:$G$48,2,FALSE)+ROW()-2))=Rebalance!$D$66,INDIRECT("a" & (VLOOKUP(Rebalance!$D$66,$F$2:$G$48,2,FALSE)+ROW()-2)),"") -> 
A9: Melville Douglas STANLIB Bond Fund A | B9: MDBFA | C9: STANLIB Collective Investments | D9: =ROW() -> 9 | F9: Ci Collective Investments (RF) (PTY) Ltd | G9: =VLOOKUP(F9,$C$2:$D$599,2,FALSE) -> 214 | H9: =IF(INDIRECT("c" & (VLOOKUP(Rebalance!$D$26,$F$2:$G$48,2,FALSE)+ROW()-2))=Rebalance!$D$26,INDIRECT("a" & (VLOOKUP(Rebalance!$D$26,$F$2:$G$48,2,FALSE)+ROW()-2)),"") ->  | I9: =IF(INDIRECT("c" & (VLOOKUP(Rebalance!$D$27,$F$2:$G$48,2,FALSE)+ROW()-2))=Rebalance!$D$27,INDIRECT("a" & (VLOOKUP(Rebalance!$D$27,$F$2:$G$48,2,FALSE)+ROW()-2)),"") ->  | J9: =IF(INDIRECT("c" & (VLOOKUP(Rebalance!$D$28,$F$2:$G$48,2,FALSE)+ROW()-2))=Rebalance!$D$28,INDIRECT("a" & (VLOOKUP(Rebalance!$D$28,$F$2:$G$48,2,FALSE)+ROW()-2)),"") ->  | K9: =IF(INDIRECT("c" & (VLOOKUP(Rebalance!$D$29,$F$2:$G$48,2,FALSE)+ROW()-2))=Rebalance!$D$29,INDIRECT("a" & (VLOOKUP(Rebalance!$D$29,$F$2:$G$48,2,FALSE)+ROW()-2)),"") ->  | L9: =IF(INDIRECT("c" & (VLOOKUP(Rebalance!$D$30,$F$2:$G$48,2,FALSE)+ROW()-2))=Rebalance!$D$30,INDIRECT("a" & (VLOOKUP(Rebalance!$D$30,$F$2:$G$48,2,FALSE)+ROW()-2)),"") ->  | M9: =IF(INDIRECT("c" & (VLOOKUP(Rebalance!$D$31,$F$2:$G$48,2,FALSE)+ROW()-2))=Rebalance!$D$31,INDIRECT("a" & (VLOOKUP(Rebalance!$D$31,$F$2:$G$48,2,FALSE)+ROW()-2)),"") ->  | N9: =IF(INDIRECT("c" & (VLOOKUP(Rebalance!$D$32,$F$2:$G$48,2,FALSE)+ROW()-2))=Rebalance!$D$32,INDIRECT("a" & (VLOOKUP(Rebalance!$D$32,$F$2:$G$48,2,FALSE)+ROW()-2)),"") ->  | O9: =IF(INDIRECT("c" & (VLOOKUP(Rebalance!$D$33,$F$2:$G$48,2,FALSE)+ROW()-2))=Rebalance!$D$33,INDIRECT("a" & (VLOOKUP(Rebalance!$D$33,$F$2:$G$48,2,FALSE)+ROW()-2)),"") ->  | P9: =IF(INDIRECT("c" & (VLOOKUP(Rebalance!$D$34,$F$2:$G$48,2,FALSE)+ROW()-2))=Rebalance!$D$34,INDIRECT("a" & (VLOOKUP(Rebalance!$D$34,$F$2:$G$48,2,FALSE)+ROW()-2)),"") ->  | Q9: =IF(INDIRECT("c" & (VLOOKUP(Rebalance!$D$35,$F$2:$G$48,2,FALSE)+ROW()-2))=Rebalance!$D$35,INDIRECT("a" & (VLOOKUP(Rebalance!$D$35,$F$2:$G$48,2,FALSE)+ROW()-2)),"") ->  | R9: =IF(INDIRECT("c" & (VLOOKUP(Rebalance!$D$36,$F$2:$G$48,2,FALSE)+ROW()-2))=Rebalance!$D$36,INDIRECT("a" & (VLOOKUP(Rebalance!$D$36,$F$2:$G$48,2,FALSE)+ROW()-2)),"") ->  | S9: =IF(INDIRECT("c" & (VLOOKUP(Rebalance!$D$37,$F$2:$G$48,2,FALSE)+ROW()-2))=Rebalance!$D$37,INDIRECT("a" & (VLOOKUP(Rebalance!$D$37,$F$2:$G$48,2,FALSE)+ROW()-2)),"") ->  | T9: =IF(INDIRECT("c" & (VLOOKUP(Rebalance!$D$38,$F$2:$G$48,2,FALSE)+ROW()-2))=Rebalance!$D$38,INDIRECT("a" & (VLOOKUP(Rebalance!$D$38,$F$2:$G$48,2,FALSE)+ROW()-2)),"") ->  | U9: =IF(INDIRECT("c" & (VLOOKUP(Rebalance!$D$39,$F$2:$G$48,2,FALSE)+ROW()-2))=Rebalance!$D$39,INDIRECT("a" & (VLOOKUP(Rebalance!$D$39,$F$2:$G$48,2,FALSE)+ROW()-2)),"") ->  | V9: =IF(INDIRECT("c" & (VLOOKUP(Rebalance!$D$40,$F$2:$G$48,2,FALSE)+ROW()-2))=Rebalance!$D$40,INDIRECT("a" & (VLOOKUP(Rebalance!$D$40,$F$2:$G$48,2,FALSE)+ROW()-2)),"") ->  | W9: =IF(INDIRECT("c" & (VLOOKUP(Rebalance!$D$52,$F$2:$G$48,2,FALSE)+ROW()-2))=Rebalance!$D$52,INDIRECT("a" & (VLOOKUP(Rebalance!$D$52,$F$2:$G$48,2,FALSE)+ROW()-2)),"") ->  | X9: =IF(INDIRECT("c" & (VLOOKUP(Rebalance!$D$53,$F$2:$G$48,2,FALSE)+ROW()-2))=Rebalance!$D$53,INDIRECT("a" & (VLOOKUP(Rebalance!$D$53,$F$2:$G$48,2,FALSE)+ROW()-2)),"") ->  | Y9: =IF(INDIRECT("c" & (VLOOKUP(Rebalance!$D$54,$F$2:$G$48,2,FALSE)+ROW()-2))=Rebalance!$D$54,INDIRECT("a" & (VLOOKUP(Rebalance!$D$54,$F$2:$G$48,2,FALSE)+ROW()-2)),"") ->  | Z9: =IF(INDIRECT("c" & (VLOOKUP(Rebalance!$D$55,$F$2:$G$48,2,FALSE)+ROW()-2))=Rebalance!$D$55,INDIRECT("a" & (VLOOKUP(Rebalance!$D$55,$F$2:$G$48,2,FALSE)+ROW()-2)),"") ->  | AA9: =IF(INDIRECT("c" & (VLOOKUP(Rebalance!$D$56,$F$2:$G$48,2,FALSE)+ROW()-2))=Rebalance!$D$56,INDIRECT("a" & (VLOOKUP(Rebalance!$D$56,$F$2:$G$48,2,FALSE)+ROW()-2)),"") ->  | AB9: =IF(INDIRECT("c" & (VLOOKUP(Rebalance!$D$57,$F$2:$G$48,2,FALSE)+ROW()-2))=Rebalance!$D$57,INDIRECT("a" & (VLOOKUP(Rebalance!$D$57,$F$2:$G$48,2,FALSE)+ROW()-2)),"") ->  | AC9: =IF(INDIRECT("c" & (VLOOKUP(Rebalance!$D$58,$F$2:$G$48,2,FALSE)+ROW()-2))=Rebalance!$D$58,INDIRECT("a" & (VLOOKUP(Rebalance!$D$58,$F$2:$G$48,2,FALSE)+ROW()-2)),"") ->  | AD9: =IF(INDIRECT("c" & (VLOOKUP(Rebalance!$D$59,$F$2:$G$48,2,FALSE)+ROW()-2))=Rebalance!$D$59,INDIRECT("a" & (VLOOKUP(Rebalance!$D$59,$F$2:$G$48,2,FALSE)+ROW()-2)),"") ->  | AE9: =IF(INDIRECT("c" & (VLOOKUP(Rebalance!$D$60,$F$2:$G$48,2,FALSE)+ROW()-2))=Rebalance!$D$60,INDIRECT("a" & (VLOOKUP(Rebalance!$D$60,$F$2:$G$48,2,FALSE)+ROW()-2)),"") ->  | AF9: =IF(INDIRECT("c" & (VLOOKUP(Rebalance!$D$61,$F$2:$G$48,2,FALSE)+ROW()-2))=Rebalance!$D$61,INDIRECT("a" & (VLOOKUP(Rebalance!$D$61,$F$2:$G$48,2,FALSE)+ROW()-2)),"") ->  | AG9: =IF(INDIRECT("c" & (VLOOKUP(Rebalance!$D$62,$F$2:$G$48,2,FALSE)+ROW()-2))=Rebalance!$D$62,INDIRECT("a" & (VLOOKUP(Rebalance!$D$62,$F$2:$G$48,2,FALSE)+ROW()-2)),"") ->  | AH9: =IF(INDIRECT("c" & (VLOOKUP(Rebalance!$D$63,$F$2:$G$48,2,FALSE)+ROW()-2))=Rebalance!$D$63,INDIRECT("a" & (VLOOKUP(Rebalance!$D$63,$F$2:$G$48,2,FALSE)+ROW()-2)),"") ->  | AI9: =IF(INDIRECT("c" & (VLOOKUP(Rebalance!$D$64,$F$2:$G$48,2,FALSE)+ROW()-2))=Rebalance!$D$64,INDIRECT("a" & (VLOOKUP(Rebalance!$D$64,$F$2:$G$48,2,FALSE)+ROW()-2)),"") ->  | AJ9: =IF(INDIRECT("c" & (VLOOKUP(Rebalance!$D$65,$F$2:$G$48,2,FALSE)+ROW()-2))=Rebalance!$D$65,INDIRECT("a" & (VLOOKUP(Rebalance!$D$65,$F$2:$G$48,2,FALSE)+ROW()-2)),"") ->  | AK9: =IF(INDIRECT("c" & (VLOOKUP(Rebalance!$D$66,$F$2:$G$48,2,FALSE)+ROW()-2))=Rebalance!$D$66,INDIRECT("a" & (VLOOKUP(Rebalance!$D$66,$F$2:$G$48,2,FALSE)+ROW()-2)),"") -> 
A10: Melville Douglas STANLIB Balanced Fund A | B10: MDDB1 | C10: STANLIB Collective Investments | D10: =ROW() -> 10 | F10: Coronation Management Company | G10: =VLOOKUP(F10,$C$2:$D$599,2,FALSE) -> 222 | H10: =IF(INDIRECT("c" & (VLOOKUP(Rebalance!$D$26,$F$2:$G$48,2,FALSE)+ROW()-2))=Rebalance!$D$26,INDIRECT("a" & (VLOOKUP(Rebalance!$D$26,$F$2:$G$48,2,FALSE)+ROW()-2)),"") ->  | I10: =IF(INDIRECT("c" & (VLOOKUP(Rebalance!$D$27,$F$2:$G$48,2,FALSE)+ROW()-2))=Rebalance!$D$27,INDIRECT("a" & (VLOOKUP(Rebalance!$D$27,$F$2:$G$48,2,FALSE)+ROW()-2)),"") ->  | J10: =IF(INDIRECT("c" & (VLOOKUP(Rebalance!$D$28,$F$2:$G$48,2,FALSE)+ROW()-2))=Rebalance!$D$28,INDIRECT("a" & (VLOOKUP(Rebalance!$D$28,$F$2:$G$48,2,FALSE)+ROW()-2)),"") ->  | K10: =IF(INDIRECT("c" & (VLOOKUP(Rebalance!$D$29,$F$2:$G$48,2,FALSE)+ROW()-2))=Rebalance!$D$29,INDIRECT("a" & (VLOOKUP(Rebalance!$D$29,$F$2:$G$48,2,FALSE)+ROW()-2)),"") ->  | L10: =IF(INDIRECT("c" & (VLOOKUP(Rebalance!$D$30,$F$2:$G$48,2,FALSE)+ROW()-2))=Rebalance!$D$30,INDIRECT("a" & (VLOOKUP(Rebalance!$D$30,$F$2:$G$48,2,FALSE)+ROW()-2)),"") ->  | M10: =IF(INDIRECT("c" & (VLOOKUP(Rebalance!$D$31,$F$2:$G$48,2,FALSE)+ROW()-2))=Rebalance!$D$31,INDIRECT("a" & (VLOOKUP(Rebalance!$D$31,$F$2:$G$48,2,FALSE)+ROW()-2)),"") ->  | N10: =IF(INDIRECT("c" & (VLOOKUP(Rebalance!$D$32,$F$2:$G$48,2,FALSE)+ROW()-2))=Rebalance!$D$32,INDIRECT("a" & (VLOOKUP(Rebalance!$D$32,$F$2:$G$48,2,FALSE)+ROW()-2)),"") ->  | O10: =IF(INDIRECT("c" & (VLOOKUP(Rebalance!$D$33,$F$2:$G$48,2,FALSE)+ROW()-2))=Rebalance!$D$33,INDIRECT("a" & (VLOOKUP(Rebalance!$D$33,$F$2:$G$48,2,FALSE)+ROW()-2)),"") ->  | P10: =IF(INDIRECT("c" & (VLOOKUP(Rebalance!$D$34,$F$2:$G$48,2,FALSE)+ROW()-2))=Rebalance!$D$34,INDIRECT("a" & (VLOOKUP(Rebalance!$D$34,$F$2:$G$48,2,FALSE)+ROW()-2)),"") ->  | Q10: =IF(INDIRECT("c" & (VLOOKUP(Rebalance!$D$35,$F$2:$G$48,2,FALSE)+ROW()-2))=Rebalance!$D$35,INDIRECT("a" & (VLOOKUP(Rebalance!$D$35,$F$2:$G$48,2,FALSE)+ROW()-2)),"") ->  | R10: =IF(INDIRECT("c" & (VLOOKUP(Rebalance!$D$36,$F$2:$G$48,2,FALSE)+ROW()-2))=Rebalance!$D$36,INDIRECT("a" & (VLOOKUP(Rebalance!$D$36,$F$2:$G$48,2,FALSE)+ROW()-2)),"") ->  | S10: =IF(INDIRECT("c" & (VLOOKUP(Rebalance!$D$37,$F$2:$G$48,2,FALSE)+ROW()-2))=Rebalance!$D$37,INDIRECT("a" & (VLOOKUP(Rebalance!$D$37,$F$2:$G$48,2,FALSE)+ROW()-2)),"") ->  | T10: =IF(INDIRECT("c" & (VLOOKUP(Rebalance!$D$38,$F$2:$G$48,2,FALSE)+ROW()-2))=Rebalance!$D$38,INDIRECT("a" & (VLOOKUP(Rebalance!$D$38,$F$2:$G$48,2,FALSE)+ROW()-2)),"") ->  | U10: =IF(INDIRECT("c" & (VLOOKUP(Rebalance!$D$39,$F$2:$G$48,2,FALSE)+ROW()-2))=Rebalance!$D$39,INDIRECT("a" & (VLOOKUP(Rebalance!$D$39,$F$2:$G$48,2,FALSE)+ROW()-2)),"") ->  | V10: =IF(INDIRECT("c" & (VLOOKUP(Rebalance!$D$40,$F$2:$G$48,2,FALSE)+ROW()-2))=Rebalance!$D$40,INDIRECT("a" & (VLOOKUP(Rebalance!$D$40,$F$2:$G$48,2,FALSE)+ROW()-2)),"") ->  | W10: =IF(INDIRECT("c" & (VLOOKUP(Rebalance!$D$52,$F$2:$G$48,2,FALSE)+ROW()-2))=Rebalance!$D$52,INDIRECT("a" & (VLOOKUP(Rebalance!$D$52,$F$2:$G$48,2,FALSE)+ROW()-2)),"") ->  | X10: =IF(INDIRECT("c" & (VLOOKUP(Rebalance!$D$53,$F$2:$G$48,2,FALSE)+ROW()-2))=Rebalance!$D$53,INDIRECT("a" & (VLOOKUP(Rebalance!$D$53,$F$2:$G$48,2,FALSE)+ROW()-2)),"") ->  | Y10: =IF(INDIRECT("c" & (VLOOKUP(Rebalance!$D$54,$F$2:$G$48,2,FALSE)+ROW()-2))=Rebalance!$D$54,INDIRECT("a" & (VLOOKUP(Rebalance!$D$54,$F$2:$G$48,2,FALSE)+ROW()-2)),"") ->  | Z10: =IF(INDIRECT("c" & (VLOOKUP(Rebalance!$D$55,$F$2:$G$48,2,FALSE)+ROW()-2))=Rebalance!$D$55,INDIRECT("a" & (VLOOKUP(Rebalance!$D$55,$F$2:$G$48,2,FALSE)+ROW()-2)),"") ->  | AA10: =IF(INDIRECT("c" & (VLOOKUP(Rebalance!$D$56,$F$2:$G$48,2,FALSE)+ROW()-2))=Rebalance!$D$56,INDIRECT("a" & (VLOOKUP(Rebalance!$D$56,$F$2:$G$48,2,FALSE)+ROW()-2)),"") ->  | AB10: =IF(INDIRECT("c" & (VLOOKUP(Rebalance!$D$57,$F$2:$G$48,2,FALSE)+ROW()-2))=Rebalance!$D$57,INDIRECT("a" & (VLOOKUP(Rebalance!$D$57,$F$2:$G$48,2,FALSE)+ROW()-2)),"") ->  | AC10: =IF(INDIRECT("c" & (VLOOKUP(Rebalance!$D$58,$F$2:$G$48,2,FALSE)+ROW()-2))=Rebalance!$D$58,INDIRECT("a" & (VLOOKUP(Rebalance!$D$58,$F$2:$G$48,2,FALSE)+ROW()-2)),"") ->  | AD10: =IF(INDIRECT("c" & (VLOOKUP(Rebalance!$D$59,$F$2:$G$48,2,FALSE)+ROW()-2))=Rebalance!$D$59,INDIRECT("a" & (VLOOKUP(Rebalance!$D$59,$F$2:$G$48,2,FALSE)+ROW()-2)),"") ->  | AE10: =IF(INDIRECT("c" & (VLOOKUP(Rebalance!$D$60,$F$2:$G$48,2,FALSE)+ROW()-2))=Rebalance!$D$60,INDIRECT("a" & (VLOOKUP(Rebalance!$D$60,$F$2:$G$48,2,FALSE)+ROW()-2)),"") ->  | AF10: =IF(INDIRECT("c" & (VLOOKUP(Rebalance!$D$61,$F$2:$G$48,2,FALSE)+ROW()-2))=Rebalance!$D$61,INDIRECT("a" & (VLOOKUP(Rebalance!$D$61,$F$2:$G$48,2,FALSE)+ROW()-2)),"") ->  | AG10: =IF(INDIRECT("c" & (VLOOKUP(Rebalance!$D$62,$F$2:$G$48,2,FALSE)+ROW()-2))=Rebalance!$D$62,INDIRECT("a" & (VLOOKUP(Rebalance!$D$62,$F$2:$G$48,2,FALSE)+ROW()-2)),"") ->  | AH10: =IF(INDIRECT("c" & (VLOOKUP(Rebalance!$D$63,$F$2:$G$48,2,FALSE)+ROW()-2))=Rebalance!$D$63,INDIRECT("a" & (VLOOKUP(Rebalance!$D$63,$F$2:$G$48,2,FALSE)+ROW()-2)),"") ->  | AI10: =IF(INDIRECT("c" & (VLOOKUP(Rebalance!$D$64,$F$2:$G$48,2,FALSE)+ROW()-2))=Rebalance!$D$64,INDIRECT("a" & (VLOOKUP(Rebalance!$D$64,$F$2:$G$48,2,FALSE)+ROW()-2)),"") ->  | AJ10: =IF(INDIRECT("c" & (VLOOKUP(Rebalance!$D$65,$F$2:$G$48,2,FALSE)+ROW()-2))=Rebalance!$D$65,INDIRECT("a" & (VLOOKUP(Rebalance!$D$65,$F$2:$G$48,2,FALSE)+ROW()-2)),"") ->  | AK10: =IF(INDIRECT("c" & (VLOOKUP(Rebalance!$D$66,$F$2:$G$48,2,FALSE)+ROW()-2))=Rebalance!$D$66,INDIRECT("a" & (VLOOKUP(Rebalance!$D$66,$F$2:$G$48,2,FALSE)+ROW()-2)),"") -> 
A11: Melville Douglas STANLIB Medium Equity Fund of Fund A | B11: MDSFA | C11: STANLIB Collective Investments | D11: =ROW() -> 11 | F11: DISCOVERY LIFE COLLECTIVE INVESTMENTS (PTY) LTD | G11: =VLOOKUP(F11,$C$2:$D$599,2,FALSE) -> 241 | H11: =IF(INDIRECT("c" & (VLOOKUP(Rebalance!$D$26,$F$2:$G$48,2,FALSE)+ROW()-2))=Rebalance!$D$26,INDIRECT("a" & (VLOOKUP(Rebalance!$D$26,$F$2:$G$48,2,FALSE)+ROW()-2)),"") ->  | I11: =IF(INDIRECT("c" & (VLOOKUP(Rebalance!$D$27,$F$2:$G$48,2,FALSE)+ROW()-2))=Rebalance!$D$27,INDIRECT("a" & (VLOOKUP(Rebalance!$D$27,$F$2:$G$48,2,FALSE)+ROW()-2)),"") ->  | J11: =IF(INDIRECT("c" & (VLOOKUP(Rebalance!$D$28,$F$2:$G$48,2,FALSE)+ROW()-2))=Rebalance!$D$28,INDIRECT("a" & (VLOOKUP(Rebalance!$D$28,$F$2:$G$48,2,FALSE)+ROW()-2)),"") ->  | K11: =IF(INDIRECT("c" & (VLOOKUP(Rebalance!$D$29,$F$2:$G$48,2,FALSE)+ROW()-2))=Rebalance!$D$29,INDIRECT("a" & (VLOOKUP(Rebalance!$D$29,$F$2:$G$48,2,FALSE)+ROW()-2)),"") ->  | L11: =IF(INDIRECT("c" & (VLOOKUP(Rebalance!$D$30,$F$2:$G$48,2,FALSE)+ROW()-2))=Rebalance!$D$30,INDIRECT("a" & (VLOOKUP(Rebalance!$D$30,$F$2:$G$48,2,FALSE)+ROW()-2)),"") ->  | M11: =IF(INDIRECT("c" & (VLOOKUP(Rebalance!$D$31,$F$2:$G$48,2,FALSE)+ROW()-2))=Rebalance!$D$31,INDIRECT("a" & (VLOOKUP(Rebalance!$D$31,$F$2:$G$48,2,FALSE)+ROW()-2)),"") ->  | N11: =IF(INDIRECT("c" & (VLOOKUP(Rebalance!$D$32,$F$2:$G$48,2,FALSE)+ROW()-2))=Rebalance!$D$32,INDIRECT("a" & (VLOOKUP(Rebalance!$D$32,$F$2:$G$48,2,FALSE)+ROW()-2)),"") ->  | O11: =IF(INDIRECT("c" & (VLOOKUP(Rebalance!$D$33,$F$2:$G$48,2,FALSE)+ROW()-2))=Rebalance!$D$33,INDIRECT("a" & (VLOOKUP(Rebalance!$D$33,$F$2:$G$48,2,FALSE)+ROW()-2)),"") ->  | P11: =IF(INDIRECT("c" & (VLOOKUP(Rebalance!$D$34,$F$2:$G$48,2,FALSE)+ROW()-2))=Rebalance!$D$34,INDIRECT("a" & (VLOOKUP(Rebalance!$D$34,$F$2:$G$48,2,FALSE)+ROW()-2)),"") ->  | Q11: =IF(INDIRECT("c" & (VLOOKUP(Rebalance!$D$35,$F$2:$G$48,2,FALSE)+ROW()-2))=Rebalance!$D$35,INDIRECT("a" & (VLOOKUP(Rebalance!$D$35,$F$2:$G$48,2,FALSE)+ROW()-2)),"") ->  | R11: =IF(INDIRECT("c" & (VLOOKUP(Rebalance!$D$36,$F$2:$G$48,2,FALSE)+ROW()-2))=Rebalance!$D$36,INDIRECT("a" & (VLOOKUP(Rebalance!$D$36,$F$2:$G$48,2,FALSE)+ROW()-2)),"") ->  | S11: =IF(INDIRECT("c" & (VLOOKUP(Rebalance!$D$37,$F$2:$G$48,2,FALSE)+ROW()-2))=Rebalance!$D$37,INDIRECT("a" & (VLOOKUP(Rebalance!$D$37,$F$2:$G$48,2,FALSE)+ROW()-2)),"") ->  | T11: =IF(INDIRECT("c" & (VLOOKUP(Rebalance!$D$38,$F$2:$G$48,2,FALSE)+ROW()-2))=Rebalance!$D$38,INDIRECT("a" & (VLOOKUP(Rebalance!$D$38,$F$2:$G$48,2,FALSE)+ROW()-2)),"") ->  | U11: =IF(INDIRECT("c" & (VLOOKUP(Rebalance!$D$39,$F$2:$G$48,2,FALSE)+ROW()-2))=Rebalance!$D$39,INDIRECT("a" & (VLOOKUP(Rebalance!$D$39,$F$2:$G$48,2,FALSE)+ROW()-2)),"") ->  | V11: =IF(INDIRECT("c" & (VLOOKUP(Rebalance!$D$40,$F$2:$G$48,2,FALSE)+ROW()-2))=Rebalance!$D$40,INDIRECT("a" & (VLOOKUP(Rebalance!$D$40,$F$2:$G$48,2,FALSE)+ROW()-2)),"") ->  | W11: =IF(INDIRECT("c" & (VLOOKUP(Rebalance!$D$52,$F$2:$G$48,2,FALSE)+ROW()-2))=Rebalance!$D$52,INDIRECT("a" & (VLOOKUP(Rebalance!$D$52,$F$2:$G$48,2,FALSE)+ROW()-2)),"") ->  | X11: =IF(INDIRECT("c" & (VLOOKUP(Rebalance!$D$53,$F$2:$G$48,2,FALSE)+ROW()-2))=Rebalance!$D$53,INDIRECT("a" & (VLOOKUP(Rebalance!$D$53,$F$2:$G$48,2,FALSE)+ROW()-2)),"") ->  | Y11: =IF(INDIRECT("c" & (VLOOKUP(Rebalance!$D$54,$F$2:$G$48,2,FALSE)+ROW()-2))=Rebalance!$D$54,INDIRECT("a" & (VLOOKUP(Rebalance!$D$54,$F$2:$G$48,2,FALSE)+ROW()-2)),"") ->  | Z11: =IF(INDIRECT("c" & (VLOOKUP(Rebalance!$D$55,$F$2:$G$48,2,FALSE)+ROW()-2))=Rebalance!$D$55,INDIRECT("a" & (VLOOKUP(Rebalance!$D$55,$F$2:$G$48,2,FALSE)+ROW()-2)),"") ->  | AA11: =IF(INDIRECT("c" & (VLOOKUP(Rebalance!$D$56,$F$2:$G$48,2,FALSE)+ROW()-2))=Rebalance!$D$56,INDIRECT("a" & (VLOOKUP(Rebalance!$D$56,$F$2:$G$48,2,FALSE)+ROW()-2)),"") ->  | AB11: =IF(INDIRECT("c" & (VLOOKUP(Rebalance!$D$57,$F$2:$G$48,2,FALSE)+ROW()-2))=Rebalance!$D$57,INDIRECT("a" & (VLOOKUP(Rebalance!$D$57,$F$2:$G$48,2,FALSE)+ROW()-2)),"") ->  | AC11: =IF(INDIRECT("c" & (VLOOKUP(Rebalance!$D$58,$F$2:$G$48,2,FALSE)+ROW()-2))=Rebalance!$D$58,INDIRECT("a" & (VLOOKUP(Rebalance!$D$58,$F$2:$G$48,2,FALSE)+ROW()-2)),"") ->  | AD11: =IF(INDIRECT("c" & (VLOOKUP(Rebalance!$D$59,$F$2:$G$48,2,FALSE)+ROW()-2))=Rebalance!$D$59,INDIRECT("a" & (VLOOKUP(Rebalance!$D$59,$F$2:$G$48,2,FALSE)+ROW()-2)),"") ->  | AE11: =IF(INDIRECT("c" & (VLOOKUP(Rebalance!$D$60,$F$2:$G$48,2,FALSE)+ROW()-2))=Rebalance!$D$60,INDIRECT("a" & (VLOOKUP(Rebalance!$D$60,$F$2:$G$48,2,FALSE)+ROW()-2)),"") ->  | AF11: =IF(INDIRECT("c" & (VLOOKUP(Rebalance!$D$61,$F$2:$G$48,2,FALSE)+ROW()-2))=Rebalance!$D$61,INDIRECT("a" & (VLOOKUP(Rebalance!$D$61,$F$2:$G$48,2,FALSE)+ROW()-2)),"") ->  | AG11: =IF(INDIRECT("c" & (VLOOKUP(Rebalance!$D$62,$F$2:$G$48,2,FALSE)+ROW()-2))=Rebalance!$D$62,INDIRECT("a" & (VLOOKUP(Rebalance!$D$62,$F$2:$G$48,2,FALSE)+ROW()-2)),"") ->  | AH11: =IF(INDIRECT("c" & (VLOOKUP(Rebalance!$D$63,$F$2:$G$48,2,FALSE)+ROW()-2))=Rebalance!$D$63,INDIRECT("a" & (VLOOKUP(Rebalance!$D$63,$F$2:$G$48,2,FALSE)+ROW()-2)),"") ->  | AI11: =IF(INDIRECT("c" & (VLOOKUP(Rebalance!$D$64,$F$2:$G$48,2,FALSE)+ROW()-2))=Rebalance!$D$64,INDIRECT("a" & (VLOOKUP(Rebalance!$D$64,$F$2:$G$48,2,FALSE)+ROW()-2)),"") ->  | AJ11: =IF(INDIRECT("c" & (VLOOKUP(Rebalance!$D$65,$F$2:$G$48,2,FALSE)+ROW()-2))=Rebalance!$D$65,INDIRECT("a" & (VLOOKUP(Rebalance!$D$65,$F$2:$G$48,2,FALSE)+ROW()-2)),"") ->  | AK11: =IF(INDIRECT("c" & (VLOOKUP(Rebalance!$D$66,$F$2:$G$48,2,FALSE)+ROW()-2))=Rebalance!$D$66,INDIRECT("a" & (VLOOKUP(Rebalance!$D$66,$F$2:$G$48,2,FALSE)+ROW()-2)),"") -> 
A12: Melville Douglas STANLIB Balanced Fund B1 | B12: MDDB1 | C12: STANLIB Collective Investments | D12: =ROW() -> 12 | F12: Foord Unit Trusts Ltd | G12: =VLOOKUP(F12,$C$2:$D$599,2,FALSE) -> 248 | H12: =IF(INDIRECT("c" & (VLOOKUP(Rebalance!$D$26,$F$2:$G$48,2,FALSE)+ROW()-2))=Rebalance!$D$26,INDIRECT("a" & (VLOOKUP(Rebalance!$D$26,$F$2:$G$48,2,FALSE)+ROW()-2)),"") ->  | I12: =IF(INDIRECT("c" & (VLOOKUP(Rebalance!$D$27,$F$2:$G$48,2,FALSE)+ROW()-2))=Rebalance!$D$27,INDIRECT("a" & (VLOOKUP(Rebalance!$D$27,$F$2:$G$48,2,FALSE)+ROW()-2)),"") ->  | J12: =IF(INDIRECT("c" & (VLOOKUP(Rebalance!$D$28,$F$2:$G$48,2,FALSE)+ROW()-2))=Rebalance!$D$28,INDIRECT("a" & (VLOOKUP(Rebalance!$D$28,$F$2:$G$48,2,FALSE)+ROW()-2)),"") ->  | K12: =IF(INDIRECT("c" & (VLOOKUP(Rebalance!$D$29,$F$2:$G$48,2,FALSE)+ROW()-2))=Rebalance!$D$29,INDIRECT("a" & (VLOOKUP(Rebalance!$D$29,$F$2:$G$48,2,FALSE)+ROW()-2)),"") ->  | L12: =IF(INDIRECT("c" & (VLOOKUP(Rebalance!$D$30,$F$2:$G$48,2,FALSE)+ROW()-2))=Rebalance!$D$30,INDIRECT("a" & (VLOOKUP(Rebalance!$D$30,$F$2:$G$48,2,FALSE)+ROW()-2)),"") ->  | M12: =IF(INDIRECT("c" & (VLOOKUP(Rebalance!$D$31,$F$2:$G$48,2,FALSE)+ROW()-2))=Rebalance!$D$31,INDIRECT("a" & (VLOOKUP(Rebalance!$D$31,$F$2:$G$48,2,FALSE)+ROW()-2)),"") ->  | N12: =IF(INDIRECT("c" & (VLOOKUP(Rebalance!$D$32,$F$2:$G$48,2,FALSE)+ROW()-2))=Rebalance!$D$32,INDIRECT("a" & (VLOOKUP(Rebalance!$D$32,$F$2:$G$48,2,FALSE)+ROW()-2)),"") ->  | O12: =IF(INDIRECT("c" & (VLOOKUP(Rebalance!$D$33,$F$2:$G$48,2,FALSE)+ROW()-2))=Rebalance!$D$33,INDIRECT("a" & (VLOOKUP(Rebalance!$D$33,$F$2:$G$48,2,FALSE)+ROW()-2)),"") ->  | P12: =IF(INDIRECT("c" & (VLOOKUP(Rebalance!$D$34,$F$2:$G$48,2,FALSE)+ROW()-2))=Rebalance!$D$34,INDIRECT("a" & (VLOOKUP(Rebalance!$D$34,$F$2:$G$48,2,FALSE)+ROW()-2)),"") ->  | Q12: =IF(INDIRECT("c" & (VLOOKUP(Rebalance!$D$35,$F$2:$G$48,2,FALSE)+ROW()-2))=Rebalance!$D$35,INDIRECT("a" & (VLOOKUP(Rebalance!$D$35,$F$2:$G$48,2,FALSE)+ROW()-2)),"") ->  | R12: =IF(INDIRECT("c" & (VLOOKUP(Rebalance!$D$36,$F$2:$G$48,2,FALSE)+ROW()-2))=Rebalance!$D$36,INDIRECT("a" & (VLOOKUP(Rebalance!$D$36,$F$2:$G$48,2,FALSE)+ROW()-2)),"") ->  | S12: =IF(INDIRECT("c" & (VLOOKUP(Rebalance!$D$37,$F$2:$G$48,2,FALSE)+ROW()-2))=Rebalance!$D$37,INDIRECT("a" & (VLOOKUP(Rebalance!$D$37,$F$2:$G$48,2,FALSE)+ROW()-2)),"") ->  | T12: =IF(INDIRECT("c" & (VLOOKUP(Rebalance!$D$38,$F$2:$G$48,2,FALSE)+ROW()-2))=Rebalance!$D$38,INDIRECT("a" & (VLOOKUP(Rebalance!$D$38,$F$2:$G$48,2,FALSE)+ROW()-2)),"") ->  | U12: =IF(INDIRECT("c" & (VLOOKUP(Rebalance!$D$39,$F$2:$G$48,2,FALSE)+ROW()-2))=Rebalance!$D$39,INDIRECT("a" & (VLOOKUP(Rebalance!$D$39,$F$2:$G$48,2,FALSE)+ROW()-2)),"") ->  | V12: =IF(INDIRECT("c" & (VLOOKUP(Rebalance!$D$40,$F$2:$G$48,2,FALSE)+ROW()-2))=Rebalance!$D$40,INDIRECT("a" & (VLOOKUP(Rebalance!$D$40,$F$2:$G$48,2,FALSE)+ROW()-2)),"") ->  | W12: =IF(INDIRECT("c" & (VLOOKUP(Rebalance!$D$52,$F$2:$G$48,2,FALSE)+ROW()-2))=Rebalance!$D$52,INDIRECT("a" & (VLOOKUP(Rebalance!$D$52,$F$2:$G$48,2,FALSE)+ROW()-2)),"") ->  | X12: =IF(INDIRECT("c" & (VLOOKUP(Rebalance!$D$53,$F$2:$G$48,2,FALSE)+ROW()-2))=Rebalance!$D$53,INDIRECT("a" & (VLOOKUP(Rebalance!$D$53,$F$2:$G$48,2,FALSE)+ROW()-2)),"") ->  | Y12: =IF(INDIRECT("c" & (VLOOKUP(Rebalance!$D$54,$F$2:$G$48,2,FALSE)+ROW()-2))=Rebalance!$D$54,INDIRECT("a" & (VLOOKUP(Rebalance!$D$54,$F$2:$G$48,2,FALSE)+ROW()-2)),"") ->  | Z12: =IF(INDIRECT("c" & (VLOOKUP(Rebalance!$D$55,$F$2:$G$48,2,FALSE)+ROW()-2))=Rebalance!$D$55,INDIRECT("a" & (VLOOKUP(Rebalance!$D$55,$F$2:$G$48,2,FALSE)+ROW()-2)),"") ->  | AA12: =IF(INDIRECT("c" & (VLOOKUP(Rebalance!$D$56,$F$2:$G$48,2,FALSE)+ROW()-2))=Rebalance!$D$56,INDIRECT("a" & (VLOOKUP(Rebalance!$D$56,$F$2:$G$48,2,FALSE)+ROW()-2)),"") ->  | AB12: =IF(INDIRECT("c" & (VLOOKUP(Rebalance!$D$57,$F$2:$G$48,2,FALSE)+ROW()-2))=Rebalance!$D$57,INDIRECT("a" & (VLOOKUP(Rebalance!$D$57,$F$2:$G$48,2,FALSE)+ROW()-2)),"") ->  | AC12: =IF(INDIRECT("c" & (VLOOKUP(Rebalance!$D$58,$F$2:$G$48,2,FALSE)+ROW()-2))=Rebalance!$D$58,INDIRECT("a" & (VLOOKUP(Rebalance!$D$58,$F$2:$G$48,2,FALSE)+ROW()-2)),"") ->  | AD12: =IF(INDIRECT("c" & (VLOOKUP(Rebalance!$D$59,$F$2:$G$48,2,FALSE)+ROW()-2))=Rebalance!$D$59,INDIRECT("a" & (VLOOKUP(Rebalance!$D$59,$F$2:$G$48,2,FALSE)+ROW()-2)),"") ->  | AE12: =IF(INDIRECT("c" & (VLOOKUP(Rebalance!$D$60,$F$2:$G$48,2,FALSE)+ROW()-2))=Rebalance!$D$60,INDIRECT("a" & (VLOOKUP(Rebalance!$D$60,$F$2:$G$48,2,FALSE)+ROW()-2)),"") ->  | AF12: =IF(INDIRECT("c" & (VLOOKUP(Rebalance!$D$61,$F$2:$G$48,2,FALSE)+ROW()-2))=Rebalance!$D$61,INDIRECT("a" & (VLOOKUP(Rebalance!$D$61,$F$2:$G$48,2,FALSE)+ROW()-2)),"") ->  | AG12: =IF(INDIRECT("c" & (VLOOKUP(Rebalance!$D$62,$F$2:$G$48,2,FALSE)+ROW()-2))=Rebalance!$D$62,INDIRECT("a" & (VLOOKUP(Rebalance!$D$62,$F$2:$G$48,2,FALSE)+ROW()-2)),"") ->  | AH12: =IF(INDIRECT("c" & (VLOOKUP(Rebalance!$D$63,$F$2:$G$48,2,FALSE)+ROW()-2))=Rebalance!$D$63,INDIRECT("a" & (VLOOKUP(Rebalance!$D$63,$F$2:$G$48,2,FALSE)+ROW()-2)),"") ->  | AI12: =IF(INDIRECT("c" & (VLOOKUP(Rebalance!$D$64,$F$2:$G$48,2,FALSE)+ROW()-2))=Rebalance!$D$64,INDIRECT("a" & (VLOOKUP(Rebalance!$D$64,$F$2:$G$48,2,FALSE)+ROW()-2)),"") ->  | AJ12: =IF(INDIRECT("c" & (VLOOKUP(Rebalance!$D$65,$F$2:$G$48,2,FALSE)+ROW()-2))=Rebalance!$D$65,INDIRECT("a" & (VLOOKUP(Rebalance!$D$65,$F$2:$G$48,2,FALSE)+ROW()-2)),"") ->  | AK12: =IF(INDIRECT("c" & (VLOOKUP(Rebalance!$D$66,$F$2:$G$48,2,FALSE)+ROW()-2))=Rebalance!$D$66,INDIRECT("a" & (VLOOKUP(Rebalance!$D$66,$F$2:$G$48,2,FALSE)+ROW()-2)),"") -> 
A13: Melville Douglas STANLIB High Alpha Fund | B13: MDHFA | C13: STANLIB Collective Investments | D13: =ROW() -> 13 | F13: Grant Thornton Capital (Pty) Ltd | G13: =VLOOKUP(F13,$C$2:$D$599,2,FALSE) -> 253 | H13: =IF(INDIRECT("c" & (VLOOKUP(Rebalance!$D$26,$F$2:$G$48,2,FALSE)+ROW()-2))=Rebalance!$D$26,INDIRECT("a" & (VLOOKUP(Rebalance!$D$26,$F$2:$G$48,2,FALSE)+ROW()-2)),"") ->  | I13: =IF(INDIRECT("c" & (VLOOKUP(Rebalance!$D$27,$F$2:$G$48,2,FALSE)+ROW()-2))=Rebalance!$D$27,INDIRECT("a" & (VLOOKUP(Rebalance!$D$27,$F$2:$G$48,2,FALSE)+ROW()-2)),"") ->  | J13: =IF(INDIRECT("c" & (VLOOKUP(Rebalance!$D$28,$F$2:$G$48,2,FALSE)+ROW()-2))=Rebalance!$D$28,INDIRECT("a" & (VLOOKUP(Rebalance!$D$28,$F$2:$G$48,2,FALSE)+ROW()-2)),"") ->  | K13: =IF(INDIRECT("c" & (VLOOKUP(Rebalance!$D$29,$F$2:$G$48,2,FALSE)+ROW()-2))=Rebalance!$D$29,INDIRECT("a" & (VLOOKUP(Rebalance!$D$29,$F$2:$G$48,2,FALSE)+ROW()-2)),"") ->  | L13: =IF(INDIRECT("c" & (VLOOKUP(Rebalance!$D$30,$F$2:$G$48,2,FALSE)+ROW()-2))=Rebalance!$D$30,INDIRECT("a" & (VLOOKUP(Rebalance!$D$30,$F$2:$G$48,2,FALSE)+ROW()-2)),"") ->  | M13: =IF(INDIRECT("c" & (VLOOKUP(Rebalance!$D$31,$F$2:$G$48,2,FALSE)+ROW()-2))=Rebalance!$D$31,INDIRECT("a" & (VLOOKUP(Rebalance!$D$31,$F$2:$G$48,2,FALSE)+ROW()-2)),"") ->  | N13: =IF(INDIRECT("c" & (VLOOKUP(Rebalance!$D$32,$F$2:$G$48,2,FALSE)+ROW()-2))=Rebalance!$D$32,INDIRECT("a" & (VLOOKUP(Rebalance!$D$32,$F$2:$G$48,2,FALSE)+ROW()-2)),"") ->  | O13: =IF(INDIRECT("c" & (VLOOKUP(Rebalance!$D$33,$F$2:$G$48,2,FALSE)+ROW()-2))=Rebalance!$D$33,INDIRECT("a" & (VLOOKUP(Rebalance!$D$33,$F$2:$G$48,2,FALSE)+ROW()-2)),"") ->  | P13: =IF(INDIRECT("c" & (VLOOKUP(Rebalance!$D$34,$F$2:$G$48,2,FALSE)+ROW()-2))=Rebalance!$D$34,INDIRECT("a" & (VLOOKUP(Rebalance!$D$34,$F$2:$G$48,2,FALSE)+ROW()-2)),"") ->  | Q13: =IF(INDIRECT("c" & (VLOOKUP(Rebalance!$D$35,$F$2:$G$48,2,FALSE)+ROW()-2))=Rebalance!$D$35,INDIRECT("a" & (VLOOKUP(Rebalance!$D$35,$F$2:$G$48,2,FALSE)+ROW()-2)),"") ->  | R13: =IF(INDIRECT("c" & (VLOOKUP(Rebalance!$D$36,$F$2:$G$48,2,FALSE)+ROW()-2))=Rebalance!$D$36,INDIRECT("a" & (VLOOKUP(Rebalance!$D$36,$F$2:$G$48,2,FALSE)+ROW()-2)),"") ->  | S13: =IF(INDIRECT("c" & (VLOOKUP(Rebalance!$D$37,$F$2:$G$48,2,FALSE)+ROW()-2))=Rebalance!$D$37,INDIRECT("a" & (VLOOKUP(Rebalance!$D$37,$F$2:$G$48,2,FALSE)+ROW()-2)),"") ->  | T13: =IF(INDIRECT("c" & (VLOOKUP(Rebalance!$D$38,$F$2:$G$48,2,FALSE)+ROW()-2))=Rebalance!$D$38,INDIRECT("a" & (VLOOKUP(Rebalance!$D$38,$F$2:$G$48,2,FALSE)+ROW()-2)),"") ->  | U13: =IF(INDIRECT("c" & (VLOOKUP(Rebalance!$D$39,$F$2:$G$48,2,FALSE)+ROW()-2))=Rebalance!$D$39,INDIRECT("a" & (VLOOKUP(Rebalance!$D$39,$F$2:$G$48,2,FALSE)+ROW()-2)),"") ->  | V13: =IF(INDIRECT("c" & (VLOOKUP(Rebalance!$D$40,$F$2:$G$48,2,FALSE)+ROW()-2))=Rebalance!$D$40,INDIRECT("a" & (VLOOKUP(Rebalance!$D$40,$F$2:$G$48,2,FALSE)+ROW()-2)),"") ->  | W13: =IF(INDIRECT("c" & (VLOOKUP(Rebalance!$D$52,$F$2:$G$48,2,FALSE)+ROW()-2))=Rebalance!$D$52,INDIRECT("a" & (VLOOKUP(Rebalance!$D$52,$F$2:$G$48,2,FALSE)+ROW()-2)),"") ->  | X13: =IF(INDIRECT("c" & (VLOOKUP(Rebalance!$D$53,$F$2:$G$48,2,FALSE)+ROW()-2))=Rebalance!$D$53,INDIRECT("a" & (VLOOKUP(Rebalance!$D$53,$F$2:$G$48,2,FALSE)+ROW()-2)),"") ->  | Y13: =IF(INDIRECT("c" & (VLOOKUP(Rebalance!$D$54,$F$2:$G$48,2,FALSE)+ROW()-2))=Rebalance!$D$54,INDIRECT("a" & (VLOOKUP(Rebalance!$D$54,$F$2:$G$48,2,FALSE)+ROW()-2)),"") ->  | Z13: =IF(INDIRECT("c" & (VLOOKUP(Rebalance!$D$55,$F$2:$G$48,2,FALSE)+ROW()-2))=Rebalance!$D$55,INDIRECT("a" & (VLOOKUP(Rebalance!$D$55,$F$2:$G$48,2,FALSE)+ROW()-2)),"") ->  | AA13: =IF(INDIRECT("c" & (VLOOKUP(Rebalance!$D$56,$F$2:$G$48,2,FALSE)+ROW()-2))=Rebalance!$D$56,INDIRECT("a" & (VLOOKUP(Rebalance!$D$56,$F$2:$G$48,2,FALSE)+ROW()-2)),"") ->  | AB13: =IF(INDIRECT("c" & (VLOOKUP(Rebalance!$D$57,$F$2:$G$48,2,FALSE)+ROW()-2))=Rebalance!$D$57,INDIRECT("a" & (VLOOKUP(Rebalance!$D$57,$F$2:$G$48,2,FALSE)+ROW()-2)),"") ->  | AC13: =IF(INDIRECT("c" & (VLOOKUP(Rebalance!$D$58,$F$2:$G$48,2,FALSE)+ROW()-2))=Rebalance!$D$58,INDIRECT("a" & (VLOOKUP(Rebalance!$D$58,$F$2:$G$48,2,FALSE)+ROW()-2)),"") ->  | AD13: =IF(INDIRECT("c" & (VLOOKUP(Rebalance!$D$59,$F$2:$G$48,2,FALSE)+ROW()-2))=Rebalance!$D$59,INDIRECT("a" & (VLOOKUP(Rebalance!$D$59,$F$2:$G$48,2,FALSE)+ROW()-2)),"") ->  | AE13: =IF(INDIRECT("c" & (VLOOKUP(Rebalance!$D$60,$F$2:$G$48,2,FALSE)+ROW()-2))=Rebalance!$D$60,INDIRECT("a" & (VLOOKUP(Rebalance!$D$60,$F$2:$G$48,2,FALSE)+ROW()-2)),"") ->  | AF13: =IF(INDIRECT("c" & (VLOOKUP(Rebalance!$D$61,$F$2:$G$48,2,FALSE)+ROW()-2))=Rebalance!$D$61,INDIRECT("a" & (VLOOKUP(Rebalance!$D$61,$F$2:$G$48,2,FALSE)+ROW()-2)),"") ->  | AG13: =IF(INDIRECT("c" & (VLOOKUP(Rebalance!$D$62,$F$2:$G$48,2,FALSE)+ROW()-2))=Rebalance!$D$62,INDIRECT("a" & (VLOOKUP(Rebalance!$D$62,$F$2:$G$48,2,FALSE)+ROW()-2)),"") ->  | AH13: =IF(INDIRECT("c" & (VLOOKUP(Rebalance!$D$63,$F$2:$G$48,2,FALSE)+ROW()-2))=Rebalance!$D$63,INDIRECT("a" & (VLOOKUP(Rebalance!$D$63,$F$2:$G$48,2,FALSE)+ROW()-2)),"") ->  | AI13: =IF(INDIRECT("c" & (VLOOKUP(Rebalance!$D$64,$F$2:$G$48,2,FALSE)+ROW()-2))=Rebalance!$D$64,INDIRECT("a" & (VLOOKUP(Rebalance!$D$64,$F$2:$G$48,2,FALSE)+ROW()-2)),"") ->  | AJ13: =IF(INDIRECT("c" & (VLOOKUP(Rebalance!$D$65,$F$2:$G$48,2,FALSE)+ROW()-2))=Rebalance!$D$65,INDIRECT("a" & (VLOOKUP(Rebalance!$D$65,$F$2:$G$48,2,FALSE)+ROW()-2)),"") ->  | AK13: =IF(INDIRECT("c" & (VLOOKUP(Rebalance!$D$66,$F$2:$G$48,2,FALSE)+ROW()-2))=Rebalance!$D$66,INDIRECT("a" & (VLOOKUP(Rebalance!$D$66,$F$2:$G$48,2,FALSE)+ROW()-2)),"") -> 
A14: Melville Douglas STANLIB High Alpha Fund B1 | B14: MDHFA | C14: STANLIB Collective Investments | D14: =ROW() -> 14 | F14: Gryphon Collective Investments (RF) (Pty) Ltd | G14: =VLOOKUP(F14,$C$2:$D$599,2,FALSE) -> 256 | H14: =IF(INDIRECT("c" & (VLOOKUP(Rebalance!$D$26,$F$2:$G$48,2,FALSE)+ROW()-2))=Rebalance!$D$26,INDIRECT("a" & (VLOOKUP(Rebalance!$D$26,$F$2:$G$48,2,FALSE)+ROW()-2)),"") ->  | I14: =IF(INDIRECT("c" & (VLOOKUP(Rebalance!$D$27,$F$2:$G$48,2,FALSE)+ROW()-2))=Rebalance!$D$27,INDIRECT("a" & (VLOOKUP(Rebalance!$D$27,$F$2:$G$48,2,FALSE)+ROW()-2)),"") ->  | J14: =IF(INDIRECT("c" & (VLOOKUP(Rebalance!$D$28,$F$2:$G$48,2,FALSE)+ROW()-2))=Rebalance!$D$28,INDIRECT("a" & (VLOOKUP(Rebalance!$D$28,$F$2:$G$48,2,FALSE)+ROW()-2)),"") ->  | K14: =IF(INDIRECT("c" & (VLOOKUP(Rebalance!$D$29,$F$2:$G$48,2,FALSE)+ROW()-2))=Rebalance!$D$29,INDIRECT("a" & (VLOOKUP(Rebalance!$D$29,$F$2:$G$48,2,FALSE)+ROW()-2)),"") ->  | L14: =IF(INDIRECT("c" & (VLOOKUP(Rebalance!$D$30,$F$2:$G$48,2,FALSE)+ROW()-2))=Rebalance!$D$30,INDIRECT("a" & (VLOOKUP(Rebalance!$D$30,$F$2:$G$48,2,FALSE)+ROW()-2)),"") ->  | M14: =IF(INDIRECT("c" & (VLOOKUP(Rebalance!$D$31,$F$2:$G$48,2,FALSE)+ROW()-2))=Rebalance!$D$31,INDIRECT("a" & (VLOOKUP(Rebalance!$D$31,$F$2:$G$48,2,FALSE)+ROW()-2)),"") ->  | N14: =IF(INDIRECT("c" & (VLOOKUP(Rebalance!$D$32,$F$2:$G$48,2,FALSE)+ROW()-2))=Rebalance!$D$32,INDIRECT("a" & (VLOOKUP(Rebalance!$D$32,$F$2:$G$48,2,FALSE)+ROW()-2)),"") ->  | O14: =IF(INDIRECT("c" & (VLOOKUP(Rebalance!$D$33,$F$2:$G$48,2,FALSE)+ROW()-2))=Rebalance!$D$33,INDIRECT("a" & (VLOOKUP(Rebalance!$D$33,$F$2:$G$48,2,FALSE)+ROW()-2)),"") ->  | P14: =IF(INDIRECT("c" & (VLOOKUP(Rebalance!$D$34,$F$2:$G$48,2,FALSE)+ROW()-2))=Rebalance!$D$34,INDIRECT("a" & (VLOOKUP(Rebalance!$D$34,$F$2:$G$48,2,FALSE)+ROW()-2)),"") ->  | Q14: =IF(INDIRECT("c" & (VLOOKUP(Rebalance!$D$35,$F$2:$G$48,2,FALSE)+ROW()-2))=Rebalance!$D$35,INDIRECT("a" & (VLOOKUP(Rebalance!$D$35,$F$2:$G$48,2,FALSE)+ROW()-2)),"") ->  | R14: =IF(INDIRECT("c" & (VLOOKUP(Rebalance!$D$36,$F$2:$G$48,2,FALSE)+ROW()-2))=Rebalance!$D$36,INDIRECT("a" & (VLOOKUP(Rebalance!$D$36,$F$2:$G$48,2,FALSE)+ROW()-2)),"") ->  | S14: =IF(INDIRECT("c" & (VLOOKUP(Rebalance!$D$37,$F$2:$G$48,2,FALSE)+ROW()-2))=Rebalance!$D$37,INDIRECT("a" & (VLOOKUP(Rebalance!$D$37,$F$2:$G$48,2,FALSE)+ROW()-2)),"") ->  | T14: =IF(INDIRECT("c" & (VLOOKUP(Rebalance!$D$38,$F$2:$G$48,2,FALSE)+ROW()-2))=Rebalance!$D$38,INDIRECT("a" & (VLOOKUP(Rebalance!$D$38,$F$2:$G$48,2,FALSE)+ROW()-2)),"") ->  | U14: =IF(INDIRECT("c" & (VLOOKUP(Rebalance!$D$39,$F$2:$G$48,2,FALSE)+ROW()-2))=Rebalance!$D$39,INDIRECT("a" & (VLOOKUP(Rebalance!$D$39,$F$2:$G$48,2,FALSE)+ROW()-2)),"") ->  | V14: =IF(INDIRECT("c" & (VLOOKUP(Rebalance!$D$40,$F$2:$G$48,2,FALSE)+ROW()-2))=Rebalance!$D$40,INDIRECT("a" & (VLOOKUP(Rebalance!$D$40,$F$2:$G$48,2,FALSE)+ROW()-2)),"") ->  | W14: =IF(INDIRECT("c" & (VLOOKUP(Rebalance!$D$52,$F$2:$G$48,2,FALSE)+ROW()-2))=Rebalance!$D$52,INDIRECT("a" & (VLOOKUP(Rebalance!$D$52,$F$2:$G$48,2,FALSE)+ROW()-2)),"") ->  | X14: =IF(INDIRECT("c" & (VLOOKUP(Rebalance!$D$53,$F$2:$G$48,2,FALSE)+ROW()-2))=Rebalance!$D$53,INDIRECT("a" & (VLOOKUP(Rebalance!$D$53,$F$2:$G$48,2,FALSE)+ROW()-2)),"") ->  | Y14: =IF(INDIRECT("c" & (VLOOKUP(Rebalance!$D$54,$F$2:$G$48,2,FALSE)+ROW()-2))=Rebalance!$D$54,INDIRECT("a" & (VLOOKUP(Rebalance!$D$54,$F$2:$G$48,2,FALSE)+ROW()-2)),"") ->  | Z14: =IF(INDIRECT("c" & (VLOOKUP(Rebalance!$D$55,$F$2:$G$48,2,FALSE)+ROW()-2))=Rebalance!$D$55,INDIRECT("a" & (VLOOKUP(Rebalance!$D$55,$F$2:$G$48,2,FALSE)+ROW()-2)),"") ->  | AA14: =IF(INDIRECT("c" & (VLOOKUP(Rebalance!$D$56,$F$2:$G$48,2,FALSE)+ROW()-2))=Rebalance!$D$56,INDIRECT("a" & (VLOOKUP(Rebalance!$D$56,$F$2:$G$48,2,FALSE)+ROW()-2)),"") ->  | AB14: =IF(INDIRECT("c" & (VLOOKUP(Rebalance!$D$57,$F$2:$G$48,2,FALSE)+ROW()-2))=Rebalance!$D$57,INDIRECT("a" & (VLOOKUP(Rebalance!$D$57,$F$2:$G$48,2,FALSE)+ROW()-2)),"") ->  | AC14: =IF(INDIRECT("c" & (VLOOKUP(Rebalance!$D$58,$F$2:$G$48,2,FALSE)+ROW()-2))=Rebalance!$D$58,INDIRECT("a" & (VLOOKUP(Rebalance!$D$58,$F$2:$G$48,2,FALSE)+ROW()-2)),"") ->  | AD14: =IF(INDIRECT("c" & (VLOOKUP(Rebalance!$D$59,$F$2:$G$48,2,FALSE)+ROW()-2))=Rebalance!$D$59,INDIRECT("a" & (VLOOKUP(Rebalance!$D$59,$F$2:$G$48,2,FALSE)+ROW()-2)),"") ->  | AE14: =IF(INDIRECT("c" & (VLOOKUP(Rebalance!$D$60,$F$2:$G$48,2,FALSE)+ROW()-2))=Rebalance!$D$60,INDIRECT("a" & (VLOOKUP(Rebalance!$D$60,$F$2:$G$48,2,FALSE)+ROW()-2)),"") ->  | AF14: =IF(INDIRECT("c" & (VLOOKUP(Rebalance!$D$61,$F$2:$G$48,2,FALSE)+ROW()-2))=Rebalance!$D$61,INDIRECT("a" & (VLOOKUP(Rebalance!$D$61,$F$2:$G$48,2,FALSE)+ROW()-2)),"") ->  | AG14: =IF(INDIRECT("c" & (VLOOKUP(Rebalance!$D$62,$F$2:$G$48,2,FALSE)+ROW()-2))=Rebalance!$D$62,INDIRECT("a" & (VLOOKUP(Rebalance!$D$62,$F$2:$G$48,2,FALSE)+ROW()-2)),"") ->  | AH14: =IF(INDIRECT("c" & (VLOOKUP(Rebalance!$D$63,$F$2:$G$48,2,FALSE)+ROW()-2))=Rebalance!$D$63,INDIRECT("a" & (VLOOKUP(Rebalance!$D$63,$F$2:$G$48,2,FALSE)+ROW()-2)),"") ->  | AI14: =IF(INDIRECT("c" & (VLOOKUP(Rebalance!$D$64,$F$2:$G$48,2,FALSE)+ROW()-2))=Rebalance!$D$64,INDIRECT("a" & (VLOOKUP(Rebalance!$D$64,$F$2:$G$48,2,FALSE)+ROW()-2)),"") ->  | AJ14: =IF(INDIRECT("c" & (VLOOKUP(Rebalance!$D$65,$F$2:$G$48,2,FALSE)+ROW()-2))=Rebalance!$D$65,INDIRECT("a" & (VLOOKUP(Rebalance!$D$65,$F$2:$G$48,2,FALSE)+ROW()-2)),"") ->  | AK14: =IF(INDIRECT("c" & (VLOOKUP(Rebalance!$D$66,$F$2:$G$48,2,FALSE)+ROW()-2))=Rebalance!$D$66,INDIRECT("a" & (VLOOKUP(Rebalance!$D$66,$F$2:$G$48,2,FALSE)+ROW()-2)),"") -> 
A15: 1NVEST ALBI (NON TR) Index Tracker Fund B1 | B15: SITB1 | C15: STANLIB Collective Investments | D15: =ROW() -> 15 | F15: Investec Fund Managers | G15: =VLOOKUP(F15,$C$2:$D$599,2,FALSE) -> 258 | H15: =IF(INDIRECT("c" & (VLOOKUP(Rebalance!$D$26,$F$2:$G$48,2,FALSE)+ROW()-2))=Rebalance!$D$26,INDIRECT("a" & (VLOOKUP(Rebalance!$D$26,$F$2:$G$48,2,FALSE)+ROW()-2)),"") ->  | I15: =IF(INDIRECT("c" & (VLOOKUP(Rebalance!$D$27,$F$2:$G$48,2,FALSE)+ROW()-2))=Rebalance!$D$27,INDIRECT("a" & (VLOOKUP(Rebalance!$D$27,$F$2:$G$48,2,FALSE)+ROW()-2)),"") ->  | J15: =IF(INDIRECT("c" & (VLOOKUP(Rebalance!$D$28,$F$2:$G$48,2,FALSE)+ROW()-2))=Rebalance!$D$28,INDIRECT("a" & (VLOOKUP(Rebalance!$D$28,$F$2:$G$48,2,FALSE)+ROW()-2)),"") ->  | K15: =IF(INDIRECT("c" & (VLOOKUP(Rebalance!$D$29,$F$2:$G$48,2,FALSE)+ROW()-2))=Rebalance!$D$29,INDIRECT("a" & (VLOOKUP(Rebalance!$D$29,$F$2:$G$48,2,FALSE)+ROW()-2)),"") ->  | L15: =IF(INDIRECT("c" & (VLOOKUP(Rebalance!$D$30,$F$2:$G$48,2,FALSE)+ROW()-2))=Rebalance!$D$30,INDIRECT("a" & (VLOOKUP(Rebalance!$D$30,$F$2:$G$48,2,FALSE)+ROW()-2)),"") ->  | M15: =IF(INDIRECT("c" & (VLOOKUP(Rebalance!$D$31,$F$2:$G$48,2,FALSE)+ROW()-2))=Rebalance!$D$31,INDIRECT("a" & (VLOOKUP(Rebalance!$D$31,$F$2:$G$48,2,FALSE)+ROW()-2)),"") ->  | N15: =IF(INDIRECT("c" & (VLOOKUP(Rebalance!$D$32,$F$2:$G$48,2,FALSE)+ROW()-2))=Rebalance!$D$32,INDIRECT("a" & (VLOOKUP(Rebalance!$D$32,$F$2:$G$48,2,FALSE)+ROW()-2)),"") ->  | O15: =IF(INDIRECT("c" & (VLOOKUP(Rebalance!$D$33,$F$2:$G$48,2,FALSE)+ROW()-2))=Rebalance!$D$33,INDIRECT("a" & (VLOOKUP(Rebalance!$D$33,$F$2:$G$48,2,FALSE)+ROW()-2)),"") ->  | P15: =IF(INDIRECT("c" & (VLOOKUP(Rebalance!$D$34,$F$2:$G$48,2,FALSE)+ROW()-2))=Rebalance!$D$34,INDIRECT("a" & (VLOOKUP(Rebalance!$D$34,$F$2:$G$48,2,FALSE)+ROW()-2)),"") ->  | Q15: =IF(INDIRECT("c" & (VLOOKUP(Rebalance!$D$35,$F$2:$G$48,2,FALSE)+ROW()-2))=Rebalance!$D$35,INDIRECT("a" & (VLOOKUP(Rebalance!$D$35,$F$2:$G$48,2,FALSE)+ROW()-2)),"") ->  | R15: =IF(INDIRECT("c" & (VLOOKUP(Rebalance!$D$36,$F$2:$G$48,2,FALSE)+ROW()-2))=Rebalance!$D$36,INDIRECT("a" & (VLOOKUP(Rebalance!$D$36,$F$2:$G$48,2,FALSE)+ROW()-2)),"") ->  | S15: =IF(INDIRECT("c" & (VLOOKUP(Rebalance!$D$37,$F$2:$G$48,2,FALSE)+ROW()-2))=Rebalance!$D$37,INDIRECT("a" & (VLOOKUP(Rebalance!$D$37,$F$2:$G$48,2,FALSE)+ROW()-2)),"") ->  | T15: =IF(INDIRECT("c" & (VLOOKUP(Rebalance!$D$38,$F$2:$G$48,2,FALSE)+ROW()-2))=Rebalance!$D$38,INDIRECT("a" & (VLOOKUP(Rebalance!$D$38,$F$2:$G$48,2,FALSE)+ROW()-2)),"") ->  | U15: =IF(INDIRECT("c" & (VLOOKUP(Rebalance!$D$39,$F$2:$G$48,2,FALSE)+ROW()-2))=Rebalance!$D$39,INDIRECT("a" & (VLOOKUP(Rebalance!$D$39,$F$2:$G$48,2,FALSE)+ROW()-2)),"") ->  | V15: =IF(INDIRECT("c" & (VLOOKUP(Rebalance!$D$40,$F$2:$G$48,2,FALSE)+ROW()-2))=Rebalance!$D$40,INDIRECT("a" & (VLOOKUP(Rebalance!$D$40,$F$2:$G$48,2,FALSE)+ROW()-2)),"") ->  | W15: =IF(INDIRECT("c" & (VLOOKUP(Rebalance!$D$52,$F$2:$G$48,2,FALSE)+ROW()-2))=Rebalance!$D$52,INDIRECT("a" & (VLOOKUP(Rebalance!$D$52,$F$2:$G$48,2,FALSE)+ROW()-2)),"") ->  | X15: =IF(INDIRECT("c" & (VLOOKUP(Rebalance!$D$53,$F$2:$G$48,2,FALSE)+ROW()-2))=Rebalance!$D$53,INDIRECT("a" & (VLOOKUP(Rebalance!$D$53,$F$2:$G$48,2,FALSE)+ROW()-2)),"") ->  | Y15: =IF(INDIRECT("c" & (VLOOKUP(Rebalance!$D$54,$F$2:$G$48,2,FALSE)+ROW()-2))=Rebalance!$D$54,INDIRECT("a" & (VLOOKUP(Rebalance!$D$54,$F$2:$G$48,2,FALSE)+ROW()-2)),"") ->  | Z15: =IF(INDIRECT("c" & (VLOOKUP(Rebalance!$D$55,$F$2:$G$48,2,FALSE)+ROW()-2))=Rebalance!$D$55,INDIRECT("a" & (VLOOKUP(Rebalance!$D$55,$F$2:$G$48,2,FALSE)+ROW()-2)),"") ->  | AA15: =IF(INDIRECT("c" & (VLOOKUP(Rebalance!$D$56,$F$2:$G$48,2,FALSE)+ROW()-2))=Rebalance!$D$56,INDIRECT("a" & (VLOOKUP(Rebalance!$D$56,$F$2:$G$48,2,FALSE)+ROW()-2)),"") ->  | AB15: =IF(INDIRECT("c" & (VLOOKUP(Rebalance!$D$57,$F$2:$G$48,2,FALSE)+ROW()-2))=Rebalance!$D$57,INDIRECT("a" & (VLOOKUP(Rebalance!$D$57,$F$2:$G$48,2,FALSE)+ROW()-2)),"") ->  | AC15: =IF(INDIRECT("c" & (VLOOKUP(Rebalance!$D$58,$F$2:$G$48,2,FALSE)+ROW()-2))=Rebalance!$D$58,INDIRECT("a" & (VLOOKUP(Rebalance!$D$58,$F$2:$G$48,2,FALSE)+ROW()-2)),"") ->  | AD15: =IF(INDIRECT("c" & (VLOOKUP(Rebalance!$D$59,$F$2:$G$48,2,FALSE)+ROW()-2))=Rebalance!$D$59,INDIRECT("a" & (VLOOKUP(Rebalance!$D$59,$F$2:$G$48,2,FALSE)+ROW()-2)),"") ->  | AE15: =IF(INDIRECT("c" & (VLOOKUP(Rebalance!$D$60,$F$2:$G$48,2,FALSE)+ROW()-2))=Rebalance!$D$60,INDIRECT("a" & (VLOOKUP(Rebalance!$D$60,$F$2:$G$48,2,FALSE)+ROW()-2)),"") ->  | AF15: =IF(INDIRECT("c" & (VLOOKUP(Rebalance!$D$61,$F$2:$G$48,2,FALSE)+ROW()-2))=Rebalance!$D$61,INDIRECT("a" & (VLOOKUP(Rebalance!$D$61,$F$2:$G$48,2,FALSE)+ROW()-2)),"") ->  | AG15: =IF(INDIRECT("c" & (VLOOKUP(Rebalance!$D$62,$F$2:$G$48,2,FALSE)+ROW()-2))=Rebalance!$D$62,INDIRECT("a" & (VLOOKUP(Rebalance!$D$62,$F$2:$G$48,2,FALSE)+ROW()-2)),"") ->  | AH15: =IF(INDIRECT("c" & (VLOOKUP(Rebalance!$D$63,$F$2:$G$48,2,FALSE)+ROW()-2))=Rebalance!$D$63,INDIRECT("a" & (VLOOKUP(Rebalance!$D$63,$F$2:$G$48,2,FALSE)+ROW()-2)),"") ->  | AI15: =IF(INDIRECT("c" & (VLOOKUP(Rebalance!$D$64,$F$2:$G$48,2,FALSE)+ROW()-2))=Rebalance!$D$64,INDIRECT("a" & (VLOOKUP(Rebalance!$D$64,$F$2:$G$48,2,FALSE)+ROW()-2)),"") ->  | AJ15: =IF(INDIRECT("c" & (VLOOKUP(Rebalance!$D$65,$F$2:$G$48,2,FALSE)+ROW()-2))=Rebalance!$D$65,INDIRECT("a" & (VLOOKUP(Rebalance!$D$65,$F$2:$G$48,2,FALSE)+ROW()-2)),"") ->  | AK15: =IF(INDIRECT("c" & (VLOOKUP(Rebalance!$D$66,$F$2:$G$48,2,FALSE)+ROW()-2))=Rebalance!$D$66,INDIRECT("a" & (VLOOKUP(Rebalance!$D$66,$F$2:$G$48,2,FALSE)+ROW()-2)),"") -> 
A16: 1NVEST ALSI 40 Fund A | B16: SLAFB1 | C16: STANLIB Collective Investments | D16: =ROW() -> 16 | F16: IP Management Company (Pty) Ltd | G16: =VLOOKUP(F16,$C$2:$D$599,2,FALSE) -> 279 | H16: =IF(INDIRECT("c" & (VLOOKUP(Rebalance!$D$26,$F$2:$G$48,2,FALSE)+ROW()-2))=Rebalance!$D$26,INDIRECT("a" & (VLOOKUP(Rebalance!$D$26,$F$2:$G$48,2,FALSE)+ROW()-2)),"") ->  | I16: =IF(INDIRECT("c" & (VLOOKUP(Rebalance!$D$27,$F$2:$G$48,2,FALSE)+ROW()-2))=Rebalance!$D$27,INDIRECT("a" & (VLOOKUP(Rebalance!$D$27,$F$2:$G$48,2,FALSE)+ROW()-2)),"") ->  | J16: =IF(INDIRECT("c" & (VLOOKUP(Rebalance!$D$28,$F$2:$G$48,2,FALSE)+ROW()-2))=Rebalance!$D$28,INDIRECT("a" & (VLOOKUP(Rebalance!$D$28,$F$2:$G$48,2,FALSE)+ROW()-2)),"") ->  | K16: =IF(INDIRECT("c" & (VLOOKUP(Rebalance!$D$29,$F$2:$G$48,2,FALSE)+ROW()-2))=Rebalance!$D$29,INDIRECT("a" & (VLOOKUP(Rebalance!$D$29,$F$2:$G$48,2,FALSE)+ROW()-2)),"") ->  | L16: =IF(INDIRECT("c" & (VLOOKUP(Rebalance!$D$30,$F$2:$G$48,2,FALSE)+ROW()-2))=Rebalance!$D$30,INDIRECT("a" & (VLOOKUP(Rebalance!$D$30,$F$2:$G$48,2,FALSE)+ROW()-2)),"") ->  | M16: =IF(INDIRECT("c" & (VLOOKUP(Rebalance!$D$31,$F$2:$G$48,2,FALSE)+ROW()-2))=Rebalance!$D$31,INDIRECT("a" & (VLOOKUP(Rebalance!$D$31,$F$2:$G$48,2,FALSE)+ROW()-2)),"") ->  | N16: =IF(INDIRECT("c" & (VLOOKUP(Rebalance!$D$32,$F$2:$G$48,2,FALSE)+ROW()-2))=Rebalance!$D$32,INDIRECT("a" & (VLOOKUP(Rebalance!$D$32,$F$2:$G$48,2,FALSE)+ROW()-2)),"") ->  | O16: =IF(INDIRECT("c" & (VLOOKUP(Rebalance!$D$33,$F$2:$G$48,2,FALSE)+ROW()-2))=Rebalance!$D$33,INDIRECT("a" & (VLOOKUP(Rebalance!$D$33,$F$2:$G$48,2,FALSE)+ROW()-2)),"") ->  | P16: =IF(INDIRECT("c" & (VLOOKUP(Rebalance!$D$34,$F$2:$G$48,2,FALSE)+ROW()-2))=Rebalance!$D$34,INDIRECT("a" & (VLOOKUP(Rebalance!$D$34,$F$2:$G$48,2,FALSE)+ROW()-2)),"") ->  | Q16: =IF(INDIRECT("c" & (VLOOKUP(Rebalance!$D$35,$F$2:$G$48,2,FALSE)+ROW()-2))=Rebalance!$D$35,INDIRECT("a" & (VLOOKUP(Rebalance!$D$35,$F$2:$G$48,2,FALSE)+ROW()-2)),"") ->  | R16: =IF(INDIRECT("c" & (VLOOKUP(Rebalance!$D$36,$F$2:$G$48,2,FALSE)+ROW()-2))=Rebalance!$D$36,INDIRECT("a" & (VLOOKUP(Rebalance!$D$36,$F$2:$G$48,2,FALSE)+ROW()-2)),"") ->  | S16: =IF(INDIRECT("c" & (VLOOKUP(Rebalance!$D$37,$F$2:$G$48,2,FALSE)+ROW()-2))=Rebalance!$D$37,INDIRECT("a" & (VLOOKUP(Rebalance!$D$37,$F$2:$G$48,2,FALSE)+ROW()-2)),"") ->  | T16: =IF(INDIRECT("c" & (VLOOKUP(Rebalance!$D$38,$F$2:$G$48,2,FALSE)+ROW()-2))=Rebalance!$D$38,INDIRECT("a" & (VLOOKUP(Rebalance!$D$38,$F$2:$G$48,2,FALSE)+ROW()-2)),"") ->  | U16: =IF(INDIRECT("c" & (VLOOKUP(Rebalance!$D$39,$F$2:$G$48,2,FALSE)+ROW()-2))=Rebalance!$D$39,INDIRECT("a" & (VLOOKUP(Rebalance!$D$39,$F$2:$G$48,2,FALSE)+ROW()-2)),"") ->  | V16: =IF(INDIRECT("c" & (VLOOKUP(Rebalance!$D$40,$F$2:$G$48,2,FALSE)+ROW()-2))=Rebalance!$D$40,INDIRECT("a" & (VLOOKUP(Rebalance!$D$40,$F$2:$G$48,2,FALSE)+ROW()-2)),"") ->  | W16: =IF(INDIRECT("c" & (VLOOKUP(Rebalance!$D$52,$F$2:$G$48,2,FALSE)+ROW()-2))=Rebalance!$D$52,INDIRECT("a" & (VLOOKUP(Rebalance!$D$52,$F$2:$G$48,2,FALSE)+ROW()-2)),"") ->  | X16: =IF(INDIRECT("c" & (VLOOKUP(Rebalance!$D$53,$F$2:$G$48,2,FALSE)+ROW()-2))=Rebalance!$D$53,INDIRECT("a" & (VLOOKUP(Rebalance!$D$53,$F$2:$G$48,2,FALSE)+ROW()-2)),"") ->  | Y16: =IF(INDIRECT("c" & (VLOOKUP(Rebalance!$D$54,$F$2:$G$48,2,FALSE)+ROW()-2))=Rebalance!$D$54,INDIRECT("a" & (VLOOKUP(Rebalance!$D$54,$F$2:$G$48,2,FALSE)+ROW()-2)),"") ->  | Z16: =IF(INDIRECT("c" & (VLOOKUP(Rebalance!$D$55,$F$2:$G$48,2,FALSE)+ROW()-2))=Rebalance!$D$55,INDIRECT("a" & (VLOOKUP(Rebalance!$D$55,$F$2:$G$48,2,FALSE)+ROW()-2)),"") ->  | AA16: =IF(INDIRECT("c" & (VLOOKUP(Rebalance!$D$56,$F$2:$G$48,2,FALSE)+ROW()-2))=Rebalance!$D$56,INDIRECT("a" & (VLOOKUP(Rebalance!$D$56,$F$2:$G$48,2,FALSE)+ROW()-2)),"") ->  | AB16: =IF(INDIRECT("c" & (VLOOKUP(Rebalance!$D$57,$F$2:$G$48,2,FALSE)+ROW()-2))=Rebalance!$D$57,INDIRECT("a" & (VLOOKUP(Rebalance!$D$57,$F$2:$G$48,2,FALSE)+ROW()-2)),"") ->  | AC16: =IF(INDIRECT("c" & (VLOOKUP(Rebalance!$D$58,$F$2:$G$48,2,FALSE)+ROW()-2))=Rebalance!$D$58,INDIRECT("a" & (VLOOKUP(Rebalance!$D$58,$F$2:$G$48,2,FALSE)+ROW()-2)),"") ->  | AD16: =IF(INDIRECT("c" & (VLOOKUP(Rebalance!$D$59,$F$2:$G$48,2,FALSE)+ROW()-2))=Rebalance!$D$59,INDIRECT("a" & (VLOOKUP(Rebalance!$D$59,$F$2:$G$48,2,FALSE)+ROW()-2)),"") ->  | AE16: =IF(INDIRECT("c" & (VLOOKUP(Rebalance!$D$60,$F$2:$G$48,2,FALSE)+ROW()-2))=Rebalance!$D$60,INDIRECT("a" & (VLOOKUP(Rebalance!$D$60,$F$2:$G$48,2,FALSE)+ROW()-2)),"") ->  | AF16: =IF(INDIRECT("c" & (VLOOKUP(Rebalance!$D$61,$F$2:$G$48,2,FALSE)+ROW()-2))=Rebalance!$D$61,INDIRECT("a" & (VLOOKUP(Rebalance!$D$61,$F$2:$G$48,2,FALSE)+ROW()-2)),"") ->  | AG16: =IF(INDIRECT("c" & (VLOOKUP(Rebalance!$D$62,$F$2:$G$48,2,FALSE)+ROW()-2))=Rebalance!$D$62,INDIRECT("a" & (VLOOKUP(Rebalance!$D$62,$F$2:$G$48,2,FALSE)+ROW()-2)),"") ->  | AH16: =IF(INDIRECT("c" & (VLOOKUP(Rebalance!$D$63,$F$2:$G$48,2,FALSE)+ROW()-2))=Rebalance!$D$63,INDIRECT("a" & (VLOOKUP(Rebalance!$D$63,$F$2:$G$48,2,FALSE)+ROW()-2)),"") ->  | AI16: =IF(INDIRECT("c" & (VLOOKUP(Rebalance!$D$64,$F$2:$G$48,2,FALSE)+ROW()-2))=Rebalance!$D$64,INDIRECT("a" & (VLOOKUP(Rebalance!$D$64,$F$2:$G$48,2,FALSE)+ROW()-2)),"") ->  | AJ16: =IF(INDIRECT("c" & (VLOOKUP(Rebalance!$D$65,$F$2:$G$48,2,FALSE)+ROW()-2))=Rebalance!$D$65,INDIRECT("a" & (VLOOKUP(Rebalance!$D$65,$F$2:$G$48,2,FALSE)+ROW()-2)),"") ->  | AK16: =IF(INDIRECT("c" & (VLOOKUP(Rebalance!$D$66,$F$2:$G$48,2,FALSE)+ROW()-2))=Rebalance!$D$66,INDIRECT("a" & (VLOOKUP(Rebalance!$D$66,$F$2:$G$48,2,FALSE)+ROW()-2)),"") -> 
A17: 1NVEST ALSI 40 Fund B1 | B17: SLAFB1 | C17: STANLIB Collective Investments | D17: =ROW() -> 17 | F17: Kagiso Collective Investments Ltd | G17: =VLOOKUP(F17,$C$2:$D$599,2,FALSE) -> 296 | H17: =IF(INDIRECT("c" & (VLOOKUP(Rebalance!$D$26,$F$2:$G$48,2,FALSE)+ROW()-2))=Rebalance!$D$26,INDIRECT("a" & (VLOOKUP(Rebalance!$D$26,$F$2:$G$48,2,FALSE)+ROW()-2)),"") ->  | I17: =IF(INDIRECT("c" & (VLOOKUP(Rebalance!$D$27,$F$2:$G$48,2,FALSE)+ROW()-2))=Rebalance!$D$27,INDIRECT("a" & (VLOOKUP(Rebalance!$D$27,$F$2:$G$48,2,FALSE)+ROW()-2)),"") ->  | J17: =IF(INDIRECT("c" & (VLOOKUP(Rebalance!$D$28,$F$2:$G$48,2,FALSE)+ROW()-2))=Rebalance!$D$28,INDIRECT("a" & (VLOOKUP(Rebalance!$D$28,$F$2:$G$48,2,FALSE)+ROW()-2)),"") ->  | K17: =IF(INDIRECT("c" & (VLOOKUP(Rebalance!$D$29,$F$2:$G$48,2,FALSE)+ROW()-2))=Rebalance!$D$29,INDIRECT("a" & (VLOOKUP(Rebalance!$D$29,$F$2:$G$48,2,FALSE)+ROW()-2)),"") ->  | L17: =IF(INDIRECT("c" & (VLOOKUP(Rebalance!$D$30,$F$2:$G$48,2,FALSE)+ROW()-2))=Rebalance!$D$30,INDIRECT("a" & (VLOOKUP(Rebalance!$D$30,$F$2:$G$48,2,FALSE)+ROW()-2)),"") ->  | M17: =IF(INDIRECT("c" & (VLOOKUP(Rebalance!$D$31,$F$2:$G$48,2,FALSE)+ROW()-2))=Rebalance!$D$31,INDIRECT("a" & (VLOOKUP(Rebalance!$D$31,$F$2:$G$48,2,FALSE)+ROW()-2)),"") ->  | N17: =IF(INDIRECT("c" & (VLOOKUP(Rebalance!$D$32,$F$2:$G$48,2,FALSE)+ROW()-2))=Rebalance!$D$32,INDIRECT("a" & (VLOOKUP(Rebalance!$D$32,$F$2:$G$48,2,FALSE)+ROW()-2)),"") ->  | O17: =IF(INDIRECT("c" & (VLOOKUP(Rebalance!$D$33,$F$2:$G$48,2,FALSE)+ROW()-2))=Rebalance!$D$33,INDIRECT("a" & (VLOOKUP(Rebalance!$D$33,$F$2:$G$48,2,FALSE)+ROW()-2)),"") ->  | P17: =IF(INDIRECT("c" & (VLOOKUP(Rebalance!$D$34,$F$2:$G$48,2,FALSE)+ROW()-2))=Rebalance!$D$34,INDIRECT("a" & (VLOOKUP(Rebalance!$D$34,$F$2:$G$48,2,FALSE)+ROW()-2)),"") ->  | Q17: =IF(INDIRECT("c" & (VLOOKUP(Rebalance!$D$35,$F$2:$G$48,2,FALSE)+ROW()-2))=Rebalance!$D$35,INDIRECT("a" & (VLOOKUP(Rebalance!$D$35,$F$2:$G$48,2,FALSE)+ROW()-2)),"") ->  | R17: =IF(INDIRECT("c" & (VLOOKUP(Rebalance!$D$36,$F$2:$G$48,2,FALSE)+ROW()-2))=Rebalance!$D$36,INDIRECT("a" & (VLOOKUP(Rebalance!$D$36,$F$2:$G$48,2,FALSE)+ROW()-2)),"") ->  | S17: =IF(INDIRECT("c" & (VLOOKUP(Rebalance!$D$37,$F$2:$G$48,2,FALSE)+ROW()-2))=Rebalance!$D$37,INDIRECT("a" & (VLOOKUP(Rebalance!$D$37,$F$2:$G$48,2,FALSE)+ROW()-2)),"") ->  | T17: =IF(INDIRECT("c" & (VLOOKUP(Rebalance!$D$38,$F$2:$G$48,2,FALSE)+ROW()-2))=Rebalance!$D$38,INDIRECT("a" & (VLOOKUP(Rebalance!$D$38,$F$2:$G$48,2,FALSE)+ROW()-2)),"") ->  | U17: =IF(INDIRECT("c" & (VLOOKUP(Rebalance!$D$39,$F$2:$G$48,2,FALSE)+ROW()-2))=Rebalance!$D$39,INDIRECT("a" & (VLOOKUP(Rebalance!$D$39,$F$2:$G$48,2,FALSE)+ROW()-2)),"") ->  | V17: =IF(INDIRECT("c" & (VLOOKUP(Rebalance!$D$40,$F$2:$G$48,2,FALSE)+ROW()-2))=Rebalance!$D$40,INDIRECT("a" & (VLOOKUP(Rebalance!$D$40,$F$2:$G$48,2,FALSE)+ROW()-2)),"") ->  | W17: =IF(INDIRECT("c" & (VLOOKUP(Rebalance!$D$52,$F$2:$G$48,2,FALSE)+ROW()-2))=Rebalance!$D$52,INDIRECT("a" & (VLOOKUP(Rebalance!$D$52,$F$2:$G$48,2,FALSE)+ROW()-2)),"") ->  | X17: =IF(INDIRECT("c" & (VLOOKUP(Rebalance!$D$53,$F$2:$G$48,2,FALSE)+ROW()-2))=Rebalance!$D$53,INDIRECT("a" & (VLOOKUP(Rebalance!$D$53,$F$2:$G$48,2,FALSE)+ROW()-2)),"") ->  | Y17: =IF(INDIRECT("c" & (VLOOKUP(Rebalance!$D$54,$F$2:$G$48,2,FALSE)+ROW()-2))=Rebalance!$D$54,INDIRECT("a" & (VLOOKUP(Rebalance!$D$54,$F$2:$G$48,2,FALSE)+ROW()-2)),"") ->  | Z17: =IF(INDIRECT("c" & (VLOOKUP(Rebalance!$D$55,$F$2:$G$48,2,FALSE)+ROW()-2))=Rebalance!$D$55,INDIRECT("a" & (VLOOKUP(Rebalance!$D$55,$F$2:$G$48,2,FALSE)+ROW()-2)),"") ->  | AA17: =IF(INDIRECT("c" & (VLOOKUP(Rebalance!$D$56,$F$2:$G$48,2,FALSE)+ROW()-2))=Rebalance!$D$56,INDIRECT("a" & (VLOOKUP(Rebalance!$D$56,$F$2:$G$48,2,FALSE)+ROW()-2)),"") ->  | AB17: =IF(INDIRECT("c" & (VLOOKUP(Rebalance!$D$57,$F$2:$G$48,2,FALSE)+ROW()-2))=Rebalance!$D$57,INDIRECT("a" & (VLOOKUP(Rebalance!$D$57,$F$2:$G$48,2,FALSE)+ROW()-2)),"") ->  | AC17: =IF(INDIRECT("c" & (VLOOKUP(Rebalance!$D$58,$F$2:$G$48,2,FALSE)+ROW()-2))=Rebalance!$D$58,INDIRECT("a" & (VLOOKUP(Rebalance!$D$58,$F$2:$G$48,2,FALSE)+ROW()-2)),"") ->  | AD17: =IF(INDIRECT("c" & (VLOOKUP(Rebalance!$D$59,$F$2:$G$48,2,FALSE)+ROW()-2))=Rebalance!$D$59,INDIRECT("a" & (VLOOKUP(Rebalance!$D$59,$F$2:$G$48,2,FALSE)+ROW()-2)),"") ->  | AE17: =IF(INDIRECT("c" & (VLOOKUP(Rebalance!$D$60,$F$2:$G$48,2,FALSE)+ROW()-2))=Rebalance!$D$60,INDIRECT("a" & (VLOOKUP(Rebalance!$D$60,$F$2:$G$48,2,FALSE)+ROW()-2)),"") ->  | AF17: =IF(INDIRECT("c" & (VLOOKUP(Rebalance!$D$61,$F$2:$G$48,2,FALSE)+ROW()-2))=Rebalance!$D$61,INDIRECT("a" & (VLOOKUP(Rebalance!$D$61,$F$2:$G$48,2,FALSE)+ROW()-2)),"") ->  | AG17: =IF(INDIRECT("c" & (VLOOKUP(Rebalance!$D$62,$F$2:$G$48,2,FALSE)+ROW()-2))=Rebalance!$D$62,INDIRECT("a" & (VLOOKUP(Rebalance!$D$62,$F$2:$G$48,2,FALSE)+ROW()-2)),"") ->  | AH17: =IF(INDIRECT("c" & (VLOOKUP(Rebalance!$D$63,$F$2:$G$48,2,FALSE)+ROW()-2))=Rebalance!$D$63,INDIRECT("a" & (VLOOKUP(Rebalance!$D$63,$F$2:$G$48,2,FALSE)+ROW()-2)),"") ->  | AI17: =IF(INDIRECT("c" & (VLOOKUP(Rebalance!$D$64,$F$2:$G$48,2,FALSE)+ROW()-2))=Rebalance!$D$64,INDIRECT("a" & (VLOOKUP(Rebalance!$D$64,$F$2:$G$48,2,FALSE)+ROW()-2)),"") ->  | AJ17: =IF(INDIRECT("c" & (VLOOKUP(Rebalance!$D$65,$F$2:$G$48,2,FALSE)+ROW()-2))=Rebalance!$D$65,INDIRECT("a" & (VLOOKUP(Rebalance!$D$65,$F$2:$G$48,2,FALSE)+ROW()-2)),"") ->  | AK17: =IF(INDIRECT("c" & (VLOOKUP(Rebalance!$D$66,$F$2:$G$48,2,FALSE)+ROW()-2))=Rebalance!$D$66,INDIRECT("a" & (VLOOKUP(Rebalance!$D$66,$F$2:$G$48,2,FALSE)+ROW()-2)),"") -> 
A18: 1NVEST Capped Property Index Tracker Fund B1 | B18: SCPB1 | C18: STANLIB Collective Investments | D18: =ROW() -> 18 | F18: LibertyGroup | G18: =VLOOKUP(F18,$C$2:$D$599,2,FALSE) -> 302 | H18: =IF(INDIRECT("c" & (VLOOKUP(Rebalance!$D$26,$F$2:$G$48,2,FALSE)+ROW()-2))=Rebalance!$D$26,INDIRECT("a" & (VLOOKUP(Rebalance!$D$26,$F$2:$G$48,2,FALSE)+ROW()-2)),"") ->  | I18: =IF(INDIRECT("c" & (VLOOKUP(Rebalance!$D$27,$F$2:$G$48,2,FALSE)+ROW()-2))=Rebalance!$D$27,INDIRECT("a" & (VLOOKUP(Rebalance!$D$27,$F$2:$G$48,2,FALSE)+ROW()-2)),"") ->  | J18: =IF(INDIRECT("c" & (VLOOKUP(Rebalance!$D$28,$F$2:$G$48,2,FALSE)+ROW()-2))=Rebalance!$D$28,INDIRECT("a" & (VLOOKUP(Rebalance!$D$28,$F$2:$G$48,2,FALSE)+ROW()-2)),"") ->  | K18: =IF(INDIRECT("c" & (VLOOKUP(Rebalance!$D$29,$F$2:$G$48,2,FALSE)+ROW()-2))=Rebalance!$D$29,INDIRECT("a" & (VLOOKUP(Rebalance!$D$29,$F$2:$G$48,2,FALSE)+ROW()-2)),"") ->  | L18: =IF(INDIRECT("c" & (VLOOKUP(Rebalance!$D$30,$F$2:$G$48,2,FALSE)+ROW()-2))=Rebalance!$D$30,INDIRECT("a" & (VLOOKUP(Rebalance!$D$30,$F$2:$G$48,2,FALSE)+ROW()-2)),"") ->  | M18: =IF(INDIRECT("c" & (VLOOKUP(Rebalance!$D$31,$F$2:$G$48,2,FALSE)+ROW()-2))=Rebalance!$D$31,INDIRECT("a" & (VLOOKUP(Rebalance!$D$31,$F$2:$G$48,2,FALSE)+ROW()-2)),"") ->  | N18: =IF(INDIRECT("c" & (VLOOKUP(Rebalance!$D$32,$F$2:$G$48,2,FALSE)+ROW()-2))=Rebalance!$D$32,INDIRECT("a" & (VLOOKUP(Rebalance!$D$32,$F$2:$G$48,2,FALSE)+ROW()-2)),"") ->  | O18: =IF(INDIRECT("c" & (VLOOKUP(Rebalance!$D$33,$F$2:$G$48,2,FALSE)+ROW()-2))=Rebalance!$D$33,INDIRECT("a" & (VLOOKUP(Rebalance!$D$33,$F$2:$G$48,2,FALSE)+ROW()-2)),"") ->  | P18: =IF(INDIRECT("c" & (VLOOKUP(Rebalance!$D$34,$F$2:$G$48,2,FALSE)+ROW()-2))=Rebalance!$D$34,INDIRECT("a" & (VLOOKUP(Rebalance!$D$34,$F$2:$G$48,2,FALSE)+ROW()-2)),"") ->  | Q18: =IF(INDIRECT("c" & (VLOOKUP(Rebalance!$D$35,$F$2:$G$48,2,FALSE)+ROW()-2))=Rebalance!$D$35,INDIRECT("a" & (VLOOKUP(Rebalance!$D$35,$F$2:$G$48,2,FALSE)+ROW()-2)),"") ->  | R18: =IF(INDIRECT("c" & (VLOOKUP(Rebalance!$D$36,$F$2:$G$48,2,FALSE)+ROW()-2))=Rebalance!$D$36,INDIRECT("a" & (VLOOKUP(Rebalance!$D$36,$F$2:$G$48,2,FALSE)+ROW()-2)),"") ->  | S18: =IF(INDIRECT("c" & (VLOOKUP(Rebalance!$D$37,$F$2:$G$48,2,FALSE)+ROW()-2))=Rebalance!$D$37,INDIRECT("a" & (VLOOKUP(Rebalance!$D$37,$F$2:$G$48,2,FALSE)+ROW()-2)),"") ->  | T18: =IF(INDIRECT("c" & (VLOOKUP(Rebalance!$D$38,$F$2:$G$48,2,FALSE)+ROW()-2))=Rebalance!$D$38,INDIRECT("a" & (VLOOKUP(Rebalance!$D$38,$F$2:$G$48,2,FALSE)+ROW()-2)),"") ->  | U18: =IF(INDIRECT("c" & (VLOOKUP(Rebalance!$D$39,$F$2:$G$48,2,FALSE)+ROW()-2))=Rebalance!$D$39,INDIRECT("a" & (VLOOKUP(Rebalance!$D$39,$F$2:$G$48,2,FALSE)+ROW()-2)),"") ->  | V18: =IF(INDIRECT("c" & (VLOOKUP(Rebalance!$D$40,$F$2:$G$48,2,FALSE)+ROW()-2))=Rebalance!$D$40,INDIRECT("a" & (VLOOKUP(Rebalance!$D$40,$F$2:$G$48,2,FALSE)+ROW()-2)),"") ->  | W18: =IF(INDIRECT("c" & (VLOOKUP(Rebalance!$D$52,$F$2:$G$48,2,FALSE)+ROW()-2))=Rebalance!$D$52,INDIRECT("a" & (VLOOKUP(Rebalance!$D$52,$F$2:$G$48,2,FALSE)+ROW()-2)),"") ->  | X18: =IF(INDIRECT("c" & (VLOOKUP(Rebalance!$D$53,$F$2:$G$48,2,FALSE)+ROW()-2))=Rebalance!$D$53,INDIRECT("a" & (VLOOKUP(Rebalance!$D$53,$F$2:$G$48,2,FALSE)+ROW()-2)),"") ->  | Y18: =IF(INDIRECT("c" & (VLOOKUP(Rebalance!$D$54,$F$2:$G$48,2,FALSE)+ROW()-2))=Rebalance!$D$54,INDIRECT("a" & (VLOOKUP(Rebalance!$D$54,$F$2:$G$48,2,FALSE)+ROW()-2)),"") ->  | Z18: =IF(INDIRECT("c" & (VLOOKUP(Rebalance!$D$55,$F$2:$G$48,2,FALSE)+ROW()-2))=Rebalance!$D$55,INDIRECT("a" & (VLOOKUP(Rebalance!$D$55,$F$2:$G$48,2,FALSE)+ROW()-2)),"") ->  | AA18: =IF(INDIRECT("c" & (VLOOKUP(Rebalance!$D$56,$F$2:$G$48,2,FALSE)+ROW()-2))=Rebalance!$D$56,INDIRECT("a" & (VLOOKUP(Rebalance!$D$56,$F$2:$G$48,2,FALSE)+ROW()-2)),"") ->  | AB18: =IF(INDIRECT("c" & (VLOOKUP(Rebalance!$D$57,$F$2:$G$48,2,FALSE)+ROW()-2))=Rebalance!$D$57,INDIRECT("a" & (VLOOKUP(Rebalance!$D$57,$F$2:$G$48,2,FALSE)+ROW()-2)),"") ->  | AC18: =IF(INDIRECT("c" & (VLOOKUP(Rebalance!$D$58,$F$2:$G$48,2,FALSE)+ROW()-2))=Rebalance!$D$58,INDIRECT("a" & (VLOOKUP(Rebalance!$D$58,$F$2:$G$48,2,FALSE)+ROW()-2)),"") ->  | AD18: =IF(INDIRECT("c" & (VLOOKUP(Rebalance!$D$59,$F$2:$G$48,2,FALSE)+ROW()-2))=Rebalance!$D$59,INDIRECT("a" & (VLOOKUP(Rebalance!$D$59,$F$2:$G$48,2,FALSE)+ROW()-2)),"") ->  | AE18: =IF(INDIRECT("c" & (VLOOKUP(Rebalance!$D$60,$F$2:$G$48,2,FALSE)+ROW()-2))=Rebalance!$D$60,INDIRECT("a" & (VLOOKUP(Rebalance!$D$60,$F$2:$G$48,2,FALSE)+ROW()-2)),"") ->  | AF18: =IF(INDIRECT("c" & (VLOOKUP(Rebalance!$D$61,$F$2:$G$48,2,FALSE)+ROW()-2))=Rebalance!$D$61,INDIRECT("a" & (VLOOKUP(Rebalance!$D$61,$F$2:$G$48,2,FALSE)+ROW()-2)),"") ->  | AG18: =IF(INDIRECT("c" & (VLOOKUP(Rebalance!$D$62,$F$2:$G$48,2,FALSE)+ROW()-2))=Rebalance!$D$62,INDIRECT("a" & (VLOOKUP(Rebalance!$D$62,$F$2:$G$48,2,FALSE)+ROW()-2)),"") ->  | AH18: =IF(INDIRECT("c" & (VLOOKUP(Rebalance!$D$63,$F$2:$G$48,2,FALSE)+ROW()-2))=Rebalance!$D$63,INDIRECT("a" & (VLOOKUP(Rebalance!$D$63,$F$2:$G$48,2,FALSE)+ROW()-2)),"") ->  | AI18: =IF(INDIRECT("c" & (VLOOKUP(Rebalance!$D$64,$F$2:$G$48,2,FALSE)+ROW()-2))=Rebalance!$D$64,INDIRECT("a" & (VLOOKUP(Rebalance!$D$64,$F$2:$G$48,2,FALSE)+ROW()-2)),"") ->  | AJ18: =IF(INDIRECT("c" & (VLOOKUP(Rebalance!$D$65,$F$2:$G$48,2,FALSE)+ROW()-2))=Rebalance!$D$65,INDIRECT("a" & (VLOOKUP(Rebalance!$D$65,$F$2:$G$48,2,FALSE)+ROW()-2)),"") ->  | AK18: =IF(INDIRECT("c" & (VLOOKUP(Rebalance!$D$66,$F$2:$G$48,2,FALSE)+ROW()-2))=Rebalance!$D$66,INDIRECT("a" & (VLOOKUP(Rebalance!$D$66,$F$2:$G$48,2,FALSE)+ROW()-2)),"") -> 
